Workbook

Sheet Janvier - 2prem. semaines (2)
B1: =MID(CELL("filename",B1),FIND("]",CELL("filename",B1))+1,32) -> Janvier - 2prem. semaines (2)
B2: Feuille de temps
AD8: Congés fériés, lundi suivant la date
A9: Employé: | C9: ='Congés de l''employé'!B8 -> 0 | AD9: Mois | AE9: Type de congé férié | AF9: Année en cours
A10: Période débutant le | C10: =DATE(An_ref,1,-2)-WEEKDAY(DATE(An_ref,1,3))+7 -> 2018-12-31 | AB10: =OR(C11=$AF$13,C11=$AF$14,C11=$AF$15,C11=$AF$17,C11=$AF$18,C11=$AF$20,C11=$AF$22,C11=$AF$24,C11=$AF$26,C11=$AF$28,C11=$AF$29,C11=$AF$30) -> FALSE | AF10: =An_ref -> 2019 | AH10: alloué au férié
AD11: Janvier | AE11: Jour de l'an | AF11: =DATE(Année,1,1) -> 2019-01-01 | AG11: Date fixe 1er janvier
K12: =VLOOKUP($B17,$AF$12:$AH$30,3,FALSE) -> 1.494718362e-188 | AC12: FÉRIÉ | AE12: FÉRIÉ-JOUR OUVRABLE SUIVANT LE JOUR DE L'AN | AF12: =AF11+2-WEEKDAY(AF11)+(WEEKDAY(AF11)>2) -> 2019-01-01 | AH12: =Edit!M27 -> 7.47359181e-190
A13: Absence | B13: Jour | C13: Heure Début | D13: Départ Diner | E13: Retour Diner | F13: Heure Fin | G13: Télétravail Départ | H13: Télétravail Fin | I13: TOTAL Journalier | K13: Index de la ligne | AE13: Bureau fermé congé donné-un jour après le jour de l'an | AF13: =AF11+2-WEEKDAY(AF11)+(WEEKDAY(AF11)>2)+1 -> 2019-01-02
K14: 0 | AC14: FÉRIÉ | AD14: Mars | AE14: Bureau fermé congé donné-un jour ouvré avant Pâques | AF14: =AF15-2 -> 2019-04-19 | AG14: 3e lundi de mai | AH14: =Edit!M28 -> 0.3289473684
A15: Horaire Semaine 1 | AE15: Pâques | AF15: =DATE(Année,3,29.56+0.979*MOD(204-11*MOD(Année,19),30)- WEEKDAY(DATE(Année,3,28.56+0.979*MOD(204-11*MOD(Année,19),30)))) -> 2019-04-21 | AG15: Date fixe 24 juin
B16: =$C$10 -> 2018-12-31 | I16: =IF(ISNA(VLOOKUP($B16,$AF$12:$AH$30,3,FALSE)),IF($A16="CONGÉ",'Congés de l''employé'!$E$16,IF($A16="Demi congé",'Congés de l''employé'!$BU$16,IF($A16="MALADIE",'Congés de l''employé'!$E$18,IF($A16="Demi maladie",'Congés de l''employé'!$BU$18,MOD($F16-($C16-($D16-$E16))+($H16-$G16),1))))),VLOOKUP($B16,$AF$12:$AH$30,3,FALSE)) -> 0 | K16: =IF(COUNTIF(A16:A16,"X"),MAX($K$13:K13)+1,"") ->  | AD16: Avril | AE16: Lundi de pâques | AF16: =AF15+1 -> 2019-04-22 | AG16: Date fixe 1er juillet
B17: =$C$10+1 -> 2019-01-01 | I17: =IF(ISNA(VLOOKUP($B17,$AF$12:$AH$30,3,FALSE)),IF($A17="CONGÉ",'Congés de l''employé'!$E$16,IF($A17="Demi congé",'Congés de l''employé'!$BU$16,IF($A17="MALADIE",'Congés de l''employé'!$E$18,IF($A17="Demi maladie",'Congés de l''employé'!$BU$18,MOD($F17-($C17-($D17-$E17))+($H17-$G17),1))))),VLOOKUP($B17,$AF$12:$AH$30,3,FALSE)) -> 7.47359181e-190 | K17: =IF(COUNTIF(A17:A17,"X"),MAX($K$13:K14)+1,"") ->  | AC17: FÉRIÉ | AD17: Mai | AE17: Journée nationale des patriotes | AF17: =DATE(Année,5,23)-WEEKDAY(DATE(Année,5,1),2) -> 2019-05-20 | AH17: =Edit!M30 -> 0
B18: =$C$10+2 -> 2019-01-02 | I18: =IF(ISNA(VLOOKUP($B18,$AF$12:$AH$30,3,FALSE)),IF($A18="CONGÉ",'Congés de l''employé'!$E$16,IF($A18="Demi congé",'Congés de l''employé'!$BU$16,IF($A18="MALADIE",'Congés de l''employé'!$E$18,IF($A18="Demi maladie",'Congés de l''employé'!$BU$18,MOD($F18-($C18-($D18-$E18))+($H18-$G18),1))))),VLOOKUP($B18,$AF$12:$AH$30,3,FALSE)) -> 0 | K18: =IF(COUNTIF(A18:A18,"X"),MAX($K$13:K15)+1,"") ->  | AC18: FÉRIÉ | AD18: Juin | AE18: Fête nationale du Québec | AF18: =DATE(Année,6,24) -> 2019-06-24 | AH18: =Edit!M31 -> 0
A19: CONGÉ | B19: =$C$10+3 -> 2019-01-03 | I19: =IF(ISNA(VLOOKUP($B19,$AF$12:$AH$30,3,FALSE)),IF($A19="CONGÉ",'Congés de l''employé'!$E$16,IF($A19="Demi congé",'Congés de l''employé'!$BU$16,IF($A19="MALADIE",'Congés de l''employé'!$E$18,IF($A19="Demi maladie",'Congés de l''employé'!$BU$18,MOD($F19-($C19-($D19-$E19))+($H19-$G19),1))))),VLOOKUP($B19,$AF$12:$AH$30,3,FALSE)) -> 0.2916666667 | K19: =IF(COUNTIF(A19:A19,"X"),MAX($K$13:K16)+1,"") ->  | AE19: FÉRIÉ-JOUR OUVRABLE SUIVANT LA FÊTE NATIONALE DU QUÉBEC | AF19: =AF18+2-WEEKDAY(AF18)+(WEEKDAY(AF18)>2)*7 -> 2019-06-24 | AG19: Date fixe 25 décembre
B20: =$C$10+4 -> 2019-01-04 | I20: =IF(ISNA(VLOOKUP($B20,$AF$12:$AH$30,3,FALSE)),IF($A20="CONGÉ",'Congés de l''employé'!$E$16,IF($A20="Demi congé",'Congés de l''employé'!$BU$16,IF($A20="MALADIE",'Congés de l''employé'!$E$18,IF($A20="Demi maladie",'Congés de l''employé'!$BU$18,MOD($F20-($C20-($D20-$E20))+($H20-$G20),1))))),VLOOKUP($B20,$AF$12:$AH$30,3,FALSE)) -> 0 | K20: =IF(COUNTIF(A20:A20,"X"),MAX($K$13:K17)+1,"") ->  | AC20: FÉRIÉ | AD20: Juillet | AE20: Fête du Canada | AF20: =DATE(Année,7,1) -> 2019-07-01 | AH20: =Edit!M32 -> 1.125374615e-210
B21: =$C$10+5 -> 2019-01-05 | I21: =IF(ISNA(VLOOKUP($B21,$AF$12:$AH$30,3,FALSE)),IF($A21="CONGÉ",'Congés de l''employé'!$E$16,IF($A21="Demi congé",'Congés de l''employé'!$BU$16,IF($A21="MALADIE",'Congés de l''employé'!$E$18,IF($A21="Demi maladie",'Congés de l''employé'!$BU$18,MOD($F21-($C21-($D21-$E21))+($H21-$G21),1))))),VLOOKUP($B21,$AF$12:$AH$30,3,FALSE)) -> 0 | K21: =IF(COUNTIF(A21:A21,"X"),MAX($K$13:K18)+1,"") ->  | AE21: FÉRIÉ-JOUR OUVRABLE SUIVANT LA FÊTE DU CANADA | AF21: =AF20+2-WEEKDAY(AF20)+(WEEKDAY(AF20)>2)*7 -> 2019-07-01
B22: =$C$10+6 -> 2019-01-06 | I22: =IF(ISNA(VLOOKUP($B22,$AF$12:$AH$30,3,FALSE)),IF($A22="CONGÉ",'Congés de l''employé'!$E$16,IF($A22="Demi congé",'Congés de l''employé'!$BU$16,IF($A22="MALADIE",'Congés de l''employé'!$E$18,IF($A22="Demi maladie",'Congés de l''employé'!$BU$18,MOD($F22-($C22-($D22-$E22))+($H22-$G22),1))))),VLOOKUP($B22,$AF$12:$AH$30,3,FALSE)) -> 0 | K22: =IF(COUNTIF(A22:A22,"X"),MAX($K$13:K19)+1,"") ->  | AC22: FÉRIÉ | AD22: Septembre | AE22: Fête du travail | AF22: =IF(MOD(DATE(Année,9,1),7)<=2,2-MOD(DATE(Année,9,1),7),9-MOD(DATE(Année,9,1),7))+DATE(Année,9,1) -> 2019-09-01 | AH22: =Edit!M33 -> 0
I23: =SUM(I16:I22)+Tableau145678936402[[#This Row],[Heure Début]] -> 0.2916666667 | K23: =IF(COUNTIF(A23:A23,"X"),MAX($K$13:K20)+1,"") ->  | AE23: FÉRIÉ-JOUR OUVRABLE SUIVANT LA FÊTE DU TRAVAIL | AF23: =AF22+2-WEEKDAY(AF22)+(WEEKDAY(AF22)>2)*7 -> 2019-09-02
K24: =IF(COUNTIF(A24:A24,"X"),MAX($K$13:K21)+1,"") ->  | AC24: FÉRIÉ | AD24: Octobre | AE24: Action de grâce | AF24: =DATE(AF10,10,1) -> 2019-10-01 | AH24: =Edit!M34 -> 0
K25: =IF(COUNTIF(A25:A25,"X"),MAX($K$13:K22)+1,"") ->  | AE25: FÉRIÉ-JOUR OUVRABLE SUIVANT L'ACTION DE GRÂCE | AF25: =AF24-DAY(AF24)-WEEKDAY(AF24-DAY(AF24),2)+15 -> 2019-10-14
I26: =IF(OR(I23=-(C15),C29=0),"0",(I23-C15)) -> 0 | K26: =IF(COUNTIF(A26:A26,"X"),MAX($K$13:K23)+1,"") ->  | AE26: Bureau fermé congé donné | AF26: =DATE(Année,12,25)-1 -> 2019-12-24 | AH26: ='[1]Congés de l''employé'!$E$14 -> 0
K28: =IF(COUNTIF(A28:A28,"X"),MAX($K$13:K24)+1,"") ->  | AC28: FÉRIÉ | AD28: Décembre | AE28: Férié-Noël | AF28: =DATE(Année,12,25) -> 2019-12-25 | AH28: =Edit!M35 -> 0
B29: Horaire Semaine 2 | K29: =IF(COUNTIF(A29:A29,"X"),MAX($K$13:K25)+1,"") ->  | AD29: Décembre | AE29: Bureau fermé congé donné | AF29: =DATE(Année,12,25)+1 -> 2019-12-26
B30: =C10+7 -> 2019-01-07 | C30: 0.3333333333 | D30: 0.5 | I30: =IF(ISNA(VLOOKUP($B30,$AF$12:$AH$30,3,FALSE)),IF($A30="CONGÉ",'Congés de l''employé'!$E$16,IF($A30="Demi congé",'Congés de l''employé'!$BU$16,IF($A30="MALADIE",'Congés de l''employé'!$E$18,IF($A30="Demi maladie",'Congés de l''employé'!$BU$18,MOD($F30-($C30-($D30-$E30))+($H30-$G30),1))))),VLOOKUP($B30,$AF$12:$AH$30,3,FALSE)) -> 0.1666666667 | K30: =IF(COUNTIF(A30:A30,"X"),MAX($K$13:K26)+1,"") ->  | AD30: Décembre | AE30: Bureau fermé congé donné | AF30: =AF11+2-WEEKDAY(AF11)+(WEEKDAY(AF11)>2)-1 -> 2018-12-31
B31: =C10+8 -> 2019-01-08 | C31: 0.375 | D31: 0.5 | I31: =IF(ISNA(VLOOKUP($B31,$AF$12:$AH$30,3,FALSE)),IF($A31="CONGÉ",'Congés de l''employé'!$E$16,IF($A31="Demi congé",'Congés de l''employé'!$BU$16,IF($A31="MALADIE",'Congés de l''employé'!$E$18,IF($A31="Demi maladie",'Congés de l''employé'!$BU$18,MOD($F31-($C31-($D31-$E31))+($H31-$G31),1))))),VLOOKUP($B31,$AF$12:$AH$30,3,FALSE)) -> 0.125 | K31: =IF(COUNTIF(A31:A31,"X"),MAX($K$13:K28)+1,"") -> 
B32: =C10+9 -> 2019-01-09 | C32: 0.3541666667 | D32: 0.4166666667 | I32: =IF(ISNA(VLOOKUP($B32,$AF$12:$AH$30,3,FALSE)),IF($A32="CONGÉ",'Congés de l''employé'!$E$16,IF($A32="Demi congé",'Congés de l''employé'!$BU$16,IF($A32="MALADIE",'Congés de l''employé'!$E$18,IF($A32="Demi maladie",'Congés de l''employé'!$BU$18,MOD($F32-($C32-($D32-$E32))+($H32-$G32),1))))),VLOOKUP($B32,$AF$12:$AH$30,3,FALSE)) -> 0.0625 | K32: =IF(COUNTIF(A32:A32,"X"),MAX($K$13:K29)+1,"") -> 
B33: =C10+10 -> 2019-01-10 | I33: =IF(ISNA(VLOOKUP($B33,$AF$12:$AH$30,3,FALSE)),IF($A33="CONGÉ",'Congés de l''employé'!$E$16,IF($A33="Demi congé",'Congés de l''employé'!$BU$16,IF($A33="MALADIE",'Congés de l''employé'!$E$18,IF($A33="Demi maladie",'Congés de l''employé'!$BU$18,MOD($F33-($C33-($D33-$E33))+($H33-$G33),1))))),VLOOKUP($B33,$AF$12:$AH$30,3,FALSE)) -> 0 | K33: =IF(COUNTIF(A33:A33,"X"),MAX($K$13:K30)+1,"") -> 
B34: =C10+11 -> 2019-01-11 | I34: =IF(ISNA(VLOOKUP($B34,$AF$12:$AH$30,3,FALSE)),IF($A34="CONGÉ",'Congés de l''employé'!$E$16,IF($A34="Demi congé",'Congés de l''employé'!$BU$16,IF($A34="MALADIE",'Congés de l''employé'!$E$18,IF($A34="Demi maladie",'Congés de l''employé'!$BU$18,MOD($F34-($C34-($D34-$E34))+($H34-$G34),1))))),VLOOKUP($B34,$AF$12:$AH$30,3,FALSE)) -> 0 | K34: =IF(COUNTIF(A34:A34,"X"),MAX($K$13:K31)+1,"") -> 
B35: =C10+12 -> 2019-01-12 | I35: =IF(ISNA(VLOOKUP($B35,$AF$12:$AH$30,3,FALSE)),IF($A35="CONGÉ",'Congés de l''employé'!$E$16,IF($A35="Demi congé",'Congés de l''employé'!$BU$16,IF($A35="MALADIE",'Congés de l''employé'!$E$18,IF($A35="Demi maladie",'Congés de l''employé'!$BU$18,MOD($F35-($C35-($D35-$E35))+($H35-$G35),1))))),VLOOKUP($B35,$AF$12:$AH$30,3,FALSE)) -> 0 | K35: =IF(COUNTIF(A35:A35,"X"),MAX($K$13:K32)+1,"") -> 
B36: =C10+13 -> 2019-01-13 | I36: =IF(ISNA(VLOOKUP($B36,$AF$12:$AH$30,3,FALSE)),IF($A36="CONGÉ",'Congés de l''employé'!$E$16,IF($A36="Demi congé",'Congés de l''employé'!$BU$16,IF($A36="MALADIE",'Congés de l''employé'!$E$18,IF($A36="Demi maladie",'Congés de l''employé'!$BU$18,MOD($F36-($C36-($D36-$E36))+($H36-$G36),1))))),VLOOKUP($B36,$AF$12:$AH$30,3,FALSE)) -> 0 | K36: =IF(COUNTIF(A36:A36,"X"),MAX($K$13:K33)+1,"") -> 
I37: =SUM(I30:I36)+C37 -> 0.3541666667
I39: =IF(OR(I37=-(C29),C29=0),"0",(I37-C29)) -> 0
B41: Heure travaillées | C41: Heures prévues | D41: ENTREZ le nombre d'heures à payer | E41: Heures en banque de l'an passé | F41: Heures supplémentaires ou en moins | G41: Heures à transposer dans la Banque | H41: Total de la Banque d'heures
B42: =$I$23+$I$37 -> 0.6458333333 | C42: ='Congés de l''employé'!BU8*2 -> 2.916666667 | D42: =B42 -> 0.6458333333 | E42: 0 | F42: =IF($I$26>0,$I$26)+IF($I$38>0,$I$38,0)+IF($I$26<0,$I$26)+IF($I$38<0,$I$38,0) -> 0 | G42: =$B$42-$D$42 -> 0 | H42: =$G$42+E42 -> 0

Sheet Calendrier annuel
B5: 2019
AD8: Congés fériés, lundi suivant la date
B9: =EDATE(DATE(An_ref,1,1),0) -> 2019-01-01 | J9: =EDATE(DATE(An_ref,1,1),1) -> 2019-02-01 | R9: =EDATE(DATE(An_ref,1,1),2) -> 2019-03-01 | AD9: Mois | AE9: Type de congé férié | AF9: Année en cours
B10: =UPPER(TEXT(B12,"ddd")) -> MON | C10: TUE | D10: WED | E10: THU | F10: FRI | G10: SAT | H10: SUN | J10: =UPPER(TEXT(J12,"ddd")) -> MON | K10: TUE | L10: WED | M10: THU | N10: FRI | O10: SAT | P10: SUN | R10: =UPPER(TEXT(R12,"ddd")) -> MON | S10: TUE | T10: WED | U10: THU | V10: FRI | W10: SAT | X10: SUN | AF10: =An_ref -> 2019 | AH10: alloué au férié
B11: =IF(WEEKDAY(B9)=2,B9,"") ->  | C11: =IF(B11<>"",B11+1,IF(WEEKDAY(B9)=3,B9,"")) -> 2019-01-01 | D11: =IF(C11<>"",C11+1,IF(WEEKDAY(B9)=4,B9,"")) -> 2019-01-02 | E11: =IF(D11<>"",D11+1,IF(WEEKDAY(B9)=5,B9,"")) -> 2019-01-03 | F11: =IF(E11<>"",E11+1,IF(WEEKDAY(B9)=6,B9,"")) -> 2019-01-04 | G11: =IF(F11<>"",F11+1,IF(WEEKDAY(B9)=7,B9,"")) -> 2019-01-05 | H11: =IF(G11<>"",G11+1,IF(WEEKDAY(B9)=1,B9,"")) -> 2019-01-06 | J11: =IF(WEEKDAY(J9)=2,J9,"") ->  | K11: =IF(J11<>"",J11+1,IF(WEEKDAY(J9)=3,J9,"")) ->  | L11: =IF(K11<>"",K11+1,IF(WEEKDAY(J9)=4,J9,"")) ->  | M11: =IF(L11<>"",L11+1,IF(WEEKDAY(J9)=5,J9,"")) ->  | N11: =IF(M11<>"",M11+1,IF(WEEKDAY(J9)=6,J9,"")) -> 2019-02-01 | O11: =IF(N11<>"",N11+1,IF(WEEKDAY(J9)=7,J9,"")) -> 2019-02-02 | P11: =IF(O11<>"",O11+1,IF(WEEKDAY(J9)=1,J9,"")) -> 2019-02-03 | R11: =IF(WEEKDAY(R9)=2,R9,"") ->  | S11: =IF(R11<>"",R11+1,IF(WEEKDAY(R9)=3,R9,"")) ->  | T11: =IF(S11<>"",S11+1,IF(WEEKDAY(R9)=4,R9,"")) ->  | U11: =IF(T11<>"",T11+1,IF(WEEKDAY(R9)=5,R9,"")) ->  | V11: =IF(U11<>"",U11+1,IF(WEEKDAY(R9)=6,R9,"")) -> 2019-03-01 | W11: =IF(V11<>"",V11+1,IF(WEEKDAY(R9)=7,R9,"")) -> 2019-03-02 | X11: =IF(W11<>"",W11+1,IF(WEEKDAY(R9)=1,R9,"")) -> 2019-03-03 | Z11: =OR(B11=$AF$11,B11=$AF$13,B11=$AF$16,B11=$AF$18,B11=$AF$20,B11=$AF$21,B11=$AF$22,B11=$AF$24) -> FALSE | AD11: Janvier | AE11: Jour de l'an | AF11: =DATE(Année,1,1) -> 2019-01-01 | AG11: Date fixe 1er janvier
B12: =$H$11+1 -> 2019-01-07 | C12: =B12+1 -> 2019-01-08 | D12: =C12+1 -> 2019-01-09 | E12: 2019-01-10 | F12: 2019-01-11 | G12: 2019-01-12 | H12: 2019-01-13 | J12: =$P$11+1 -> 2019-02-04 | K12: =J12+1 -> 2019-02-05 | L12: =K12+1 -> 2019-02-06 | M12: 2019-02-07 | N12: 2019-02-08 | O12: 2019-02-09 | P12: 2019-02-10 | R12: =$X$11+1 -> 2019-03-04 | S12: =R12+1 -> 2019-03-05 | T12: =S12+1 -> 2019-03-06 | U12: 2019-03-07 | V12: 2019-03-08 | W12: 2019-03-09 | X12: 2019-03-10 | AE12: FÉRIÉ-JOUR OUVRABLE SUIVANT LE JOUR DE L'AN | AF12: =AF11+2-WEEKDAY(AF11)+(WEEKDAY(AF11)>2)*7 -> 2019-01-07 | AH12: ='Congés de l''employé'!$BU$8 -> 1.458333333
B13: =H12+1 -> 2019-01-14 | C13: =B13+1 -> 2019-01-15 | D13: =C13+1 -> 2019-01-16 | E13: =D13+1 -> 2019-01-17 | F13: =E13+1 -> 2019-01-18 | G13: =F13+1 -> 2019-01-19 | H13: =G13+1 -> 2019-01-20 | J13: =P12+1 -> 2019-02-11 | K13: =J13+1 -> 2019-02-12 | L13: =K13+1 -> 2019-02-13 | M13: =L13+1 -> 2019-02-14 | N13: =M13+1 -> 2019-02-15 | O13: =N13+1 -> 2019-02-16 | P13: =O13+1 -> 2019-02-17 | R13: =X12+1 -> 2019-03-11 | S13: =R13+1 -> 2019-03-12 | T13: =S13+1 -> 2019-03-13 | U13: =T13+1 -> 2019-03-14 | V13: =U13+1 -> 2019-03-15 | W13: =V13+1 -> 2019-03-16 | X13: =W13+1 -> 2019-03-17 | AE13: Bureau fermé congé donné-un jour après le jour de l'an | AF13: =AF11+2-WEEKDAY(AF11)+(WEEKDAY(AF11)>2)*7+1 -> 2019-01-08 | AH13: ='Congés de l''employé'!$BU$8 -> 1.458333333
B14: =H13+1 -> 2019-01-21 | C14: =B14+1 -> 2019-01-22 | D14: =C14+1 -> 2019-01-23 | E14: 2019-01-24 | F14: 2019-01-25 | G14: 2019-01-26 | H14: 2019-01-27 | J14: =P13+1 -> 2019-02-18 | K14: =J14+1 -> 2019-02-19 | L14: =K14+1 -> 2019-02-20 | M14: 2019-02-21 | N14: 2019-02-22 | O14: 2019-02-23 | P14: 2019-02-24 | R14: =X13+1 -> 2019-03-18 | S14: =R14+1 -> 2019-03-19 | T14: =S14+1 -> 2019-03-20 | U14: 2019-03-21 | V14: 2019-03-22 | W14: 2019-03-23 | X14: 2019-03-24 | AD14: Mars | AE14: Bureau fermé congé donné-un jour ouvré avant Pâques | AF14: =AF15-2 -> 2019-04-19 | AG14: 3e lundi de mai | AH14: ='Congés de l''employé'!$BU$8 -> 1.458333333
B15: =IF(H14<EOMONTH($B$9,0),H14+1,"") -> 2019-01-28 | C15: =IF(B15<EOMONTH($B$9,0),B15+1,"") -> 2019-01-29 | D15: =IF(C15<EOMONTH($B$9,0),C15+1,"") -> 2019-01-30 | E15: 2019-01-31 | F15: =IF(E15<EOMONTH($B$9,0),E15+1,"") ->  | J15: =IF(P14<EOMONTH($J$9,0),P14+1,"") -> 2019-02-25 | K15: =IF(J15<EOMONTH($J$9,0),J15+1,"") -> 2019-02-26 | L15: =IF(K15<EOMONTH($J$9,0),K15+1,"") -> 2019-02-27 | M15: 2019-02-28 | R15: =IF(X14<EOMONTH($R$9,0),X14+1,"") -> 2019-03-25 | S15: =IF(R15<EOMONTH($R$9,0),R15+1,"") -> 2019-03-26 | T15: =IF(S15<EOMONTH($R$9,0),S15+1,"") -> 2019-03-27 | U15: 2019-03-28 | V15: 2019-03-29 | W15: 2019-03-30 | X15: 2019-03-31 | AE15: Pâques | AF15: =DATE(Année,3,29.56+0.979*MOD(204-11*MOD(Année,19),30)- WEEKDAY(DATE(Année,3,28.56+0.979*MOD(204-11*MOD(Année,19),30)))) -> 2019-04-21 | AG15: Date fixe 24 juin
B16: =IF(H15<EOMONTH($B$9,0),H15+1,"") ->  | C16: =IF(B16<EOMONTH($B$9,0),B16+1,"") ->  | D16: =IF(C16<EOMONTH(B9,0),C16+1,"") ->  | E16: =IF(D16<EOMONTH(B9,0),D16+1,"") ->  | F16: =IF(E16<EOMONTH(B9,0),E16+1,"") ->  | G16: =IF(F16<EOMONTH(B9,0),F16+1,"") ->  | H16: =IF(G16<EOMONTH(B9,0),G16+1,"") ->  | J16: =IF(P15<EOMONTH($J$9,0),P15+1,"") ->  | K16: =IF(J16<EOMONTH($J$9,0),J16+1,"") ->  | L16: =IF(K16<EOMONTH($J$9,0),K16+1,"") ->  | M16: =IF(L16<EOMONTH($B$9,0),L16+1,"") ->  | R16: =IF(X15<EOMONTH($R$9,0),X15+1,"") ->  | S16: =IF(R16<EOMONTH($R$9,0),R16+1,"") ->  | T16: =IF(S16<EOMONTH($R$9,0),S16+1,"") ->  | AD16: Avril | AE16: Lundi de pâques | AF16: =AF15+1 -> 2019-04-22 | AG16: Date fixe 1er juillet | AH16: ='Congés de l''employé'!$BU$8 -> 1.458333333
AD17: Mai | AE17: Journée nationale des patriotes | AF17: =DATE(Année,5,23)-WEEKDAY(DATE(Année,5,1),2) -> 2019-05-20 | AH17: ='Congés de l''employé'!$BU$8 -> 1.458333333
B18: =EDATE(DATE(An_ref,1,1),3) -> 2019-04-01 | J18: =EDATE(DATE(An_ref,1,1),4) -> 2019-05-01 | R18: =EDATE(DATE(An_ref,1,1),5) -> 2019-06-01 | AD18: Juin | AE18: Fête nationale du Québec | AF18: =DATE(Année,6,24) -> 2019-06-24
B19: =UPPER(TEXT(B21,"ddd")) -> MON | C19: TUE | D19: WED | E19: THU | F19: FRI | G19: SAT | H19: SUN | J19: =UPPER(TEXT(J21,"ddd")) -> MON | K19: TUE | L19: WED | M19: THU | N19: FRI | O19: SAT | P19: SUN | R19: =UPPER(TEXT(R21,"ddd")) -> MON | S19: TUE | T19: WED | U19: THU | V19: FRI | W19: SAT | X19: SUN | AE19: FÉRIÉ-JOUR OUVRABLE SUIVANT LA FÊTE NATIONALE DU QUÉBEC | AF19: =AF18+2-WEEKDAY(AF18)+(WEEKDAY(AF18)>2)*7 -> 2019-06-24 | AG19: Date fixe 25 décembre | AH19: ='Congés de l''employé'!$BU$8 -> 1.458333333
B20: =IF(WEEKDAY(B18)=2,B18,"") -> 2019-04-01 | C20: =IF(B20<>"",B20+1,IF(WEEKDAY(B18)=3,B18,"")) -> 2019-04-02 | D20: =IF(C20<>"",C20+1,IF(WEEKDAY(B18)=4,B18,"")) -> 2019-04-03 | E20: =IF(D20<>"",D20+1,IF(WEEKDAY(B18)=5,B18,"")) -> 2019-04-04 | F20: =IF(E20<>"",E20+1,IF(WEEKDAY(B18)=6,B18,"")) -> 2019-04-05 | G20: =IF(F20<>"",F20+1,IF(WEEKDAY(B18)=7,B18,"")) -> 2019-04-06 | H20: =IF(G20<>"",G20+1,IF(WEEKDAY(B18)=1,B18,"")) -> 2019-04-07 | J20: =IF(WEEKDAY(J18)=2,J18,"") ->  | K20: =IF(J20<>"",J20+1,IF(WEEKDAY(J18)=3,J18,"")) ->  | L20: =IF(K20<>"",K20+1,IF(WEEKDAY(J18)=4,J18,"")) -> 2019-05-01 | M20: =IF(L20<>"",L20+1,IF(WEEKDAY(J18)=5,J18,"")) -> 2019-05-02 | N20: =IF(M20<>"",M20+1,IF(WEEKDAY(J18)=6,J18,"")) -> 2019-05-03 | O20: =IF(N20<>"",N20+1,IF(WEEKDAY(J18)=7,J18,"")) -> 2019-05-04 | P20: =IF(O20<>"",O20+1,IF(WEEKDAY(J18)=1,J18,"")) -> 2019-05-05 | R20: =IF(WEEKDAY(R18)=2,R18,"") ->  | S20: =IF(R20<>"",R20+1,IF(WEEKDAY(R18)=3,R18,"")) ->  | T20: =IF(S20<>"",S20+1,IF(WEEKDAY(R18)=4,R18,"")) ->  | U20: =IF(T20<>"",T20+1,IF(WEEKDAY(R18)=5,R18,"")) ->  | V20: =IF(U20<>"",U20+1,IF(WEEKDAY(R18)=6,R18,"")) ->  | W20: =IF(V20<>"",V20+1,IF(WEEKDAY(R18)=7,R18,"")) -> 2019-06-01 | X20: =IF(W20<>"",W20+1,IF(WEEKDAY(R18)=1,R18,"")) -> 2019-06-02 | AD20: Juillet | AE20: Fête du Canada | AF20: =DATE(Année,7,1) -> 2019-07-01
B21: =$H$20+1 -> 2019-04-08 | C21: =B21+1 -> 2019-04-09 | D21: =C21+1 -> 2019-04-10 | E21: =D21+1 -> 2019-04-11 | F21: =E21+1 -> 2019-04-12 | G21: =F21+1 -> 2019-04-13 | H21: =G21+1 -> 2019-04-14 | J21: =$P$20+1 -> 2019-05-06 | K21: =J21+1 -> 2019-05-07 | L21: =K21+1 -> 2019-05-08 | M21: =L21+1 -> 2019-05-09 | N21: =M21+1 -> 2019-05-10 | O21: =N21+1 -> 2019-05-11 | P21: =O21+1 -> 2019-05-12 | R21: =$X$20+1 -> 2019-06-03 | S21: =R21+1 -> 2019-06-04 | T21: =S21+1 -> 2019-06-05 | U21: =T21+1 -> 2019-06-06 | V21: =U21+1 -> 2019-06-07 | W21: =V21+1 -> 2019-06-08 | X21: =W21+1 -> 2019-06-09 | AE21: FÉRIÉ-JOUR OUVRABLE SUIVANT LA FÊTE DU CANADA | AF21: =AF20+2-WEEKDAY(AF20)+(WEEKDAY(AF20)>2)*7 -> 2019-07-01 | AH21: ='Congés de l''employé'!$BU$8 -> 1.458333333
B22: =H21+1 -> 2019-04-15 | C22: =B22+1 -> 2019-04-16 | D22: =C22+1 -> 2019-04-17 | E22: =D22+1 -> 2019-04-18 | F22: =E22+1 -> 2019-04-19 | G22: =F22+1 -> 2019-04-20 | H22: =G22+1 -> 2019-04-21 | J22: =P21+1 -> 2019-05-13 | K22: =J22+1 -> 2019-05-14 | L22: =K22+1 -> 2019-05-15 | M22: =L22+1 -> 2019-05-16 | N22: =M22+1 -> 2019-05-17 | O22: =N22+1 -> 2019-05-18 | P22: =O22+1 -> 2019-05-19 | R22: =X21+1 -> 2019-06-10 | S22: =R22+1 -> 2019-06-11 | T22: =S22+1 -> 2019-06-12 | U22: =T22+1 -> 2019-06-13 | V22: =U22+1 -> 2019-06-14 | W22: =V22+1 -> 2019-06-15 | X22: =W22+1 -> 2019-06-16 | AD22: Septembre | AE22: Fête du travail | AF22: =IF(MOD(DATE(Année,9,1),7)<=2,2-MOD(DATE(Année,9,1),7),9-MOD(DATE(Année,9,1),7))+DATE(Année,9,1) -> 2019-09-01
B23: =H22+1 -> 2019-04-22 | C23: =B23+1 -> 2019-04-23 | D23: =C23+1 -> 2019-04-24 | E23: =D23+1 -> 2019-04-25 | F23: =E23+1 -> 2019-04-26 | G23: =F23+1 -> 2019-04-27 | H23: =G23+1 -> 2019-04-28 | J23: =P22+1 -> 2019-05-20 | K23: =J23+1 -> 2019-05-21 | L23: =K23+1 -> 2019-05-22 | M23: =L23+1 -> 2019-05-23 | N23: =M23+1 -> 2019-05-24 | O23: =N23+1 -> 2019-05-25 | P23: =O23+1 -> 2019-05-26 | R23: =X22+1 -> 2019-06-17 | S23: =R23+1 -> 2019-06-18 | T23: =S23+1 -> 2019-06-19 | U23: =T23+1 -> 2019-06-20 | V23: =U23+1 -> 2019-06-21 | W23: =V23+1 -> 2019-06-22 | X23: =W23+1 -> 2019-06-23 | AE23: FÉRIÉ-JOUR OUVRABLE SUIVANT LA FÊTE DU TRAVAIL | AF23: =AF22+2-WEEKDAY(AF22)+(WEEKDAY(AF22)>2)*7 -> 2019-09-02 | AH23: ='Congés de l''employé'!$BU$8 -> 1.458333333
B24: =IF(H23<EOMONTH($B$18,0),H23+1,"") -> 2019-04-29 | C24: =IF(B24<EOMONTH($B$18,0),B24+1,"") -> 2019-04-30 | D24: =IF(C24<EOMONTH($B$18,0),C24+1,"") ->  | J24: =IF(P23<EOMONTH($J$18,0),P23+1,"") -> 2019-05-27 | K24: =IF(J24<EOMONTH($J$18,0),J24+1,"") -> 2019-05-28 | L24: =IF(K24<EOMONTH($J$18,0),K24+1,"") -> 2019-05-29 | M24: 2019-05-30 | N24: 2019-05-31 | R24: =IF(X23<EOMONTH($R$18,0),X23+1,"") -> 2019-06-24 | S24: =IF(R24<EOMONTH($R$18,0),R24+1,"") -> 2019-06-25 | T24: =IF(S24<EOMONTH($R$18,0),S24+1,"") -> 2019-06-26 | U24: 2019-06-27 | V24: 2019-06-28 | W24: 2019-06-29 | X24: 2019-06-30 | AD24: Octobre | AE24: Action de grâce | AF24: =DATE(AF10,10,1) -> 2019-10-01
B25: =IF(H24<EOMONTH($B$18,0),H24+1,"") ->  | C25: =IF(B25<EOMONTH($B$18,0),B25+1,"") ->  | D25: =IF(C25<EOMONTH($B$18,0),C25+1,"") ->  | J25: =IF(P24<EOMONTH($J$18,0),P24+1,"") ->  | K25: =IF(J25<EOMONTH($J$18,0),J25+1,"") ->  | L25: =IF(K25<EOMONTH($J$18,0),K25+1,"") ->  | R25: =IF(X24<EOMONTH($R$18,0),X24+1,"") ->  | S25: =IF(R25<EOMONTH($R$18,0),R25+1,"") ->  | T25: =IF(S25<EOMONTH($R$18,0),S25+1,"") ->  | AE25: FÉRIÉ-JOUR OUVRABLE SUIVANT L'ACTION DE GRÂCE | AF25: =AF24-DAY(AF24)-WEEKDAY(AF24-DAY(AF24),2)+15 -> 2019-10-14 | AH25: ='Congés de l''employé'!$BU$8 -> 1.458333333
AE26: Bureau fermé congé donné | AF26: =DATE(Année,12,25)-1 -> 2019-12-24 | AH26: ='Congés de l''employé'!$BU$8 -> 1.458333333
B27: =EDATE(DATE(An_ref,1,1),6) -> 2019-07-01 | J27: =EDATE(DATE(An_ref,1,1),7) -> 2019-08-01 | R27: =EDATE(DATE(An_ref,1,1),8) -> 2019-09-01 | AD27: Décembre | AE27: Férié-Noël | AF27: =DATE(Année,12,25) -> 2019-12-25 | AH27: ='Congés de l''employé'!$BU$8 -> 1.458333333
B28: =UPPER(TEXT(B30,"ddd")) -> MON | C28: TUE | D28: WED | E28: THU | F28: FRI | G28: SAT | H28: SUN | J28: =UPPER(TEXT(J30,"ddd")) -> MON | K28: TUE | L28: WED | M28: THU | N28: FRI | O28: SAT | P28: SUN | R28: =UPPER(TEXT(R30,"ddd")) -> MON | S28: TUE | T28: WED | U28: THU | V28: FRI | W28: SAT | X28: SUN | AD28: Décembre | AE28: Bureau fermé congé donné | AF28: =DATE(Année,12,25)+1 -> 2019-12-26 | AH28: ='Congés de l''employé'!$BU$8 -> 1.458333333
B29: =IF(WEEKDAY(B27)=2,B27,"") -> 2019-07-01 | C29: =IF(B29<>"",B29+1,IF(WEEKDAY(B27)=3,B27,"")) -> 2019-07-02 | D29: =IF(C29<>"",C29+1,IF(WEEKDAY(B27)=4,B27,"")) -> 2019-07-03 | E29: =IF(D29<>"",D29+1,IF(WEEKDAY(B27)=5,B27,"")) -> 2019-07-04 | F29: =IF(E29<>"",E29+1,IF(WEEKDAY(B27)=6,B27,"")) -> 2019-07-05 | G29: =IF(F29<>"",F29+1,IF(WEEKDAY(B27)=7,B27,"")) -> 2019-07-06 | H29: =IF(G29<>"",G29+1,IF(WEEKDAY(B27)=1,B27,"")) -> 2019-07-07 | J29: =IF(WEEKDAY(J27)=2,J27,"") ->  | K29: =IF(J29<>"",J29+1,IF(WEEKDAY(J27)=3,J27,"")) ->  | L29: =IF(K29<>"",K29+1,IF(WEEKDAY(J27)=4,J27,"")) ->  | M29: =IF(L29<>"",L29+1,IF(WEEKDAY(J27)=5,J27,"")) -> 2019-08-01 | N29: =IF(M29<>"",M29+1,IF(WEEKDAY(J27)=6,J27,"")) -> 2019-08-02 | O29: =IF(N29<>"",N29+1,IF(WEEKDAY(J27)=7,J27,"")) -> 2019-08-03 | P29: =IF(O29<>"",O29+1,IF(WEEKDAY(J27)=1,J27,"")) -> 2019-08-04 | R29: =IF(WEEKDAY(R27)=2,R27,"") ->  | S29: =IF(R29<>"",R29+1,IF(WEEKDAY(R27)=3,R27,"")) ->  | T29: =IF(S29<>"",S29+1,IF(WEEKDAY(R27)=4,R27,"")) ->  | U29: =IF(T29<>"",T29+1,IF(WEEKDAY(R27)=5,R27,"")) ->  | V29: =IF(U29<>"",U29+1,IF(WEEKDAY(R27)=6,R27,"")) ->  | W29: =IF(V29<>"",V29+1,IF(WEEKDAY(R27)=7,R27,"")) ->  | X29: =IF(W29<>"",W29+1,IF(WEEKDAY(R27)=1,R27,"")) -> 2019-09-01
B30: =$H$29+1 -> 2019-07-08 | C30: =B30+1 -> 2019-07-09 | D30: =C30+1 -> 2019-07-10 | E30: =D30+1 -> 2019-07-11 | F30: =E30+1 -> 2019-07-12 | G30: =F30+1 -> 2019-07-13 | H30: =G30+1 -> 2019-07-14 | J30: =$P$29+1 -> 2019-08-05 | K30: =J30+1 -> 2019-08-06 | L30: =K30+1 -> 2019-08-07 | M30: =L30+1 -> 2019-08-08 | N30: =M30+1 -> 2019-08-09 | O30: =N30+1 -> 2019-08-10 | P30: =O30+1 -> 2019-08-11 | R30: =$X$29+1 -> 2019-09-02 | S30: =R30+1 -> 2019-09-03 | T30: =S30+1 -> 2019-09-04 | U30: =T30+1 -> 2019-09-05 | V30: =U30+1 -> 2019-09-06 | W30: =V30+1 -> 2019-09-07 | X30: =W30+1 -> 2019-09-08
B31: =H30+1 -> 2019-07-15 | C31: =B31+1 -> 2019-07-16 | D31: =C31+1 -> 2019-07-17 | E31: =D31+1 -> 2019-07-18 | F31: =E31+1 -> 2019-07-19 | G31: =F31+1 -> 2019-07-20 | H31: =G31+1 -> 2019-07-21 | J31: =P30+1 -> 2019-08-12 | K31: =J31+1 -> 2019-08-13 | L31: =K31+1 -> 2019-08-14 | M31: =L31+1 -> 2019-08-15 | N31: =M31+1 -> 2019-08-16 | O31: =N31+1 -> 2019-08-17 | P31: =O31+1 -> 2019-08-18 | R31: =X30+1 -> 2019-09-09 | S31: =R31+1 -> 2019-09-10 | T31: =S31+1 -> 2019-09-11 | U31: =T31+1 -> 2019-09-12 | V31: =U31+1 -> 2019-09-13 | W31: =V31+1 -> 2019-09-14 | X31: =W31+1 -> 2019-09-15
B32: =H31+1 -> 2019-07-22 | C32: =B32+1 -> 2019-07-23 | D32: =C32+1 -> 2019-07-24 | E32: =D32+1 -> 2019-07-25 | F32: =E32+1 -> 2019-07-26 | G32: =F32+1 -> 2019-07-27 | H32: =G32+1 -> 2019-07-28 | J32: =P31+1 -> 2019-08-19 | K32: =J32+1 -> 2019-08-20 | L32: =K32+1 -> 2019-08-21 | M32: =L32+1 -> 2019-08-22 | N32: =M32+1 -> 2019-08-23 | O32: =N32+1 -> 2019-08-24 | P32: =O32+1 -> 2019-08-25 | R32: =X31+1 -> 2019-09-16 | S32: =R32+1 -> 2019-09-17 | T32: =S32+1 -> 2019-09-18 | U32: =T32+1 -> 2019-09-19 | V32: =U32+1 -> 2019-09-20 | W32: =V32+1 -> 2019-09-21 | X32: =W32+1 -> 2019-09-22
B33: =IF(H32<EOMONTH($B$27,0),H32+1,"") -> 2019-07-29 | C33: =IF(B33<EOMONTH($B$27,0),B33+1,"") -> 2019-07-30 | D33: =IF(C33<EOMONTH($B$27,0),C33+1,"") -> 2019-07-31 | J33: =IF(P32<EOMONTH($J$27,0),P32+1,"") -> 2019-08-26 | K33: =IF(J33<EOMONTH($J$27,0),J33+1,"") -> 2019-08-27 | L33: =IF(K33<EOMONTH($J$27,0),K33+1,"") -> 2019-08-28 | M33: 2019-08-29 | N33: 2019-08-30 | O33: 2019-08-31 | R33: =IF(X32<EOMONTH($R$27,0),X32+1,"") -> 2019-09-23 | S33: =IF(R33<EOMONTH($R$27,0),R33+1,"") -> 2019-09-24 | T33: =IF(S33<EOMONTH($R$27,0),S33+1,"") -> 2019-09-25 | U33: 2019-09-26 | V33: 2019-09-27 | W33: 2019-09-28 | X33: 2019-09-29
B34: =IF(H33<EOMONTH($B$27,0),H33+1,"") ->  | C34: =IF(B34<EOMONTH($B$27,0),B34+1,"") ->  | D34: =IF(C34<EOMONTH($B$27,0),C34+1,"") ->  | J34: =IF(P33<EOMONTH($J$27,0),P33+1,"") ->  | K34: =IF(J34<EOMONTH($J$27,0),J34+1,"") ->  | L34: =IF(K34<EOMONTH($J$27,0),K34+1,"") ->  | R34: =IF(X33<EOMONTH($R$27,0),X33+1,"") -> 2019-09-30 | S34: =IF(R34<EOMONTH($R$27,0),R34+1,"") ->  | T34: =IF(S34<EOMONTH($R$27,0),S34+1,"") -> 
B36: =EDATE(DATE(An_ref,1,1),9) -> 2019-10-01 | J36: =EDATE(DATE(An_ref,1,1),10) -> 2019-11-01 | R36: =EDATE(DATE(An_ref,1,1),11) -> 2019-12-01
B37: =UPPER(TEXT(B39,"ddd")) -> MON | C37: TUE | D37: WED | E37: THU | F37: FRI | G37: SAT | H37: SUN | J37: =UPPER(TEXT(J39,"ddd")) -> MON | K37: TUE | L37: WED | M37: THU | N37: FRI | O37: SAT | P37: SUN | R37: =UPPER(TEXT(R39,"ddd")) -> MON | S37: TUE | T37: WED | U37: THU | V37: FRI | W37: SAT | X37: SUN
B38: =IF(WEEKDAY(B36)=2,B36,"") ->  | C38: =IF(B38<>"",B38+1,IF(WEEKDAY(B36)=3,B36,"")) -> 2019-10-01 | D38: =IF(C38<>"",C38+1,IF(WEEKDAY(B36)=4,B36,"")) -> 2019-10-02 | E38: =IF(D38<>"",D38+1,IF(WEEKDAY(B36)=5,B36,"")) -> 2019-10-03 | F38: =IF(E38<>"",E38+1,IF(WEEKDAY(B36)=6,B36,"")) -> 2019-10-04 | G38: =IF(F38<>"",F38+1,IF(WEEKDAY(B36)=7,B36,"")) -> 2019-10-05 | H38: =IF(G38<>"",G38+1,IF(WEEKDAY(B36)=1,B36,"")) -> 2019-10-06 | J38: =IF(WEEKDAY(J36)=2,J36,"") ->  | K38: =IF(J38<>"",J38+1,IF(WEEKDAY(J36)=3,J36,"")) ->  | L38: =IF(K38<>"",K38+1,IF(WEEKDAY(J36)=4,J36,"")) ->  | M38: =IF(L38<>"",L38+1,IF(WEEKDAY(J36)=5,J36,"")) ->  | N38: =IF(M38<>"",M38+1,IF(WEEKDAY(J36)=6,J36,"")) -> 2019-11-01 | O38: =IF(N38<>"",N38+1,IF(WEEKDAY(J36)=7,J36,"")) -> 2019-11-02 | P38: =IF(O38<>"",O38+1,IF(WEEKDAY(J36)=1,J36,"")) -> 2019-11-03 | R38: =IF(WEEKDAY(R36)=2,R36,"") ->  | S38: =IF(R38<>"",R38+1,IF(WEEKDAY(R36)=3,R36,"")) ->  | T38: =IF(S38<>"",S38+1,IF(WEEKDAY(R36)=4,R36,"")) ->  | U38: =IF(T38<>"",T38+1,IF(WEEKDAY(R36)=5,R36,"")) ->  | V38: =IF(U38<>"",U38+1,IF(WEEKDAY(R36)=6,R36,"")) ->  | W38: =IF(V38<>"",V38+1,IF(WEEKDAY(R36)=7,R36,"")) ->  | X38: =IF(W38<>"",W38+1,IF(WEEKDAY(R36)=1,R36,"")) -> 2019-12-01
B39: =$H$38+1 -> 2019-10-07 | C39: =B39+1 -> 2019-10-08 | D39: =C39+1 -> 2019-10-09 | E39: =D39+1 -> 2019-10-10 | F39: =E39+1 -> 2019-10-11 | G39: =F39+1 -> 2019-10-12 | H39: =G39+1 -> 2019-10-13 | J39: =$P$38+1 -> 2019-11-04 | K39: =J39+1 -> 2019-11-05 | L39: =K39+1 -> 2019-11-06 | M39: =L39+1 -> 2019-11-07 | N39: =M39+1 -> 2019-11-08 | O39: =N39+1 -> 2019-11-09 | P39: =O39+1 -> 2019-11-10 | R39: =$X$38+1 -> 2019-12-02 | S39: =R39+1 -> 2019-12-03 | T39: =S39+1 -> 2019-12-04 | U39: =T39+1 -> 2019-12-05 | V39: =U39+1 -> 2019-12-06 | W39: =V39+1 -> 2019-12-07 | X39: =W39+1 -> 2019-12-08
B40: =H39+1 -> 2019-10-14 | C40: =B40+1 -> 2019-10-15 | D40: =C40+1 -> 2019-10-16 | E40: =D40+1 -> 2019-10-17 | F40: =E40+1 -> 2019-10-18 | G40: =F40+1 -> 2019-10-19 | H40: =G40+1 -> 2019-10-20 | J40: =P39+1 -> 2019-11-11 | K40: =J40+1 -> 2019-11-12 | L40: =K40+1 -> 2019-11-13 | M40: =L40+1 -> 2019-11-14 | N40: =M40+1 -> 2019-11-15 | O40: =N40+1 -> 2019-11-16 | P40: =O40+1 -> 2019-11-17 | R40: =X39+1 -> 2019-12-09 | S40: =R40+1 -> 2019-12-10 | T40: =S40+1 -> 2019-12-11 | U40: =T40+1 -> 2019-12-12 | V40: =U40+1 -> 2019-12-13 | W40: =V40+1 -> 2019-12-14 | X40: =W40+1 -> 2019-12-15
B41: =H40+1 -> 2019-10-21 | C41: =B41+1 -> 2019-10-22 | D41: =C41+1 -> 2019-10-23 | E41: =D41+1 -> 2019-10-24 | F41: =E41+1 -> 2019-10-25 | G41: =F41+1 -> 2019-10-26 | H41: =G41+1 -> 2019-10-27 | J41: =P40+1 -> 2019-11-18 | K41: =J41+1 -> 2019-11-19 | L41: =K41+1 -> 2019-11-20 | M41: =L41+1 -> 2019-11-21 | N41: =M41+1 -> 2019-11-22 | O41: =N41+1 -> 2019-11-23 | P41: =O41+1 -> 2019-11-24 | R41: =X40+1 -> 2019-12-16 | S41: =R41+1 -> 2019-12-17 | T41: =S41+1 -> 2019-12-18 | U41: =T41+1 -> 2019-12-19 | V41: =U41+1 -> 2019-12-20 | W41: =V41+1 -> 2019-12-21 | X41: =W41+1 -> 2019-12-22
B42: =IF(H41<EOMONTH($B$36,0),H41+1,"") -> 2019-10-28 | C42: =IF(B42<EOMONTH($B$36,0),B42+1,"") -> 2019-10-29 | D42: =IF(C42<EOMONTH($B$36,0),C42+1,"") -> 2019-10-30 | E42: 2019-10-31 | J42: =IF(P41<EOMONTH($J$36,0),P41+1,"") -> 2019-11-25 | K42: =IF(J42<EOMONTH($J$36,0),J42+1,"") -> 2019-11-26 | L42: =IF(K42<EOMONTH($J$36,0),K42+1,"") -> 2019-11-27 | M42: 2019-11-28 | N42: 2019-11-29 | O42: 2019-11-30 | R42: =IF(X41<EOMONTH($R$36,0),X41+1,"") -> 2019-12-23 | S42: =IF(R42<EOMONTH($R$36,0),R42+1,"") -> 2019-12-24 | T42: =IF(S42<EOMONTH($R$36,0),S42+1,"") -> 2019-12-25 | U42: 2019-12-26 | V42: 2019-12-27 | W42: 2019-12-28 | X42: 2019-12-29
B43: =IF(H42<EOMONTH($B$36,0),H42+1,"") ->  | C43: =IF(B43<EOMONTH($B$36,0),B43+1,"") ->  | D43: =IF(C43<EOMONTH($B$36,0),C43+1,"") ->  | J43: =IF(P42<EOMONTH($J$36,0),P42+1,"") ->  | K43: =IF(J43<EOMONTH($J$36,0),J43+1,"") ->  | L43: =IF(K43<EOMONTH($J$36,0),K43+1,"") ->  | R43: =IF(X42<EOMONTH($R$36,0),X42+1,"") -> 2019-12-30 | S43: =IF(R43<EOMONTH($R$36,0),R43+1,"") -> 2019-12-31 | T43: =IF(S43<EOMONTH($R$36,0),S43+1,"") -> 

Sheet Fériés de l'année en cours (hidden)
B2: Les jours fériés pour l'années en cours
A9: Mois | B9: Type de jours férié | C9: Année en cours
C10: ='Calendrier annuel'!B5 -> 1909-07-12
A11: Janvier | B11: Jour de l'an | C11: =DATE(Année,1,1) -> 2019-01-01 | E11: Date fixe 1er janvier
B12: Pâques | C12: =DATE(Année,3,29.56+0.979*MOD(204-11*MOD(Année,19),30)- WEEKDAY(DATE(Année,3,28.56+0.979*MOD(204-11*MOD(Année,19),30)))) -> 2019-04-21
A13: Mars et avril | B13: Lundi de pâques | C13: =C12+1 -> 2019-04-22
A14: Mai | B14: Journée nationale des patriotes | C14: =DATE(Année,5,23)-WEEKDAY(DATE(Année,5,1),2) -> 2019-05-20 | E14: 3e lundi de mai
A15: Juin | B15: Fête nationale du Québec | C15: =DATE(Année,6,24) -> 2019-06-24 | E15: Date fixe 24 juin
A16: Juillet | B16: Fête du Canada | C16: =DATE(Année,7,1) -> 2019-07-01 | E16: Date fixe 1er juillet
A17: Septembre | B17: Fête du travail | C17: =IF(MOD(DATE(Année,9,1),7)<=2,2-MOD(DATE(Année,9,1),7),9-MOD(DATE(Année,9,1),7))+DATE(Année,9,1) -> 2019-09-01
A18: Octobre | B18: Action de grâce | C18: =IF(MOD(DATE(Année,10,1),7)<=2,2-MOD(DATE(Année,10,1),7),9-MOD(DATE(Année,10,1),7))+DATE(Année,10,1)+7 -> 2019-10-13
A19: Décembre | B19: Noël | C19: =DATE(Année,12,25) -> 2019-12-25 | E19: Date fixe 25 décembre
A23: Heures contre un férié:

Sheet Congés de l'employé
B2: Congés de l'employé
A8: Employé: | E8: Nombres d'heures Hebdomadaires | L8: =NOT(ISBLANK(G2)) -> FALSE | BU8: 1.458333333
B9: Nombre de jour | C9: Jour transformé en heure | E9: Jour transformé en heure | BU9: Nombre de jour
A10: Nombre de congés annuel selon le contrat + congés restants de l'an passé | B10: 10 | C10: =B10*E16 -> 2.916666667 | D10: Nombre de vacances disponible | E10: =C10-SUMIF(A21:A51,"CONGÉ",D21:E51) -> 2.625 | BU10: =IF(E10=0,"",E10/E16) -> 9
A12: Nombre de congés maladie annuel selon le contrat + congés maladie restants de l'an passé | B12: 3 | C12: =B12*E18 -> 0.875 | D12: Nombre de congés maladie disponible | E12: =C12-SUMIF(A21:A51,"MALADIE",D21:E51) -> 0.875 | BU12: =IF(E12=0,"",E12/E18) -> 3
BU15: Demi-congé
D16: Heures à compter lorsqu'il y a un congé pris par l'employé | E16: 0.2916666667 | BU16: =E16/2 -> 0.1458333333
A18: CUMUL CONGÉS | B18: =SUMIF($A$2:$A$62,"CONGÉ",$D$2:$D$62) -> 0.2916666667 | D18: Heures à compter lorsqu'il y a un congé maladie | E18: 0.2916666667 | BU18: =E18/2 -> 0.1458333333
A19: CUMUL MALADIE | B19: =SUMIF($A$21:$A$62,"MALADIE",$D$21:$D$62) -> 0
A20: Type de congé | B20: Date début absence | C20: Date retour absence | D20: Nombre de congés épuisé
A21: =IFERROR(INDEX(Edit!$D$2:$D$371,MATCH(ROW($A1),Edit!$E$2:$E$371,0)),"") -> CONGÉ | B21: =IFERROR(INDEX(Edit!$C$2:$C$371,MATCH(ROW($A1),Edit!$E$2:$E$371,0)),0) -> 2019-02-16 | C21: =IFERROR(INDEX(Edit!$C$2:$C$371,MATCH(ROW($A1),Edit!$F$2:$F$371,0)+1),0) -> 2019-02-17 | D21: =IF(B21="","",DATEDIF(B21,C21,"D")*IF(A21="MALADIE",$E$18,$E$16)) -> 0.2916666667
A22: =IFERROR(INDEX(Edit!$D$2:$D$371,MATCH(ROW($A2),Edit!$E$2:$E$371,0)),"") ->  | B22: =IFERROR(INDEX(Edit!$C$2:$C$371,MATCH(ROW($A2),Edit!$E$2:$E$371,0)),0) -> 1904-01-01 | C22: =IFERROR(INDEX(Edit!$C$2:$C$371,MATCH(ROW($A2),Edit!$F$2:$F$371,0)+1),0) -> 1904-01-01 | D22: =IF(B22="","",DATEDIF(B22,C22,"D")*IF(A22="MALADIE",$E$18,$E$16)) -> 0
A23: =IFERROR(INDEX(Edit!$D$2:$D$371,MATCH(ROW($A3),Edit!$E$2:$E$371,0)),"") ->  | B23: =IFERROR(INDEX(Edit!$C$2:$C$371,MATCH(ROW($A3),Edit!$E$2:$E$371,0)),0) -> 1904-01-01 | C23: =IFERROR(INDEX(Edit!$C$2:$C$371,MATCH(ROW($A3),Edit!$F$2:$F$371,0)+1),0) -> 1904-01-01 | D23: 0
A24: =IFERROR(INDEX(Edit!$D$2:$D$371,MATCH(ROW($A4),Edit!$E$2:$E$371,0)),"") ->  | B24: =IFERROR(INDEX(Edit!$C$2:$C$371,MATCH(ROW($A4),Edit!$E$2:$E$371,0)),0) -> 1904-01-01 | C24: =IFERROR(INDEX(Edit!$C$2:$C$371,MATCH(ROW($A4),Edit!$F$2:$F$371,0)+1),0) -> 1904-01-01 | D24: 0
A25: =IFERROR(INDEX(Edit!$D$2:$D$371,MATCH(ROW($A5),Edit!$E$2:$E$371,0)),"") ->  | B25: =IFERROR(INDEX(Edit!$C$2:$C$371,MATCH(ROW($A5),Edit!$E$2:$E$371,0)),0) -> 1904-01-01 | C25: =IFERROR(INDEX(Edit!$C$2:$C$371,MATCH(ROW($A5),Edit!$F$2:$F$371,0)+1),0) -> 1904-01-01 | D25: 0
A26: =IFERROR(INDEX(Edit!$D$2:$D$371,MATCH(ROW($A6),Edit!$E$2:$E$371,0)),"") ->  | B26: =IFERROR(INDEX(Edit!$C$2:$C$371,MATCH(ROW($A6),Edit!$E$2:$E$371,0)),0) -> 1904-01-01 | C26: =IFERROR(INDEX(Edit!$C$2:$C$371,MATCH(ROW($A6),Edit!$F$2:$F$371,0)+1),0) -> 1904-01-01 | D26: 0
A27: =IFERROR(INDEX(Edit!$D$2:$D$371,MATCH(ROW($A7),Edit!$E$2:$E$371,0)),"") ->  | B27: =IFERROR(INDEX(Edit!$C$2:$C$371,MATCH(ROW($A7),Edit!$E$2:$E$371,0)),0) -> 1904-01-01 | C27: =IFERROR(INDEX(Edit!$C$2:$C$371,MATCH(ROW($A7),Edit!$F$2:$F$371,0)+1),0) -> 1904-01-01 | D27: 0
A28: =IFERROR(INDEX(Edit!$D$2:$D$371,MATCH(ROW($A8),Edit!$E$2:$E$371,0)),"") ->  | B28: =IFERROR(INDEX(Edit!$C$2:$C$371,MATCH(ROW($A8),Edit!$E$2:$E$371,0)),0) -> 1904-01-01 | C28: =IFERROR(INDEX(Edit!$C$2:$C$371,MATCH(ROW($A8),Edit!$F$2:$F$371,0)+1),0) -> 1904-01-01 | D28: 0
A29: =IFERROR(INDEX(Edit!$D$2:$D$371,MATCH(ROW($A9),Edit!$E$2:$E$371,0)),"") ->  | B29: =IFERROR(INDEX(Edit!$C$2:$C$371,MATCH(ROW($A9),Edit!$E$2:$E$371,0)),0) -> 1904-01-01 | C29: =IFERROR(INDEX(Edit!$C$2:$C$371,MATCH(ROW($A9),Edit!$F$2:$F$371,0)+1),0) -> 1904-01-01 | D29: 0
A30: =IFERROR(INDEX(Edit!$D$2:$D$371,MATCH(ROW($A10),Edit!$E$2:$E$371,0)),"") ->  | B30: =IFERROR(INDEX(Edit!$C$2:$C$371,MATCH(ROW($A10),Edit!$E$2:$E$371,0)),0) -> 1904-01-01 | C30: =IFERROR(INDEX(Edit!$C$2:$C$371,MATCH(ROW($A10),Edit!$F$2:$F$371,0)+1),0) -> 1904-01-01 | D30: 0
A31: =IFERROR(INDEX(Edit!$D$2:$D$371,MATCH(ROW($A11),Edit!$E$2:$E$371,0)),"") ->  | B31: =IFERROR(INDEX(Edit!$C$2:$C$371,MATCH(ROW($A11),Edit!$E$2:$E$371,0)),0) -> 1904-01-01 | C31: =IFERROR(INDEX(Edit!$C$2:$C$371,MATCH(ROW($A11),Edit!$F$2:$F$371,0)+1),0) -> 1904-01-01 | D31: 0
A32: =IFERROR(INDEX(Edit!$D$2:$D$371,MATCH(ROW($A12),Edit!$E$2:$E$371,0)),"") ->  | B32: =IFERROR(INDEX(Edit!$C$2:$C$371,MATCH(ROW($A12),Edit!$E$2:$E$371,0)),0) -> 1904-01-01 | C32: =IFERROR(INDEX(Edit!$C$2:$C$371,MATCH(ROW($A12),Edit!$F$2:$F$371,0)+1),0) -> 1904-01-01 | D32: 0
A33: =IFERROR(INDEX(Edit!$D$2:$D$371,MATCH(ROW($A13),Edit!$E$2:$E$371,0)),"") ->  | B33: =IFERROR(INDEX(Edit!$C$2:$C$371,MATCH(ROW($A13),Edit!$E$2:$E$371,0)),0) -> 1904-01-01 | C33: =IFERROR(INDEX(Edit!$C$2:$C$371,MATCH(ROW($A13),Edit!$F$2:$F$371,0)+1),0) -> 1904-01-01 | D33: 0
A34: =IFERROR(INDEX(Edit!$D$2:$D$371,MATCH(ROW($A14),Edit!$E$2:$E$371,0)),"") ->  | B34: =IFERROR(INDEX(Edit!$C$2:$C$371,MATCH(ROW($A14),Edit!$E$2:$E$371,0)),0) -> 1904-01-01 | C34: =IFERROR(INDEX(Edit!$C$2:$C$371,MATCH(ROW($A14),Edit!$F$2:$F$371,0)+1),0) -> 1904-01-01 | D34: 0
A35: =IFERROR(INDEX(Edit!$D$2:$D$371,MATCH(ROW($A15),Edit!$E$2:$E$371,0)),"") ->  | B35: =IFERROR(INDEX(Edit!$C$2:$C$371,MATCH(ROW($A15),Edit!$E$2:$E$371,0)),0) -> 1904-01-01 | C35: =IFERROR(INDEX(Edit!$C$2:$C$371,MATCH(ROW($A15),Edit!$F$2:$F$371,0)+1),0) -> 1904-01-01 | D35: 0
A36: =IFERROR(INDEX(Edit!$D$2:$D$371,MATCH(ROW($A16),Edit!$E$2:$E$371,0)),"") ->  | B36: =IFERROR(INDEX(Edit!$C$2:$C$371,MATCH(ROW($A16),Edit!$E$2:$E$371,0)),0) -> 1904-01-01 | C36: =IFERROR(INDEX(Edit!$C$2:$C$371,MATCH(ROW($A16),Edit!$F$2:$F$371,0)+1),0) -> 1904-01-01 | D36: 0
A37: =IFERROR(INDEX(Edit!$D$2:$D$371,MATCH(ROW($A17),Edit!$E$2:$E$371,0)),"") ->  | B37: =IFERROR(INDEX(Edit!$C$2:$C$371,MATCH(ROW($A17),Edit!$E$2:$E$371,0)),0) -> 1904-01-01 | C37: =IFERROR(INDEX(Edit!$C$2:$C$371,MATCH(ROW($A17),Edit!$F$2:$F$371,0)+1),0) -> 1904-01-01 | D37: 0
A38: =IFERROR(INDEX(Edit!$D$2:$D$371,MATCH(ROW($A18),Edit!$E$2:$E$371,0)),"") ->  | B38: =IFERROR(INDEX(Edit!$C$2:$C$371,MATCH(ROW($A18),Edit!$E$2:$E$371,0)),0) -> 1904-01-01 | C38: =IFERROR(INDEX(Edit!$C$2:$C$371,MATCH(ROW($A18),Edit!$F$2:$F$371,0)+1),0) -> 1904-01-01 | D38: 0
A39: =IFERROR(INDEX(Edit!$D$2:$D$371,MATCH(ROW($A19),Edit!$E$2:$E$371,0)),"") ->  | B39: =IFERROR(INDEX(Edit!$C$2:$C$371,MATCH(ROW($A19),Edit!$E$2:$E$371,0)),0) -> 1904-01-01 | C39: =IFERROR(INDEX(Edit!$C$2:$C$371,MATCH(ROW($A19),Edit!$F$2:$F$371,0)+1),0) -> 1904-01-01 | D39: 0
A40: =IFERROR(INDEX(Edit!$D$2:$D$371,MATCH(ROW($A20),Edit!$E$2:$E$371,0)),"") ->  | B40: =IFERROR(INDEX(Edit!$C$2:$C$371,MATCH(ROW($A20),Edit!$E$2:$E$371,0)),0) -> 1904-01-01 | C40: =IFERROR(INDEX(Edit!$C$2:$C$371,MATCH(ROW($A20),Edit!$F$2:$F$371,0)+1),0) -> 1904-01-01 | D40: 0
A41: =IFERROR(INDEX(Edit!$D$2:$D$371,MATCH(ROW($A21),Edit!$E$2:$E$371,0)),"") ->  | B41: =IFERROR(INDEX(Edit!$C$2:$C$371,MATCH(ROW($A21),Edit!$E$2:$E$371,0)),0) -> 1904-01-01 | C41: =IFERROR(INDEX(Edit!$C$2:$C$371,MATCH(ROW($A21),Edit!$F$2:$F$371,0)+1),0) -> 1904-01-01 | D41: 0
A42: =IFERROR(INDEX(Edit!$D$2:$D$371,MATCH(ROW($A22),Edit!$E$2:$E$371,0)),"") ->  | B42: =IFERROR(INDEX(Edit!$C$2:$C$371,MATCH(ROW($A22),Edit!$E$2:$E$371,0)),0) -> 1904-01-01 | C42: =IFERROR(INDEX(Edit!$C$2:$C$371,MATCH(ROW($A22),Edit!$F$2:$F$371,0)+1),0) -> 1904-01-01 | D42: 0
A43: =IFERROR(INDEX(Edit!$D$2:$D$371,MATCH(ROW($A23),Edit!$E$2:$E$371,0)),"") ->  | B43: =IFERROR(INDEX(Edit!$C$2:$C$371,MATCH(ROW($A23),Edit!$E$2:$E$371,0)),0) -> 1904-01-01 | C43: =IFERROR(INDEX(Edit!$C$2:$C$371,MATCH(ROW($A23),Edit!$F$2:$F$371,0)+1),0) -> 1904-01-01 | D43: 0
A44: =IFERROR(INDEX(Edit!$D$2:$D$371,MATCH(ROW($A24),Edit!$E$2:$E$371,0)),"") ->  | B44: =IFERROR(INDEX(Edit!$C$2:$C$371,MATCH(ROW($A24),Edit!$E$2:$E$371,0)),0) -> 1904-01-01 | C44: =IFERROR(INDEX(Edit!$C$2:$C$371,MATCH(ROW($A24),Edit!$F$2:$F$371,0)+1),0) -> 1904-01-01 | D44: 0
A45: =IFERROR(INDEX(Edit!$D$2:$D$371,MATCH(ROW($A25),Edit!$E$2:$E$371,0)),"") ->  | B45: =IFERROR(INDEX(Edit!$C$2:$C$371,MATCH(ROW($A25),Edit!$E$2:$E$371,0)),0) -> 1904-01-01 | C45: =IFERROR(INDEX(Edit!$C$2:$C$371,MATCH(ROW($A25),Edit!$F$2:$F$371,0)+1),0) -> 1904-01-01 | D45: 0
A46: =IFERROR(INDEX(Edit!$D$2:$D$371,MATCH(ROW($A26),Edit!$E$2:$E$371,0)),"") ->  | B46: =IFERROR(INDEX(Edit!$C$2:$C$371,MATCH(ROW($A26),Edit!$E$2:$E$371,0)),0) -> 1904-01-01 | C46: =IFERROR(INDEX(Edit!$C$2:$C$371,MATCH(ROW($A26),Edit!$F$2:$F$371,0)+1),0) -> 1904-01-01 | D46: 0
A47: =IFERROR(INDEX(Edit!$D$2:$D$371,MATCH(ROW($A27),Edit!$E$2:$E$371,0)),"") ->  | B47: =IFERROR(INDEX(Edit!$C$2:$C$371,MATCH(ROW($A27),Edit!$E$2:$E$371,0)),0) -> 1904-01-01 | C47: =IFERROR(INDEX(Edit!$C$2:$C$371,MATCH(ROW($A27),Edit!$F$2:$F$371,0)+1),0) -> 1904-01-01 | D47: 0
A48: =IFERROR(INDEX(Edit!$D$2:$D$371,MATCH(ROW($A28),Edit!$E$2:$E$371,0)),"") ->  | B48: =IFERROR(INDEX(Edit!$C$2:$C$371,MATCH(ROW($A28),Edit!$E$2:$E$371,0)),0) -> 1904-01-01 | C48: =IFERROR(INDEX(Edit!$C$2:$C$371,MATCH(ROW($A28),Edit!$F$2:$F$371,0)+1),0) -> 1904-01-01 | D48: 0
A49: =IFERROR(INDEX(Edit!$D$2:$D$371,MATCH(ROW($A29),Edit!$E$2:$E$371,0)),"") ->  | B49: =IFERROR(INDEX(Edit!$C$2:$C$371,MATCH(ROW($A29),Edit!$E$2:$E$371,0)),0) -> 1904-01-01 | C49: =IFERROR(INDEX(Edit!$C$2:$C$371,MATCH(ROW($A29),Edit!$F$2:$F$371,0)+1),0) -> 1904-01-01 | D49: 0
A50: =IFERROR(INDEX(Edit!$D$2:$D$371,MATCH(ROW($A30),Edit!$E$2:$E$371,0)),"") ->  | B50: =IFERROR(INDEX(Edit!$C$2:$C$371,MATCH(ROW($A30),Edit!$E$2:$E$371,0)),0) -> 1904-01-01 | C50: =IFERROR(INDEX(Edit!$C$2:$C$371,MATCH(ROW($A30),Edit!$F$2:$F$371,0)+1),0) -> 1904-01-01 | D50: 0
A51: =IFERROR(INDEX(Edit!$D$2:$D$371,MATCH(ROW($A31),Edit!$E$2:$E$371,0)),"") ->  | B51: =IFERROR(INDEX(Edit!$C$2:$C$371,MATCH(ROW($A31),Edit!$E$2:$E$371,0)),0) -> 1904-01-01 | C51: =IFERROR(INDEX(Edit!$C$2:$C$371,MATCH(ROW($A31),Edit!$F$2:$F$371,0)+1),0) -> 1904-01-01 | D51: 0

Sheet Fonctionnement
A2: 1- Remplir la feuille de temps en arrondissant toujours aux 15 minutes
A3: 2- Aller la la feuille "Envoyer la feuille de temps" et cliquer sur le bouton "Envoyer par courriel" pour envoyer la feuille par courriel à Michèle

Sheet Envoyer la feuille de temps

Sheet Edit
A1: feuille | B1: ligne | C1: date | D1: congés | E1: affect début | F1: affect retour | G1: heures | I1: calculs jours fériés
A2: Janvier - 2prem. semaines | B2: 16 | C2: =INDIRECT(ADDRESS($B2,1,,,$A2)) -> 2018-12-31 | D2: =INDIRECT(ADDRESS($B2,9,,,$A2)) -> 0 | E2: =IF(OR(D2=0,D2=D1),"",IF(OR(D2<>"",D2<>D3),MAX($E$1:E1)+1,0)) ->  | F2: =IF(AND(D2<>0,D2<>D3),MAX($F$1:F1)+1,"") ->  | G2: =INDIRECT(ADDRESS($B2,8,,,$A2)) -> 00:00:00 | I2: jour fériés | J2: date début calcul | K2: cumul effectué | L2: quotient | M2: affectation
A3: Janvier - 2prem. semaines | B3: 17 | C3: =INDIRECT(ADDRESS(B3,1,,,A3)) -> 2019-01-01 | D3: =INDIRECT(ADDRESS($B3,9,,,$A3)) -> 0 | E3: =IF(OR(D3=0,D3=D2),"",IF(OR(D3<>"",D3<>D4),MAX($E$1:E2)+1,0)) ->  | F3: =IF(AND(D3<>0,D3<>D4),MAX($F$1:F2)+1,"") ->  | G3: =INDIRECT(ADDRESS($B3,8,,,$A3)) -> 00:00:00 | I3: ='Janvier - 2prem. semaines'!AF12 -> 2019-01-01 | J3: =WORKDAY(I3,-20,$I$3:$I$14) -> 2018-12-04 | K3: =SUMIFS($G$2:$G$370,$C$2:$C$370,"<="&$I3,$C$2:$C$370,">="&$J3) -> 00:00:00 | L3: =K3/20 -> 00:00:00 | M3: =MIN(8/24,L3) -> 00:00:00
A4: Janvier - 2prem. semaines | B4: 18 | C4: 2019-01-02 | D4: 0 | E4: =IF(OR(D4=0,D4=D3),"",IF(OR(D4<>"",D4<>D5),MAX($E$1:E3)+1,0)) ->  | F4: =IF(AND(D4<>0,D4<>D5),MAX($F$1:F3)+1,"") ->  | G4: =INDIRECT(ADDRESS($B4,8,,,$A4)) -> 00:00:00 | I4: ='Janvier - 2prem. semaines'!AF14 -> 2019-04-19 | J4: =WORKDAY(I4,-20,$I$3:$I$14) -> 2019-03-22 | K4: =SUMIFS($G$2:$G$370,$C$2:$C$370,"<="&$I4,$C$2:$C$370,">="&$J4) -> 6.578947368 | L4: =K4/20 -> 07:53:41.053 | M4: =MIN(8/24,L4) -> 07:53:41.053
A5: Janvier - 2prem. semaines | B5: 19 | C5: 2019-01-03 | D5: 0 | E5: =IF(OR(D5=0,D5=D4),"",IF(OR(D5<>"",D5<>D6),MAX($E$1:E4)+1,0)) ->  | F5: =IF(AND(D5<>0,D5<>D6),MAX($F$1:F4)+1,"") ->  | G5: 00:00:00
A6: Janvier - 2prem. semaines | B6: 20 | C6: 2019-01-04 | D6: 0 | E6: =IF(OR(D6=0,D6=D5),"",IF(OR(D6<>"",D6<>D7),MAX($E$1:E5)+1,0)) ->  | F6: =IF(AND(D6<>0,D6<>D7),MAX($F$1:F5)+1,"") ->  | G6: 00:00:00 | I6: ='Janvier - 2prem. semaines'!AF17 -> 2019-05-20 | J6: 2019-04-22 | K6: =SUMIFS($G$2:$G$370,$C$2:$C$370,"<="&$I6,$C$2:$C$370,">="&$J6) -> 00:00:00 | L6: 00:00:00 | M6: 00:00:00
A7: Janvier - 2prem. semaines | B7: 21 | C7: 2019-01-05 | D7: 0 | E7: =IF(OR(D7=0,D7=D6),"",IF(OR(D7<>"",D7<>D8),MAX($E$1:E6)+1,0)) ->  | F7: =IF(AND(D7<>0,D7<>D8),MAX($F$1:F6)+1,"") ->  | G7: 00:00:00 | I7: ='Janvier - 2prem. semaines'!AF18 -> 2019-06-24 | J7: 2019-05-27 | K7: 00:00:00 | L7: 00:00:00 | M7: 00:00:00
A8: Janvier - 2prem. semaines | B8: 22 | C8: 2019-01-06 | D8: 0 | E8: =IF(OR(D8=0,D8=D7),"",IF(OR(D8<>"",D8<>D9),MAX($E$1:E7)+1,0)) ->  | F8: =IF(AND(D8<>0,D8<>D9),MAX($F$1:F7)+1,"") ->  | G8: 00:00:00 | I8: ='Janvier - 2prem. semaines'!AF20 -> 2019-07-01 | J8: 2019-05-31 | K8: 00:00:00 | L8: 00:00:00 | M8: 00:00:00
A9: Janvier - 2prem. semaines | B9: 29 | C9: Horaire Semaine 2 | D9: 0 | E9: =IF(OR(D9=0,D9=D8),"",IF(OR(D9<>"",D9<>D10),MAX($E$1:E8)+1,0)) ->  | F9: =IF(AND(D9<>0,D9<>D10),MAX($F$1:F8)+1,"") ->  | G9: 00:00:00 | I9: ='Janvier - 2prem. semaines'!AF22 -> 2019-09-01 | J9: 2019-08-05 | K9: 00:00:00 | L9: 00:00:00 | M9: 00:00:00
A10: Janvier - 2prem. semaines | B10: 30 | C10: 2019-01-07 | D10: 0 | E10: =IF(OR(D10=0,D10=D9),"",IF(OR(D10<>"",D10<>D11),MAX($E$1:E9)+1,0)) ->  | F10: =IF(AND(D10<>0,D10<>D11),MAX($F$1:F9)+1,"") ->  | G10: 04:00:00 | I10: ='Janvier - 2prem. semaines'!AF24 -> 2019-10-01 | J10: 2019-09-03 | K10: 00:00:00 | L10: 00:00:00 | M10: 00:00:00
A11: Janvier - 2prem. semaines | B11: 31 | C11: 2019-01-08 | D11: 0 | E11: =IF(OR(D11=0,D11=D10),"",IF(OR(D11<>"",D11<>D12),MAX($E$1:E10)+1,0)) ->  | F11: =IF(AND(D11<>0,D11<>D12),MAX($F$1:F10)+1,"") ->  | G11: 03:00:00 | I11: ='Janvier - 2prem. semaines'!AF28 -> 2019-12-25 | J11: 2019-11-27 | K11: 00:00:00 | L11: 00:00:00 | M11: 00:00:00
A12: Janvier - 2prem. semaines | B12: 32 | C12: 2019-01-09 | D12: 0 | E12: =IF(OR(D12=0,D12=D11),"",IF(OR(D12<>"",D12<>D13),MAX($E$1:E11)+1,0)) ->  | F12: =IF(AND(D12<>0,D12<>D13),MAX($F$1:F11)+1,"") ->  | G12: 01:30:00
A13: Janvier - 2prem. semaines | B13: 33 | C13: 2019-01-10 | D13: 0 | E13: =IF(OR(D13=0,D13=D12),"",IF(OR(D13<>"",D13<>D14),MAX($E$1:E12)+1,0)) ->  | F13: =IF(AND(D13<>0,D13<>D14),MAX($F$1:F12)+1,"") ->  | G13: =INDIRECT(ADDRESS($B13,8,,,$A13)) -> 00:00:00
A14: Janvier - 2prem. semaines | B14: 34 | C14: 2019-01-11 | D14: 0 | E14: =IF(OR(D14=0,D14=D13),"",IF(OR(D14<>"",D14<>D15),MAX($E$1:E13)+1,0)) ->  | F14: =IF(AND(D14<>0,D14<>D15),MAX($F$1:F13)+1,"") ->  | G14: 00:00:00
A15: Janvier - 2prem. semaines | B15: 35 | C15: 2019-01-12 | D15: 0 | E15: =IF(OR(D15=0,D15=D14),"",IF(OR(D15<>"",D15<>D16),MAX($E$1:E14)+1,0)) ->  | F15: =IF(AND(D15<>0,D15<>D16),MAX($F$1:F14)+1,"") ->  | G15: 00:00:00
A16: Janvier - 2dern. semaines | B16: 16 | C16: 2019-01-14 | D16: 0 | E16: =IF(OR(D16=0,D16=D15),"",IF(OR(D16<>"",D16<>D17),MAX($E$1:E15)+1,0)) ->  | F16: =IF(AND(D16<>0,D16<>D17),MAX($F$1:F15)+1,"") ->  | G16: 00:00:00
A17: Janvier - 2dern. semaines | B17: 17 | C17: 2019-01-15 | D17: =INDIRECT(ADDRESS($B17,9,,,$A17)) -> 0 | E17: =IF(OR(D17=0,D17=D16),"",IF(OR(D17<>"",D17<>D18),MAX($E$1:E16)+1,0)) ->  | F17: =IF(AND(D17<>0,D17<>D18),MAX($F$1:F16)+1,"") ->  | G17: 00:00:00
A18: Janvier - 2dern. semaines | B18: 18 | C18: 2019-01-16 | D18: 0 | E18: =IF(OR(D18=0,D18=D17),"",IF(OR(D18<>"",D18<>D19),MAX($E$1:E17)+1,0)) ->  | F18: =IF(AND(D18<>0,D18<>D19),MAX($F$1:F17)+1,"") ->  | G18: 00:00:00
A19: Janvier - 2dern. semaines | B19: 19 | C19: 2019-01-17 | D19: 0 | E19: =IF(OR(D19=0,D19=D18),"",IF(OR(D19<>"",D19<>D20),MAX($E$1:E18)+1,0)) ->  | F19: =IF(AND(D19<>0,D19<>D20),MAX($F$1:F18)+1,"") ->  | G19: 00:00:00
A20: Janvier - 2dern. semaines | B20: 20 | C20: 2019-01-18 | D20: 0 | E20: =IF(OR(D20=0,D20=D19),"",IF(OR(D20<>"",D20<>D21),MAX($E$1:E19)+1,0)) ->  | F20: =IF(AND(D20<>0,D20<>D21),MAX($F$1:F19)+1,"") ->  | G20: 00:00:00
A21: Janvier - 2dern. semaines | B21: 21 | C21: 2019-01-19 | D21: 0 | E21: =IF(OR(D21=0,D21=D20),"",IF(OR(D21<>"",D21<>D22),MAX($E$1:E20)+1,0)) ->  | F21: =IF(AND(D21<>0,D21<>D22),MAX($F$1:F20)+1,"") ->  | G21: 00:00:00
A22: Janvier - 2dern. semaines | B22: 22 | C22: 2019-01-20 | D22: 0 | E22: =IF(OR(D22=0,D22=D21),"",IF(OR(D22<>"",D22<>D23),MAX($E$1:E21)+1,0)) ->  | F22: =IF(AND(D22<>0,D22<>D23),MAX($F$1:F21)+1,"") ->  | G22: 00:00:00
A23: Janvier - 2dern. semaines | B23: 29 | C23: 2019-01-21 | D23: 0 | E23: =IF(OR(D23=0,D23=D22),"",IF(OR(D23<>"",D23<>D24),MAX($E$1:E22)+1,0)) ->  | F23: =IF(AND(D23<>0,D23<>D24),MAX($F$1:F22)+1,"") ->  | G23: 07:30:00
A24: Janvier - 2dern. semaines | B24: 30 | C24: 2019-01-22 | D24: 0 | E24: =IF(OR(D24=0,D24=D23),"",IF(OR(D24<>"",D24<>D25),MAX($E$1:E23)+1,0)) ->  | F24: =IF(AND(D24<>0,D24<>D25),MAX($F$1:F23)+1,"") ->  | G24: 09:30:00
A25: Janvier - 2dern. semaines | B25: 31 | C25: 2019-01-23 | D25: 0 | E25: =IF(OR(D25=0,D25=D24),"",IF(OR(D25<>"",D25<>D26),MAX($E$1:E24)+1,0)) ->  | F25: =IF(AND(D25<>0,D25<>D26),MAX($F$1:F24)+1,"") ->  | G25: 07:30:00
A26: Janvier - 2dern. semaines | B26: 32 | C26: 2019-01-24 | D26: 0 | E26: =IF(OR(D26=0,D26=D25),"",IF(OR(D26<>"",D26<>D27),MAX($E$1:E25)+1,0)) ->  | F26: =IF(AND(D26<>0,D26<>D27),MAX($F$1:F25)+1,"") ->  | G26: 03:00:00
A27: Janvier - 2dern. semaines | B27: 33 | C27: 2019-01-25 | D27: 0 | E27: =IF(OR(D27=0,D27=D26),"",IF(OR(D27<>"",D27<>D28),MAX($E$1:E26)+1,0)) ->  | F27: =IF(AND(D27<>0,D27<>D28),MAX($F$1:F26)+1,"") ->  | G27: 07:00:00 | I27: =$I3 -> 2019-01-01 | J27: =$J3 -> 2018-12-04 | K27: =$K3 -> 00:00:00 | L27: =$L3 -> 00:00:00 | M27: =$M3 -> 00:00:00
A28: Janvier - 2dern. semaines | B28: 34 | C28: 2019-01-26 | D28: 0 | E28: =IF(OR(D28=0,D28=D27),"",IF(OR(D28<>"",D28<>D29),MAX($E$1:E27)+1,0)) ->  | F28: =IF(AND(D28<>0,D28<>D29),MAX($F$1:F27)+1,"") ->  | G28: =INDIRECT(ADDRESS($B28,8,,,$A28)) -> 00:00:00 | I28: =$I4 -> 2019-04-19 | J28: =$J4 -> 2019-03-22 | K28: =$K4 -> 6.578947368 | L28: =$L4 -> 07:53:41.053 | M28: =$M4 -> 07:53:41.053
A29: Janvier - 2dern. semaines | B29: 35 | C29: 2019-01-27 | D29: 0 | E29: =IF(OR(D29=0,D29=D28),"",IF(OR(D29<>"",D29<>D30),MAX($E$1:E28)+1,0)) ->  | F29: =IF(AND(D29<>0,D29<>D30),MAX($F$1:F28)+1,"") ->  | G29: 03:00:00
A30: Fin Jan.-Février - 2prem. sem. | B30: 16 | C30: 2019-01-28 | D30: 0 | E30: =IF(OR(D30=0,D30=D29),"",IF(OR(D30<>"",D30<>D31),MAX($E$1:E29)+1,0)) ->  | F30: =IF(AND(D30<>0,D30<>D31),MAX($F$1:F29)+1,"") ->  | G30: 10:30:00 | I30: 2019-05-20 | J30: 2019-04-22 | K30: 00:00:00 | L30: 00:00:00 | M30: 00:00:00
A31: Fin Jan.-Février - 2prem. sem. | B31: 17 | C31: 2019-01-29 | D31: 0 | E31: =IF(OR(D31=0,D31=D30),"",IF(OR(D31<>"",D31<>D32),MAX($E$1:E30)+1,0)) ->  | F31: =IF(AND(D31<>0,D31<>D32),MAX($F$1:F30)+1,"") ->  | G31: 11:30:00 | I31: 2019-06-24 | J31: 2019-05-27 | K31: 00:00:00 | L31: 00:00:00 | M31: 00:00:00
A32: Fin Jan.-Février - 2prem. sem. | B32: 18 | C32: 2019-01-30 | D32: 0 | E32: =IF(OR(D32=0,D32=D31),"",IF(OR(D32<>"",D32<>D33),MAX($E$1:E31)+1,0)) ->  | F32: =IF(AND(D32<>0,D32<>D33),MAX($F$1:F31)+1,"") ->  | G32: 07:00:00 | I32: 2019-07-01 | J32: 2019-05-31 | K32: 00:00:00 | L32: 00:00:00 | M32: 00:00:00
A33: Fin Jan.-Février - 2prem. sem. | B33: 19 | C33: 2019-01-31 | D33: 0 | E33: =IF(OR(D33=0,D33=D32),"",IF(OR(D33<>"",D33<>D34),MAX($E$1:E32)+1,0)) ->  | F33: =IF(AND(D33<>0,D33<>D34),MAX($F$1:F32)+1,"") ->  | G33: 10:30:00 | I33: 2019-09-01 | J33: 2019-08-05 | K33: 00:00:00 | L33: 00:00:00 | M33: 00:00:00
A34: Fin Jan.-Février - 2prem. sem. | B34: 20 | C34: 2019-02-01 | D34: 0 | E34: =IF(OR(D34=0,D34=D33),"",IF(OR(D34<>"",D34<>D35),MAX($E$1:E33)+1,0)) ->  | F34: =IF(AND(D34<>0,D34<>D35),MAX($F$1:F33)+1,"") ->  | G34: 05:00:00 | I34: 2019-10-01 | J34: 2019-09-03 | K34: 00:00:00 | L34: 00:00:00 | M34: 00:00:00
A35: Fin Jan.-Février - 2prem. sem. | B35: 21 | C35: 2019-02-02 | D35: 0 | E35: =IF(OR(D35=0,D35=D34),"",IF(OR(D35<>"",D35<>D36),MAX($E$1:E34)+1,0)) ->  | F35: =IF(AND(D35<>0,D35<>D36),MAX($F$1:F34)+1,"") ->  | G35: 00:00:00 | I35: 2019-12-25 | J35: 2019-11-27 | K35: 00:00:00 | L35: 00:00:00 | M35: 00:00:00
A36: Fin Jan.-Février - 2prem. sem. | B36: 22 | C36: 2019-02-03 | D36: 0 | E36: =IF(OR(D36=0,D36=D35),"",IF(OR(D36<>"",D36<>D37),MAX($E$1:E35)+1,0)) ->  | F36: =IF(AND(D36<>0,D36<>D37),MAX($F$1:F35)+1,"") ->  | G36: 02:00:00
A37: Fin Jan.-Février - 2prem. sem. | B37: 23 | C37: 1904-01-01 | D37: 0 | E37: =IF(OR(D37=0,D37=D36),"",IF(OR(D37<>"",D37<>D38),MAX($E$1:E36)+1,0)) ->  | F37: =IF(AND(D37<>0,D37<>D38),MAX($F$1:F36)+1,"") ->  | G37: 1.9375
A38: Fin Jan.-Février - 2prem. sem. | B38: 24 | C38: 1904-01-01 | D38: 0 | E38: =IF(OR(D38=0,D38=D37),"",IF(OR(D38<>"",D38<>D39),MAX($E$1:E37)+1,0)) ->  | F38: =IF(AND(D38<>0,D38<>D39),MAX($F$1:F37)+1,"") ->  | G38: 00:00:00
A39: Fin Jan.-Février - 2prem. sem. | B39: 25 | C39: 1904-01-01 | D39: 0 | E39: =IF(OR(D39=0,D39=D38),"",IF(OR(D39<>"",D39<>D40),MAX($E$1:E38)+1,0)) ->  | F39: =IF(AND(D39<>0,D39<>D40),MAX($F$1:F38)+1,"") ->  | G39: 00:00:00
A40: Fin Jan.-Février - 2prem. sem. | B40: 26 | C40: 1904-01-01 | D40: 0 | E40: =IF(OR(D40=0,D40=D39),"",IF(OR(D40<>"",D40<>D41),MAX($E$1:E39)+1,0)) ->  | F40: =IF(AND(D40<>0,D40<>D41),MAX($F$1:F39)+1,"") ->  | G40: 0
A41: Fin Jan.-Février - 2prem. sem. | B41: 27 | C41: 1904-01-01 | D41: 0 | E41: =IF(OR(D41=0,D41=D40),"",IF(OR(D41<>"",D41<>D42),MAX($E$1:E40)+1,0)) ->  | F41: =IF(AND(D41<>0,D41<>D42),MAX($F$1:F40)+1,"") ->  | G41: 00:00:00
A42: Fin Jan.-Février - 2prem. sem. | B42: 29 | C42: 2019-02-04 | D42: 0 | E42: =IF(OR(D42=0,D42=D41),"",IF(OR(D42<>"",D42<>D43),MAX($E$1:E41)+1,0)) ->  | F42: =IF(AND(D42<>0,D42<>D43),MAX($F$1:F41)+1,"") ->  | G42: 07:00:00
A43: Fin Jan.-Février - 2prem. sem. | B43: 30 | C43: 2019-02-05 | D43: 0 | E43: =IF(OR(D43=0,D43=D42),"",IF(OR(D43<>"",D43<>D44),MAX($E$1:E42)+1,0)) ->  | F43: =IF(AND(D43<>0,D43<>D44),MAX($F$1:F42)+1,"") ->  | G43: 11:00:00
A44: Fin Jan.-Février - 2prem. sem. | B44: 31 | C44: =INDIRECT(ADDRESS(B44,1,,,A44)) -> 2019-02-06 | D44: 0 | E44: =IF(OR(D44=0,D44=D43),"",IF(OR(D44<>"",D44<>D45),MAX($E$1:E43)+1,0)) ->  | F44: =IF(AND(D44<>0,D44<>D45),MAX($F$1:F43)+1,"") ->  | G44: 08:00:00
A45: Fin Jan.-Février - 2prem. sem. | B45: 32 | C45: 2019-02-07 | D45: 0 | E45: =IF(OR(D45=0,D45=D44),"",IF(OR(D45<>"",D45<>D46),MAX($E$1:E44)+1,0)) ->  | F45: =IF(AND(D45<>0,D45<>D46),MAX($F$1:F44)+1,"") ->  | G45: 10:00:00
A46: Fin Jan.-Février - 2prem. sem. | B46: 33 | C46: 2019-02-08 | D46: 0 | E46: =IF(OR(D46=0,D46=D45),"",IF(OR(D46<>"",D46<>D47),MAX($E$1:E45)+1,0)) ->  | F46: =IF(AND(D46<>0,D46<>D47),MAX($F$1:F45)+1,"") ->  | G46: 07:00:00
A47: Fin Jan.-Février - 2prem. sem. | B47: 34 | C47: 2019-02-09 | D47: 0 | E47: =IF(OR(D47=0,D47=D46),"",IF(OR(D47<>"",D47<>D48),MAX($E$1:E46)+1,0)) ->  | F47: =IF(AND(D47<>0,D47<>D48),MAX($F$1:F46)+1,"") ->  | G47: 00:00:00
A48: Fin Jan.-Février - 2prem. sem. | B48: 35 | C48: 2019-02-10 | D48: 0 | E48: =IF(OR(D48=0,D48=D47),"",IF(OR(D48<>"",D48<>D49),MAX($E$1:E47)+1,0)) ->  | F48: =IF(AND(D48<>0,D48<>D49),MAX($F$1:F47)+1,"") ->  | G48: 00:00:00
A49: Février - 2e-3e semaine | B49: 16 | C49: 2019-02-11 | D49: 0 | E49: =IF(OR(D49=0,D49=D48),"",IF(OR(D49<>"",D49<>D50),MAX($E$1:E48)+1,0)) ->  | F49: =IF(AND(D49<>0,D49<>D50),MAX($F$1:F48)+1,"") ->  | G49: 08:30:00
A50: Février - 2e-3e semaine | B50: 17 | C50: 2019-02-12 | D50: 0 | E50: =IF(OR(D50=0,D50=D49),"",IF(OR(D50<>"",D50<>D51),MAX($E$1:E49)+1,0)) ->  | F50: =IF(AND(D50<>0,D50<>D51),MAX($F$1:F49)+1,"") ->  | G50: 08:00:00
A51: Février - 2e-3e semaine | B51: 18 | C51: 2019-02-13 | D51: 0 | E51: =IF(OR(D51=0,D51=D50),"",IF(OR(D51<>"",D51<>D52),MAX($E$1:E50)+1,0)) ->  | F51: =IF(AND(D51<>0,D51<>D52),MAX($F$1:F50)+1,"") ->  | G51: 00:00:00
A52: Février - 2e-3e semaine | B52: 19 | C52: 2019-02-14 | D52: 0 | E52: =IF(OR(D52=0,D52=D51),"",IF(OR(D52<>"",D52<>D53),MAX($E$1:E51)+1,0)) ->  | F52: =IF(AND(D52<>0,D52<>D53),MAX($F$1:F51)+1,"") ->  | G52: 10:30:00
A53: Février - 2e-3e semaine | B53: 20 | C53: 2019-02-15 | D53: 0 | E53: =IF(OR(D53=0,D53=D52),"",IF(OR(D53<>"",D53<>D54),MAX($E$1:E52)+1,0)) ->  | F53: =IF(AND(D53<>0,D53<>D54),MAX($F$1:F52)+1,"") ->  | G53: 00:00:00
A54: Février - 2e-3e semaine | B54: 21 | C54: 2019-02-16 | D54: CONGÉ | E54: =IF(OR(D54=0,D54=D53),"",IF(OR(D54<>"",D54<>D55),MAX($E$1:E53)+1,0)) -> 1 | F54: =IF(AND(D54<>0,D54<>D55),MAX($F$1:F53)+1,"") -> 1 | G54: 07:00:00
A55: Février - 2e-3e semaine | B55: 22 | C55: 2019-02-17 | D55: 0 | E55: =IF(OR(D55=0,D55=D54),"",IF(OR(D55<>"",D55<>D56),MAX($E$1:E54)+1,0)) ->  | F55: =IF(AND(D55<>0,D55<>D56),MAX($F$1:F54)+1,"") ->  | G55: 00:00:00
A56: Février - 2e-3e semaine | B56: 29 | C56: 2019-02-18 | D56: 0 | E56: =IF(OR(D56=0,D56=D55),"",IF(OR(D56<>"",D56<>D57),MAX($E$1:E55)+1,0)) ->  | F56: =IF(AND(D56<>0,D56<>D57),MAX($F$1:F55)+1,"") ->  | G56: 00:00:00
A57: Février - 2e-3e semaine | B57: 30 | C57: 2019-02-19 | D57: 0 | E57: =IF(OR(D57=0,D57=D56),"",IF(OR(D57<>"",D57<>D58),MAX($E$1:E56)+1,0)) ->  | F57: =IF(AND(D57<>0,D57<>D58),MAX($F$1:F56)+1,"") ->  | G57: 00:00:00
A58: Février - 2e-3e semaine | B58: 31 | C58: 2019-02-20 | D58: 0 | E58: =IF(OR(D58=0,D58=D57),"",IF(OR(D58<>"",D58<>D59),MAX($E$1:E57)+1,0)) ->  | F58: =IF(AND(D58<>0,D58<>D59),MAX($F$1:F57)+1,"") ->  | G58: 00:00:00
A59: Février - 2e-3e semaine | B59: 32 | C59: 2019-02-21 | D59: 0 | E59: =IF(OR(D59=0,D59=D58),"",IF(OR(D59<>"",D59<>D60),MAX($E$1:E58)+1,0)) ->  | F59: =IF(AND(D59<>0,D59<>D60),MAX($F$1:F58)+1,"") ->  | G59: 00:00:00
A60: Février - 2e-3e semaine | B60: 33 | C60: 2019-02-22 | D60: 0 | E60: =IF(OR(D60=0,D60=D59),"",IF(OR(D60<>"",D60<>D61),MAX($E$1:E59)+1,0)) ->  | F60: =IF(AND(D60<>0,D60<>D61),MAX($F$1:F59)+1,"") ->  | G60: 00:00:00
A61: Février - 2e-3e semaine | B61: 34 | C61: 2019-02-23 | D61: =INDIRECT(ADDRESS($B61,9,,,$A61)) -> 0 | E61: =IF(OR(D61=0,D61=D60),"",IF(OR(D61<>"",D61<>D62),MAX($E$1:E60)+1,0)) ->  | F61: =IF(AND(D61<>0,D61<>D62),MAX($F$1:F60)+1,"") ->  | G61: 00:00:00
A62: Février - 2e-3e semaine | B62: 35 | C62: 2019-02-24 | D62: 0 | E62: =IF(OR(D62=0,D62=D61),"",IF(OR(D62<>"",D62<>D63),MAX($E$1:E61)+1,0)) ->  | F62: =IF(AND(D62<>0,D62<>D63),MAX($F$1:F61)+1,"") ->  | G62: 00:00:00
A63: Fin Fév.-Mars - 2prem. sem. | B63: 16 | C63: 2019-02-25 | D63: 0 | E63: =IF(OR(D63=0,D63=D62),"",IF(OR(D63<>"",D63<>D64),MAX($E$1:E62)+1,0)) ->  | F63: =IF(AND(D63<>0,D63<>D64),MAX($F$1:F62)+1,"") ->  | G63: 00:00:00
A64: Fin Fév.-Mars - 2prem. sem. | B64: 17 | C64: 2019-02-26 | D64: 0 | E64: =IF(OR(D64=0,D64=D63),"",IF(OR(D64<>"",D64<>D65),MAX($E$1:E63)+1,0)) ->  | F64: =IF(AND(D64<>0,D64<>D65),MAX($F$1:F63)+1,"") ->  | G64: 00:00:00
A65: Fin Fév.-Mars - 2prem. sem. | B65: 18 | C65: 2019-02-27 | D65: 0 | E65: =IF(OR(D65=0,D65=D64),"",IF(OR(D65<>"",D65<>D66),MAX($E$1:E64)+1,0)) ->  | F65: =IF(AND(D65<>0,D65<>D66),MAX($F$1:F64)+1,"") ->  | G65: 00:00:00
A66: Fin Fév.-Mars - 2prem. sem. | B66: 19 | C66: 2019-02-28 | D66: 0 | E66: =IF(OR(D66=0,D66=D65),"",IF(OR(D66<>"",D66<>D67),MAX($E$1:E65)+1,0)) ->  | F66: =IF(AND(D66<>0,D66<>D67),MAX($F$1:F65)+1,"") ->  | G66: 00:00:00
A67: Fin Fév.-Mars - 2prem. sem. | B67: 20 | C67: 2019-03-01 | D67: 0 | E67: =IF(OR(D67=0,D67=D66),"",IF(OR(D67<>"",D67<>D68),MAX($E$1:E66)+1,0)) ->  | F67: =IF(AND(D67<>0,D67<>D68),MAX($F$1:F66)+1,"") ->  | G67: =INDIRECT(ADDRESS($B67,8,,,$A67)) -> 00:00:00
A68: Fin Fév.-Mars - 2prem. sem. | B68: 21 | C68: 2019-03-02 | D68: 0 | E68: =IF(OR(D68=0,D68=D67),"",IF(OR(D68<>"",D68<>D69),MAX($E$1:E67)+1,0)) ->  | F68: =IF(AND(D68<>0,D68<>D69),MAX($F$1:F67)+1,"") ->  | G68: 00:00:00
A69: Fin Fév.-Mars - 2prem. sem. | B69: 22 | C69: 2019-03-03 | D69: 0 | E69: =IF(OR(D69=0,D69=D68),"",IF(OR(D69<>"",D69<>D70),MAX($E$1:E68)+1,0)) ->  | F69: =IF(AND(D69<>0,D69<>D70),MAX($F$1:F68)+1,"") ->  | G69: 00:00:00
A70: Fin Fév.-Mars - 2prem. sem. | B70: 29 | C70: 2019-03-04 | D70: 0 | E70: =IF(OR(D70=0,D70=D69),"",IF(OR(D70<>"",D70<>D71),MAX($E$1:E69)+1,0)) ->  | F70: =IF(AND(D70<>0,D70<>D71),MAX($F$1:F69)+1,"") ->  | G70: 00:00:00
A71: Fin Fév.-Mars - 2prem. sem. | B71: 30 | C71: 2019-03-05 | D71: 0 | E71: =IF(OR(D71=0,D71=D70),"",IF(OR(D71<>"",D71<>D72),MAX($E$1:E70)+1,0)) ->  | F71: =IF(AND(D71<>0,D71<>D72),MAX($F$1:F70)+1,"") ->  | G71: 00:00:00
A72: Fin Fév.-Mars - 2prem. sem. | B72: 31 | C72: 2019-03-06 | D72: 0 | E72: =IF(OR(D72=0,D72=D71),"",IF(OR(D72<>"",D72<>D73),MAX($E$1:E71)+1,0)) ->  | F72: =IF(AND(D72<>0,D72<>D73),MAX($F$1:F71)+1,"") ->  | G72: 00:00:00
A73: Fin Fév.-Mars - 2prem. sem. | B73: 32 | C73: 2019-03-07 | D73: 0 | E73: =IF(OR(D73=0,D73=D72),"",IF(OR(D73<>"",D73<>D74),MAX($E$1:E72)+1,0)) ->  | F73: =IF(AND(D73<>0,D73<>D74),MAX($F$1:F72)+1,"") ->  | G73: 00:00:00
A74: Fin Fév.-Mars - 2prem. sem. | B74: 33 | C74: 2019-03-08 | D74: 0 | E74: =IF(OR(D74=0,D74=D73),"",IF(OR(D74<>"",D74<>D75),MAX($E$1:E73)+1,0)) ->  | F74: =IF(AND(D74<>0,D74<>D75),MAX($F$1:F73)+1,"") ->  | G74: 00:00:00
A75: Fin Fév.-Mars - 2prem. sem. | B75: 34 | C75: 2019-03-09 | D75: 0 | E75: =IF(OR(D75=0,D75=D74),"",IF(OR(D75<>"",D75<>D76),MAX($E$1:E74)+1,0)) ->  | F75: =IF(AND(D75<>0,D75<>D76),MAX($F$1:F74)+1,"") ->  | G75: 00:00:00
A76: Fin Fév.-Mars - 2prem. sem. | B76: 35 | C76: 2019-03-10 | D76: 0 | E76: =IF(OR(D76=0,D76=D75),"",IF(OR(D76<>"",D76<>D77),MAX($E$1:E75)+1,0)) ->  | F76: =IF(AND(D76<>0,D76<>D77),MAX($F$1:F75)+1,"") ->  | G76: 00:00:00
A77: Mars - 3e-4e semaine | B77: 16 | C77: 2019-03-11 | D77: 0 | E77: =IF(OR(D77=0,D77=D76),"",IF(OR(D77<>"",D77<>D78),MAX($E$1:E76)+1,0)) ->  | F77: =IF(AND(D77<>0,D77<>D78),MAX($F$1:F76)+1,"") ->  | G77: 07:30:00
A78: Mars - 3e-4e semaine | B78: 17 | C78: 2019-03-12 | D78: 0 | E78: =IF(OR(D78=0,D78=D77),"",IF(OR(D78<>"",D78<>D79),MAX($E$1:E77)+1,0)) ->  | F78: =IF(AND(D78<>0,D78<>D79),MAX($F$1:F77)+1,"") ->  | G78: 09:30:00
A79: Mars - 3e-4e semaine | B79: 18 | C79: 2019-03-13 | D79: 0 | E79: =IF(OR(D79=0,D79=D78),"",IF(OR(D79<>"",D79<>D80),MAX($E$1:E78)+1,0)) ->  | F79: =IF(AND(D79<>0,D79<>D80),MAX($F$1:F78)+1,"") ->  | G79: 07:30:00
A80: Mars - 3e-4e semaine | B80: 19 | C80: 2019-03-14 | D80: 0 | E80: =IF(OR(D80=0,D80=D79),"",IF(OR(D80<>"",D80<>D81),MAX($E$1:E79)+1,0)) ->  | F80: =IF(AND(D80<>0,D80<>D81),MAX($F$1:F79)+1,"") ->  | G80: 03:00:00
A81: Mars - 3e-4e semaine | B81: 20 | C81: 2019-03-15 | D81: 0 | E81: =IF(OR(D81=0,D81=D80),"",IF(OR(D81<>"",D81<>D82),MAX($E$1:E80)+1,0)) ->  | F81: =IF(AND(D81<>0,D81<>D82),MAX($F$1:F80)+1,"") ->  | G81: 07:00:00
A82: Mars - 3e-4e semaine | B82: 21 | C82: 2019-03-16 | D82: 0 | E82: =IF(OR(D82=0,D82=D81),"",IF(OR(D82<>"",D82<>D83),MAX($E$1:E81)+1,0)) ->  | F82: =IF(AND(D82<>0,D82<>D83),MAX($F$1:F81)+1,"") ->  | G82: 00:00:00
A83: Mars - 3e-4e semaine | B83: 22 | C83: 2019-03-17 | D83: 0 | E83: =IF(OR(D83=0,D83=D82),"",IF(OR(D83<>"",D83<>D84),MAX($E$1:E82)+1,0)) ->  | F83: =IF(AND(D83<>0,D83<>D84),MAX($F$1:F82)+1,"") ->  | G83: 03:00:00
A84: Mars - 3e-4e semaine | B84: 29 | C84: 2019-03-18 | D84: 0 | E84: =IF(OR(D84=0,D84=D83),"",IF(OR(D84<>"",D84<>D85),MAX($E$1:E83)+1,0)) ->  | F84: =IF(AND(D84<>0,D84<>D85),MAX($F$1:F83)+1,"") ->  | G84: 07:30:00
A85: Mars - 3e-4e semaine | B85: 30 | C85: 2019-03-19 | D85: 0 | E85: =IF(OR(D85=0,D85=D84),"",IF(OR(D85<>"",D85<>D86),MAX($E$1:E84)+1,0)) ->  | F85: =IF(AND(D85<>0,D85<>D86),MAX($F$1:F84)+1,"") ->  | G85: 09:30:00
A86: Mars - 3e-4e semaine | B86: 31 | C86: 2019-03-20 | D86: 0 | E86: =IF(OR(D86=0,D86=D85),"",IF(OR(D86<>"",D86<>D87),MAX($E$1:E85)+1,0)) ->  | F86: =IF(AND(D86<>0,D86<>D87),MAX($F$1:F85)+1,"") ->  | G86: 07:30:00
A87: Mars - 3e-4e semaine | B87: 32 | C87: 2019-03-21 | D87: 0 | E87: =IF(OR(D87=0,D87=D86),"",IF(OR(D87<>"",D87<>D88),MAX($E$1:E86)+1,0)) ->  | F87: =IF(AND(D87<>0,D87<>D88),MAX($F$1:F86)+1,"") ->  | G87: 03:00:00
A88: Mars - 3e-4e semaine | B88: 33 | C88: 2019-03-22 | D88: 0 | E88: =IF(OR(D88=0,D88=D87),"",IF(OR(D88<>"",D88<>D89),MAX($E$1:E87)+1,0)) ->  | F88: =IF(AND(D88<>0,D88<>D89),MAX($F$1:F87)+1,"") ->  | G88: 07:00:00
A89: Mars - 3e-4e semaine | B89: 34 | C89: 2019-03-23 | D89: 0 | E89: =IF(OR(D89=0,D89=D88),"",IF(OR(D89<>"",D89<>D90),MAX($E$1:E88)+1,0)) ->  | F89: =IF(AND(D89<>0,D89<>D90),MAX($F$1:F88)+1,"") ->  | G89: 00:00:00
A90: Mars - 3e-4e semaine | B90: 35 | C90: 2019-03-24 | D90: 0 | E90: =IF(OR(D90=0,D90=D89),"",IF(OR(D90<>"",D90<>D91),MAX($E$1:E89)+1,0)) ->  | F90: =IF(AND(D90<>0,D90<>D91),MAX($F$1:F89)+1,"") ->  | G90: 03:00:00
A91: Fin Mars-Avril - prem. semaine | B91: 16 | C91: 2019-03-25 | D91: 0 | E91: =IF(OR(D91=0,D91=D90),"",IF(OR(D91<>"",D91<>D92),MAX($E$1:E90)+1,0)) ->  | F91: =IF(AND(D91<>0,D91<>D92),MAX($F$1:F90)+1,"") ->  | G91: 07:30:00
A92: Fin Mars-Avril - prem. semaine | B92: 17 | C92: 2019-03-26 | D92: 0 | E92: =IF(OR(D92=0,D92=D91),"",IF(OR(D92<>"",D92<>D93),MAX($E$1:E91)+1,0)) ->  | F92: =IF(AND(D92<>0,D92<>D93),MAX($F$1:F91)+1,"") ->  | G92: 09:30:00
A93: Fin Mars-Avril - prem. semaine | B93: 18 | C93: 2019-03-27 | D93: 0 | E93: =IF(OR(D93=0,D93=D92),"",IF(OR(D93<>"",D93<>D94),MAX($E$1:E92)+1,0)) ->  | F93: =IF(AND(D93<>0,D93<>D94),MAX($F$1:F92)+1,"") ->  | G93: 07:30:00
A94: Fin Mars-Avril - prem. semaine | B94: 19 | C94: 2019-03-28 | D94: 0 | E94: =IF(OR(D94=0,D94=D93),"",IF(OR(D94<>"",D94<>D95),MAX($E$1:E93)+1,0)) ->  | F94: =IF(AND(D94<>0,D94<>D95),MAX($F$1:F93)+1,"") ->  | G94: 03:00:00
A95: Fin Mars-Avril - prem. semaine | B95: 20 | C95: =INDIRECT(ADDRESS(B95,1,,,A95)) -> 2019-03-29 | D95: 0 | E95: =IF(OR(D95=0,D95=D94),"",IF(OR(D95<>"",D95<>D96),MAX($E$1:E94)+1,0)) ->  | F95: =IF(AND(D95<>0,D95<>D96),MAX($F$1:F94)+1,"") ->  | G95: 07:00:00
A96: Fin Mars-Avril - prem. semaine | B96: 21 | C96: 2019-03-30 | D96: 0 | E96: =IF(OR(D96=0,D96=D95),"",IF(OR(D96<>"",D96<>D97),MAX($E$1:E95)+1,0)) ->  | F96: =IF(AND(D96<>0,D96<>D97),MAX($F$1:F95)+1,"") ->  | G96: 00:00:00
A97: Fin Mars-Avril - prem. semaine | B97: 22 | C97: 2019-03-31 | D97: 0 | E97: =IF(OR(D97=0,D97=D96),"",IF(OR(D97<>"",D97<>D98),MAX($E$1:E96)+1,0)) ->  | F97: =IF(AND(D97<>0,D97<>D98),MAX($F$1:F96)+1,"") ->  | G97: 03:00:00
A98: Fin Mars-Avril - prem. semaine | B98: 29 | C98: 2019-04-01 | D98: 0 | E98: =IF(OR(D98=0,D98=D97),"",IF(OR(D98<>"",D98<>D99),MAX($E$1:E97)+1,0)) ->  | F98: =IF(AND(D98<>0,D98<>D99),MAX($F$1:F97)+1,"") ->  | G98: 07:30:00
A99: Fin Mars-Avril - prem. semaine | B99: 30 | C99: 2019-04-02 | D99: 0 | E99: =IF(OR(D99=0,D99=D98),"",IF(OR(D99<>"",D99<>D100),MAX($E$1:E98)+1,0)) ->  | F99: =IF(AND(D99<>0,D99<>D100),MAX($F$1:F98)+1,"") ->  | G99: 09:30:00
A100: Fin Mars-Avril - prem. semaine | B100: 31 | C100: 2019-04-03 | D100: 0 | E100: =IF(OR(D100=0,D100=D99),"",IF(OR(D100<>"",D100<>D101),MAX($E$1:E99)+1,0)) ->  | F100: =IF(AND(D100<>0,D100<>D101),MAX($F$1:F99)+1,"") ->  | G100: 07:30:00
A101: Fin Mars-Avril - prem. semaine | B101: 32 | C101: 2019-04-04 | D101: 0 | E101: =IF(OR(D101=0,D101=D100),"",IF(OR(D101<>"",D101<>D102),MAX($E$1:E100)+1,0)) ->  | F101: =IF(AND(D101<>0,D101<>D102),MAX($F$1:F100)+1,"") ->  | G101: 03:00:00
A102: Fin Mars-Avril - prem. semaine | B102: 33 | C102: 2019-04-05 | D102: 0 | E102: =IF(OR(D102=0,D102=D101),"",IF(OR(D102<>"",D102<>D103),MAX($E$1:E101)+1,0)) ->  | F102: =IF(AND(D102<>0,D102<>D103),MAX($F$1:F101)+1,"") ->  | G102: 07:00:00
A103: Fin Mars-Avril - prem. semaine | B103: 34 | C103: 2019-04-06 | D103: 0 | E103: =IF(OR(D103=0,D103=D102),"",IF(OR(D103<>"",D103<>D104),MAX($E$1:E102)+1,0)) ->  | F103: =IF(AND(D103<>0,D103<>D104),MAX($F$1:F102)+1,"") ->  | G103: 00:00:00
A104: Fin Mars-Avril - prem. semaine | B104: 35 | C104: 2019-04-07 | D104: 0 | E104: =IF(OR(D104=0,D104=D103),"",IF(OR(D104<>"",D104<>D105),MAX($E$1:E103)+1,0)) ->  | F104: =IF(AND(D104<>0,D104<>D105),MAX($F$1:F103)+1,"") ->  | G104: 03:00:00
A105: Avril - 2e-3e semaine | B105: 16 | C105: 2019-04-08 | D105: 0 | E105: =IF(OR(D105=0,D105=D104),"",IF(OR(D105<>"",D105<>D106),MAX($E$1:E104)+1,0)) ->  | F105: =IF(AND(D105<>0,D105<>D106),MAX($F$1:F104)+1,"") ->  | G105: 07:30:00
A106: Avril - 2e-3e semaine | B106: 17 | C106: 2019-04-09 | D106: 0 | E106: =IF(OR(D106=0,D106=D105),"",IF(OR(D106<>"",D106<>D107),MAX($E$1:E105)+1,0)) ->  | F106: =IF(AND(D106<>0,D106<>D107),MAX($F$1:F105)+1,"") ->  | G106: 09:30:00
A107: Avril - 2e-3e semaine | B107: 18 | C107: 2019-04-10 | D107: 0 | E107: =IF(OR(D107=0,D107=D106),"",IF(OR(D107<>"",D107<>D108),MAX($E$1:E106)+1,0)) ->  | F107: =IF(AND(D107<>0,D107<>D108),MAX($F$1:F106)+1,"") ->  | G107: 07:30:00
A108: Avril - 2e-3e semaine | B108: 19 | C108: 2019-04-11 | D108: 0 | E108: =IF(OR(D108=0,D108=D107),"",IF(OR(D108<>"",D108<>D109),MAX($E$1:E107)+1,0)) ->  | F108: =IF(AND(D108<>0,D108<>D109),MAX($F$1:F107)+1,"") ->  | G108: 03:00:00
A109: Avril - 2e-3e semaine | B109: 20 | C109: 2019-04-12 | D109: 0 | E109: =IF(OR(D109=0,D109=D108),"",IF(OR(D109<>"",D109<>D110),MAX($E$1:E108)+1,0)) ->  | F109: =IF(AND(D109<>0,D109<>D110),MAX($F$1:F108)+1,"") ->  | G109: 07:00:00
A110: Avril - 2e-3e semaine | B110: 21 | C110: 2019-04-13 | D110: 0 | E110: =IF(OR(D110=0,D110=D109),"",IF(OR(D110<>"",D110<>D111),MAX($E$1:E109)+1,0)) ->  | F110: =IF(AND(D110<>0,D110<>D111),MAX($F$1:F109)+1,"") ->  | G110: =INDIRECT(ADDRESS($B110,8,,,$A110)) -> 00:00:00
A111: Avril - 2e-3e semaine | B111: 22 | C111: 2019-04-14 | D111: 0 | E111: =IF(OR(D111=0,D111=D110),"",IF(OR(D111<>"",D111<>D112),MAX($E$1:E110)+1,0)) ->  | F111: =IF(AND(D111<>0,D111<>D112),MAX($F$1:F110)+1,"") ->  | G111: 03:00:00
A112: Avril - 2e-3e semaine | B112: 29 | C112: 2019-04-15 | D112: 0 | E112: =IF(OR(D112=0,D112=D111),"",IF(OR(D112<>"",D112<>D113),MAX($E$1:E111)+1,0)) ->  | F112: =IF(AND(D112<>0,D112<>D113),MAX($F$1:F111)+1,"") ->  | G112: 07:30:00
A113: Avril - 2e-3e semaine | B113: 30 | C113: 2019-04-16 | D113: 0 | E113: =IF(OR(D113=0,D113=D112),"",IF(OR(D113<>"",D113<>D114),MAX($E$1:E112)+1,0)) ->  | F113: =IF(AND(D113<>0,D113<>D114),MAX($F$1:F112)+1,"") ->  | G113: 09:30:00
A114: Avril - 2e-3e semaine | B114: 31 | C114: 2019-04-17 | D114: 0 | E114: =IF(OR(D114=0,D114=D113),"",IF(OR(D114<>"",D114<>D115),MAX($E$1:E113)+1,0)) ->  | F114: =IF(AND(D114<>0,D114<>D115),MAX($F$1:F113)+1,"") ->  | G114: 07:30:00
A115: Avril - 2e-3e semaine | B115: 32 | C115: 2019-04-18 | D115: 0 | E115: =IF(OR(D115=0,D115=D114),"",IF(OR(D115<>"",D115<>D116),MAX($E$1:E114)+1,0)) ->  | F115: =IF(AND(D115<>0,D115<>D116),MAX($F$1:F114)+1,"") ->  | G115: 03:00:00
A116: Avril - 2e-3e semaine | B116: 33 | C116: 2019-04-19 | D116: 0 | E116: =IF(OR(D116=0,D116=D115),"",IF(OR(D116<>"",D116<>D117),MAX($E$1:E115)+1,0)) ->  | F116: =IF(AND(D116<>0,D116<>D117),MAX($F$1:F115)+1,"") ->  | G116: 07:53:41.053
A117: Avril - 2e-3e semaine | B117: 34 | C117: 2019-04-20 | D117: 0 | E117: =IF(OR(D117=0,D117=D116),"",IF(OR(D117<>"",D117<>D118),MAX($E$1:E116)+1,0)) ->  | F117: =IF(AND(D117<>0,D117<>D118),MAX($F$1:F116)+1,"") ->  | G117: 00:00:00
A118: Avril - 2e-3e semaine | B118: 35 | C118: 2019-04-21 | D118: 0 | E118: =IF(OR(D118=0,D118=D117),"",IF(OR(D118<>"",D118<>D119),MAX($E$1:E117)+1,0)) ->  | F118: =IF(AND(D118<>0,D118<>D119),MAX($F$1:F117)+1,"") ->  | G118: 00:00:00
A119: Fin Avril-Mai - prem. semaine | B119: 16 | C119: 2019-04-22 | D119: 0 | E119: =IF(OR(D119=0,D119=D118),"",IF(OR(D119<>"",D119<>D120),MAX($E$1:E118)+1,0)) ->  | F119: =IF(AND(D119<>0,D119<>D120),MAX($F$1:F118)+1,"") ->  | G119: 00:00:00
A120: Fin Avril-Mai - prem. semaine | B120: 17 | C120: 2019-04-23 | D120: 0 | E120: =IF(OR(D120=0,D120=D119),"",IF(OR(D120<>"",D120<>D121),MAX($E$1:E119)+1,0)) ->  | F120: =IF(AND(D120<>0,D120<>D121),MAX($F$1:F119)+1,"") ->  | G120: 00:00:00
A121: Fin Avril-Mai - prem. semaine | B121: 18 | C121: 2019-04-24 | D121: 0 | E121: =IF(OR(D121=0,D121=D120),"",IF(OR(D121<>"",D121<>D122),MAX($E$1:E120)+1,0)) ->  | F121: =IF(AND(D121<>0,D121<>D122),MAX($F$1:F120)+1,"") ->  | G121: 00:00:00
A122: Fin Avril-Mai - prem. semaine | B122: 19 | C122: 2019-04-25 | D122: 0 | E122: =IF(OR(D122=0,D122=D121),"",IF(OR(D122<>"",D122<>D123),MAX($E$1:E121)+1,0)) ->  | F122: =IF(AND(D122<>0,D122<>D123),MAX($F$1:F121)+1,"") ->  | G122: 00:00:00
A123: Fin Avril-Mai - prem. semaine | B123: 20 | C123: 2019-04-26 | D123: 0 | E123: =IF(OR(D123=0,D123=D122),"",IF(OR(D123<>"",D123<>D124),MAX($E$1:E122)+1,0)) ->  | F123: =IF(AND(D123<>0,D123<>D124),MAX($F$1:F122)+1,"") ->  | G123: 00:00:00
A124: Fin Avril-Mai - prem. semaine | B124: 21 | C124: 2019-04-27 | D124: 0 | E124: =IF(OR(D124=0,D124=D123),"",IF(OR(D124<>"",D124<>D125),MAX($E$1:E123)+1,0)) ->  | F124: =IF(AND(D124<>0,D124<>D125),MAX($F$1:F123)+1,"") ->  | G124: 00:00:00
A125: Fin Avril-Mai - prem. semaine | B125: 22 | C125: 2019-04-28 | D125: 0 | E125: =IF(OR(D125=0,D125=D124),"",IF(OR(D125<>"",D125<>D126),MAX($E$1:E124)+1,0)) ->  | F125: =IF(AND(D125<>0,D125<>D126),MAX($F$1:F124)+1,"") ->  | G125: 00:00:00
A126: Fin Avril-Mai - prem. semaine | B126: 29 | C126: 2019-04-29 | D126: 0 | E126: =IF(OR(D126=0,D126=D125),"",IF(OR(D126<>"",D126<>D127),MAX($E$1:E125)+1,0)) ->  | F126: =IF(AND(D126<>0,D126<>D127),MAX($F$1:F125)+1,"") ->  | G126: 00:00:00
A127: Fin Avril-Mai - prem. semaine | B127: 30 | C127: 2019-04-30 | D127: 0 | E127: =IF(OR(D127=0,D127=D126),"",IF(OR(D127<>"",D127<>D128),MAX($E$1:E126)+1,0)) ->  | F127: =IF(AND(D127<>0,D127<>D128),MAX($F$1:F126)+1,"") ->  | G127: 00:00:00
A128: Fin Avril-Mai - prem. semaine | B128: 31 | C128: 2019-05-01 | D128: 0 | E128: =IF(OR(D128=0,D128=D127),"",IF(OR(D128<>"",D128<>D129),MAX($E$1:E127)+1,0)) ->  | F128: =IF(AND(D128<>0,D128<>D129),MAX($F$1:F127)+1,"") ->  | G128: 00:00:00
A129: Fin Avril-Mai - prem. semaine | B129: 32 | C129: 2019-05-02 | D129: 0 | E129: =IF(OR(D129=0,D129=D128),"",IF(OR(D129<>"",D129<>D130),MAX($E$1:E128)+1,0)) ->  | F129: =IF(AND(D129<>0,D129<>D130),MAX($F$1:F128)+1,"") ->  | G129: 00:00:00
A130: Fin Avril-Mai - prem. semaine | B130: 33 | C130: 2019-05-03 | D130: 0 | E130: =IF(OR(D130=0,D130=D129),"",IF(OR(D130<>"",D130<>D131),MAX($E$1:E129)+1,0)) ->  | F130: =IF(AND(D130<>0,D130<>D131),MAX($F$1:F129)+1,"") ->  | G130: 00:00:00
A131: Fin Avril-Mai - prem. semaine | B131: 34 | C131: =INDIRECT(ADDRESS(B131,1,,,A131)) -> 2019-05-04 | D131: 0 | E131: =IF(OR(D131=0,D131=D130),"",IF(OR(D131<>"",D131<>D132),MAX($E$1:E130)+1,0)) ->  | F131: =IF(AND(D131<>0,D131<>D132),MAX($F$1:F130)+1,"") ->  | G131: =INDIRECT(ADDRESS($B131,8,,,$A131)) -> 00:00:00
A132: Fin Avril-Mai - prem. semaine | B132: 35 | C132: 2019-05-05 | D132: 0 | E132: =IF(OR(D132=0,D132=D131),"",IF(OR(D132<>"",D132<>D133),MAX($E$1:E131)+1,0)) ->  | F132: =IF(AND(D132<>0,D132<>D133),MAX($F$1:F131)+1,"") ->  | G132: 00:00:00
A133: Mai - 2e-3e semaine | B133: 16 | C133: 2019-05-06 | D133: 0 | E133: =IF(OR(D133=0,D133=D132),"",IF(OR(D133<>"",D133<>D134),MAX($E$1:E132)+1,0)) ->  | F133: =IF(AND(D133<>0,D133<>D134),MAX($F$1:F132)+1,"") ->  | G133: 00:00:00
A134: Mai - 2e-3e semaine | B134: 17 | C134: 2019-05-07 | D134: 0 | E134: =IF(OR(D134=0,D134=D133),"",IF(OR(D134<>"",D134<>D135),MAX($E$1:E133)+1,0)) ->  | F134: =IF(AND(D134<>0,D134<>D135),MAX($F$1:F133)+1,"") ->  | G134: 00:00:00
A135: Mai - 2e-3e semaine | B135: 18 | C135: 2019-05-08 | D135: 0 | E135: =IF(OR(D135=0,D135=D134),"",IF(OR(D135<>"",D135<>D136),MAX($E$1:E134)+1,0)) ->  | F135: =IF(AND(D135<>0,D135<>D136),MAX($F$1:F134)+1,"") ->  | G135: 00:00:00
A136: Mai - 2e-3e semaine | B136: 19 | C136: 2019-05-09 | D136: 0 | E136: =IF(OR(D136=0,D136=D135),"",IF(OR(D136<>"",D136<>D137),MAX($E$1:E135)+1,0)) ->  | F136: =IF(AND(D136<>0,D136<>D137),MAX($F$1:F135)+1,"") ->  | G136: 00:00:00
A137: Mai - 2e-3e semaine | B137: 20 | C137: 2019-05-10 | D137: 0 | E137: =IF(OR(D137=0,D137=D136),"",IF(OR(D137<>"",D137<>D138),MAX($E$1:E136)+1,0)) ->  | F137: =IF(AND(D137<>0,D137<>D138),MAX($F$1:F136)+1,"") ->  | G137: 00:00:00
A138: Mai - 2e-3e semaine | B138: 21 | C138: 2019-05-11 | D138: 0 | E138: =IF(OR(D138=0,D138=D137),"",IF(OR(D138<>"",D138<>D139),MAX($E$1:E137)+1,0)) ->  | F138: =IF(AND(D138<>0,D138<>D139),MAX($F$1:F137)+1,"") ->  | G138: 00:00:00
A139: Mai - 2e-3e semaine | B139: 22 | C139: 2019-05-12 | D139: =INDIRECT(ADDRESS($B139,9,,,$A139)) -> 0 | E139: =IF(OR(D139=0,D139=D138),"",IF(OR(D139<>"",D139<>D140),MAX($E$1:E138)+1,0)) ->  | F139: =IF(AND(D139<>0,D139<>D140),MAX($F$1:F138)+1,"") ->  | G139: 00:00:00
A140: Mai - 2e-3e semaine | B140: 29 | C140: 2019-05-13 | D140: 0 | E140: =IF(OR(D140=0,D140=D139),"",IF(OR(D140<>"",D140<>D141),MAX($E$1:E139)+1,0)) ->  | F140: =IF(AND(D140<>0,D140<>D141),MAX($F$1:F139)+1,"") ->  | G140: 00:00:00
A141: Mai - 2e-3e semaine | B141: 30 | C141: 2019-05-14 | D141: 0 | E141: =IF(OR(D141=0,D141=D140),"",IF(OR(D141<>"",D141<>D142),MAX($E$1:E140)+1,0)) ->  | F141: =IF(AND(D141<>0,D141<>D142),MAX($F$1:F140)+1,"") ->  | G141: 00:00:00
A142: Mai - 2e-3e semaine | B142: 31 | C142: 2019-05-15 | D142: 0 | E142: =IF(OR(D142=0,D142=D141),"",IF(OR(D142<>"",D142<>D143),MAX($E$1:E141)+1,0)) ->  | F142: =IF(AND(D142<>0,D142<>D143),MAX($F$1:F141)+1,"") ->  | G142: 00:00:00
A143: Mai - 2e-3e semaine | B143: 32 | C143: 2019-05-16 | D143: 0 | E143: =IF(OR(D143=0,D143=D142),"",IF(OR(D143<>"",D143<>D144),MAX($E$1:E142)+1,0)) ->  | F143: =IF(AND(D143<>0,D143<>D144),MAX($F$1:F142)+1,"") ->  | G143: 00:00:00
A144: Mai - 2e-3e semaine | B144: 33 | C144: 2019-05-17 | D144: 0 | E144: =IF(OR(D144=0,D144=D143),"",IF(OR(D144<>"",D144<>D145),MAX($E$1:E143)+1,0)) ->  | F144: =IF(AND(D144<>0,D144<>D145),MAX($F$1:F143)+1,"") ->  | G144: 00:00:00
A145: Mai - 2e-3e semaine | B145: 34 | C145: 2019-05-18 | D145: 0 | E145: =IF(OR(D145=0,D145=D144),"",IF(OR(D145<>"",D145<>D146),MAX($E$1:E144)+1,0)) ->  | F145: =IF(AND(D145<>0,D145<>D146),MAX($F$1:F144)+1,"") ->  | G145: 00:00:00
A146: Mai - 2e-3e semaine | B146: 35 | C146: 2019-05-19 | D146: 0 | E146: =IF(OR(D146=0,D146=D145),"",IF(OR(D146<>"",D146<>D147),MAX($E$1:E145)+1,0)) ->  | F146: =IF(AND(D146<>0,D146<>D147),MAX($F$1:F145)+1,"") ->  | G146: 00:00:00
A147: Fin Mai-Début juin semaine 1 | B147: 16 | C147: 2019-05-20 | D147: 0 | E147: =IF(OR(D147=0,D147=D146),"",IF(OR(D147<>"",D147<>D148),MAX($E$1:E146)+1,0)) ->  | F147: =IF(AND(D147<>0,D147<>D148),MAX($F$1:F146)+1,"") ->  | G147: 00:00:00
A148: Fin Mai-Début juin semaine 1 | B148: 17 | C148: 2019-05-21 | D148: 0 | E148: =IF(OR(D148=0,D148=D147),"",IF(OR(D148<>"",D148<>D149),MAX($E$1:E147)+1,0)) ->  | F148: =IF(AND(D148<>0,D148<>D149),MAX($F$1:F147)+1,"") ->  | G148: 00:00:00
A149: Fin Mai-Début juin semaine 1 | B149: 18 | C149: 2019-05-22 | D149: 0 | E149: =IF(OR(D149=0,D149=D148),"",IF(OR(D149<>"",D149<>D150),MAX($E$1:E148)+1,0)) ->  | F149: =IF(AND(D149<>0,D149<>D150),MAX($F$1:F148)+1,"") ->  | G149: 00:00:00
A150: Fin Mai-Début juin semaine 1 | B150: 19 | C150: 2019-05-23 | D150: 0 | E150: =IF(OR(D150=0,D150=D149),"",IF(OR(D150<>"",D150<>D151),MAX($E$1:E149)+1,0)) ->  | F150: =IF(AND(D150<>0,D150<>D151),MAX($F$1:F149)+1,"") ->  | G150: 00:00:00
A151: Fin Mai-Début juin semaine 1 | B151: 20 | C151: 2019-05-24 | D151: 0 | E151: =IF(OR(D151=0,D151=D150),"",IF(OR(D151<>"",D151<>D152),MAX($E$1:E150)+1,0)) ->  | F151: =IF(AND(D151<>0,D151<>D152),MAX($F$1:F150)+1,"") ->  | G151: 00:00:00
A152: Fin Mai-Début juin semaine 1 | B152: 21 | C152: 2019-05-25 | D152: 0 | E152: =IF(OR(D152=0,D152=D151),"",IF(OR(D152<>"",D152<>D153),MAX($E$1:E151)+1,0)) ->  | F152: =IF(AND(D152<>0,D152<>D153),MAX($F$1:F151)+1,"") ->  | G152: 00:00:00
A153: Fin Mai-Début juin semaine 1 | B153: 22 | C153: 2019-05-26 | D153: 0 | E153: =IF(OR(D153=0,D153=D152),"",IF(OR(D153<>"",D153<>D154),MAX($E$1:E152)+1,0)) ->  | F153: =IF(AND(D153<>0,D153<>D154),MAX($F$1:F152)+1,"") ->  | G153: 00:00:00
A154: Fin Mai-Début juin semaine 1 | B154: 29 | C154: 2019-05-27 | D154: 0 | E154: =IF(OR(D154=0,D154=D153),"",IF(OR(D154<>"",D154<>D155),MAX($E$1:E153)+1,0)) ->  | F154: =IF(AND(D154<>0,D154<>D155),MAX($F$1:F153)+1,"") ->  | G154: 00:00:00
A155: Fin Mai-Début juin semaine 1 | B155: 30 | C155: 2019-05-28 | D155: 0 | E155: =IF(OR(D155=0,D155=D154),"",IF(OR(D155<>"",D155<>D156),MAX($E$1:E154)+1,0)) ->  | F155: =IF(AND(D155<>0,D155<>D156),MAX($F$1:F154)+1,"") ->  | G155: 00:00:00
A156: Fin Mai-Début juin semaine 1 | B156: 31 | C156: 2019-05-29 | D156: 0 | E156: =IF(OR(D156=0,D156=D155),"",IF(OR(D156<>"",D156<>D157),MAX($E$1:E155)+1,0)) ->  | F156: =IF(AND(D156<>0,D156<>D157),MAX($F$1:F155)+1,"") ->  | G156: 00:00:00
A157: Fin Mai-Début juin semaine 1 | B157: 32 | C157: 2019-05-30 | D157: 0 | E157: =IF(OR(D157=0,D157=D156),"",IF(OR(D157<>"",D157<>D158),MAX($E$1:E156)+1,0)) ->  | F157: =IF(AND(D157<>0,D157<>D158),MAX($F$1:F156)+1,"") ->  | G157: 00:00:00
A158: Fin Mai-Début juin semaine 1 | B158: 33 | C158: 2019-05-31 | D158: 0 | E158: =IF(OR(D158=0,D158=D157),"",IF(OR(D158<>"",D158<>D159),MAX($E$1:E157)+1,0)) ->  | F158: =IF(AND(D158<>0,D158<>D159),MAX($F$1:F157)+1,"") ->  | G158: 00:00:00
A159: Fin Mai-Début juin semaine 1 | B159: 34 | C159: 2019-06-01 | D159: 0 | E159: =IF(OR(D159=0,D159=D158),"",IF(OR(D159<>"",D159<>D160),MAX($E$1:E158)+1,0)) ->  | F159: =IF(AND(D159<>0,D159<>D160),MAX($F$1:F158)+1,"") ->  | G159: 00:00:00
A160: Fin Mai-Début juin semaine 1 | B160: 35 | C160: 2019-06-02 | D160: 0 | E160: =IF(OR(D160=0,D160=D159),"",IF(OR(D160<>"",D160<>D161),MAX($E$1:E159)+1,0)) ->  | F160: =IF(AND(D160<>0,D160<>D161),MAX($F$1:F159)+1,"") ->  | G160: 00:00:00
A161: Juin 2e-3e semaine | B161: 16 | C161: 2019-06-03 | D161: 0 | E161: =IF(OR(D161=0,D161=D160),"",IF(OR(D161<>"",D161<>D162),MAX($E$1:E160)+1,0)) ->  | F161: =IF(AND(D161<>0,D161<>D162),MAX($F$1:F160)+1,"") ->  | G161: 00:00:00
A162: Juin 2e-3e semaine | B162: 17 | C162: 2019-06-04 | D162: 0 | E162: =IF(OR(D162=0,D162=D161),"",IF(OR(D162<>"",D162<>D163),MAX($E$1:E161)+1,0)) ->  | F162: =IF(AND(D162<>0,D162<>D163),MAX($F$1:F161)+1,"") ->  | G162: 00:00:00
A163: Juin 2e-3e semaine | B163: 18 | C163: 2019-06-05 | D163: 0 | E163: =IF(OR(D163=0,D163=D162),"",IF(OR(D163<>"",D163<>D164),MAX($E$1:E162)+1,0)) ->  | F163: =IF(AND(D163<>0,D163<>D164),MAX($F$1:F162)+1,"") ->  | G163: 00:00:00
A164: Juin 2e-3e semaine | B164: 19 | C164: 2019-06-06 | D164: 0 | E164: =IF(OR(D164=0,D164=D163),"",IF(OR(D164<>"",D164<>D165),MAX($E$1:E163)+1,0)) ->  | F164: =IF(AND(D164<>0,D164<>D165),MAX($F$1:F163)+1,"") ->  | G164: 00:00:00
A165: Juin 2e-3e semaine | B165: 20 | C165: 2019-06-07 | D165: 0 | E165: =IF(OR(D165=0,D165=D164),"",IF(OR(D165<>"",D165<>D166),MAX($E$1:E164)+1,0)) ->  | F165: =IF(AND(D165<>0,D165<>D166),MAX($F$1:F164)+1,"") ->  | G165: 00:00:00
A166: Juin 2e-3e semaine | B166: 21 | C166: 2019-06-08 | D166: 0 | E166: =IF(OR(D166=0,D166=D165),"",IF(OR(D166<>"",D166<>D167),MAX($E$1:E165)+1,0)) ->  | F166: =IF(AND(D166<>0,D166<>D167),MAX($F$1:F165)+1,"") ->  | G166: 00:00:00
A167: Juin 2e-3e semaine | B167: 22 | C167: 2019-06-09 | D167: 0 | E167: =IF(OR(D167=0,D167=D166),"",IF(OR(D167<>"",D167<>D168),MAX($E$1:E166)+1,0)) ->  | F167: =IF(AND(D167<>0,D167<>D168),MAX($F$1:F166)+1,"") ->  | G167: 00:00:00
A168: Juin 2e-3e semaine | B168: 29 | C168: =INDIRECT(ADDRESS(B168,1,,,A168)) -> 2019-06-10 | D168: 0 | E168: =IF(OR(D168=0,D168=D167),"",IF(OR(D168<>"",D168<>D169),MAX($E$1:E167)+1,0)) ->  | F168: =IF(AND(D168<>0,D168<>D169),MAX($F$1:F167)+1,"") ->  | G168: 00:00:00
A169: Juin 2e-3e semaine | B169: 30 | C169: 2019-06-11 | D169: 0 | E169: =IF(OR(D169=0,D169=D168),"",IF(OR(D169<>"",D169<>D170),MAX($E$1:E168)+1,0)) ->  | F169: =IF(AND(D169<>0,D169<>D170),MAX($F$1:F168)+1,"") ->  | G169: 00:00:00
A170: Juin 2e-3e semaine | B170: 31 | C170: 2019-06-12 | D170: 0 | E170: =IF(OR(D170=0,D170=D169),"",IF(OR(D170<>"",D170<>D171),MAX($E$1:E169)+1,0)) ->  | F170: =IF(AND(D170<>0,D170<>D171),MAX($F$1:F169)+1,"") ->  | G170: 00:00:00
A171: Juin 2e-3e semaine | B171: 32 | C171: 2019-06-13 | D171: 0 | E171: =IF(OR(D171=0,D171=D170),"",IF(OR(D171<>"",D171<>D172),MAX($E$1:E170)+1,0)) ->  | F171: =IF(AND(D171<>0,D171<>D172),MAX($F$1:F170)+1,"") ->  | G171: 00:00:00
A172: Juin 2e-3e semaine | B172: 33 | C172: 2019-06-14 | D172: 0 | E172: =IF(OR(D172=0,D172=D171),"",IF(OR(D172<>"",D172<>D173),MAX($E$1:E171)+1,0)) ->  | F172: =IF(AND(D172<>0,D172<>D173),MAX($F$1:F171)+1,"") ->  | G172: 00:00:00
A173: Juin 2e-3e semaine | B173: 34 | C173: 2019-06-15 | D173: 0 | E173: =IF(OR(D173=0,D173=D172),"",IF(OR(D173<>"",D173<>D174),MAX($E$1:E172)+1,0)) ->  | F173: =IF(AND(D173<>0,D173<>D174),MAX($F$1:F172)+1,"") ->  | G173: 00:00:00
A174: Juin 2e-3e semaine | B174: 35 | C174: 2019-06-16 | D174: 0 | E174: =IF(OR(D174=0,D174=D173),"",IF(OR(D174<>"",D174<>D175),MAX($E$1:E173)+1,0)) ->  | F174: =IF(AND(D174<>0,D174<>D175),MAX($F$1:F173)+1,"") ->  | G174: 00:00:00
A175: Juin 4e-5e semaine-Juillet déb. | B175: 16 | C175: 2019-06-17 | D175: 0 | E175: =IF(OR(D175=0,D175=D174),"",IF(OR(D175<>"",D175<>D176),MAX($E$1:E174)+1,0)) ->  | F175: =IF(AND(D175<>0,D175<>D176),MAX($F$1:F174)+1,"") ->  | G175: 00:00:00
A176: Juin 4e-5e semaine-Juillet déb. | B176: 17 | C176: 2019-06-18 | D176: 0 | E176: =IF(OR(D176=0,D176=D175),"",IF(OR(D176<>"",D176<>D177),MAX($E$1:E175)+1,0)) ->  | F176: =IF(AND(D176<>0,D176<>D177),MAX($F$1:F175)+1,"") ->  | G176: 00:00:00
A177: Juin 4e-5e semaine-Juillet déb. | B177: 18 | C177: 2019-06-19 | D177: 0 | E177: =IF(OR(D177=0,D177=D176),"",IF(OR(D177<>"",D177<>D178),MAX($E$1:E176)+1,0)) ->  | F177: =IF(AND(D177<>0,D177<>D178),MAX($F$1:F176)+1,"") ->  | G177: 00:00:00
A178: Juin 4e-5e semaine-Juillet déb. | B178: 19 | C178: 2019-06-20 | D178: 0 | E178: =IF(OR(D178=0,D178=D177),"",IF(OR(D178<>"",D178<>D179),MAX($E$1:E177)+1,0)) ->  | F178: =IF(AND(D178<>0,D178<>D179),MAX($F$1:F177)+1,"") ->  | G178: 00:00:00
A179: Juin 4e-5e semaine-Juillet déb. | B179: 20 | C179: 2019-06-21 | D179: 0 | E179: =IF(OR(D179=0,D179=D178),"",IF(OR(D179<>"",D179<>D180),MAX($E$1:E178)+1,0)) ->  | F179: =IF(AND(D179<>0,D179<>D180),MAX($F$1:F178)+1,"") ->  | G179: 00:00:00
A180: Juin 4e-5e semaine-Juillet déb. | B180: 21 | C180: 2019-06-22 | D180: 0 | E180: =IF(OR(D180=0,D180=D179),"",IF(OR(D180<>"",D180<>D181),MAX($E$1:E179)+1,0)) ->  | F180: =IF(AND(D180<>0,D180<>D181),MAX($F$1:F179)+1,"") ->  | G180: 00:00:00
A181: Juin 4e-5e semaine-Juillet déb. | B181: 22 | C181: 2019-06-23 | D181: 0 | E181: =IF(OR(D181=0,D181=D180),"",IF(OR(D181<>"",D181<>D182),MAX($E$1:E180)+1,0)) ->  | F181: =IF(AND(D181<>0,D181<>D182),MAX($F$1:F180)+1,"") ->  | G181: 00:00:00
A182: Juin 4e-5e semaine-Juillet déb. | B182: 29 | C182: 2019-06-24 | D182: 0 | E182: =IF(OR(D182=0,D182=D181),"",IF(OR(D182<>"",D182<>D183),MAX($E$1:E181)+1,0)) ->  | F182: =IF(AND(D182<>0,D182<>D183),MAX($F$1:F181)+1,"") ->  | G182: 00:00:00
A183: Juin 4e-5e semaine-Juillet déb. | B183: 30 | C183: 2019-06-25 | D183: 0 | E183: =IF(OR(D183=0,D183=D182),"",IF(OR(D183<>"",D183<>D184),MAX($E$1:E182)+1,0)) ->  | F183: =IF(AND(D183<>0,D183<>D184),MAX($F$1:F182)+1,"") ->  | G183: 00:00:00
A184: Juin 4e-5e semaine-Juillet déb. | B184: 31 | C184: 2019-06-26 | D184: 0 | E184: =IF(OR(D184=0,D184=D183),"",IF(OR(D184<>"",D184<>D185),MAX($E$1:E183)+1,0)) ->  | F184: =IF(AND(D184<>0,D184<>D185),MAX($F$1:F183)+1,"") ->  | G184: 00:00:00
A185: Juin 4e-5e semaine-Juillet déb. | B185: 32 | C185: 2019-06-27 | D185: 0 | E185: =IF(OR(D185=0,D185=D184),"",IF(OR(D185<>"",D185<>D186),MAX($E$1:E184)+1,0)) ->  | F185: =IF(AND(D185<>0,D185<>D186),MAX($F$1:F184)+1,"") ->  | G185: 00:00:00
A186: Juin 4e-5e semaine-Juillet déb. | B186: 33 | C186: 2019-06-28 | D186: 0 | E186: =IF(OR(D186=0,D186=D185),"",IF(OR(D186<>"",D186<>D187),MAX($E$1:E185)+1,0)) ->  | F186: =IF(AND(D186<>0,D186<>D187),MAX($F$1:F185)+1,"") ->  | G186: 00:00:00
A187: Juin 4e-5e semaine-Juillet déb. | B187: 34 | C187: 2019-06-29 | D187: 0 | E187: =IF(OR(D187=0,D187=D186),"",IF(OR(D187<>"",D187<>D188),MAX($E$1:E186)+1,0)) ->  | F187: =IF(AND(D187<>0,D187<>D188),MAX($F$1:F186)+1,"") ->  | G187: 00:00:00
A188: Juin 4e-5e semaine-Juillet déb. | B188: 35 | C188: 2019-06-30 | D188: 0 | E188: =IF(OR(D188=0,D188=D187),"",IF(OR(D188<>"",D188<>D189),MAX($E$1:E187)+1,0)) ->  | F188: =IF(AND(D188<>0,D188<>D189),MAX($F$1:F187)+1,"") ->  | G188: 00:00:00
A189: Juillet-2prem. semaines | B189: 16 | C189: 2019-07-01 | D189: 0 | E189: =IF(OR(D189=0,D189=D188),"",IF(OR(D189<>"",D189<>D190),MAX($E$1:E188)+1,0)) ->  | F189: =IF(AND(D189<>0,D189<>D190),MAX($F$1:F188)+1,"") ->  | G189: 00:00:00
A190: Juillet-2prem. semaines | B190: 17 | C190: 2019-07-02 | D190: 0 | E190: =IF(OR(D190=0,D190=D189),"",IF(OR(D190<>"",D190<>D191),MAX($E$1:E189)+1,0)) ->  | F190: =IF(AND(D190<>0,D190<>D191),MAX($F$1:F189)+1,"") ->  | G190: 00:00:00
A191: Juillet-2prem. semaines | B191: 18 | C191: 2019-07-03 | D191: 0 | E191: =IF(OR(D191=0,D191=D190),"",IF(OR(D191<>"",D191<>D192),MAX($E$1:E190)+1,0)) ->  | F191: =IF(AND(D191<>0,D191<>D192),MAX($F$1:F190)+1,"") ->  | G191: 00:00:00
A192: Juillet-2prem. semaines | B192: 19 | C192: 2019-07-04 | D192: 0 | E192: =IF(OR(D192=0,D192=D191),"",IF(OR(D192<>"",D192<>D193),MAX($E$1:E191)+1,0)) ->  | F192: =IF(AND(D192<>0,D192<>D193),MAX($F$1:F191)+1,"") ->  | G192: 00:00:00
A193: Juillet-2prem. semaines | B193: 20 | C193: 2019-07-05 | D193: 0 | E193: =IF(OR(D193=0,D193=D192),"",IF(OR(D193<>"",D193<>D194),MAX($E$1:E192)+1,0)) ->  | F193: =IF(AND(D193<>0,D193<>D194),MAX($F$1:F192)+1,"") ->  | G193: 00:00:00
A194: Juillet-2prem. semaines | B194: 21 | C194: 2019-07-06 | D194: 0 | E194: =IF(OR(D194=0,D194=D193),"",IF(OR(D194<>"",D194<>D195),MAX($E$1:E193)+1,0)) ->  | F194: =IF(AND(D194<>0,D194<>D195),MAX($F$1:F193)+1,"") ->  | G194: 00:00:00
A195: Juillet-2prem. semaines | B195: 22 | C195: 2019-07-07 | D195: 0 | E195: =IF(OR(D195=0,D195=D194),"",IF(OR(D195<>"",D195<>D196),MAX($E$1:E194)+1,0)) ->  | F195: =IF(AND(D195<>0,D195<>D196),MAX($F$1:F194)+1,"") ->  | G195: =INDIRECT(ADDRESS($B195,8,,,$A195)) -> 00:00:00
A196: Juillet-2prem. semaines | B196: 29 | C196: 2019-07-08 | D196: 0 | E196: =IF(OR(D196=0,D196=D195),"",IF(OR(D196<>"",D196<>D197),MAX($E$1:E195)+1,0)) ->  | F196: =IF(AND(D196<>0,D196<>D197),MAX($F$1:F195)+1,"") ->  | G196: 00:00:00
A197: Juillet-2prem. semaines | B197: 30 | C197: 2019-07-09 | D197: 0 | E197: =IF(OR(D197=0,D197=D196),"",IF(OR(D197<>"",D197<>D198),MAX($E$1:E196)+1,0)) ->  | F197: =IF(AND(D197<>0,D197<>D198),MAX($F$1:F196)+1,"") ->  | G197: 00:00:00
A198: Juillet-2prem. semaines | B198: 31 | C198: 2019-07-10 | D198: 0 | E198: =IF(OR(D198=0,D198=D197),"",IF(OR(D198<>"",D198<>D199),MAX($E$1:E197)+1,0)) ->  | F198: =IF(AND(D198<>0,D198<>D199),MAX($F$1:F197)+1,"") ->  | G198: 00:00:00
A199: Juillet-2prem. semaines | B199: 32 | C199: 2019-07-11 | D199: 0 | E199: =IF(OR(D199=0,D199=D198),"",IF(OR(D199<>"",D199<>D200),MAX($E$1:E198)+1,0)) ->  | F199: =IF(AND(D199<>0,D199<>D200),MAX($F$1:F198)+1,"") ->  | G199: 00:00:00
A200: Juillet-2prem. semaines | B200: 33 | C200: 2019-07-12 | D200: 0 | E200: =IF(OR(D200=0,D200=D199),"",IF(OR(D200<>"",D200<>D201),MAX($E$1:E199)+1,0)) ->  | F200: =IF(AND(D200<>0,D200<>D201),MAX($F$1:F199)+1,"") ->  | G200: 00:00:00
... 171 more rows

Sheet EDIT journée maladie calcul
A1: feuille | B1: ligne | C1: date | D1: congés | E1: affect début | F1: affect retour | G1: heures | I1: calculs jours fériés
A2: Janvier - 2prem. semaines | B2: 16 | C2: =INDIRECT(ADDRESS($B2,1,,,$A2)) -> 2018-12-31 | D2: =INDIRECT(ADDRESS($B2,9,,,$A2)) -> 0 | E2: =IF(OR(D2=0,D2=D1),"",IF(OR(D2<>"",D2<>D3),MAX($E$1:E1)+1,0)) ->  | F2: =IF(AND(D2<>0,D2<>D3),MAX($F$1:F1)+1,"") ->  | G2: =INDIRECT(ADDRESS($B2,8,,,$A2)) -> 00:00:00 | I2: jour fériés | J2: date début calcul | K2: cumul effectué | L2: quotient | M2: affectation | O2: CONGÉ
A3: Janvier - 2prem. semaines | B3: 17 | C3: =INDIRECT(ADDRESS(B3,1,,,A3)) -> 2019-01-01 | D3: =INDIRECT(ADDRESS($B3,9,,,$A3)) -> 0 | E3: =IF(OR(D3=0,D3=D2),"",IF(OR(D3<>"",D3<>D4),MAX($E$1:E2)+1,0)) ->  | F3: =IF(AND(D3<>0,D3<>D4),MAX($F$1:F2)+1,"") ->  | G3: =INDIRECT(ADDRESS($B3,8,,,$A3)) -> 00:00:00 | I3: =VLOOKUP(O2,'Janvier - 2prem. semaines'!A16:I22,1,FALSE) ->  | J3: =WORKDAY(I3,-20,$I$3:$I$33) ->  | K3: =SUMIFS($G$2:$G$370,$C$2:$C$370,"<="&$I3,$C$2:$C$370,">="&$J3) -> 00:00:00 | L3: =K3/20 -> 00:00:00 | M3: =MIN(8/24,L3) -> 00:00:00 | O3: MALADIE
A4: Janvier - 2prem. semaines | B4: 18 | C4: =INDIRECT(ADDRESS(B4,1,,,A4)) -> 2019-01-02 | D4: 0 | E4: =IF(OR(D4=0,D4=D3),"",IF(OR(D4<>"",D4<>D5),MAX($E$1:E3)+1,0)) ->  | F4: =IF(AND(D4<>0,D4<>D5),MAX($F$1:F3)+1,"") ->  | G4: =INDIRECT(ADDRESS($B4,8,,,$A4)) -> 00:00:00 | I4: ='Janvier - 2prem. semaines'!AF14 -> 2019-04-19 | J4: =WORKDAY(I4,-20,$I$3:$I$33) ->  | K4: =SUMIFS($G$2:$G$370,$C$2:$C$370,"<="&$I4,$C$2:$C$370,">="&$J4) -> 00:00:00 | L4: =K4/20 -> 00:00:00 | M4: =MIN(8/24,L4) -> 00:00:00 | O4: Demi congé
A5: Janvier - 2prem. semaines | B5: 19 | C5: 2019-01-03 | D5: 0 | E5: =IF(OR(D5=0,D5=D4),"",IF(OR(D5<>"",D5<>D6),MAX($E$1:E4)+1,0)) ->  | F5: =IF(AND(D5<>0,D5<>D6),MAX($F$1:F4)+1,"") ->  | G5: 00:00:00 | J5: =WORKDAY(I5,-20,$I$3:$I$33) ->  | K5: 00:00:00 | L5: 00:00:00 | M5: 00:00:00 | O5: Demi maladie
A6: Janvier - 2prem. semaines | B6: 20 | C6: 2019-01-04 | D6: 0 | E6: =IF(OR(D6=0,D6=D5),"",IF(OR(D6<>"",D6<>D7),MAX($E$1:E5)+1,0)) ->  | F6: =IF(AND(D6<>0,D6<>D7),MAX($F$1:F5)+1,"") ->  | G6: 00:00:00 | K6: 00:00:00 | L6: 00:00:00 | M6: 00:00:00
A7: Janvier - 2prem. semaines | B7: 21 | C7: 2019-01-05 | D7: 0 | E7: =IF(OR(D7=0,D7=D6),"",IF(OR(D7<>"",D7<>D8),MAX($E$1:E6)+1,0)) ->  | F7: =IF(AND(D7<>0,D7<>D8),MAX($F$1:F6)+1,"") ->  | G7: 00:00:00 | K7: 00:00:00 | L7: 00:00:00 | M7: 00:00:00
A8: Janvier - 2prem. semaines | B8: 22 | C8: 2019-01-06 | D8: 0 | E8: =IF(OR(D8=0,D8=D7),"",IF(OR(D8<>"",D8<>D9),MAX($E$1:E7)+1,0)) ->  | F8: =IF(AND(D8<>0,D8<>D9),MAX($F$1:F7)+1,"") ->  | G8: 00:00:00 | K8: 00:00:00 | L8: 00:00:00 | M8: 00:00:00
A9: Janvier - 2prem. semaines | B9: 29 | C9: Horaire Semaine 2 | D9: 0 | E9: =IF(OR(D9=0,D9=D8),"",IF(OR(D9<>"",D9<>D10),MAX($E$1:E8)+1,0)) ->  | F9: =IF(AND(D9<>0,D9<>D10),MAX($F$1:F8)+1,"") ->  | G9: 00:00:00 | K9: 00:00:00 | L9: 00:00:00 | M9: 00:00:00
A10: Janvier - 2prem. semaines | B10: 30 | C10: 2019-01-07 | D10: 0 | E10: =IF(OR(D10=0,D10=D9),"",IF(OR(D10<>"",D10<>D11),MAX($E$1:E9)+1,0)) ->  | F10: =IF(AND(D10<>0,D10<>D11),MAX($F$1:F9)+1,"") ->  | G10: 04:00:00 | K10: 00:00:00 | L10: 00:00:00 | M10: 00:00:00
A11: Janvier - 2prem. semaines | B11: 31 | C11: 2019-01-08 | D11: 0 | E11: =IF(OR(D11=0,D11=D10),"",IF(OR(D11<>"",D11<>D12),MAX($E$1:E10)+1,0)) ->  | F11: =IF(AND(D11<>0,D11<>D12),MAX($F$1:F10)+1,"") ->  | G11: 03:00:00 | K11: 00:00:00 | L11: 00:00:00 | M11: 00:00:00
A12: Janvier - 2prem. semaines | B12: 32 | C12: 2019-01-09 | D12: 0 | E12: =IF(OR(D12=0,D12=D11),"",IF(OR(D12<>"",D12<>D13),MAX($E$1:E11)+1,0)) ->  | F12: =IF(AND(D12<>0,D12<>D13),MAX($F$1:F11)+1,"") ->  | G12: 01:30:00 | K12: 00:00:00 | L12: 00:00:00 | M12: 00:00:00
A13: Janvier - 2prem. semaines | B13: 33 | C13: 2019-01-10 | D13: 0 | E13: =IF(OR(D13=0,D13=D12),"",IF(OR(D13<>"",D13<>D14),MAX($E$1:E12)+1,0)) ->  | F13: =IF(AND(D13<>0,D13<>D14),MAX($F$1:F12)+1,"") ->  | G13: =INDIRECT(ADDRESS($B13,8,,,$A13)) -> 00:00:00 | K13: 00:00:00 | L13: 00:00:00 | M13: 00:00:00
A14: Janvier - 2prem. semaines | B14: 34 | C14: 2019-01-11 | D14: 0 | E14: =IF(OR(D14=0,D14=D13),"",IF(OR(D14<>"",D14<>D15),MAX($E$1:E13)+1,0)) ->  | F14: =IF(AND(D14<>0,D14<>D15),MAX($F$1:F13)+1,"") ->  | G14: 00:00:00 | K14: 00:00:00 | L14: 00:00:00 | M14: 00:00:00
A15: Janvier - 2prem. semaines | B15: 35 | C15: 2019-01-12 | D15: 0 | E15: =IF(OR(D15=0,D15=D14),"",IF(OR(D15<>"",D15<>D16),MAX($E$1:E14)+1,0)) ->  | F15: =IF(AND(D15<>0,D15<>D16),MAX($F$1:F14)+1,"") ->  | G15: 00:00:00 | K15: 00:00:00 | L15: 00:00:00 | M15: 00:00:00
A16: Janvier - 2dern. semaines | B16: 16 | C16: 2019-01-14 | D16: 0 | E16: =IF(OR(D16=0,D16=D15),"",IF(OR(D16<>"",D16<>D17),MAX($E$1:E15)+1,0)) ->  | F16: =IF(AND(D16<>0,D16<>D17),MAX($F$1:F15)+1,"") ->  | G16: 00:00:00 | K16: 00:00:00 | L16: 00:00:00 | M16: 00:00:00
A17: Janvier - 2dern. semaines | B17: 17 | C17: 2019-01-15 | D17: 0 | E17: =IF(OR(D17=0,D17=D16),"",IF(OR(D17<>"",D17<>D18),MAX($E$1:E16)+1,0)) ->  | F17: =IF(AND(D17<>0,D17<>D18),MAX($F$1:F16)+1,"") ->  | G17: 00:00:00 | K17: 00:00:00 | L17: 00:00:00 | M17: 00:00:00
A18: Janvier - 2dern. semaines | B18: 18 | C18: 2019-01-16 | D18: 0 | E18: =IF(OR(D18=0,D18=D17),"",IF(OR(D18<>"",D18<>D19),MAX($E$1:E17)+1,0)) ->  | F18: =IF(AND(D18<>0,D18<>D19),MAX($F$1:F17)+1,"") ->  | G18: 00:00:00 | K18: 00:00:00 | L18: 00:00:00 | M18: 00:00:00
A19: Janvier - 2dern. semaines | B19: 19 | C19: 2019-01-17 | D19: 0 | E19: =IF(OR(D19=0,D19=D18),"",IF(OR(D19<>"",D19<>D20),MAX($E$1:E18)+1,0)) ->  | F19: =IF(AND(D19<>0,D19<>D20),MAX($F$1:F18)+1,"") ->  | G19: 00:00:00 | K19: 00:00:00 | L19: 00:00:00 | M19: 00:00:00
A20: Janvier - 2dern. semaines | B20: 20 | C20: 2019-01-18 | D20: 0 | E20: =IF(OR(D20=0,D20=D19),"",IF(OR(D20<>"",D20<>D21),MAX($E$1:E19)+1,0)) ->  | F20: =IF(AND(D20<>0,D20<>D21),MAX($F$1:F19)+1,"") ->  | G20: 00:00:00 | K20: 00:00:00 | L20: 00:00:00 | M20: 00:00:00
A21: Janvier - 2dern. semaines | B21: 21 | C21: 2019-01-19 | D21: 0 | E21: =IF(OR(D21=0,D21=D20),"",IF(OR(D21<>"",D21<>D22),MAX($E$1:E20)+1,0)) ->  | F21: =IF(AND(D21<>0,D21<>D22),MAX($F$1:F20)+1,"") ->  | G21: 00:00:00 | K21: 00:00:00 | L21: 00:00:00 | M21: 00:00:00
A22: Janvier - 2dern. semaines | B22: 22 | C22: 2019-01-20 | D22: 0 | E22: =IF(OR(D22=0,D22=D21),"",IF(OR(D22<>"",D22<>D23),MAX($E$1:E21)+1,0)) ->  | F22: =IF(AND(D22<>0,D22<>D23),MAX($F$1:F21)+1,"") ->  | G22: 00:00:00 | K22: 00:00:00 | L22: 00:00:00 | M22: 00:00:00
A23: Janvier - 2dern. semaines | B23: 29 | C23: 2019-01-21 | D23: 0 | E23: =IF(OR(D23=0,D23=D22),"",IF(OR(D23<>"",D23<>D24),MAX($E$1:E22)+1,0)) ->  | F23: =IF(AND(D23<>0,D23<>D24),MAX($F$1:F22)+1,"") ->  | G23: 07:30:00 | K23: 00:00:00 | L23: 00:00:00 | M23: 00:00:00
A24: Janvier - 2dern. semaines | B24: 30 | C24: 2019-01-22 | D24: 0 | E24: =IF(OR(D24=0,D24=D23),"",IF(OR(D24<>"",D24<>D25),MAX($E$1:E23)+1,0)) ->  | F24: =IF(AND(D24<>0,D24<>D25),MAX($F$1:F23)+1,"") ->  | G24: 09:30:00 | K24: 00:00:00 | L24: 00:00:00 | M24: 00:00:00
A25: Janvier - 2dern. semaines | B25: 31 | C25: 2019-01-23 | D25: 0 | E25: =IF(OR(D25=0,D25=D24),"",IF(OR(D25<>"",D25<>D26),MAX($E$1:E24)+1,0)) ->  | F25: =IF(AND(D25<>0,D25<>D26),MAX($F$1:F24)+1,"") ->  | G25: 07:30:00 | I25: ='Janvier - 2prem. semaines'!AF17 -> 2019-05-20 | K25: 00:00:00 | L25: 00:00:00 | M25: 00:00:00
A26: Janvier - 2dern. semaines | B26: 32 | C26: 2019-01-24 | D26: 0 | E26: =IF(OR(D26=0,D26=D25),"",IF(OR(D26<>"",D26<>D27),MAX($E$1:E25)+1,0)) ->  | F26: =IF(AND(D26<>0,D26<>D27),MAX($F$1:F25)+1,"") ->  | G26: 03:00:00 | I26: ='Janvier - 2prem. semaines'!AF18 -> 2019-06-24 | K26: 00:00:00 | L26: 00:00:00 | M26: 00:00:00
A27: Janvier - 2dern. semaines | B27: 33 | C27: 2019-01-25 | D27: 0 | E27: =IF(OR(D27=0,D27=D26),"",IF(OR(D27<>"",D27<>D28),MAX($E$1:E26)+1,0)) ->  | F27: =IF(AND(D27<>0,D27<>D28),MAX($F$1:F26)+1,"") ->  | G27: 07:00:00 | I27: ='Janvier - 2prem. semaines'!AF20 -> 2019-07-01 | K27: 00:00:00 | L27: 00:00:00 | M27: 00:00:00
A28: Janvier - 2dern. semaines | B28: 34 | C28: 2019-01-26 | D28: 0 | E28: =IF(OR(D28=0,D28=D27),"",IF(OR(D28<>"",D28<>D29),MAX($E$1:E27)+1,0)) ->  | F28: =IF(AND(D28<>0,D28<>D29),MAX($F$1:F27)+1,"") ->  | G28: =INDIRECT(ADDRESS($B28,8,,,$A28)) -> 00:00:00 | I28: ='Janvier - 2prem. semaines'!AF22 -> 2019-09-01 | K28: 00:00:00 | L28: 00:00:00 | M28: 00:00:00
A29: Janvier - 2dern. semaines | B29: 35 | C29: 2019-01-27 | D29: 0 | E29: =IF(OR(D29=0,D29=D28),"",IF(OR(D29<>"",D29<>D30),MAX($E$1:E28)+1,0)) ->  | F29: =IF(AND(D29<>0,D29<>D30),MAX($F$1:F28)+1,"") ->  | G29: 03:00:00 | I29: ='Janvier - 2prem. semaines'!AF24 -> 2019-10-01 | K29: 00:00:00 | L29: 00:00:00 | M29: 00:00:00
A30: Fin Jan.-Février - 2prem. sem. | B30: 16 | C30: 2019-01-28 | D30: 0 | E30: =IF(OR(D30=0,D30=D29),"",IF(OR(D30<>"",D30<>D31),MAX($E$1:E29)+1,0)) ->  | F30: =IF(AND(D30<>0,D30<>D31),MAX($F$1:F29)+1,"") ->  | G30: 10:30:00 | I30: ='Janvier - 2prem. semaines'!AF28 -> 2019-12-25 | K30: 00:00:00 | L30: 00:00:00 | M30: 00:00:00
A31: Fin Jan.-Février - 2prem. sem. | B31: 17 | C31: 2019-01-29 | D31: 0 | E31: =IF(OR(D31=0,D31=D30),"",IF(OR(D31<>"",D31<>D32),MAX($E$1:E30)+1,0)) ->  | F31: =IF(AND(D31<>0,D31<>D32),MAX($F$1:F30)+1,"") ->  | G31: 11:30:00 | K31: 00:00:00 | L31: 00:00:00 | M31: 00:00:00
A32: Fin Jan.-Février - 2prem. sem. | B32: 18 | C32: 2019-01-30 | D32: 0 | E32: =IF(OR(D32=0,D32=D31),"",IF(OR(D32<>"",D32<>D33),MAX($E$1:E31)+1,0)) ->  | F32: =IF(AND(D32<>0,D32<>D33),MAX($F$1:F31)+1,"") ->  | G32: 07:00:00 | K32: 00:00:00 | L32: 00:00:00 | M32: 00:00:00
A33: Fin Jan.-Février - 2prem. sem. | B33: 19 | C33: 2019-01-31 | D33: 0 | E33: =IF(OR(D33=0,D33=D32),"",IF(OR(D33<>"",D33<>D34),MAX($E$1:E32)+1,0)) ->  | F33: =IF(AND(D33<>0,D33<>D34),MAX($F$1:F32)+1,"") ->  | G33: 10:30:00 | K33: 00:00:00 | L33: 00:00:00 | M33: 00:00:00
A34: Fin Jan.-Février - 2prem. sem. | B34: 20 | C34: 2019-02-01 | D34: 0 | E34: =IF(OR(D34=0,D34=D33),"",IF(OR(D34<>"",D34<>D35),MAX($E$1:E33)+1,0)) ->  | F34: =IF(AND(D34<>0,D34<>D35),MAX($F$1:F33)+1,"") ->  | G34: 05:00:00
A35: Fin Jan.-Février - 2prem. sem. | B35: 21 | C35: 2019-02-02 | D35: 0 | E35: =IF(OR(D35=0,D35=D34),"",IF(OR(D35<>"",D35<>D36),MAX($E$1:E34)+1,0)) ->  | F35: =IF(AND(D35<>0,D35<>D36),MAX($F$1:F34)+1,"") ->  | G35: 00:00:00
A36: Fin Jan.-Février - 2prem. sem. | B36: 22 | C36: 2019-02-03 | D36: 0 | E36: =IF(OR(D36=0,D36=D35),"",IF(OR(D36<>"",D36<>D37),MAX($E$1:E35)+1,0)) ->  | F36: =IF(AND(D36<>0,D36<>D37),MAX($F$1:F35)+1,"") ->  | G36: 02:00:00
A37: Fin Jan.-Février - 2prem. sem. | B37: 23 | C37: 1904-01-01 | D37: 0 | E37: =IF(OR(D37=0,D37=D36),"",IF(OR(D37<>"",D37<>D38),MAX($E$1:E36)+1,0)) ->  | F37: =IF(AND(D37<>0,D37<>D38),MAX($F$1:F36)+1,"") ->  | G37: 1.9375
A38: Fin Jan.-Février - 2prem. sem. | B38: 24 | C38: 1904-01-01 | D38: 0 | E38: =IF(OR(D38=0,D38=D37),"",IF(OR(D38<>"",D38<>D39),MAX($E$1:E37)+1,0)) ->  | F38: =IF(AND(D38<>0,D38<>D39),MAX($F$1:F37)+1,"") ->  | G38: 00:00:00
A39: Fin Jan.-Février - 2prem. sem. | B39: 25 | C39: 1904-01-01 | D39: 0 | E39: =IF(OR(D39=0,D39=D38),"",IF(OR(D39<>"",D39<>D40),MAX($E$1:E38)+1,0)) ->  | F39: =IF(AND(D39<>0,D39<>D40),MAX($F$1:F38)+1,"") ->  | G39: 00:00:00
A40: Fin Jan.-Février - 2prem. sem. | B40: 26 | C40: 1904-01-01 | D40: 0 | E40: =IF(OR(D40=0,D40=D39),"",IF(OR(D40<>"",D40<>D41),MAX($E$1:E39)+1,0)) ->  | F40: =IF(AND(D40<>0,D40<>D41),MAX($F$1:F39)+1,"") ->  | G40: 0
A41: Fin Jan.-Février - 2prem. sem. | B41: 27 | C41: 1904-01-01 | D41: 0 | E41: =IF(OR(D41=0,D41=D40),"",IF(OR(D41<>"",D41<>D42),MAX($E$1:E40)+1,0)) ->  | F41: =IF(AND(D41<>0,D41<>D42),MAX($F$1:F40)+1,"") ->  | G41: 00:00:00
A42: Fin Jan.-Février - 2prem. sem. | B42: 29 | C42: 2019-02-04 | D42: 0 | E42: =IF(OR(D42=0,D42=D41),"",IF(OR(D42<>"",D42<>D43),MAX($E$1:E41)+1,0)) ->  | F42: =IF(AND(D42<>0,D42<>D43),MAX($F$1:F41)+1,"") ->  | G42: 07:00:00
A43: Fin Jan.-Février - 2prem. sem. | B43: 30 | C43: 2019-02-05 | D43: 0 | E43: =IF(OR(D43=0,D43=D42),"",IF(OR(D43<>"",D43<>D44),MAX($E$1:E42)+1,0)) ->  | F43: =IF(AND(D43<>0,D43<>D44),MAX($F$1:F42)+1,"") ->  | G43: 11:00:00
A44: Fin Jan.-Février - 2prem. sem. | B44: 31 | C44: 2019-02-06 | D44: 0 | E44: =IF(OR(D44=0,D44=D43),"",IF(OR(D44<>"",D44<>D45),MAX($E$1:E43)+1,0)) ->  | F44: =IF(AND(D44<>0,D44<>D45),MAX($F$1:F43)+1,"") ->  | G44: 08:00:00
A45: Fin Jan.-Février - 2prem. sem. | B45: 32 | C45: 2019-02-07 | D45: 0 | E45: =IF(OR(D45=0,D45=D44),"",IF(OR(D45<>"",D45<>D46),MAX($E$1:E44)+1,0)) ->  | F45: =IF(AND(D45<>0,D45<>D46),MAX($F$1:F44)+1,"") ->  | G45: 10:00:00
A46: Fin Jan.-Février - 2prem. sem. | B46: 33 | C46: 2019-02-08 | D46: 0 | E46: =IF(OR(D46=0,D46=D45),"",IF(OR(D46<>"",D46<>D47),MAX($E$1:E45)+1,0)) ->  | F46: =IF(AND(D46<>0,D46<>D47),MAX($F$1:F45)+1,"") ->  | G46: 07:00:00
A47: Fin Jan.-Février - 2prem. sem. | B47: 34 | C47: 2019-02-09 | D47: 0 | E47: =IF(OR(D47=0,D47=D46),"",IF(OR(D47<>"",D47<>D48),MAX($E$1:E46)+1,0)) ->  | F47: =IF(AND(D47<>0,D47<>D48),MAX($F$1:F46)+1,"") ->  | G47: 00:00:00
A48: Fin Jan.-Février - 2prem. sem. | B48: 35 | C48: 2019-02-10 | D48: 0 | E48: =IF(OR(D48=0,D48=D47),"",IF(OR(D48<>"",D48<>D49),MAX($E$1:E47)+1,0)) ->  | F48: =IF(AND(D48<>0,D48<>D49),MAX($F$1:F47)+1,"") ->  | G48: 00:00:00
A49: Février - 2e-3e semaine | B49: 16 | C49: 2019-02-11 | D49: 0 | E49: =IF(OR(D49=0,D49=D48),"",IF(OR(D49<>"",D49<>D50),MAX($E$1:E48)+1,0)) ->  | F49: =IF(AND(D49<>0,D49<>D50),MAX($F$1:F48)+1,"") ->  | G49: 08:30:00
A50: Février - 2e-3e semaine | B50: 17 | C50: 2019-02-12 | D50: 0 | E50: =IF(OR(D50=0,D50=D49),"",IF(OR(D50<>"",D50<>D51),MAX($E$1:E49)+1,0)) ->  | F50: =IF(AND(D50<>0,D50<>D51),MAX($F$1:F49)+1,"") ->  | G50: 08:00:00
A51: Février - 2e-3e semaine | B51: 18 | C51: 2019-02-13 | D51: 0 | E51: =IF(OR(D51=0,D51=D50),"",IF(OR(D51<>"",D51<>D52),MAX($E$1:E50)+1,0)) ->  | F51: =IF(AND(D51<>0,D51<>D52),MAX($F$1:F50)+1,"") ->  | G51: 00:00:00
A52: Février - 2e-3e semaine | B52: 19 | C52: 2019-02-14 | D52: 0 | E52: =IF(OR(D52=0,D52=D51),"",IF(OR(D52<>"",D52<>D53),MAX($E$1:E51)+1,0)) ->  | F52: =IF(AND(D52<>0,D52<>D53),MAX($F$1:F51)+1,"") ->  | G52: 10:30:00
A53: Février - 2e-3e semaine | B53: 20 | C53: 2019-02-15 | D53: 0 | E53: =IF(OR(D53=0,D53=D52),"",IF(OR(D53<>"",D53<>D54),MAX($E$1:E52)+1,0)) ->  | F53: =IF(AND(D53<>0,D53<>D54),MAX($F$1:F52)+1,"") ->  | G53: 00:00:00
A54: Février - 2e-3e semaine | B54: 21 | C54: 2019-02-16 | D54: CONGÉ | E54: =IF(OR(D54=0,D54=D53),"",IF(OR(D54<>"",D54<>D55),MAX($E$1:E53)+1,0)) -> 1 | F54: =IF(AND(D54<>0,D54<>D55),MAX($F$1:F53)+1,"") -> 1 | G54: 07:00:00
A55: Février - 2e-3e semaine | B55: 22 | C55: 2019-02-17 | D55: 0 | E55: =IF(OR(D55=0,D55=D54),"",IF(OR(D55<>"",D55<>D56),MAX($E$1:E54)+1,0)) ->  | F55: =IF(AND(D55<>0,D55<>D56),MAX($F$1:F54)+1,"") ->  | G55: 00:00:00
A56: Février - 2e-3e semaine | B56: 29 | C56: 2019-02-18 | D56: 0 | E56: =IF(OR(D56=0,D56=D55),"",IF(OR(D56<>"",D56<>D57),MAX($E$1:E55)+1,0)) ->  | F56: =IF(AND(D56<>0,D56<>D57),MAX($F$1:F55)+1,"") ->  | G56: 00:00:00
A57: Février - 2e-3e semaine | B57: 30 | C57: 2019-02-19 | D57: 0 | E57: =IF(OR(D57=0,D57=D56),"",IF(OR(D57<>"",D57<>D58),MAX($E$1:E56)+1,0)) ->  | F57: =IF(AND(D57<>0,D57<>D58),MAX($F$1:F56)+1,"") ->  | G57: 00:00:00
A58: Février - 2e-3e semaine | B58: 31 | C58: 2019-02-20 | D58: 0 | E58: =IF(OR(D58=0,D58=D57),"",IF(OR(D58<>"",D58<>D59),MAX($E$1:E57)+1,0)) ->  | F58: =IF(AND(D58<>0,D58<>D59),MAX($F$1:F57)+1,"") ->  | G58: 00:00:00
A59: Février - 2e-3e semaine | B59: 32 | C59: 2019-02-21 | D59: 0 | E59: =IF(OR(D59=0,D59=D58),"",IF(OR(D59<>"",D59<>D60),MAX($E$1:E58)+1,0)) ->  | F59: =IF(AND(D59<>0,D59<>D60),MAX($F$1:F58)+1,"") ->  | G59: 00:00:00
A60: Février - 2e-3e semaine | B60: 33 | C60: 2019-02-22 | D60: 0 | E60: =IF(OR(D60=0,D60=D59),"",IF(OR(D60<>"",D60<>D61),MAX($E$1:E59)+1,0)) ->  | F60: =IF(AND(D60<>0,D60<>D61),MAX($F$1:F59)+1,"") ->  | G60: 00:00:00
A61: Février - 2e-3e semaine | B61: 34 | C61: 2019-02-23 | D61: 0 | E61: =IF(OR(D61=0,D61=D60),"",IF(OR(D61<>"",D61<>D62),MAX($E$1:E60)+1,0)) ->  | F61: =IF(AND(D61<>0,D61<>D62),MAX($F$1:F60)+1,"") ->  | G61: 00:00:00
A62: Février - 2e-3e semaine | B62: 35 | C62: 2019-02-24 | D62: 0 | E62: =IF(OR(D62=0,D62=D61),"",IF(OR(D62<>"",D62<>D63),MAX($E$1:E61)+1,0)) ->  | F62: =IF(AND(D62<>0,D62<>D63),MAX($F$1:F61)+1,"") ->  | G62: 00:00:00
A63: Fin Fév.-Mars - 2prem. sem. | B63: 16 | C63: 2019-02-25 | D63: 0 | E63: =IF(OR(D63=0,D63=D62),"",IF(OR(D63<>"",D63<>D64),MAX($E$1:E62)+1,0)) ->  | F63: =IF(AND(D63<>0,D63<>D64),MAX($F$1:F62)+1,"") ->  | G63: 00:00:00
A64: Fin Fév.-Mars - 2prem. sem. | B64: 17 | C64: 2019-02-26 | D64: 0 | E64: =IF(OR(D64=0,D64=D63),"",IF(OR(D64<>"",D64<>D65),MAX($E$1:E63)+1,0)) ->  | F64: =IF(AND(D64<>0,D64<>D65),MAX($F$1:F63)+1,"") ->  | G64: 00:00:00
A65: Fin Fév.-Mars - 2prem. sem. | B65: 18 | C65: 2019-02-27 | D65: 0 | E65: =IF(OR(D65=0,D65=D64),"",IF(OR(D65<>"",D65<>D66),MAX($E$1:E64)+1,0)) ->  | F65: =IF(AND(D65<>0,D65<>D66),MAX($F$1:F64)+1,"") ->  | G65: 00:00:00
A66: Fin Fév.-Mars - 2prem. sem. | B66: 19 | C66: 2019-02-28 | D66: 0 | E66: =IF(OR(D66=0,D66=D65),"",IF(OR(D66<>"",D66<>D67),MAX($E$1:E65)+1,0)) ->  | F66: =IF(AND(D66<>0,D66<>D67),MAX($F$1:F65)+1,"") ->  | G66: 00:00:00
A67: Fin Fév.-Mars - 2prem. sem. | B67: 20 | C67: =INDIRECT(ADDRESS(B67,1,,,A67)) -> 2019-03-01 | D67: =INDIRECT(ADDRESS($B67,9,,,$A67)) -> 0 | E67: =IF(OR(D67=0,D67=D66),"",IF(OR(D67<>"",D67<>D68),MAX($E$1:E66)+1,0)) ->  | F67: =IF(AND(D67<>0,D67<>D68),MAX($F$1:F66)+1,"") ->  | G67: 00:00:00
A68: Fin Fév.-Mars - 2prem. sem. | B68: 21 | C68: 2019-03-02 | D68: 0 | E68: =IF(OR(D68=0,D68=D67),"",IF(OR(D68<>"",D68<>D69),MAX($E$1:E67)+1,0)) ->  | F68: =IF(AND(D68<>0,D68<>D69),MAX($F$1:F67)+1,"") ->  | G68: =INDIRECT(ADDRESS($B68,8,,,$A68)) -> 00:00:00
A69: Fin Fév.-Mars - 2prem. sem. | B69: 22 | C69: 2019-03-03 | D69: 0 | E69: =IF(OR(D69=0,D69=D68),"",IF(OR(D69<>"",D69<>D70),MAX($E$1:E68)+1,0)) ->  | F69: =IF(AND(D69<>0,D69<>D70),MAX($F$1:F68)+1,"") ->  | G69: 00:00:00
A70: Fin Fév.-Mars - 2prem. sem. | B70: 29 | C70: 2019-03-04 | D70: 0 | E70: =IF(OR(D70=0,D70=D69),"",IF(OR(D70<>"",D70<>D71),MAX($E$1:E69)+1,0)) ->  | F70: =IF(AND(D70<>0,D70<>D71),MAX($F$1:F69)+1,"") ->  | G70: 00:00:00
A71: Fin Fév.-Mars - 2prem. sem. | B71: 30 | C71: 2019-03-05 | D71: 0 | E71: =IF(OR(D71=0,D71=D70),"",IF(OR(D71<>"",D71<>D72),MAX($E$1:E70)+1,0)) ->  | F71: =IF(AND(D71<>0,D71<>D72),MAX($F$1:F70)+1,"") ->  | G71: 00:00:00
A72: Fin Fév.-Mars - 2prem. sem. | B72: 31 | C72: 2019-03-06 | D72: 0 | E72: =IF(OR(D72=0,D72=D71),"",IF(OR(D72<>"",D72<>D73),MAX($E$1:E71)+1,0)) ->  | F72: =IF(AND(D72<>0,D72<>D73),MAX($F$1:F71)+1,"") ->  | G72: 00:00:00
A73: Fin Fév.-Mars - 2prem. sem. | B73: 32 | C73: 2019-03-07 | D73: 0 | E73: =IF(OR(D73=0,D73=D72),"",IF(OR(D73<>"",D73<>D74),MAX($E$1:E72)+1,0)) ->  | F73: =IF(AND(D73<>0,D73<>D74),MAX($F$1:F72)+1,"") ->  | G73: 00:00:00
A74: Fin Fév.-Mars - 2prem. sem. | B74: 33 | C74: 2019-03-08 | D74: 0 | E74: =IF(OR(D74=0,D74=D73),"",IF(OR(D74<>"",D74<>D75),MAX($E$1:E73)+1,0)) ->  | F74: =IF(AND(D74<>0,D74<>D75),MAX($F$1:F73)+1,"") ->  | G74: 00:00:00
A75: Fin Fév.-Mars - 2prem. sem. | B75: 34 | C75: 2019-03-09 | D75: 0 | E75: =IF(OR(D75=0,D75=D74),"",IF(OR(D75<>"",D75<>D76),MAX($E$1:E74)+1,0)) ->  | F75: =IF(AND(D75<>0,D75<>D76),MAX($F$1:F74)+1,"") ->  | G75: 00:00:00
A76: Fin Fév.-Mars - 2prem. sem. | B76: 35 | C76: 2019-03-10 | D76: 0 | E76: =IF(OR(D76=0,D76=D75),"",IF(OR(D76<>"",D76<>D77),MAX($E$1:E75)+1,0)) ->  | F76: =IF(AND(D76<>0,D76<>D77),MAX($F$1:F75)+1,"") ->  | G76: 00:00:00
A77: Mars - 3e-4e semaine | B77: 16 | C77: 2019-03-11 | D77: 0 | E77: =IF(OR(D77=0,D77=D76),"",IF(OR(D77<>"",D77<>D78),MAX($E$1:E76)+1,0)) ->  | F77: =IF(AND(D77<>0,D77<>D78),MAX($F$1:F76)+1,"") ->  | G77: 07:30:00
A78: Mars - 3e-4e semaine | B78: 17 | C78: 2019-03-12 | D78: 0 | E78: =IF(OR(D78=0,D78=D77),"",IF(OR(D78<>"",D78<>D79),MAX($E$1:E77)+1,0)) ->  | F78: =IF(AND(D78<>0,D78<>D79),MAX($F$1:F77)+1,"") ->  | G78: 09:30:00
A79: Mars - 3e-4e semaine | B79: 18 | C79: 2019-03-13 | D79: 0 | E79: =IF(OR(D79=0,D79=D78),"",IF(OR(D79<>"",D79<>D80),MAX($E$1:E78)+1,0)) ->  | F79: =IF(AND(D79<>0,D79<>D80),MAX($F$1:F78)+1,"") ->  | G79: 07:30:00
A80: Mars - 3e-4e semaine | B80: 19 | C80: 2019-03-14 | D80: 0 | E80: =IF(OR(D80=0,D80=D79),"",IF(OR(D80<>"",D80<>D81),MAX($E$1:E79)+1,0)) ->  | F80: =IF(AND(D80<>0,D80<>D81),MAX($F$1:F79)+1,"") ->  | G80: 03:00:00
A81: Mars - 3e-4e semaine | B81: 20 | C81: 2019-03-15 | D81: 0 | E81: =IF(OR(D81=0,D81=D80),"",IF(OR(D81<>"",D81<>D82),MAX($E$1:E80)+1,0)) ->  | F81: =IF(AND(D81<>0,D81<>D82),MAX($F$1:F80)+1,"") ->  | G81: 07:00:00
A82: Mars - 3e-4e semaine | B82: 21 | C82: 2019-03-16 | D82: 0 | E82: =IF(OR(D82=0,D82=D81),"",IF(OR(D82<>"",D82<>D83),MAX($E$1:E81)+1,0)) ->  | F82: =IF(AND(D82<>0,D82<>D83),MAX($F$1:F81)+1,"") ->  | G82: 00:00:00
A83: Mars - 3e-4e semaine | B83: 22 | C83: 2019-03-17 | D83: 0 | E83: =IF(OR(D83=0,D83=D82),"",IF(OR(D83<>"",D83<>D84),MAX($E$1:E82)+1,0)) ->  | F83: =IF(AND(D83<>0,D83<>D84),MAX($F$1:F82)+1,"") ->  | G83: 03:00:00
A84: Mars - 3e-4e semaine | B84: 29 | C84: 2019-03-18 | D84: 0 | E84: =IF(OR(D84=0,D84=D83),"",IF(OR(D84<>"",D84<>D85),MAX($E$1:E83)+1,0)) ->  | F84: =IF(AND(D84<>0,D84<>D85),MAX($F$1:F83)+1,"") ->  | G84: 07:30:00
A85: Mars - 3e-4e semaine | B85: 30 | C85: 2019-03-19 | D85: 0 | E85: =IF(OR(D85=0,D85=D84),"",IF(OR(D85<>"",D85<>D86),MAX($E$1:E84)+1,0)) ->  | F85: =IF(AND(D85<>0,D85<>D86),MAX($F$1:F84)+1,"") ->  | G85: 09:30:00
A86: Mars - 3e-4e semaine | B86: 31 | C86: 2019-03-20 | D86: 0 | E86: =IF(OR(D86=0,D86=D85),"",IF(OR(D86<>"",D86<>D87),MAX($E$1:E85)+1,0)) ->  | F86: =IF(AND(D86<>0,D86<>D87),MAX($F$1:F85)+1,"") ->  | G86: 07:30:00
A87: Mars - 3e-4e semaine | B87: 32 | C87: 2019-03-21 | D87: 0 | E87: =IF(OR(D87=0,D87=D86),"",IF(OR(D87<>"",D87<>D88),MAX($E$1:E86)+1,0)) ->  | F87: =IF(AND(D87<>0,D87<>D88),MAX($F$1:F86)+1,"") ->  | G87: 03:00:00
A88: Mars - 3e-4e semaine | B88: 33 | C88: 2019-03-22 | D88: 0 | E88: =IF(OR(D88=0,D88=D87),"",IF(OR(D88<>"",D88<>D89),MAX($E$1:E87)+1,0)) ->  | F88: =IF(AND(D88<>0,D88<>D89),MAX($F$1:F87)+1,"") ->  | G88: 07:00:00
A89: Mars - 3e-4e semaine | B89: 34 | C89: 2019-03-23 | D89: 0 | E89: =IF(OR(D89=0,D89=D88),"",IF(OR(D89<>"",D89<>D90),MAX($E$1:E88)+1,0)) ->  | F89: =IF(AND(D89<>0,D89<>D90),MAX($F$1:F88)+1,"") ->  | G89: 00:00:00
A90: Mars - 3e-4e semaine | B90: 35 | C90: 2019-03-24 | D90: 0 | E90: =IF(OR(D90=0,D90=D89),"",IF(OR(D90<>"",D90<>D91),MAX($E$1:E89)+1,0)) ->  | F90: =IF(AND(D90<>0,D90<>D91),MAX($F$1:F89)+1,"") ->  | G90: 03:00:00
A91: Fin Mars-Avril - prem. semaine | B91: 16 | C91: 2019-03-25 | D91: 0 | E91: =IF(OR(D91=0,D91=D90),"",IF(OR(D91<>"",D91<>D92),MAX($E$1:E90)+1,0)) ->  | F91: =IF(AND(D91<>0,D91<>D92),MAX($F$1:F90)+1,"") ->  | G91: 07:30:00
A92: Fin Mars-Avril - prem. semaine | B92: 17 | C92: 2019-03-26 | D92: 0 | E92: =IF(OR(D92=0,D92=D91),"",IF(OR(D92<>"",D92<>D93),MAX($E$1:E91)+1,0)) ->  | F92: =IF(AND(D92<>0,D92<>D93),MAX($F$1:F91)+1,"") ->  | G92: 09:30:00
A93: Fin Mars-Avril - prem. semaine | B93: 18 | C93: 2019-03-27 | D93: 0 | E93: =IF(OR(D93=0,D93=D92),"",IF(OR(D93<>"",D93<>D94),MAX($E$1:E92)+1,0)) ->  | F93: =IF(AND(D93<>0,D93<>D94),MAX($F$1:F92)+1,"") ->  | G93: 07:30:00
A94: Fin Mars-Avril - prem. semaine | B94: 19 | C94: 2019-03-28 | D94: 0 | E94: =IF(OR(D94=0,D94=D93),"",IF(OR(D94<>"",D94<>D95),MAX($E$1:E93)+1,0)) ->  | F94: =IF(AND(D94<>0,D94<>D95),MAX($F$1:F93)+1,"") ->  | G94: 03:00:00
A95: Fin Mars-Avril - prem. semaine | B95: 20 | C95: 2019-03-29 | D95: 0 | E95: =IF(OR(D95=0,D95=D94),"",IF(OR(D95<>"",D95<>D96),MAX($E$1:E94)+1,0)) ->  | F95: =IF(AND(D95<>0,D95<>D96),MAX($F$1:F94)+1,"") ->  | G95: 07:00:00
A96: Fin Mars-Avril - prem. semaine | B96: 21 | C96: 2019-03-30 | D96: 0 | E96: =IF(OR(D96=0,D96=D95),"",IF(OR(D96<>"",D96<>D97),MAX($E$1:E95)+1,0)) ->  | F96: =IF(AND(D96<>0,D96<>D97),MAX($F$1:F95)+1,"") ->  | G96: 00:00:00
A97: Fin Mars-Avril - prem. semaine | B97: 22 | C97: 2019-03-31 | D97: 0 | E97: =IF(OR(D97=0,D97=D96),"",IF(OR(D97<>"",D97<>D98),MAX($E$1:E96)+1,0)) ->  | F97: =IF(AND(D97<>0,D97<>D98),MAX($F$1:F96)+1,"") ->  | G97: 03:00:00
A98: Fin Mars-Avril - prem. semaine | B98: 29 | C98: 2019-04-01 | D98: 0 | E98: =IF(OR(D98=0,D98=D97),"",IF(OR(D98<>"",D98<>D99),MAX($E$1:E97)+1,0)) ->  | F98: =IF(AND(D98<>0,D98<>D99),MAX($F$1:F97)+1,"") ->  | G98: 07:30:00
A99: Fin Mars-Avril - prem. semaine | B99: 30 | C99: 2019-04-02 | D99: 0 | E99: =IF(OR(D99=0,D99=D98),"",IF(OR(D99<>"",D99<>D100),MAX($E$1:E98)+1,0)) ->  | F99: =IF(AND(D99<>0,D99<>D100),MAX($F$1:F98)+1,"") ->  | G99: 09:30:00
A100: Fin Mars-Avril - prem. semaine | B100: 31 | C100: 2019-04-03 | D100: 0 | E100: =IF(OR(D100=0,D100=D99),"",IF(OR(D100<>"",D100<>D101),MAX($E$1:E99)+1,0)) ->  | F100: =IF(AND(D100<>0,D100<>D101),MAX($F$1:F99)+1,"") ->  | G100: 07:30:00
A101: Fin Mars-Avril - prem. semaine | B101: 32 | C101: 2019-04-04 | D101: 0 | E101: =IF(OR(D101=0,D101=D100),"",IF(OR(D101<>"",D101<>D102),MAX($E$1:E100)+1,0)) ->  | F101: =IF(AND(D101<>0,D101<>D102),MAX($F$1:F100)+1,"") ->  | G101: 03:00:00
A102: Fin Mars-Avril - prem. semaine | B102: 33 | C102: 2019-04-05 | D102: 0 | E102: =IF(OR(D102=0,D102=D101),"",IF(OR(D102<>"",D102<>D103),MAX($E$1:E101)+1,0)) ->  | F102: =IF(AND(D102<>0,D102<>D103),MAX($F$1:F101)+1,"") ->  | G102: 07:00:00
A103: Fin Mars-Avril - prem. semaine | B103: 34 | C103: 2019-04-06 | D103: 0 | E103: =IF(OR(D103=0,D103=D102),"",IF(OR(D103<>"",D103<>D104),MAX($E$1:E102)+1,0)) ->  | F103: =IF(AND(D103<>0,D103<>D104),MAX($F$1:F102)+1,"") ->  | G103: 00:00:00
A104: Fin Mars-Avril - prem. semaine | B104: 35 | C104: 2019-04-07 | D104: 0 | E104: =IF(OR(D104=0,D104=D103),"",IF(OR(D104<>"",D104<>D105),MAX($E$1:E103)+1,0)) ->  | F104: =IF(AND(D104<>0,D104<>D105),MAX($F$1:F103)+1,"") ->  | G104: 03:00:00
A105: Avril - 2e-3e semaine | B105: 16 | C105: 2019-04-08 | D105: 0 | E105: =IF(OR(D105=0,D105=D104),"",IF(OR(D105<>"",D105<>D106),MAX($E$1:E104)+1,0)) ->  | F105: =IF(AND(D105<>0,D105<>D106),MAX($F$1:F104)+1,"") ->  | G105: 07:30:00
A106: Avril - 2e-3e semaine | B106: 17 | C106: 2019-04-09 | D106: 0 | E106: =IF(OR(D106=0,D106=D105),"",IF(OR(D106<>"",D106<>D107),MAX($E$1:E105)+1,0)) ->  | F106: =IF(AND(D106<>0,D106<>D107),MAX($F$1:F105)+1,"") ->  | G106: 09:30:00
A107: Avril - 2e-3e semaine | B107: 18 | C107: 2019-04-10 | D107: 0 | E107: =IF(OR(D107=0,D107=D106),"",IF(OR(D107<>"",D107<>D108),MAX($E$1:E106)+1,0)) ->  | F107: =IF(AND(D107<>0,D107<>D108),MAX($F$1:F106)+1,"") ->  | G107: 07:30:00
A108: Avril - 2e-3e semaine | B108: 19 | C108: 2019-04-11 | D108: 0 | E108: =IF(OR(D108=0,D108=D107),"",IF(OR(D108<>"",D108<>D109),MAX($E$1:E107)+1,0)) ->  | F108: =IF(AND(D108<>0,D108<>D109),MAX($F$1:F107)+1,"") ->  | G108: 03:00:00
A109: Avril - 2e-3e semaine | B109: 20 | C109: 2019-04-12 | D109: 0 | E109: =IF(OR(D109=0,D109=D108),"",IF(OR(D109<>"",D109<>D110),MAX($E$1:E108)+1,0)) ->  | F109: =IF(AND(D109<>0,D109<>D110),MAX($F$1:F108)+1,"") ->  | G109: 07:00:00
A110: Avril - 2e-3e semaine | B110: 21 | C110: 2019-04-13 | D110: 0 | E110: =IF(OR(D110=0,D110=D109),"",IF(OR(D110<>"",D110<>D111),MAX($E$1:E109)+1,0)) ->  | F110: =IF(AND(D110<>0,D110<>D111),MAX($F$1:F109)+1,"") ->  | G110: =INDIRECT(ADDRESS($B110,8,,,$A110)) -> 00:00:00
A111: Avril - 2e-3e semaine | B111: 22 | C111: 2019-04-14 | D111: 0 | E111: =IF(OR(D111=0,D111=D110),"",IF(OR(D111<>"",D111<>D112),MAX($E$1:E110)+1,0)) ->  | F111: =IF(AND(D111<>0,D111<>D112),MAX($F$1:F110)+1,"") ->  | G111: 03:00:00
A112: Avril - 2e-3e semaine | B112: 29 | C112: 2019-04-15 | D112: 0 | E112: =IF(OR(D112=0,D112=D111),"",IF(OR(D112<>"",D112<>D113),MAX($E$1:E111)+1,0)) ->  | F112: =IF(AND(D112<>0,D112<>D113),MAX($F$1:F111)+1,"") ->  | G112: 07:30:00
A113: Avril - 2e-3e semaine | B113: 30 | C113: 2019-04-16 | D113: 0 | E113: =IF(OR(D113=0,D113=D112),"",IF(OR(D113<>"",D113<>D114),MAX($E$1:E112)+1,0)) ->  | F113: =IF(AND(D113<>0,D113<>D114),MAX($F$1:F112)+1,"") ->  | G113: 09:30:00
A114: Avril - 2e-3e semaine | B114: 31 | C114: 2019-04-17 | D114: 0 | E114: =IF(OR(D114=0,D114=D113),"",IF(OR(D114<>"",D114<>D115),MAX($E$1:E113)+1,0)) ->  | F114: =IF(AND(D114<>0,D114<>D115),MAX($F$1:F113)+1,"") ->  | G114: 07:30:00
A115: Avril - 2e-3e semaine | B115: 32 | C115: 2019-04-18 | D115: 0 | E115: =IF(OR(D115=0,D115=D114),"",IF(OR(D115<>"",D115<>D116),MAX($E$1:E114)+1,0)) ->  | F115: =IF(AND(D115<>0,D115<>D116),MAX($F$1:F114)+1,"") ->  | G115: 03:00:00
A116: Avril - 2e-3e semaine | B116: 33 | C116: 2019-04-19 | D116: 0 | E116: =IF(OR(D116=0,D116=D115),"",IF(OR(D116<>"",D116<>D117),MAX($E$1:E115)+1,0)) ->  | F116: =IF(AND(D116<>0,D116<>D117),MAX($F$1:F115)+1,"") ->  | G116: 07:53:41.053
A117: Avril - 2e-3e semaine | B117: 34 | C117: 2019-04-20 | D117: 0 | E117: =IF(OR(D117=0,D117=D116),"",IF(OR(D117<>"",D117<>D118),MAX($E$1:E116)+1,0)) ->  | F117: =IF(AND(D117<>0,D117<>D118),MAX($F$1:F116)+1,"") ->  | G117: 00:00:00
A118: Avril - 2e-3e semaine | B118: 35 | C118: 2019-04-21 | D118: 0 | E118: =IF(OR(D118=0,D118=D117),"",IF(OR(D118<>"",D118<>D119),MAX($E$1:E117)+1,0)) ->  | F118: =IF(AND(D118<>0,D118<>D119),MAX($F$1:F117)+1,"") ->  | G118: 00:00:00
A119: Fin Avril-Mai - prem. semaine | B119: 16 | C119: 2019-04-22 | D119: 0 | E119: =IF(OR(D119=0,D119=D118),"",IF(OR(D119<>"",D119<>D120),MAX($E$1:E118)+1,0)) ->  | F119: =IF(AND(D119<>0,D119<>D120),MAX($F$1:F118)+1,"") ->  | G119: 00:00:00
A120: Fin Avril-Mai - prem. semaine | B120: 17 | C120: 2019-04-23 | D120: 0 | E120: =IF(OR(D120=0,D120=D119),"",IF(OR(D120<>"",D120<>D121),MAX($E$1:E119)+1,0)) ->  | F120: =IF(AND(D120<>0,D120<>D121),MAX($F$1:F119)+1,"") ->  | G120: 00:00:00
A121: Fin Avril-Mai - prem. semaine | B121: 18 | C121: 2019-04-24 | D121: 0 | E121: =IF(OR(D121=0,D121=D120),"",IF(OR(D121<>"",D121<>D122),MAX($E$1:E120)+1,0)) ->  | F121: =IF(AND(D121<>0,D121<>D122),MAX($F$1:F120)+1,"") ->  | G121: 00:00:00
A122: Fin Avril-Mai - prem. semaine | B122: 19 | C122: 2019-04-25 | D122: 0 | E122: =IF(OR(D122=0,D122=D121),"",IF(OR(D122<>"",D122<>D123),MAX($E$1:E121)+1,0)) ->  | F122: =IF(AND(D122<>0,D122<>D123),MAX($F$1:F121)+1,"") ->  | G122: 00:00:00
A123: Fin Avril-Mai - prem. semaine | B123: 20 | C123: 2019-04-26 | D123: 0 | E123: =IF(OR(D123=0,D123=D122),"",IF(OR(D123<>"",D123<>D124),MAX($E$1:E122)+1,0)) ->  | F123: =IF(AND(D123<>0,D123<>D124),MAX($F$1:F122)+1,"") ->  | G123: 00:00:00
A124: Fin Avril-Mai - prem. semaine | B124: 21 | C124: 2019-04-27 | D124: 0 | E124: =IF(OR(D124=0,D124=D123),"",IF(OR(D124<>"",D124<>D125),MAX($E$1:E123)+1,0)) ->  | F124: =IF(AND(D124<>0,D124<>D125),MAX($F$1:F123)+1,"") ->  | G124: 00:00:00
A125: Fin Avril-Mai - prem. semaine | B125: 22 | C125: 2019-04-28 | D125: 0 | E125: =IF(OR(D125=0,D125=D124),"",IF(OR(D125<>"",D125<>D126),MAX($E$1:E124)+1,0)) ->  | F125: =IF(AND(D125<>0,D125<>D126),MAX($F$1:F124)+1,"") ->  | G125: 00:00:00
A126: Fin Avril-Mai - prem. semaine | B126: 29 | C126: 2019-04-29 | D126: 0 | E126: =IF(OR(D126=0,D126=D125),"",IF(OR(D126<>"",D126<>D127),MAX($E$1:E125)+1,0)) ->  | F126: =IF(AND(D126<>0,D126<>D127),MAX($F$1:F125)+1,"") ->  | G126: 00:00:00
A127: Fin Avril-Mai - prem. semaine | B127: 30 | C127: 2019-04-30 | D127: 0 | E127: =IF(OR(D127=0,D127=D126),"",IF(OR(D127<>"",D127<>D128),MAX($E$1:E126)+1,0)) ->  | F127: =IF(AND(D127<>0,D127<>D128),MAX($F$1:F126)+1,"") ->  | G127: 00:00:00
A128: Fin Avril-Mai - prem. semaine | B128: 31 | C128: 2019-05-01 | D128: 0 | E128: =IF(OR(D128=0,D128=D127),"",IF(OR(D128<>"",D128<>D129),MAX($E$1:E127)+1,0)) ->  | F128: =IF(AND(D128<>0,D128<>D129),MAX($F$1:F127)+1,"") ->  | G128: 00:00:00
A129: Fin Avril-Mai - prem. semaine | B129: 32 | C129: 2019-05-02 | D129: 0 | E129: =IF(OR(D129=0,D129=D128),"",IF(OR(D129<>"",D129<>D130),MAX($E$1:E128)+1,0)) ->  | F129: =IF(AND(D129<>0,D129<>D130),MAX($F$1:F128)+1,"") ->  | G129: 00:00:00
A130: Fin Avril-Mai - prem. semaine | B130: 33 | C130: 2019-05-03 | D130: 0 | E130: =IF(OR(D130=0,D130=D129),"",IF(OR(D130<>"",D130<>D131),MAX($E$1:E129)+1,0)) ->  | F130: =IF(AND(D130<>0,D130<>D131),MAX($F$1:F129)+1,"") ->  | G130: 00:00:00
A131: Fin Avril-Mai - prem. semaine | B131: 34 | C131: =INDIRECT(ADDRESS(B131,1,,,A131)) -> 2019-05-04 | D131: 0 | E131: =IF(OR(D131=0,D131=D130),"",IF(OR(D131<>"",D131<>D132),MAX($E$1:E130)+1,0)) ->  | F131: =IF(AND(D131<>0,D131<>D132),MAX($F$1:F130)+1,"") ->  | G131: 00:00:00
A132: Fin Avril-Mai - prem. semaine | B132: 35 | C132: 2019-05-05 | D132: 0 | E132: =IF(OR(D132=0,D132=D131),"",IF(OR(D132<>"",D132<>D133),MAX($E$1:E131)+1,0)) ->  | F132: =IF(AND(D132<>0,D132<>D133),MAX($F$1:F131)+1,"") ->  | G132: =INDIRECT(ADDRESS($B132,8,,,$A132)) -> 00:00:00
A133: Mai - 2e-3e semaine | B133: 16 | C133: 2019-05-06 | D133: 0 | E133: =IF(OR(D133=0,D133=D132),"",IF(OR(D133<>"",D133<>D134),MAX($E$1:E132)+1,0)) ->  | F133: =IF(AND(D133<>0,D133<>D134),MAX($F$1:F132)+1,"") ->  | G133: 00:00:00
A134: Mai - 2e-3e semaine | B134: 17 | C134: 2019-05-07 | D134: 0 | E134: =IF(OR(D134=0,D134=D133),"",IF(OR(D134<>"",D134<>D135),MAX($E$1:E133)+1,0)) ->  | F134: =IF(AND(D134<>0,D134<>D135),MAX($F$1:F133)+1,"") ->  | G134: 00:00:00
A135: Mai - 2e-3e semaine | B135: 18 | C135: 2019-05-08 | D135: 0 | E135: =IF(OR(D135=0,D135=D134),"",IF(OR(D135<>"",D135<>D136),MAX($E$1:E134)+1,0)) ->  | F135: =IF(AND(D135<>0,D135<>D136),MAX($F$1:F134)+1,"") ->  | G135: 00:00:00
A136: Mai - 2e-3e semaine | B136: 19 | C136: 2019-05-09 | D136: 0 | E136: =IF(OR(D136=0,D136=D135),"",IF(OR(D136<>"",D136<>D137),MAX($E$1:E135)+1,0)) ->  | F136: =IF(AND(D136<>0,D136<>D137),MAX($F$1:F135)+1,"") ->  | G136: 00:00:00
A137: Mai - 2e-3e semaine | B137: 20 | C137: 2019-05-10 | D137: 0 | E137: =IF(OR(D137=0,D137=D136),"",IF(OR(D137<>"",D137<>D138),MAX($E$1:E136)+1,0)) ->  | F137: =IF(AND(D137<>0,D137<>D138),MAX($F$1:F136)+1,"") ->  | G137: 00:00:00
A138: Mai - 2e-3e semaine | B138: 21 | C138: 2019-05-11 | D138: 0 | E138: =IF(OR(D138=0,D138=D137),"",IF(OR(D138<>"",D138<>D139),MAX($E$1:E137)+1,0)) ->  | F138: =IF(AND(D138<>0,D138<>D139),MAX($F$1:F137)+1,"") ->  | G138: 00:00:00
A139: Mai - 2e-3e semaine | B139: 22 | C139: 2019-05-12 | D139: 0 | E139: =IF(OR(D139=0,D139=D138),"",IF(OR(D139<>"",D139<>D140),MAX($E$1:E138)+1,0)) ->  | F139: =IF(AND(D139<>0,D139<>D140),MAX($F$1:F138)+1,"") ->  | G139: 00:00:00
A140: Mai - 2e-3e semaine | B140: 29 | C140: 2019-05-13 | D140: 0 | E140: =IF(OR(D140=0,D140=D139),"",IF(OR(D140<>"",D140<>D141),MAX($E$1:E139)+1,0)) ->  | F140: =IF(AND(D140<>0,D140<>D141),MAX($F$1:F139)+1,"") ->  | G140: 00:00:00
A141: Mai - 2e-3e semaine | B141: 30 | C141: 2019-05-14 | D141: 0 | E141: =IF(OR(D141=0,D141=D140),"",IF(OR(D141<>"",D141<>D142),MAX($E$1:E140)+1,0)) ->  | F141: =IF(AND(D141<>0,D141<>D142),MAX($F$1:F140)+1,"") ->  | G141: 00:00:00
A142: Mai - 2e-3e semaine | B142: 31 | C142: 2019-05-15 | D142: 0 | E142: =IF(OR(D142=0,D142=D141),"",IF(OR(D142<>"",D142<>D143),MAX($E$1:E141)+1,0)) ->  | F142: =IF(AND(D142<>0,D142<>D143),MAX($F$1:F141)+1,"") ->  | G142: 00:00:00
A143: Mai - 2e-3e semaine | B143: 32 | C143: 2019-05-16 | D143: 0 | E143: =IF(OR(D143=0,D143=D142),"",IF(OR(D143<>"",D143<>D144),MAX($E$1:E142)+1,0)) ->  | F143: =IF(AND(D143<>0,D143<>D144),MAX($F$1:F142)+1,"") ->  | G143: 00:00:00
A144: Mai - 2e-3e semaine | B144: 33 | C144: 2019-05-17 | D144: 0 | E144: =IF(OR(D144=0,D144=D143),"",IF(OR(D144<>"",D144<>D145),MAX($E$1:E143)+1,0)) ->  | F144: =IF(AND(D144<>0,D144<>D145),MAX($F$1:F143)+1,"") ->  | G144: 00:00:00
A145: Mai - 2e-3e semaine | B145: 34 | C145: 2019-05-18 | D145: =INDIRECT(ADDRESS($B145,9,,,$A145)) -> 0 | E145: =IF(OR(D145=0,D145=D144),"",IF(OR(D145<>"",D145<>D146),MAX($E$1:E144)+1,0)) ->  | F145: =IF(AND(D145<>0,D145<>D146),MAX($F$1:F144)+1,"") ->  | G145: 00:00:00
A146: Mai - 2e-3e semaine | B146: 35 | C146: 2019-05-19 | D146: 0 | E146: =IF(OR(D146=0,D146=D145),"",IF(OR(D146<>"",D146<>D147),MAX($E$1:E145)+1,0)) ->  | F146: =IF(AND(D146<>0,D146<>D147),MAX($F$1:F145)+1,"") ->  | G146: 00:00:00
A147: Fin Mai-Début juin semaine 1 | B147: 16 | C147: 2019-05-20 | D147: 0 | E147: =IF(OR(D147=0,D147=D146),"",IF(OR(D147<>"",D147<>D148),MAX($E$1:E146)+1,0)) ->  | F147: =IF(AND(D147<>0,D147<>D148),MAX($F$1:F146)+1,"") ->  | G147: 00:00:00
A148: Fin Mai-Début juin semaine 1 | B148: 17 | C148: 2019-05-21 | D148: 0 | E148: =IF(OR(D148=0,D148=D147),"",IF(OR(D148<>"",D148<>D149),MAX($E$1:E147)+1,0)) ->  | F148: =IF(AND(D148<>0,D148<>D149),MAX($F$1:F147)+1,"") ->  | G148: 00:00:00
A149: Fin Mai-Début juin semaine 1 | B149: 18 | C149: 2019-05-22 | D149: 0 | E149: =IF(OR(D149=0,D149=D148),"",IF(OR(D149<>"",D149<>D150),MAX($E$1:E148)+1,0)) ->  | F149: =IF(AND(D149<>0,D149<>D150),MAX($F$1:F148)+1,"") ->  | G149: 00:00:00
A150: Fin Mai-Début juin semaine 1 | B150: 19 | C150: 2019-05-23 | D150: 0 | E150: =IF(OR(D150=0,D150=D149),"",IF(OR(D150<>"",D150<>D151),MAX($E$1:E149)+1,0)) ->  | F150: =IF(AND(D150<>0,D150<>D151),MAX($F$1:F149)+1,"") ->  | G150: 00:00:00
A151: Fin Mai-Début juin semaine 1 | B151: 20 | C151: 2019-05-24 | D151: 0 | E151: =IF(OR(D151=0,D151=D150),"",IF(OR(D151<>"",D151<>D152),MAX($E$1:E150)+1,0)) ->  | F151: =IF(AND(D151<>0,D151<>D152),MAX($F$1:F150)+1,"") ->  | G151: 00:00:00
A152: Fin Mai-Début juin semaine 1 | B152: 21 | C152: 2019-05-25 | D152: 0 | E152: =IF(OR(D152=0,D152=D151),"",IF(OR(D152<>"",D152<>D153),MAX($E$1:E151)+1,0)) ->  | F152: =IF(AND(D152<>0,D152<>D153),MAX($F$1:F151)+1,"") ->  | G152: 00:00:00
A153: Fin Mai-Début juin semaine 1 | B153: 22 | C153: 2019-05-26 | D153: 0 | E153: =IF(OR(D153=0,D153=D152),"",IF(OR(D153<>"",D153<>D154),MAX($E$1:E152)+1,0)) ->  | F153: =IF(AND(D153<>0,D153<>D154),MAX($F$1:F152)+1,"") ->  | G153: 00:00:00
A154: Fin Mai-Début juin semaine 1 | B154: 29 | C154: 2019-05-27 | D154: 0 | E154: =IF(OR(D154=0,D154=D153),"",IF(OR(D154<>"",D154<>D155),MAX($E$1:E153)+1,0)) ->  | F154: =IF(AND(D154<>0,D154<>D155),MAX($F$1:F153)+1,"") ->  | G154: 00:00:00
A155: Fin Mai-Début juin semaine 1 | B155: 30 | C155: 2019-05-28 | D155: 0 | E155: =IF(OR(D155=0,D155=D154),"",IF(OR(D155<>"",D155<>D156),MAX($E$1:E154)+1,0)) ->  | F155: =IF(AND(D155<>0,D155<>D156),MAX($F$1:F154)+1,"") ->  | G155: 00:00:00
A156: Fin Mai-Début juin semaine 1 | B156: 31 | C156: 2019-05-29 | D156: 0 | E156: =IF(OR(D156=0,D156=D155),"",IF(OR(D156<>"",D156<>D157),MAX($E$1:E155)+1,0)) ->  | F156: =IF(AND(D156<>0,D156<>D157),MAX($F$1:F155)+1,"") ->  | G156: 00:00:00
A157: Fin Mai-Début juin semaine 1 | B157: 32 | C157: 2019-05-30 | D157: 0 | E157: =IF(OR(D157=0,D157=D156),"",IF(OR(D157<>"",D157<>D158),MAX($E$1:E156)+1,0)) ->  | F157: =IF(AND(D157<>0,D157<>D158),MAX($F$1:F156)+1,"") ->  | G157: 00:00:00
A158: Fin Mai-Début juin semaine 1 | B158: 33 | C158: 2019-05-31 | D158: 0 | E158: =IF(OR(D158=0,D158=D157),"",IF(OR(D158<>"",D158<>D159),MAX($E$1:E157)+1,0)) ->  | F158: =IF(AND(D158<>0,D158<>D159),MAX($F$1:F157)+1,"") ->  | G158: 00:00:00
A159: Fin Mai-Début juin semaine 1 | B159: 34 | C159: 2019-06-01 | D159: 0 | E159: =IF(OR(D159=0,D159=D158),"",IF(OR(D159<>"",D159<>D160),MAX($E$1:E158)+1,0)) ->  | F159: =IF(AND(D159<>0,D159<>D160),MAX($F$1:F158)+1,"") ->  | G159: 00:00:00
A160: Fin Mai-Début juin semaine 1 | B160: 35 | C160: 2019-06-02 | D160: 0 | E160: =IF(OR(D160=0,D160=D159),"",IF(OR(D160<>"",D160<>D161),MAX($E$1:E159)+1,0)) ->  | F160: =IF(AND(D160<>0,D160<>D161),MAX($F$1:F159)+1,"") ->  | G160: 00:00:00
A161: Juin 2e-3e semaine | B161: 16 | C161: 2019-06-03 | D161: 0 | E161: =IF(OR(D161=0,D161=D160),"",IF(OR(D161<>"",D161<>D162),MAX($E$1:E160)+1,0)) ->  | F161: =IF(AND(D161<>0,D161<>D162),MAX($F$1:F160)+1,"") ->  | G161: 00:00:00
A162: Juin 2e-3e semaine | B162: 17 | C162: 2019-06-04 | D162: 0 | E162: =IF(OR(D162=0,D162=D161),"",IF(OR(D162<>"",D162<>D163),MAX($E$1:E161)+1,0)) ->  | F162: =IF(AND(D162<>0,D162<>D163),MAX($F$1:F161)+1,"") ->  | G162: 00:00:00
A163: Juin 2e-3e semaine | B163: 18 | C163: 2019-06-05 | D163: 0 | E163: =IF(OR(D163=0,D163=D162),"",IF(OR(D163<>"",D163<>D164),MAX($E$1:E162)+1,0)) ->  | F163: =IF(AND(D163<>0,D163<>D164),MAX($F$1:F162)+1,"") ->  | G163: 00:00:00
A164: Juin 2e-3e semaine | B164: 19 | C164: 2019-06-06 | D164: 0 | E164: =IF(OR(D164=0,D164=D163),"",IF(OR(D164<>"",D164<>D165),MAX($E$1:E163)+1,0)) ->  | F164: =IF(AND(D164<>0,D164<>D165),MAX($F$1:F163)+1,"") ->  | G164: 00:00:00
A165: Juin 2e-3e semaine | B165: 20 | C165: 2019-06-07 | D165: 0 | E165: =IF(OR(D165=0,D165=D164),"",IF(OR(D165<>"",D165<>D166),MAX($E$1:E164)+1,0)) ->  | F165: =IF(AND(D165<>0,D165<>D166),MAX($F$1:F164)+1,"") ->  | G165: 00:00:00
A166: Juin 2e-3e semaine | B166: 21 | C166: 2019-06-08 | D166: 0 | E166: =IF(OR(D166=0,D166=D165),"",IF(OR(D166<>"",D166<>D167),MAX($E$1:E165)+1,0)) ->  | F166: =IF(AND(D166<>0,D166<>D167),MAX($F$1:F165)+1,"") ->  | G166: 00:00:00
A167: Juin 2e-3e semaine | B167: 22 | C167: 2019-06-09 | D167: 0 | E167: =IF(OR(D167=0,D167=D166),"",IF(OR(D167<>"",D167<>D168),MAX($E$1:E166)+1,0)) ->  | F167: =IF(AND(D167<>0,D167<>D168),MAX($F$1:F166)+1,"") ->  | G167: 00:00:00
A168: Juin 2e-3e semaine | B168: 29 | C168: 2019-06-10 | D168: 0 | E168: =IF(OR(D168=0,D168=D167),"",IF(OR(D168<>"",D168<>D169),MAX($E$1:E167)+1,0)) ->  | F168: =IF(AND(D168<>0,D168<>D169),MAX($F$1:F167)+1,"") ->  | G168: 00:00:00
A169: Juin 2e-3e semaine | B169: 30 | C169: 2019-06-11 | D169: 0 | E169: =IF(OR(D169=0,D169=D168),"",IF(OR(D169<>"",D169<>D170),MAX($E$1:E168)+1,0)) ->  | F169: =IF(AND(D169<>0,D169<>D170),MAX($F$1:F168)+1,"") ->  | G169: 00:00:00
A170: Juin 2e-3e semaine | B170: 31 | C170: 2019-06-12 | D170: 0 | E170: =IF(OR(D170=0,D170=D169),"",IF(OR(D170<>"",D170<>D171),MAX($E$1:E169)+1,0)) ->  | F170: =IF(AND(D170<>0,D170<>D171),MAX($F$1:F169)+1,"") ->  | G170: 00:00:00
A171: Juin 2e-3e semaine | B171: 32 | C171: 2019-06-13 | D171: 0 | E171: =IF(OR(D171=0,D171=D170),"",IF(OR(D171<>"",D171<>D172),MAX($E$1:E170)+1,0)) ->  | F171: =IF(AND(D171<>0,D171<>D172),MAX($F$1:F170)+1,"") ->  | G171: 00:00:00
A172: Juin 2e-3e semaine | B172: 33 | C172: 2019-06-14 | D172: 0 | E172: =IF(OR(D172=0,D172=D171),"",IF(OR(D172<>"",D172<>D173),MAX($E$1:E171)+1,0)) ->  | F172: =IF(AND(D172<>0,D172<>D173),MAX($F$1:F171)+1,"") ->  | G172: 00:00:00
A173: Juin 2e-3e semaine | B173: 34 | C173: 2019-06-15 | D173: 0 | E173: =IF(OR(D173=0,D173=D172),"",IF(OR(D173<>"",D173<>D174),MAX($E$1:E172)+1,0)) ->  | F173: =IF(AND(D173<>0,D173<>D174),MAX($F$1:F172)+1,"") ->  | G173: 00:00:00
A174: Juin 2e-3e semaine | B174: 35 | C174: 2019-06-16 | D174: 0 | E174: =IF(OR(D174=0,D174=D173),"",IF(OR(D174<>"",D174<>D175),MAX($E$1:E173)+1,0)) ->  | F174: =IF(AND(D174<>0,D174<>D175),MAX($F$1:F173)+1,"") ->  | G174: 00:00:00
A175: Juin 4e-5e semaine-Juillet déb. | B175: 16 | C175: 2019-06-17 | D175: 0 | E175: =IF(OR(D175=0,D175=D174),"",IF(OR(D175<>"",D175<>D176),MAX($E$1:E174)+1,0)) ->  | F175: =IF(AND(D175<>0,D175<>D176),MAX($F$1:F174)+1,"") ->  | G175: 00:00:00
A176: Juin 4e-5e semaine-Juillet déb. | B176: 17 | C176: 2019-06-18 | D176: 0 | E176: =IF(OR(D176=0,D176=D175),"",IF(OR(D176<>"",D176<>D177),MAX($E$1:E175)+1,0)) ->  | F176: =IF(AND(D176<>0,D176<>D177),MAX($F$1:F175)+1,"") ->  | G176: 00:00:00
A177: Juin 4e-5e semaine-Juillet déb. | B177: 18 | C177: 2019-06-19 | D177: 0 | E177: =IF(OR(D177=0,D177=D176),"",IF(OR(D177<>"",D177<>D178),MAX($E$1:E176)+1,0)) ->  | F177: =IF(AND(D177<>0,D177<>D178),MAX($F$1:F176)+1,"") ->  | G177: 00:00:00
A178: Juin 4e-5e semaine-Juillet déb. | B178: 19 | C178: 2019-06-20 | D178: 0 | E178: =IF(OR(D178=0,D178=D177),"",IF(OR(D178<>"",D178<>D179),MAX($E$1:E177)+1,0)) ->  | F178: =IF(AND(D178<>0,D178<>D179),MAX($F$1:F177)+1,"") ->  | G178: 00:00:00
A179: Juin 4e-5e semaine-Juillet déb. | B179: 20 | C179: 2019-06-21 | D179: 0 | E179: =IF(OR(D179=0,D179=D178),"",IF(OR(D179<>"",D179<>D180),MAX($E$1:E178)+1,0)) ->  | F179: =IF(AND(D179<>0,D179<>D180),MAX($F$1:F178)+1,"") ->  | G179: 00:00:00
A180: Juin 4e-5e semaine-Juillet déb. | B180: 21 | C180: 2019-06-22 | D180: 0 | E180: =IF(OR(D180=0,D180=D179),"",IF(OR(D180<>"",D180<>D181),MAX($E$1:E179)+1,0)) ->  | F180: =IF(AND(D180<>0,D180<>D181),MAX($F$1:F179)+1,"") ->  | G180: 00:00:00
A181: Juin 4e-5e semaine-Juillet déb. | B181: 22 | C181: 2019-06-23 | D181: 0 | E181: =IF(OR(D181=0,D181=D180),"",IF(OR(D181<>"",D181<>D182),MAX($E$1:E180)+1,0)) ->  | F181: =IF(AND(D181<>0,D181<>D182),MAX($F$1:F180)+1,"") ->  | G181: 00:00:00
A182: Juin 4e-5e semaine-Juillet déb. | B182: 29 | C182: 2019-06-24 | D182: 0 | E182: =IF(OR(D182=0,D182=D181),"",IF(OR(D182<>"",D182<>D183),MAX($E$1:E181)+1,0)) ->  | F182: =IF(AND(D182<>0,D182<>D183),MAX($F$1:F181)+1,"") ->  | G182: 00:00:00
A183: Juin 4e-5e semaine-Juillet déb. | B183: 30 | C183: 2019-06-25 | D183: 0 | E183: =IF(OR(D183=0,D183=D182),"",IF(OR(D183<>"",D183<>D184),MAX($E$1:E182)+1,0)) ->  | F183: =IF(AND(D183<>0,D183<>D184),MAX($F$1:F182)+1,"") ->  | G183: 00:00:00
A184: Juin 4e-5e semaine-Juillet déb. | B184: 31 | C184: 2019-06-26 | D184: 0 | E184: =IF(OR(D184=0,D184=D183),"",IF(OR(D184<>"",D184<>D185),MAX($E$1:E183)+1,0)) ->  | F184: =IF(AND(D184<>0,D184<>D185),MAX($F$1:F183)+1,"") ->  | G184: 00:00:00
A185: Juin 4e-5e semaine-Juillet déb. | B185: 32 | C185: 2019-06-27 | D185: 0 | E185: =IF(OR(D185=0,D185=D184),"",IF(OR(D185<>"",D185<>D186),MAX($E$1:E184)+1,0)) ->  | F185: =IF(AND(D185<>0,D185<>D186),MAX($F$1:F184)+1,"") ->  | G185: 00:00:00
A186: Juin 4e-5e semaine-Juillet déb. | B186: 33 | C186: 2019-06-28 | D186: 0 | E186: =IF(OR(D186=0,D186=D185),"",IF(OR(D186<>"",D186<>D187),MAX($E$1:E185)+1,0)) ->  | F186: =IF(AND(D186<>0,D186<>D187),MAX($F$1:F185)+1,"") ->  | G186: 00:00:00
A187: Juin 4e-5e semaine-Juillet déb. | B187: 34 | C187: 2019-06-29 | D187: 0 | E187: =IF(OR(D187=0,D187=D186),"",IF(OR(D187<>"",D187<>D188),MAX($E$1:E186)+1,0)) ->  | F187: =IF(AND(D187<>0,D187<>D188),MAX($F$1:F186)+1,"") ->  | G187: 00:00:00
A188: Juin 4e-5e semaine-Juillet déb. | B188: 35 | C188: 2019-06-30 | D188: 0 | E188: =IF(OR(D188=0,D188=D187),"",IF(OR(D188<>"",D188<>D189),MAX($E$1:E187)+1,0)) ->  | F188: =IF(AND(D188<>0,D188<>D189),MAX($F$1:F187)+1,"") ->  | G188: 00:00:00
A189: Juillet-2prem. semaines | B189: 16 | C189: 2019-07-01 | D189: 0 | E189: =IF(OR(D189=0,D189=D188),"",IF(OR(D189<>"",D189<>D190),MAX($E$1:E188)+1,0)) ->  | F189: =IF(AND(D189<>0,D189<>D190),MAX($F$1:F188)+1,"") ->  | G189: 00:00:00
A190: Juillet-2prem. semaines | B190: 17 | C190: 2019-07-02 | D190: 0 | E190: =IF(OR(D190=0,D190=D189),"",IF(OR(D190<>"",D190<>D191),MAX($E$1:E189)+1,0)) ->  | F190: =IF(AND(D190<>0,D190<>D191),MAX($F$1:F189)+1,"") ->  | G190: 00:00:00
A191: Juillet-2prem. semaines | B191: 18 | C191: 2019-07-03 | D191: 0 | E191: =IF(OR(D191=0,D191=D190),"",IF(OR(D191<>"",D191<>D192),MAX($E$1:E190)+1,0)) ->  | F191: =IF(AND(D191<>0,D191<>D192),MAX($F$1:F190)+1,"") ->  | G191: 00:00:00
A192: Juillet-2prem. semaines | B192: 19 | C192: 2019-07-04 | D192: 0 | E192: =IF(OR(D192=0,D192=D191),"",IF(OR(D192<>"",D192<>D193),MAX($E$1:E191)+1,0)) ->  | F192: =IF(AND(D192<>0,D192<>D193),MAX($F$1:F191)+1,"") ->  | G192: 00:00:00
A193: Juillet-2prem. semaines | B193: 20 | C193: 2019-07-05 | D193: 0 | E193: =IF(OR(D193=0,D193=D192),"",IF(OR(D193<>"",D193<>D194),MAX($E$1:E192)+1,0)) ->  | F193: =IF(AND(D193<>0,D193<>D194),MAX($F$1:F192)+1,"") ->  | G193: 00:00:00
A194: Juillet-2prem. semaines | B194: 21 | C194: 2019-07-06 | D194: 0 | E194: =IF(OR(D194=0,D194=D193),"",IF(OR(D194<>"",D194<>D195),MAX($E$1:E193)+1,0)) ->  | F194: =IF(AND(D194<>0,D194<>D195),MAX($F$1:F193)+1,"") ->  | G194: 00:00:00
A195: Juillet-2prem. semaines | B195: 22 | C195: =INDIRECT(ADDRESS(B195,1,,,A195)) -> 2019-07-07 | D195: 0 | E195: =IF(OR(D195=0,D195=D194),"",IF(OR(D195<>"",D195<>D196),MAX($E$1:E194)+1,0)) ->  | F195: =IF(AND(D195<>0,D195<>D196),MAX($F$1:F194)+1,"") ->  | G195: 00:00:00
A196: Juillet-2prem. semaines | B196: 29 | C196: 2019-07-08 | D196: 0 | E196: =IF(OR(D196=0,D196=D195),"",IF(OR(D196<>"",D196<>D197),MAX($E$1:E195)+1,0)) ->  | F196: =IF(AND(D196<>0,D196<>D197),MAX($F$1:F195)+1,"") ->  | G196: =INDIRECT(ADDRESS($B196,8,,,$A196)) -> 00:00:00
A197: Juillet-2prem. semaines | B197: 30 | C197: 2019-07-09 | D197: 0 | E197: =IF(OR(D197=0,D197=D196),"",IF(OR(D197<>"",D197<>D198),MAX($E$1:E196)+1,0)) ->  | F197: =IF(AND(D197<>0,D197<>D198),MAX($F$1:F196)+1,"") ->  | G197: 00:00:00
A198: Juillet-2prem. semaines | B198: 31 | C198: 2019-07-10 | D198: 0 | E198: =IF(OR(D198=0,D198=D197),"",IF(OR(D198<>"",D198<>D199),MAX($E$1:E197)+1,0)) ->  | F198: =IF(AND(D198<>0,D198<>D199),MAX($F$1:F197)+1,"") ->  | G198: 00:00:00
A199: Juillet-2prem. semaines | B199: 32 | C199: 2019-07-11 | D199: 0 | E199: =IF(OR(D199=0,D199=D198),"",IF(OR(D199<>"",D199<>D200),MAX($E$1:E198)+1,0)) ->  | F199: =IF(AND(D199<>0,D199<>D200),MAX($F$1:F198)+1,"") ->  | G199: 00:00:00
A200: Juillet-2prem. semaines | B200: 33 | C200: 2019-07-12 | D200: 0 | E200: =IF(OR(D200=0,D200=D199),"",IF(OR(D200<>"",D200<>D201),MAX($E$1:E199)+1,0)) ->  | F200: =IF(AND(D200<>0,D200<>D201),MAX($F$1:F199)+1,"") ->  | G200: 00:00:00
... 171 more rows

Sheet Janvier - 2prem. semaines
A1: =MID(CELL("filename",A1),FIND("]",CELL("filename",A1))+1,32) -> Janvier - 2prem. semaines
B2: Feuille de temps
AD8: Congés fériés, lundi suivant la date
A9: Employé: | B9: ='Congés de l''employé'!B8 -> 0 | AD9: Mois | AE9: Type de congé férié | AF9: Année en cours
A10: Période débutant le | B10: =DATE(An_ref,1,-2)-WEEKDAY(DATE(An_ref,1,3))+7 -> 2018-12-31 | AB10: =OR(B11=$AF$13,B11=$AF$14,B11=$AF$15,B11=$AF$17,B11=$AF$18,B11=$AF$20,B11=$AF$22,B11=$AF$24,B11=$AF$26,B11=$AF$28,B11=$AF$29,B11=$AF$30) -> FALSE | AF10: =An_ref -> 2019 | AH10: alloué au férié
AD11: Janvier | AE11: Jour de l'an | AF11: =DATE(Année,1,1) -> 2019-01-01 | AG11: Date fixe 1er janvier
K12: =VLOOKUP($A17,$AF$12:$AH$30,3,FALSE) -> 1.494718362e-188 | AC12: FÉRIÉ | AE12: FÉRIÉ-JOUR OUVRABLE SUIVANT LE JOUR DE L'AN | AF12: =AF11+2-WEEKDAY(AF11)+(WEEKDAY(AF11)>2) -> 2019-01-01 | AH12: =Edit!M27 -> 7.47359181e-190
A13: Jour | B13: Heure Début | C13: Départ Diner | D13: Retour Diner | E13: Heure Fin | F13: Télétravail Départ | G13: Télétravail Fin | H13: TOTAL Journalier | I13: Absence | K13: Index de la ligne | AE13: Bureau fermé congé donné-un jour après le jour de l'an | AF13: =AF11+2-WEEKDAY(AF11)+(WEEKDAY(AF11)>2)+1 -> 2019-01-02
K14: 0 | AC14: FÉRIÉ | AD14: Mars | AE14: Bureau fermé congé donné-un jour ouvré avant Pâques | AF14: =AF15-2 -> 2019-04-19 | AG14: 3e lundi de mai | AH14: =Edit!M28 -> 0.3289473684
A15: Horaire Semaine 1 | AE15: Pâques | AF15: =DATE(Année,3,29.56+0.979*MOD(204-11*MOD(Année,19),30)- WEEKDAY(DATE(Année,3,28.56+0.979*MOD(204-11*MOD(Année,19),30)))) -> 2019-04-21 | AG15: Date fixe 24 juin
A16: =$B$10 -> 2018-12-31 | H16: =IF(ISNA(VLOOKUP($A16,$AF$12:$AH$30,3,FALSE)),IF($I16="CONGÉ",'Congés de l''employé'!$E$16,IF($I16="Demi congé",'Congés de l''employé'!$BU$16,IF($I16="MALADIE",'Congés de l''employé'!$E$18,IF($I16="Demi maladie",'Congés de l''employé'!$BU$18,MOD($E16-($B16-($C16-$D16))+($G16-$F16),1))))),VLOOKUP($A16,$AF$12:$AH$30,3,FALSE)) -> 0 | K16: =IF(COUNTIF(I16:I16,"X"),MAX($K$13:K13)+1,"") ->  | AD16: Avril | AE16: Lundi de pâques | AF16: =AF15+1 -> 2019-04-22 | AG16: Date fixe 1er juillet
A17: =$B$10+1 -> 2019-01-01 | H17: =IF(ISNA(VLOOKUP($A17,$AF$12:$AH$30,3,FALSE)),IF($I17="CONGÉ",'Congés de l''employé'!$E$16,IF($I17="Demi congé",'Congés de l''employé'!$BU$16,IF($I17="MALADIE",'Congés de l''employé'!$E$18,IF($I17="Demi maladie",'Congés de l''employé'!$BU$18,MOD($E17-($B17-($C17-$D17))+($G17-$F17),1))))),VLOOKUP($A17,$AF$12:$AH$30,3,FALSE)) -> 7.47359181e-190 | K17: =IF(COUNTIF(I17:I17,"X"),MAX($K$13:K14)+1,"") ->  | AC17: FÉRIÉ | AD17: Mai | AE17: Journée nationale des patriotes | AF17: =DATE(Année,5,23)-WEEKDAY(DATE(Année,5,1),2) -> 2019-05-20 | AH17: =Edit!M30 -> 0
A18: =$B$10+2 -> 2019-01-02 | H18: =IF(ISNA(VLOOKUP($A18,$AF$12:$AH$30,3,FALSE)),IF($I18="CONGÉ",'Congés de l''employé'!$E$16,IF($I18="Demi congé",'Congés de l''employé'!$BU$16,IF($I18="MALADIE",'Congés de l''employé'!$E$18,IF($I18="Demi maladie",'Congés de l''employé'!$BU$18,MOD($E18-($B18-($C18-$D18))+($G18-$F18),1))))),VLOOKUP($A18,$AF$12:$AH$30,3,FALSE)) -> 0 | K18: =IF(COUNTIF(I18:I18,"X"),MAX($K$13:K15)+1,"") ->  | AC18: FÉRIÉ | AD18: Juin | AE18: Fête nationale du Québec | AF18: =DATE(Année,6,24) -> 2019-06-24 | AH18: =Edit!M31 -> 0
A19: =$B$10+3 -> 2019-01-03 | H19: =IF(ISNA(VLOOKUP($A19,$AF$12:$AH$30,3,FALSE)),IF($I19="CONGÉ",'Congés de l''employé'!$E$16,IF($I19="Demi congé",'Congés de l''employé'!$BU$16,IF($I19="MALADIE",'Congés de l''employé'!$E$18,IF($I19="Demi maladie",'Congés de l''employé'!$BU$18,MOD($E19-($B19-($C19-$D19))+($G19-$F19),1))))),VLOOKUP($A19,$AF$12:$AH$30,3,FALSE)) -> 0 | K19: =IF(COUNTIF(I19:I19,"X"),MAX($K$13:K16)+1,"") ->  | AE19: FÉRIÉ-JOUR OUVRABLE SUIVANT LA FÊTE NATIONALE DU QUÉBEC | AF19: =AF18+2-WEEKDAY(AF18)+(WEEKDAY(AF18)>2)*7 -> 2019-06-24 | AG19: Date fixe 25 décembre
A20: =$B$10+4 -> 2019-01-04 | H20: =IF(ISNA(VLOOKUP($A20,$AF$12:$AH$30,3,FALSE)),IF($I20="CONGÉ",'Congés de l''employé'!$E$16,IF($I20="Demi congé",'Congés de l''employé'!$BU$16,IF($I20="MALADIE",'Congés de l''employé'!$E$18,IF($I20="Demi maladie",'Congés de l''employé'!$BU$18,MOD($E20-($B20-($C20-$D20))+($G20-$F20),1))))),VLOOKUP($A20,$AF$12:$AH$30,3,FALSE)) -> 0 | K20: =IF(COUNTIF(I20:I20,"X"),MAX($K$13:K17)+1,"") ->  | AC20: FÉRIÉ | AD20: Juillet | AE20: Fête du Canada | AF20: =DATE(Année,7,1) -> 2019-07-01 | AH20: =Edit!M32 -> 1.125374615e-210
A21: =$B$10+5 -> 2019-01-05 | H21: =IF(ISNA(VLOOKUP($A21,$AF$12:$AH$30,3,FALSE)),IF($I21="CONGÉ",'Congés de l''employé'!$E$16,IF($I21="Demi congé",'Congés de l''employé'!$BU$16,IF($I21="MALADIE",'Congés de l''employé'!$E$18,IF($I21="Demi maladie",'Congés de l''employé'!$BU$18,MOD($E21-($B21-($C21-$D21))+($G21-$F21),1))))),VLOOKUP($A21,$AF$12:$AH$30,3,FALSE)) -> 0 | K21: =IF(COUNTIF(I21:I21,"X"),MAX($K$13:K18)+1,"") ->  | AE21: FÉRIÉ-JOUR OUVRABLE SUIVANT LA FÊTE DU CANADA | AF21: =AF20+2-WEEKDAY(AF20)+(WEEKDAY(AF20)>2)*7 -> 2019-07-01
A22: =$B$10+6 -> 2019-01-06 | H22: =IF(ISNA(VLOOKUP($A22,$AF$12:$AH$30,3,FALSE)),IF($I22="CONGÉ",'Congés de l''employé'!$E$16,IF($I22="Demi congé",'Congés de l''employé'!$BU$16,IF($I22="MALADIE",'Congés de l''employé'!$E$18,IF($I22="Demi maladie",'Congés de l''employé'!$BU$18,MOD($E22-($B22-($C22-$D22))+($G22-$F22),1))))),VLOOKUP($A22,$AF$12:$AH$30,3,FALSE)) -> 0 | K22: =IF(COUNTIF(I22:I22,"X"),MAX($K$13:K19)+1,"") ->  | AC22: FÉRIÉ | AD22: Septembre | AE22: Fête du travail | AF22: =IF(MOD(DATE(Année,9,1),7)<=2,2-MOD(DATE(Année,9,1),7),9-MOD(DATE(Année,9,1),7))+DATE(Année,9,1) -> 2019-09-01 | AH22: =Edit!M33 -> 0
H23: =SUM(H16:H22)+Tableau14567893640[[#This Row],[Heure Début]] -> 7.47359181e-190 | K23: =IF(COUNTIF(I23:I23,"X"),MAX($K$13:K20)+1,"") ->  | AE23: FÉRIÉ-JOUR OUVRABLE SUIVANT LA FÊTE DU TRAVAIL | AF23: =AF22+2-WEEKDAY(AF22)+(WEEKDAY(AF22)>2)*7 -> 2019-09-02
K24: =IF(COUNTIF(I24:I24,"X"),MAX($K$13:K21)+1,"") ->  | AC24: FÉRIÉ | AD24: Octobre | AE24: Action de grâce | AF24: =DATE(AF10,10,1) -> 2019-10-01 | AH24: =Edit!M34 -> 0
K25: =IF(COUNTIF(I25:I25,"X"),MAX($K$13:K22)+1,"") ->  | AE25: FÉRIÉ-JOUR OUVRABLE SUIVANT L'ACTION DE GRÂCE | AF25: =AF24-DAY(AF24)-WEEKDAY(AF24-DAY(AF24),2)+15 -> 2019-10-14
H26: =IF(OR(H23=-(B15),B29=0),"0",(H23-B15)) -> 0 | K26: =IF(COUNTIF(I26:I26,"X"),MAX($K$13:K23)+1,"") ->  | AE26: Bureau fermé congé donné | AF26: =DATE(Année,12,25)-1 -> 2019-12-24 | AH26: ='[1]Congés de l''employé'!$E$14 -> 0
K28: =IF(COUNTIF(I28:I28,"X"),MAX($K$13:K24)+1,"") ->  | AC28: FÉRIÉ | AD28: Décembre | AE28: Férié-Noël | AF28: =DATE(Année,12,25) -> 2019-12-25 | AH28: =Edit!M35 -> 0
A29: Horaire Semaine 2 | K29: =IF(COUNTIF(I29:I29,"X"),MAX($K$13:K25)+1,"") ->  | AD29: Décembre | AE29: Bureau fermé congé donné | AF29: =DATE(Année,12,25)+1 -> 2019-12-26
A30: =B10+7 -> 2019-01-07 | B30: 0.3333333333 | C30: 0.5 | H30: =IF(ISNA(VLOOKUP($A30,$AF$12:$AH$30,3,FALSE)),IF($I30="CONGÉ",'Congés de l''employé'!$E$16,IF($I30="Demi congé",'Congés de l''employé'!$BU$16,IF($I30="MALADIE",'Congés de l''employé'!$E$18,IF($I30="Demi maladie",'Congés de l''employé'!$BU$18,MOD($E30-($B30-($C30-$D30))+($G30-$F30),1))))),VLOOKUP($A30,$AF$12:$AH$30,3,FALSE)) -> 0.1666666667 | K30: =IF(COUNTIF(I30:I30,"X"),MAX($K$13:K26)+1,"") ->  | AD30: Décembre | AE30: Bureau fermé congé donné | AF30: =AF11+2-WEEKDAY(AF11)+(WEEKDAY(AF11)>2)-1 -> 2018-12-31
A31: =B10+8 -> 2019-01-08 | B31: 0.375 | C31: 0.5 | H31: =IF(ISNA(VLOOKUP($A31,$AF$12:$AH$30,3,FALSE)),IF($I31="CONGÉ",'Congés de l''employé'!$E$16,IF($I31="Demi congé",'Congés de l''employé'!$BU$16,IF($I31="MALADIE",'Congés de l''employé'!$E$18,IF($I31="Demi maladie",'Congés de l''employé'!$BU$18,MOD($E31-($B31-($C31-$D31))+($G31-$F31),1))))),VLOOKUP($A31,$AF$12:$AH$30,3,FALSE)) -> 0.125 | K31: =IF(COUNTIF(I31:I31,"X"),MAX($K$13:K28)+1,"") -> 
A32: =B10+9 -> 2019-01-09 | B32: 0.3541666667 | C32: 0.4166666667 | H32: =IF(ISNA(VLOOKUP($A32,$AF$12:$AH$30,3,FALSE)),IF($I32="CONGÉ",'Congés de l''employé'!$E$16,IF($I32="Demi congé",'Congés de l''employé'!$BU$16,IF($I32="MALADIE",'Congés de l''employé'!$E$18,IF($I32="Demi maladie",'Congés de l''employé'!$BU$18,MOD($E32-($B32-($C32-$D32))+($G32-$F32),1))))),VLOOKUP($A32,$AF$12:$AH$30,3,FALSE)) -> 0.0625 | K32: =IF(COUNTIF(I32:I32,"X"),MAX($K$13:K29)+1,"") -> 
A33: =B10+10 -> 2019-01-10 | H33: =IF(ISNA(VLOOKUP($A33,$AF$12:$AH$30,3,FALSE)),IF($I33="CONGÉ",'Congés de l''employé'!$E$16,IF($I33="Demi congé",'Congés de l''employé'!$BU$16,IF($I33="MALADIE",'Congés de l''employé'!$E$18,IF($I33="Demi maladie",'Congés de l''employé'!$BU$18,MOD($E33-($B33-($C33-$D33))+($G33-$F33),1))))),VLOOKUP($A33,$AF$12:$AH$30,3,FALSE)) -> 0 | K33: =IF(COUNTIF(I33:I33,"X"),MAX($K$13:K30)+1,"") -> 
A34: =B10+11 -> 2019-01-11 | H34: =IF(ISNA(VLOOKUP($A34,$AF$12:$AH$30,3,FALSE)),IF($I34="CONGÉ",'Congés de l''employé'!$E$16,IF($I34="Demi congé",'Congés de l''employé'!$BU$16,IF($I34="MALADIE",'Congés de l''employé'!$E$18,IF($I34="Demi maladie",'Congés de l''employé'!$BU$18,MOD($E34-($B34-($C34-$D34))+($G34-$F34),1))))),VLOOKUP($A34,$AF$12:$AH$30,3,FALSE)) -> 0 | K34: =IF(COUNTIF(I34:I34,"X"),MAX($K$13:K31)+1,"") -> 
A35: =B10+12 -> 2019-01-12 | H35: =IF(ISNA(VLOOKUP($A35,$AF$12:$AH$30,3,FALSE)),IF($I35="CONGÉ",'Congés de l''employé'!$E$16,IF($I35="Demi congé",'Congés de l''employé'!$BU$16,IF($I35="MALADIE",'Congés de l''employé'!$E$18,IF($I35="Demi maladie",'Congés de l''employé'!$BU$18,MOD($E35-($B35-($C35-$D35))+($G35-$F35),1))))),VLOOKUP($A35,$AF$12:$AH$30,3,FALSE)) -> 0 | K35: =IF(COUNTIF(I35:I35,"X"),MAX($K$13:K32)+1,"") -> 
A36: =B10+13 -> 2019-01-13 | H36: =IF(ISNA(VLOOKUP($A36,$AF$12:$AH$30,3,FALSE)),IF($I36="CONGÉ",'Congés de l''employé'!$E$16,IF($I36="Demi congé",'Congés de l''employé'!$BU$16,IF($I36="MALADIE",'Congés de l''employé'!$E$18,IF($I36="Demi maladie",'Congés de l''employé'!$BU$18,MOD($E36-($B36-($C36-$D36))+($G36-$F36),1))))),VLOOKUP($A36,$AF$12:$AH$30,3,FALSE)) -> 0 | K36: =IF(COUNTIF(I36:I36,"X"),MAX($K$13:K33)+1,"") -> 
H37: =SUM(H30:H36)+B37 -> 0.3541666667
H39: =IF(OR(H37=-(B29),B29=0),"0",(H37-B29)) -> 0
A41: Heure travaillées | B41: Heures prévues | C41: ENTREZ le nombre d'heures à payer | D41: Heures en banque de l'an passé | E41: Heures supplémentaires ou en moins | F41: Heures à transposer dans la Banque | G41: Total de la Banque d'heures
A42: =$H$23+$H$37 -> 0.3541666667 | B42: ='Congés de l''employé'!BU8*2 -> 2.916666667 | C42: =A42 -> 0.3541666667 | D42: 0 | E42: =IF($H$26>0,$H$26)+IF($H$38>0,$H$38,0)+IF($H$26<0,$H$26)+IF($H$38<0,$H$38,0) -> 0 | F42: =$A$42-$C$42 -> 0 | G42: =$F$42+D42 -> 0

Sheet Janvier - 2dern. semaines
A1: =MID(CELL("filename",A1),FIND("]",CELL("filename",A1))+1,32) -> Janvier - 2dern. semaines
B2: Feuille de temps
AD8: Congés fériés, lundi suivant la date
A9: Employé: | B9: ='Congés de l''employé'!B8 -> 0 | AD9: Mois | AE9: Type de congé férié | AF9: Année en cours
A10: Période débutant le | B10: =DATE(An_ref,1,-2)-WEEKDAY(DATE(An_ref,1,3))+21 -> 2019-01-14 | AB10: =OR(B11=$AF$12,B11=$AF$13,B11=$AF$14,B11=$AF$16,B11=$AF$17,B11=$AF$19,B11=$AF$21,B11=$AF$23,B11=$AF$25,B11=$AF$26,B11=$AF$27,B11=$AF$28) -> FALSE | AF10: =An_ref -> 2019 | AH10: alloué au férié
AD11: Janvier | AE11: Jour de l'an | AF11: =DATE(Année,1,1) -> 2019-01-01 | AG11: Date fixe 1er janvier
AE12: FÉRIÉ-JOUR OUVRABLE SUIVANT LE JOUR DE L'AN | AF12: =AF11+2-WEEKDAY(AF11)+(WEEKDAY(AF11)>2) -> 2019-01-01 | AH12: =Edit!M27 -> 7.47359181e-190
A13: Jour | B13: Heure Début | C13: Départ Diner | D13: Retour Diner | E13: Heure Fin | F13: Télétravail Départ | G13: Télétravail Fin | H13: TOTAL Journalier | I13: Absence | K13: Index de la ligne | AE13: Bureau fermé congé donné-un jour après le jour de l'an | AF13: =AF11+2-WEEKDAY(AF11)+(WEEKDAY(AF11)>2)+1 -> 2019-01-02
K14: =IF(MAX('Janvier - 2prem. semaines'!$K$14:K36)=0,'Janvier - 2prem. semaines'!L14,MAX('Janvier - 2prem. semaines'!$K$14:K36)) -> 0 | AD14: Mars | AE14: Bureau fermé congé donné-un jour ouvré avant Pâques | AF14: =AF15-2 -> 2019-04-19 | AG14: 3e lundi de mai | AH14: =Edit!M28 -> 0.3289473684
A15: Horaire Semaine 1 | K15: =IF(COUNTIF(I16,"X"),MAX($K$13:K13)+1,"") ->  | AE15: Pâques | AF15: =DATE(Année,3,29.56+0.979*MOD(204-11*MOD(Année,19),30)- WEEKDAY(DATE(Année,3,28.56+0.979*MOD(204-11*MOD(Année,19),30)))) -> 2019-04-21 | AG15: Date fixe 24 juin
A16: =$B$10 -> 2019-01-14 | H16: =IF(ISNA(VLOOKUP($A16,$AF$12:$AH$29,3,FALSE)),IF($I16="CONGÉ",'Congés de l''employé'!$E$16,IF($I16="Demi congé",'Congés de l''employé'!$BU$16,IF($I16="MALADIE",'Congés de l''employé'!$E$18,IF($I16="Demi maladie",'Congés de l''employé'!$BU$18,MOD($E16-($B16-($C16-$D16))+($G16-$F16),1))))),VLOOKUP($A16,$AF$12:$AH$29,3,FALSE)) -> 0 | K16: =IF(I16<>"",1+$K$14,"") ->  | AD16: Avril | AE16: Lundi de pâques | AF16: =AF15+1 -> 2019-04-22 | AG16: Date fixe 1er juillet
A17: =$B$10+1 -> 2019-01-15 | H17: =IF(ISNA(VLOOKUP($A17,$AF$12:$AH$29,3,FALSE)),IF($I17="CONGÉ",'Congés de l''employé'!$E$16,IF($I17="Demi congé",'Congés de l''employé'!$BU$16,IF($I17="MALADIE",'Congés de l''employé'!$E$18,IF($I17="Demi maladie",'Congés de l''employé'!$BU$18,MOD($E17-($B17-($C17-$D17))+($G17-$F17),1))))),VLOOKUP($A17,$AF$12:$AH$29,3,FALSE)) -> 0 | AD17: Mai | AE17: Journée nationale des patriotes | AF17: =DATE(Année,5,23)-WEEKDAY(DATE(Année,5,1),2) -> 2019-05-20 | AH17: =Edit!M30 -> 0
A18: =$B$10+2 -> 2019-01-16 | H18: =IF(ISNA(VLOOKUP($A18,$AF$12:$AH$29,3,FALSE)),IF($I18="CONGÉ",'Congés de l''employé'!$E$16,IF($I18="Demi congé",'Congés de l''employé'!$BU$16,IF($I18="MALADIE",'Congés de l''employé'!$E$18,IF($I18="Demi maladie",'Congés de l''employé'!$BU$18,MOD($E18-($B18-($C18-$D18))+($G18-$F18),1))))),VLOOKUP($A18,$AF$12:$AH$29,3,FALSE)) -> 0 | AD18: Juin | AE18: Fête nationale du Québec | AF18: =DATE(Année,6,24) -> 2019-06-24 | AH18: =Edit!M31 -> 0
A19: =$B$10+3 -> 2019-01-17 | H19: =IF(ISNA(VLOOKUP($A19,$AF$12:$AH$29,3,FALSE)),IF($I19="CONGÉ",'Congés de l''employé'!$E$16,IF($I19="Demi congé",'Congés de l''employé'!$BU$16,IF($I19="MALADIE",'Congés de l''employé'!$E$18,IF($I19="Demi maladie",'Congés de l''employé'!$BU$18,MOD($E19-($B19-($C19-$D19))+($G19-$F19),1))))),VLOOKUP($A19,$AF$12:$AH$29,3,FALSE)) -> 0 | AE19: FÉRIÉ-JOUR OUVRABLE SUIVANT LA FÊTE NATIONALE DU QUÉBEC | AF19: =AF18+2-WEEKDAY(AF18)+(WEEKDAY(AF18)>2)*7 -> 2019-06-24 | AG19: Date fixe 25 décembre
A20: =$B$10+4 -> 2019-01-18 | H20: =IF(ISNA(VLOOKUP($A20,$AF$12:$AH$29,3,FALSE)),IF($I20="CONGÉ",'Congés de l''employé'!$E$16,IF($I20="Demi congé",'Congés de l''employé'!$BU$16,IF($I20="MALADIE",'Congés de l''employé'!$E$18,IF($I20="Demi maladie",'Congés de l''employé'!$BU$18,MOD($E20-($B20-($C20-$D20))+($G20-$F20),1))))),VLOOKUP($A20,$AF$12:$AH$29,3,FALSE)) -> 0 | AD20: Juillet | AE20: Fête du Canada | AF20: =DATE(Année,7,1) -> 2019-07-01 | AH20: =Edit!M32 -> 1.125374615e-210
A21: =$B$10+5 -> 2019-01-19 | H21: =IF(ISNA(VLOOKUP($A21,$AF$12:$AH$29,3,FALSE)),IF($I21="CONGÉ",'Congés de l''employé'!$E$16,IF($I21="Demi congé",'Congés de l''employé'!$BU$16,IF($I21="MALADIE",'Congés de l''employé'!$E$18,IF($I21="Demi maladie",'Congés de l''employé'!$BU$18,MOD($E21-($B21-($C21-$D21))+($G21-$F21),1))))),VLOOKUP($A21,$AF$12:$AH$29,3,FALSE)) -> 0 | AE21: FÉRIÉ-JOUR OUVRABLE SUIVANT LA FÊTE DU CANADA | AF21: =AF20+2-WEEKDAY(AF20)+(WEEKDAY(AF20)>2)*7 -> 2019-07-01
A22: =$B$10+6 -> 2019-01-20 | H22: =IF(ISNA(VLOOKUP($A22,$AF$12:$AH$29,3,FALSE)),IF($I22="CONGÉ",'Congés de l''employé'!$E$16,IF($I22="Demi congé",'Congés de l''employé'!$BU$16,IF($I22="MALADIE",'Congés de l''employé'!$E$18,IF($I22="Demi maladie",'Congés de l''employé'!$BU$18,MOD($E22-($B22-($C22-$D22))+($G22-$F22),1))))),VLOOKUP($A22,$AF$12:$AH$29,3,FALSE)) -> 0 | AD22: Septembre | AE22: Fête du travail | AF22: =IF(MOD(DATE(Année,9,1),7)<=2,2-MOD(DATE(Année,9,1),7),9-MOD(DATE(Année,9,1),7))+DATE(Année,9,1) -> 2019-09-01 | AH22: =Edit!M33 -> 0
H23: =SUM(H16:H22)+B23 -> 0 | AE23: FÉRIÉ-JOUR OUVRABLE SUIVANT LA FÊTE DU TRAVAIL | AF23: =AF22+2-WEEKDAY(AF22)+(WEEKDAY(AF22)>2)*7 -> 2019-09-02
AD24: Octobre | AE24: Action de grâce | AF24: =DATE(AF10,10,1) -> 2019-10-01 | AH24: =Edit!M34 -> 0
AE25: FÉRIÉ-JOUR OUVRABLE SUIVANT L'ACTION DE GRÂCE | AF25: =AF24-DAY(AF24)-WEEKDAY(AF24-DAY(AF24),2)+15 -> 2019-10-14
G26: Heures en trop ou en moins | H26: =IF(OR(H23=-(B15),B15=0),"0",(H23-B15)) -> 0 | AE26: Bureau fermé congé donné | AF26: =DATE(Année,12,25)-1 -> 2019-12-24 | AH26: ='[1]Congés de l''employé'!$E$14 -> 0
AD27: Décembre | AE27: Férié-Noël | AF27: =DATE(Année,12,25) -> 2019-12-25 | AH27: =Edit!M35 -> 0
A28: Horaire Semaine 2 | AD28: Décembre | AE28: Bureau fermé congé donné | AF28: =DATE(Année,12,25)+1 -> 2019-12-26
A29: =B10+7 -> 2019-01-21 | B29: 0.3541666667 | C29: 0.5 | D29: 0.5208333333 | E29: 0.6875 | H29: =IF(ISNA(VLOOKUP($A29,$AF$12:$AH$29,3,FALSE)),IF($I29="CONGÉ",'Congés de l''employé'!$E$16,IF($I29="Demi congé",'Congés de l''employé'!$BU$16,IF($I29="MALADIE",'Congés de l''employé'!$E$18,IF($I29="Demi maladie",'Congés de l''employé'!$BU$18,MOD($E29-($B29-($C29-$D29))+($G29-$F29),1))))),VLOOKUP($A29,$AF$12:$AH$29,3,FALSE)) -> 0.3125 | AD29: Décembre | AE29: Bureau fermé congé donné | AF29: =AF11+2-WEEKDAY(AF11)+(WEEKDAY(AF11)>2)-1 -> 2018-12-31
A30: =B10+8 -> 2019-01-22 | B30: 0.3958333333 | C30: 0.5 | D30: 0.5208333333 | E30: 0.8125 | H30: =IF(ISNA(VLOOKUP($A30,$AF$12:$AH$29,3,FALSE)),IF($I30="CONGÉ",'Congés de l''employé'!$E$16,IF($I30="Demi congé",'Congés de l''employé'!$BU$16,IF($I30="MALADIE",'Congés de l''employé'!$E$18,IF($I30="Demi maladie",'Congés de l''employé'!$BU$18,MOD($E30-($B30-($C30-$D30))+($G30-$F30),1))))),VLOOKUP($A30,$AF$12:$AH$29,3,FALSE)) -> 0.3958333333
A31: =B10+9 -> 2019-01-23 | B31: 0.3541666667 | C31: 0.5 | D31: 0.5208333333 | E31: 0.6875 | H31: =IF(ISNA(VLOOKUP($A31,$AF$12:$AH$29,3,FALSE)),IF($I31="CONGÉ",'Congés de l''employé'!$E$16,IF($I31="Demi congé",'Congés de l''employé'!$BU$16,IF($I31="MALADIE",'Congés de l''employé'!$E$18,IF($I31="Demi maladie",'Congés de l''employé'!$BU$18,MOD($E31-($B31-($C31-$D31))+($G31-$F31),1))))),VLOOKUP($A31,$AF$12:$AH$29,3,FALSE)) -> 0.3125
A32: =B10+10 -> 2019-01-24 | B32: 0.375 | E32: 0.5 | H32: =IF(ISNA(VLOOKUP($A32,$AF$12:$AH$29,3,FALSE)),IF($I32="CONGÉ",'Congés de l''employé'!$E$16,IF($I32="Demi congé",'Congés de l''employé'!$BU$16,IF($I32="MALADIE",'Congés de l''employé'!$E$18,IF($I32="Demi maladie",'Congés de l''employé'!$BU$18,MOD($E32-($B32-($C32-$D32))+($G32-$F32),1))))),VLOOKUP($A32,$AF$12:$AH$29,3,FALSE)) -> 0.125
A33: =B10+11 -> 2019-01-25 | B33: 0.4791666667 | E33: 0.6875 | F33: 0.7916666667 | G33: 0.875 | H33: =IF(ISNA(VLOOKUP($A33,$AF$12:$AH$29,3,FALSE)),IF($I33="CONGÉ",'Congés de l''employé'!$E$16,IF($I33="Demi congé",'Congés de l''employé'!$BU$16,IF($I33="MALADIE",'Congés de l''employé'!$E$18,IF($I33="Demi maladie",'Congés de l''employé'!$BU$18,MOD($E33-($B33-($C33-$D33))+($G33-$F33),1))))),VLOOKUP($A33,$AF$12:$AH$29,3,FALSE)) -> 0.2916666667
A34: =B10+12 -> 2019-01-26 | H34: =IF(ISNA(VLOOKUP($A34,$AF$12:$AH$29,3,FALSE)),IF($I34="CONGÉ",'Congés de l''employé'!$E$16,IF($I34="Demi congé",'Congés de l''employé'!$BU$16,IF($I34="MALADIE",'Congés de l''employé'!$E$18,IF($I34="Demi maladie",'Congés de l''employé'!$BU$18,MOD($E34-($B34-($C34-$D34))+($G34-$F34),1))))),VLOOKUP($A34,$AF$12:$AH$29,3,FALSE)) -> 0
A35: =B10+13 -> 2019-01-27 | F35: 0.4583333333 | G35: 0.5833333333 | H35: =IF(ISNA(VLOOKUP($A35,$AF$12:$AH$29,3,FALSE)),IF($I35="CONGÉ",'Congés de l''employé'!$E$16,IF($I35="Demi congé",'Congés de l''employé'!$BU$16,IF($I35="MALADIE",'Congés de l''employé'!$E$18,IF($I35="Demi maladie",'Congés de l''employé'!$BU$18,MOD($E35-($B35-($C35-$D35))+($G35-$F35),1))))),VLOOKUP($A35,$AF$12:$AH$29,3,FALSE)) -> 0.125
H36: =SUM(H29:H35)+B36 -> 1.5625
G38: Heures en trop ou en moins | H38: =IF(OR(H36=-(B28),B28=0),"0",(H36-B28)) -> 0
A40: Heure travaillées | B40: Heures prévues | C40: ENTREZ le nombre d'heures à payer | D40: Heures supplémentaires ou en moins | E40: Heures à transposer dans la Banque | F40: Total de la Banque d'heures
A41: =$H$23+$H$36 -> 1.5625 | B41: ='Congés de l''employé'!BU8*2 -> 2.916666667 | C41: =A41 -> 1.5625 | D41: =IF($H$26>0,$H$26)+IF($H$38>0,$H$38,0)+IF($H$26<0,$H$26)+IF($H$38<0,$H$38,0) -> 0 | E41: =$A$41-$C$41 -> 0 | F41: =SUM('Janvier - 2prem. semaines'!G42:H43)+$E$41 -> 0

Sheet Fin Jan.-Février - 2prem. sem.
A1: =MID(CELL("filename",A1),FIND("]",CELL("filename",A1))+1,32) -> Fin Jan.-Février - 2prem. sem.
B2: Feuille de temps
AD8: Congés fériés, lundi suivant la date
A9: Employé: | B9: ='Congés de l''employé'!B8 -> 0 | AD9: Mois | AE9: Type de congé férié | AF9: Année en cours
A10: Période débutant le | B10: =DATE(An_ref,1,-2)-WEEKDAY(DATE(An_ref,1,3))+35 -> 2019-01-28 | AB10: =OR(B11=$AF$12,B11=$AF$13,B11=$AF$14,B11=$AF$16,B11=$AF$17,B11=$AF$19,B11=$AF$21,B11=$AF$23,B11=$AF$25,B11=$AF$26,B11=$AF$27,B11=$AF$28) -> FALSE | AF10: =An_ref -> 2019 | AH10: alloué au férié
AD11: Janvier | AE11: Jour de l'an | AF11: =DATE(Année,1,1) -> 2019-01-01 | AG11: Date fixe 1er janvier
AE12: FÉRIÉ-JOUR OUVRABLE SUIVANT LE JOUR DE L'AN | AF12: =AF11+2-WEEKDAY(AF11)+(WEEKDAY(AF11)>2) -> 2019-01-01 | AH12: =Edit!M27 -> 7.47359181e-190
A13: Jour | B13: Heure Début | C13: Départ Diner | D13: Retour Diner | E13: Heure Fin | F13: Télétravail Départ | G13: Télétravail Fin | H13: TOTAL Journalier | I13: Absence | K13: Index de la ligne | AE13: Bureau fermé congé donné-un jour après le jour de l'an | AF13: =AF11+2-WEEKDAY(AF11)+(WEEKDAY(AF11)>2)+1 -> 2019-01-02
L14: =IF(MAX('Janvier - 2dern. semaines'!K16:K35)=0,'Janvier - 2dern. semaines'!K14,MAX('Janvier - 2dern. semaines'!K16:K35)) -> 1904-01-01 | AD14: Mars | AE14: Bureau fermé congé donné-un jour ouvré avant Pâques | AF14: =AF15-2 -> 2019-04-19 | AG14: 3e lundi de mai | AH14: =Edit!M28 -> 0.3289473684
A15: Horaire Semaine 1 | K15: =IF(COUNTIF(I16,"X"),MAX($K$13:K13)+1,"") ->  | AE15: Pâques | AF15: =DATE(Année,3,29.56+0.979*MOD(204-11*MOD(Année,19),30)- WEEKDAY(DATE(Année,3,28.56+0.979*MOD(204-11*MOD(Année,19),30)))) -> 2019-04-21 | AG15: Date fixe 24 juin
A16: =$B$10 -> 2019-01-28 | B16: 0.3541666667 | C16: 0.5 | D16: 0.5208333333 | E16: 0.6875 | F16: 0.8333333333 | G16: 0.9583333333 | H16: =IF(ISNA(VLOOKUP($A16,$AF$12:$AH$29,3,FALSE)),IF($I16="CONGÉ",'Congés de l''employé'!$E$16,IF($I16="Demi congé",'Congés de l''employé'!$BU$16,IF($I16="MALADIE",'Congés de l''employé'!$E$18,IF($I16="Demi maladie",'Congés de l''employé'!$BU$18,MOD($E16-($B16-($C16-$D16))+($G16-$F16),1))))),VLOOKUP($A16,$AF$12:$AH$29,3,FALSE)) -> 0.4375 | K16: =IF(I16<>"",1+MAX($L$14:L14),"") ->  | AD16: Avril | AE16: Lundi de pâques | AF16: =AF15+1 -> 2019-04-22 | AG16: Date fixe 1er juillet
A17: =$B$10+1 -> 2019-01-29 | B17: 0.3541666667 | C17: 0.5 | D17: 0.5416666667 | E17: 0.7291666667 | F17: 0.7916666667 | G17: 0.9375 | H17: =IF(ISNA(VLOOKUP($A17,$AF$12:$AH$29,3,FALSE)),IF($I17="CONGÉ",'Congés de l''employé'!$E$16,IF($I17="Demi congé",'Congés de l''employé'!$BU$16,IF($I17="MALADIE",'Congés de l''employé'!$E$18,IF($I17="Demi maladie",'Congés de l''employé'!$BU$18,MOD($E17-($B17-($C17-$D17))+($G17-$F17),1))))),VLOOKUP($A17,$AF$12:$AH$29,3,FALSE)) -> 0.4791666667 | K17: =IF(I17<>"",1+MAX($K$14:K15),"") ->  | AD17: Mai | AE17: Journée nationale des patriotes | AF17: =DATE(Année,5,23)-WEEKDAY(DATE(Année,5,1),2) -> 2019-05-20 | AH17: =Edit!M30 -> 0
A18: =$B$10+2 -> 2019-01-30 | B18: 0.3541666667 | C18: 0.5 | D18: 0.5208333333 | E18: 0.6666666667 | H18: =IF(ISNA(VLOOKUP($A18,$AF$12:$AH$29,3,FALSE)),IF($I18="CONGÉ",'Congés de l''employé'!$E$16,IF($I18="Demi congé",'Congés de l''employé'!$BU$16,IF($I18="MALADIE",'Congés de l''employé'!$E$18,IF($I18="Demi maladie",'Congés de l''employé'!$BU$18,MOD($E18-($B18-($C18-$D18))+($G18-$F18),1))))),VLOOKUP($A18,$AF$12:$AH$29,3,FALSE)) -> 0.2916666667 | K18: =IF(I18<>"",1+MAX($K$14:K16),"") ->  | AD18: Juin | AE18: Fête nationale du Québec | AF18: =DATE(Année,6,24) -> 2019-06-24 | AH18: =Edit!M31 -> 0
A19: =$B$10+3 -> 2019-01-31 | B19: 0.3958333333 | C19: 0.5 | D19: 0.5208333333 | E19: 0.8541666667 | H19: =IF(ISNA(VLOOKUP($A19,$AF$12:$AH$29,3,FALSE)),IF($I19="CONGÉ",'Congés de l''employé'!$E$16,IF($I19="Demi congé",'Congés de l''employé'!$BU$16,IF($I19="MALADIE",'Congés de l''employé'!$E$18,IF($I19="Demi maladie",'Congés de l''employé'!$BU$18,MOD($E19-($B19-($C19-$D19))+($G19-$F19),1))))),VLOOKUP($A19,$AF$12:$AH$29,3,FALSE)) -> 0.4375 | K19: =IF(I19<>"",1+MAX($K$14:K17),"") ->  | AE19: FÉRIÉ-JOUR OUVRABLE SUIVANT LA FÊTE NATIONALE DU QUÉBEC | AF19: =AF18+2-WEEKDAY(AF18)+(WEEKDAY(AF18)>2)*7 -> 2019-06-24 | AG19: Date fixe 25 décembre
A20: =$B$10+4 -> 2019-02-01 | B20: 0.3333333333 | E20: 0.5416666667 | H20: =IF(ISNA(VLOOKUP($A20,$AF$12:$AH$29,3,FALSE)),IF($I20="CONGÉ",'Congés de l''employé'!$E$16,IF($I20="Demi congé",'Congés de l''employé'!$BU$16,IF($I20="MALADIE",'Congés de l''employé'!$E$18,IF($I20="Demi maladie",'Congés de l''employé'!$BU$18,MOD($E20-($B20-($C20-$D20))+($G20-$F20),1))))),VLOOKUP($A20,$AF$12:$AH$29,3,FALSE)) -> 0.2083333333 | K20: =IF(I20<>"",1+MAX($K$14:K18),"") ->  | AD20: Juillet | AE20: Fête du Canada | AF20: =DATE(Année,7,1) -> 2019-07-01 | AH20: =Edit!M32 -> 1.125374615e-210
A21: =$B$10+5 -> 2019-02-02 | H21: =IF(ISNA(VLOOKUP($A21,$AF$12:$AH$29,3,FALSE)),IF($I21="CONGÉ",'Congés de l''employé'!$E$16,IF($I21="Demi congé",'Congés de l''employé'!$BU$16,IF($I21="MALADIE",'Congés de l''employé'!$E$18,IF($I21="Demi maladie",'Congés de l''employé'!$BU$18,MOD($E21-($B21-($C21-$D21))+($G21-$F21),1))))),VLOOKUP($A21,$AF$12:$AH$29,3,FALSE)) -> 0 | K21: =IF(I21<>"",1+MAX($K$14:K19),"") ->  | AE21: FÉRIÉ-JOUR OUVRABLE SUIVANT LA FÊTE DU CANADA | AF21: =AF20+2-WEEKDAY(AF20)+(WEEKDAY(AF20)>2)*7 -> 2019-07-01
A22: =$B$10+6 -> 2019-02-03 | F22: 0.8125 | G22: 0.8958333333 | H22: =IF(ISNA(VLOOKUP($A22,$AF$12:$AH$29,3,FALSE)),IF($I22="CONGÉ",'Congés de l''employé'!$E$16,IF($I22="Demi congé",'Congés de l''employé'!$BU$16,IF($I22="MALADIE",'Congés de l''employé'!$E$18,IF($I22="Demi maladie",'Congés de l''employé'!$BU$18,MOD($E22-($B22-($C22-$D22))+($G22-$F22),1))))),VLOOKUP($A22,$AF$12:$AH$29,3,FALSE)) -> 0.08333333333 | K22: =IF(I22<>"",1+MAX($K$14:K20),"") ->  | AD22: Septembre | AE22: Fête du travail | AF22: =IF(MOD(DATE(Année,9,1),7)<=2,2-MOD(DATE(Année,9,1),7),9-MOD(DATE(Année,9,1),7))+DATE(Année,9,1) -> 2019-09-01 | AH22: =Edit!M33 -> 0
H23: =SUM(H16:H22)+Tableau145678936405277[[#This Row],[Heure Début]] -> 1.9375 | K23: =IF(I23<>"",1+MAX($K$14:K21),"") ->  | AE23: FÉRIÉ-JOUR OUVRABLE SUIVANT LA FÊTE DU TRAVAIL | AF23: =AF22+2-WEEKDAY(AF22)+(WEEKDAY(AF22)>2)*7 -> 2019-09-02
K24: =IF(I24<>"",1+MAX($K$14:K22),"") ->  | AD24: Octobre | AE24: Action de grâce | AF24: =DATE(AF10,10,1) -> 2019-10-01 | AH24: =Edit!M34 -> 0
K25: =IF(I25<>"",1+MAX($K$14:K23),"") ->  | AE25: FÉRIÉ-JOUR OUVRABLE SUIVANT L'ACTION DE GRÂCE | AF25: =AF24-DAY(AF24)-WEEKDAY(AF24-DAY(AF24),2)+15 -> 2019-10-14
G26: Heures en trop ou en moins | H26: =IF(OR(H23=-(B15),B15=0),"0",(H23-B15)) -> 0 | K26: =IF(I26<>"",1+MAX($K$14:K24),"") ->  | AE26: Bureau fermé congé donné | AF26: =DATE(Année,12,25)-1 -> 2019-12-24 | AH26: ='[1]Congés de l''employé'!$E$14 -> 0
K27: =IF(I27<>"",1+MAX($K$14:K25),"") ->  | AD27: Décembre | AE27: Férié-Noël | AF27: =DATE(Année,12,25) -> 2019-12-25 | AH27: =Edit!M35 -> 0
A28: Horaire Semaine 2 | K28: =IF(I28<>"",1+MAX($K$14:K26),"") ->  | AD28: Décembre | AE28: Bureau fermé congé donné | AF28: =DATE(Année,12,25)+1 -> 2019-12-26
A29: =B10+7 -> 2019-02-04 | B29: 0.3541666667 | C29: 0.5 | D29: 0.5208333333 | E29: 0.6666666667 | H29: =IF(ISNA(VLOOKUP($A29,$AF$12:$AH$29,3,FALSE)),IF($I29="CONGÉ",'Congés de l''employé'!$E$16,IF($I29="Demi congé",'Congés de l''employé'!$BU$16,IF($I29="MALADIE",'Congés de l''employé'!$E$18,IF($I29="Demi maladie",'Congés de l''employé'!$BU$18,MOD($E29-($B29-($C29-$D29))+($G29-$F29),1))))),VLOOKUP($A29,$AF$12:$AH$29,3,FALSE)) -> 0.2916666667 | K29: =IF(I29<>"",1+MAX($K$14:K28),"") ->  | AD29: Décembre | AE29: Bureau fermé congé donné | AF29: =AF11+2-WEEKDAY(AF11)+(WEEKDAY(AF11)>2)-1 -> 2018-12-31
A30: =B10+8 -> 2019-02-05 | B30: 0.375 | C30: 0.5 | D30: 0.5208333333 | E30: 0.8541666667 | H30: =IF(ISNA(VLOOKUP($A30,$AF$12:$AH$29,3,FALSE)),IF($I30="CONGÉ",'Congés de l''employé'!$E$16,IF($I30="Demi congé",'Congés de l''employé'!$BU$16,IF($I30="MALADIE",'Congés de l''employé'!$E$18,IF($I30="Demi maladie",'Congés de l''employé'!$BU$18,MOD($E30-($B30-($C30-$D30))+($G30-$F30),1))))),VLOOKUP($A30,$AF$12:$AH$29,3,FALSE)) -> 0.4583333333 | K30: =IF(I30<>"",1+MAX($K$14:K29),"") -> 
A31: =B10+9 -> 2019-02-06 | B31: 0.3541666667 | C31: 0.5 | D31: 0.5208333333 | E31: 0.7083333333 | H31: =IF(ISNA(VLOOKUP($A31,$AF$12:$AH$29,3,FALSE)),IF($I31="CONGÉ",'Congés de l''employé'!$E$16,IF($I31="Demi congé",'Congés de l''employé'!$BU$16,IF($I31="MALADIE",'Congés de l''employé'!$E$18,IF($I31="Demi maladie",'Congés de l''employé'!$BU$18,MOD($E31-($B31-($C31-$D31))+($G31-$F31),1))))),VLOOKUP($A31,$AF$12:$AH$29,3,FALSE)) -> 0.3333333333 | K31: =IF(I31<>"",1+MAX($K$14:K30),"") -> 
A32: =B10+10 -> 2019-02-07 | B32: 0.3541666667 | C32: 0.5 | D32: 0.5208333333 | E32: 0.7916666667 | H32: =IF(ISNA(VLOOKUP($A32,$AF$12:$AH$29,3,FALSE)),IF($I32="CONGÉ",'Congés de l''employé'!$E$16,IF($I32="Demi congé",'Congés de l''employé'!$BU$16,IF($I32="MALADIE",'Congés de l''employé'!$E$18,IF($I32="Demi maladie",'Congés de l''employé'!$BU$18,MOD($E32-($B32-($C32-$D32))+($G32-$F32),1))))),VLOOKUP($A32,$AF$12:$AH$29,3,FALSE)) -> 0.4166666667 | K32: =IF(I32<>"",1+MAX($K$14:K31),"") -> 
A33: =B10+11 -> 2019-02-08 | B33: 0.3541666667 | C33: 0.5 | D33: 0.5208333333 | E33: 0.6666666667 | H33: =IF(ISNA(VLOOKUP($A33,$AF$12:$AH$29,3,FALSE)),IF($I33="CONGÉ",'Congés de l''employé'!$E$16,IF($I33="Demi congé",'Congés de l''employé'!$BU$16,IF($I33="MALADIE",'Congés de l''employé'!$E$18,IF($I33="Demi maladie",'Congés de l''employé'!$BU$18,MOD($E33-($B33-($C33-$D33))+($G33-$F33),1))))),VLOOKUP($A33,$AF$12:$AH$29,3,FALSE)) -> 0.2916666667 | K33: =IF(I33<>"",1+MAX($K$14:K32),"") -> 
A34: =B10+12 -> 2019-02-09 | H34: =IF(ISNA(VLOOKUP($A34,$AF$12:$AH$29,3,FALSE)),IF($I34="CONGÉ",'Congés de l''employé'!$E$16,IF($I34="Demi congé",'Congés de l''employé'!$BU$16,IF($I34="MALADIE",'Congés de l''employé'!$E$18,IF($I34="Demi maladie",'Congés de l''employé'!$BU$18,MOD($E34-($B34-($C34-$D34))+($G34-$F34),1))))),VLOOKUP($A34,$AF$12:$AH$29,3,FALSE)) -> 0 | K34: =IF(I34<>"",1+MAX($K$14:K33),"") -> 
A35: =B10+13 -> 2019-02-10 | H35: =IF(ISNA(VLOOKUP($A35,$AF$12:$AH$29,3,FALSE)),IF($I35="CONGÉ",'Congés de l''employé'!$E$16,IF($I35="Demi congé",'Congés de l''employé'!$BU$16,IF($I35="MALADIE",'Congés de l''employé'!$E$18,IF($I35="Demi maladie",'Congés de l''employé'!$BU$18,MOD($E35-($B35-($C35-$D35))+($G35-$F35),1))))),VLOOKUP($A35,$AF$12:$AH$29,3,FALSE)) -> 0 | K35: =IF(I35<>"",1+MAX($K$14:K34),"") -> 
H36: =SUM(H29:H35)+B36 -> 1.791666667
G38: Heures en trop ou en moins | H38: =IF(OR(H36=-(B28),B28=0),"0",(H36-B28)) -> 0
A40: Heure travaillées | B40: Heures prévues | C40: ENTREZ le nombre d'heures à payer | D40: Heures supplémentaires ou en moins | E40: Heures à transposer dans la Banque | F40: Total de la Banque d'heures
A41: =$H$23+$H$36 -> 3.729166667 | B41: ='Congés de l''employé'!BU8*2 -> 2.916666667 | C41: =A41 -> 3.729166667 | D41: =IF($H$26>0,$H$26)+IF($H$38>0,$H$38,0)+IF($H$26<0,$H$26)+IF($H$38<0,$H$38,0) -> 0 | E41: =$A$41-$C$41 -> 0 | F41: =SUM('Janvier - 2dern. semaines'!G41:H42)+$E$41 -> 0

Sheet Février - 2e-3e semaine
A1: =MID(CELL("filename",A1),FIND("]",CELL("filename",A1))+1,32) -> Février - 2e-3e semaine
B2: Feuille de temps
AD8: Congés fériés, lundi suivant la date
A9: Employé: | B9: ='Congés de l''employé'!B8 -> 0 | AD9: Mois | AE9: Type de congé férié | AF9: Année en cours
A10: Période débutant le | B10: =DATE(An_ref,1,-2)-WEEKDAY(DATE(An_ref,1,3))+49 -> 2019-02-11 | AB10: =OR(B11=$AF$12,B11=$AF$13,B11=$AF$14,B11=$AF$16,B11=$AF$17,B11=$AF$19,B11=$AF$21,B11=$AF$23,B11=$AF$25,B11=$AF$26,B11=$AF$27,B11=$AF$28) -> FALSE | AF10: =An_ref -> 2019 | AH10: alloué au férié
AD11: Janvier | AE11: Jour de l'an | AF11: =DATE(Année,1,1) -> 2019-01-01 | AG11: Date fixe 1er janvier
AE12: FÉRIÉ-JOUR OUVRABLE SUIVANT LE JOUR DE L'AN | AF12: =AF11+2-WEEKDAY(AF11)+(WEEKDAY(AF11)>2) -> 2019-01-01 | AH12: =Edit!M27 -> 7.47359181e-190
A13: Jour | B13: Heure Début | C13: Départ Diner | D13: Retour Diner | E13: Heure Fin | F13: Télétravail Départ | G13: Télétravail Fin | H13: TOTAL Journalier | I13: Absence | K13: Index de la ligne | AE13: Bureau fermé congé donné-un jour après le jour de l'an | AF13: =AF11+2-WEEKDAY(AF11)+(WEEKDAY(AF11)>2)+1 -> 2019-01-02
L14: =MAX('Fin Jan.-Février - 2prem. sem.'!K16:K35) -> 1904-01-01 | AD14: Mars | AE14: Bureau fermé congé donné-un jour ouvré avant Pâques | AF14: =AF15-2 -> 2019-04-19 | AG14: 3e lundi de mai | AH14: =Edit!M28 -> 0.3289473684
A15: Horaire Semaine 1 | K15: =IF(COUNTIF(I16,"X"),MAX($K$13:K13)+1,"") ->  | AE15: Pâques | AF15: =DATE(Année,3,29.56+0.979*MOD(204-11*MOD(Année,19),30)- WEEKDAY(DATE(Année,3,28.56+0.979*MOD(204-11*MOD(Année,19),30)))) -> 2019-04-21 | AG15: Date fixe 24 juin
A16: =$B$10 -> 2019-02-11 | B16: 0.3541666667 | E16: 0.5833333333 | F16: 0.7916666667 | G16: 0.9166666667 | H16: =IF(ISNA(VLOOKUP($A16,$AF$12:$AH$29,3,FALSE)),IF($I16="CONGÉ",'Congés de l''employé'!$E$16,IF($I16="Demi congé",'Congés de l''employé'!$BU$16,IF($I16="MALADIE",'Congés de l''employé'!$E$18,IF($I16="Demi maladie",'Congés de l''employé'!$BU$18,MOD($E16-($B16-($C16-$D16))+($G16-$F16),1))))),VLOOKUP($A16,$AF$12:$AH$29,3,FALSE)) -> 0.3541666667 | K16: =IF(I16<>"",1+MAX($L$14:L14),"") ->  | AD16: Avril | AE16: Lundi de pâques | AF16: =AF15+1 -> 2019-04-22 | AG16: Date fixe 1er juillet
A17: =$B$10+1 -> 2019-02-12 | B17: 0.3541666667 | C17: 0.5 | D17: 0.5208333333 | E17: 0.7083333333 | H17: =IF(ISNA(VLOOKUP($A17,$AF$12:$AH$29,3,FALSE)),IF($I17="CONGÉ",'Congés de l''employé'!$E$16,IF($I17="Demi congé",'Congés de l''employé'!$BU$16,IF($I17="MALADIE",'Congés de l''employé'!$E$18,IF($I17="Demi maladie",'Congés de l''employé'!$BU$18,MOD($E17-($B17-($C17-$D17))+($G17-$F17),1))))),VLOOKUP($A17,$AF$12:$AH$29,3,FALSE)) -> 0.3333333333 | K17: =IF(I17<>"",1+MAX($K$14:K15),"") ->  | AD17: Mai | AE17: Journée nationale des patriotes | AF17: =DATE(Année,5,23)-WEEKDAY(DATE(Année,5,1),2) -> 2019-05-20 | AH17: =Edit!M30 -> 0
A18: =$B$10+2 -> 2019-02-13 | H18: =IF(ISNA(VLOOKUP($A18,$AF$12:$AH$29,3,FALSE)),IF($I18="CONGÉ",'Congés de l''employé'!$E$16,IF($I18="Demi congé",'Congés de l''employé'!$BU$16,IF($I18="MALADIE",'Congés de l''employé'!$E$18,IF($I18="Demi maladie",'Congés de l''employé'!$BU$18,MOD($E18-($B18-($C18-$D18))+($G18-$F18),1))))),VLOOKUP($A18,$AF$12:$AH$29,3,FALSE)) -> 0 | K18: =IF(I18<>"",1+MAX($K$14:K16),"") ->  | AD18: Juin | AE18: Fête nationale du Québec | AF18: =DATE(Année,6,24) -> 2019-06-24 | AH18: =Edit!M31 -> 0
A19: =$B$10+3 -> 2019-02-14 | B19: 0.3541666667 | C19: 0.5 | D19: 0.5208333333 | E19: 0.8125 | H19: =IF(ISNA(VLOOKUP($A19,$AF$12:$AH$29,3,FALSE)),IF($I19="CONGÉ",'Congés de l''employé'!$E$16,IF($I19="Demi congé",'Congés de l''employé'!$BU$16,IF($I19="MALADIE",'Congés de l''employé'!$E$18,IF($I19="Demi maladie",'Congés de l''employé'!$BU$18,MOD($E19-($B19-($C19-$D19))+($G19-$F19),1))))),VLOOKUP($A19,$AF$12:$AH$29,3,FALSE)) -> 0.4375 | K19: =IF(I19<>"",1+MAX($K$14:K17),"") ->  | AE19: FÉRIÉ-JOUR OUVRABLE SUIVANT LA FÊTE NATIONALE DU QUÉBEC | AF19: =AF18+2-WEEKDAY(AF18)+(WEEKDAY(AF18)>2)*7 -> 2019-06-24 | AG19: Date fixe 25 décembre
A20: =$B$10+4 -> 2019-02-15 | H20: =IF(ISNA(VLOOKUP($A20,$AF$12:$AH$29,3,FALSE)),IF($I20="CONGÉ",'Congés de l''employé'!$E$16,IF($I20="Demi congé",'Congés de l''employé'!$BU$16,IF($I20="MALADIE",'Congés de l''employé'!$E$18,IF($I20="Demi maladie",'Congés de l''employé'!$BU$18,MOD($E20-($B20-($C20-$D20))+($G20-$F20),1))))),VLOOKUP($A20,$AF$12:$AH$29,3,FALSE)) -> 0 | K20: =IF(I20<>"",1+MAX($K$14:K18),"") ->  | AD20: Juillet | AE20: Fête du Canada | AF20: =DATE(Année,7,1) -> 2019-07-01 | AH20: =Edit!M32 -> 1.125374615e-210
A21: =$B$10+5 -> 2019-02-16 | H21: =IF(ISNA(VLOOKUP($A21,$AF$12:$AH$29,3,FALSE)),IF($I21="CONGÉ",'Congés de l''employé'!$E$16,IF($I21="Demi congé",'Congés de l''employé'!$BU$16,IF($I21="MALADIE",'Congés de l''employé'!$E$18,IF($I21="Demi maladie",'Congés de l''employé'!$BU$18,MOD($E21-($B21-($C21-$D21))+($G21-$F21),1))))),VLOOKUP($A21,$AF$12:$AH$29,3,FALSE)) -> 0.2916666667 | I21: CONGÉ | K21: =IF(I21<>"",1+MAX($K$14:K19),"") -> 1 | AE21: FÉRIÉ-JOUR OUVRABLE SUIVANT LA FÊTE DU CANADA | AF21: =AF20+2-WEEKDAY(AF20)+(WEEKDAY(AF20)>2)*7 -> 2019-07-01
A22: =$B$10+6 -> 2019-02-17 | H22: =IF(ISNA(VLOOKUP($A22,$AF$12:$AH$29,3,FALSE)),IF($I22="CONGÉ",'Congés de l''employé'!$E$16,IF($I22="Demi congé",'Congés de l''employé'!$BU$16,IF($I22="MALADIE",'Congés de l''employé'!$E$18,IF($I22="Demi maladie",'Congés de l''employé'!$BU$18,MOD($E22-($B22-($C22-$D22))+($G22-$F22),1))))),VLOOKUP($A22,$AF$12:$AH$29,3,FALSE)) -> 0 | K22: =IF(I22<>"",1+MAX($K$14:K20),"") ->  | AD22: Septembre | AE22: Fête du travail | AF22: =IF(MOD(DATE(Année,9,1),7)<=2,2-MOD(DATE(Année,9,1),7),9-MOD(DATE(Année,9,1),7))+DATE(Année,9,1) -> 2019-09-01 | AH22: =Edit!M33 -> 0
H23: =SUM(H16:H22)+Tableau145678936405278[[#This Row],[Heure Début]] -> 1.416666667 | K23: =IF(I23<>"",1+MAX($K$14:K21),"") ->  | AE23: FÉRIÉ-JOUR OUVRABLE SUIVANT LA FÊTE DU TRAVAIL | AF23: =AF22+2-WEEKDAY(AF22)+(WEEKDAY(AF22)>2)*7 -> 2019-09-02
K24: =IF(I24<>"",1+MAX($K$14:K22),"") ->  | AD24: Octobre | AE24: Action de grâce | AF24: =DATE(AF10,10,1) -> 2019-10-01 | AH24: =Edit!M34 -> 0
K25: =IF(I25<>"",1+MAX($K$14:K23),"") ->  | AE25: FÉRIÉ-JOUR OUVRABLE SUIVANT L'ACTION DE GRÂCE | AF25: =AF24-DAY(AF24)-WEEKDAY(AF24-DAY(AF24),2)+15 -> 2019-10-14
G26: Heures en trop ou en moins | H26: =IF(OR(H23=-(B15),B15=0),"0",(H23-B15)) -> 0 | K26: =IF(I26<>"",1+MAX($K$14:K24),"") ->  | AE26: Bureau fermé congé donné | AF26: =DATE(Année,12,25)-1 -> 2019-12-24 | AH26: ='[1]Congés de l''employé'!$E$14 -> 0
K27: =IF(I27<>"",1+MAX($K$14:K25),"") ->  | AD27: Décembre | AE27: Férié-Noël | AF27: =DATE(Année,12,25) -> 2019-12-25 | AH27: =Edit!M35 -> 0
A28: Horaire Semaine 2 | K28: =IF(I28<>"",1+MAX($K$14:K26),"") ->  | AD28: Décembre | AE28: Bureau fermé congé donné | AF28: =DATE(Année,12,25)+1 -> 2019-12-26
A29: =B10+7 -> 2019-02-18 | H29: =IF(ISNA(VLOOKUP($A29,$AF$12:$AH$29,3,FALSE)),IF($I29="CONGÉ",'Congés de l''employé'!$E$16,IF($I29="Demi congé",'Congés de l''employé'!$BU$16,IF($I29="MALADIE",'Congés de l''employé'!$E$18,IF($I29="Demi maladie",'Congés de l''employé'!$BU$18,MOD($E29-($B29-($C29-$D29))+($G29-$F29),1))))),VLOOKUP($A29,$AF$12:$AH$29,3,FALSE)) -> 0 | K29: =IF(I29<>"",1+MAX($K$14:K28),"") ->  | AD29: Décembre | AE29: Bureau fermé congé donné | AF29: =AF11+2-WEEKDAY(AF11)+(WEEKDAY(AF11)>2)-1 -> 2018-12-31
A30: =B10+8 -> 2019-02-19 | H30: =IF(ISNA(VLOOKUP($A30,$AF$12:$AH$29,3,FALSE)),IF($I30="CONGÉ",'Congés de l''employé'!$E$16,IF($I30="Demi congé",'Congés de l''employé'!$BU$16,IF($I30="MALADIE",'Congés de l''employé'!$E$18,IF($I30="Demi maladie",'Congés de l''employé'!$BU$18,MOD($E30-($B30-($C30-$D30))+($G30-$F30),1))))),VLOOKUP($A30,$AF$12:$AH$29,3,FALSE)) -> 0 | K30: =IF(I30<>"",1+MAX($K$14:K29),"") -> 
A31: =B10+9 -> 2019-02-20 | H31: =IF(ISNA(VLOOKUP($A31,$AF$12:$AH$29,3,FALSE)),IF($I31="CONGÉ",'Congés de l''employé'!$E$16,IF($I31="Demi congé",'Congés de l''employé'!$BU$16,IF($I31="MALADIE",'Congés de l''employé'!$E$18,IF($I31="Demi maladie",'Congés de l''employé'!$BU$18,MOD($E31-($B31-($C31-$D31))+($G31-$F31),1))))),VLOOKUP($A31,$AF$12:$AH$29,3,FALSE)) -> 0 | K31: =IF(I31<>"",1+MAX($K$14:K30),"") -> 
A32: =B10+10 -> 2019-02-21 | H32: =IF(ISNA(VLOOKUP($A32,$AF$12:$AH$29,3,FALSE)),IF($I32="CONGÉ",'Congés de l''employé'!$E$16,IF($I32="Demi congé",'Congés de l''employé'!$BU$16,IF($I32="MALADIE",'Congés de l''employé'!$E$18,IF($I32="Demi maladie",'Congés de l''employé'!$BU$18,MOD($E32-($B32-($C32-$D32))+($G32-$F32),1))))),VLOOKUP($A32,$AF$12:$AH$29,3,FALSE)) -> 0 | K32: =IF(I32<>"",1+MAX($K$14:K31),"") -> 
A33: =B10+11 -> 2019-02-22 | H33: =IF(ISNA(VLOOKUP($A33,$AF$12:$AH$29,3,FALSE)),IF($I33="CONGÉ",'Congés de l''employé'!$E$16,IF($I33="Demi congé",'Congés de l''employé'!$BU$16,IF($I33="MALADIE",'Congés de l''employé'!$E$18,IF($I33="Demi maladie",'Congés de l''employé'!$BU$18,MOD($E33-($B33-($C33-$D33))+($G33-$F33),1))))),VLOOKUP($A33,$AF$12:$AH$29,3,FALSE)) -> 0 | K33: =IF(I33<>"",1+MAX($K$14:K32),"") -> 
A34: =B10+12 -> 2019-02-23 | H34: =IF(ISNA(VLOOKUP($A34,$AF$12:$AH$29,3,FALSE)),IF($I34="CONGÉ",'Congés de l''employé'!$E$16,IF($I34="Demi congé",'Congés de l''employé'!$BU$16,IF($I34="MALADIE",'Congés de l''employé'!$E$18,IF($I34="Demi maladie",'Congés de l''employé'!$BU$18,MOD($E34-($B34-($C34-$D34))+($G34-$F34),1))))),VLOOKUP($A34,$AF$12:$AH$29,3,FALSE)) -> 0 | K34: =IF(I34<>"",1+MAX($K$14:K33),"") -> 
A35: =B10+13 -> 2019-02-24 | H35: =IF(ISNA(VLOOKUP($A35,$AF$12:$AH$29,3,FALSE)),IF($I35="CONGÉ",'Congés de l''employé'!$E$16,IF($I35="Demi congé",'Congés de l''employé'!$BU$16,IF($I35="MALADIE",'Congés de l''employé'!$E$18,IF($I35="Demi maladie",'Congés de l''employé'!$BU$18,MOD($E35-($B35-($C35-$D35))+($G35-$F35),1))))),VLOOKUP($A35,$AF$12:$AH$29,3,FALSE)) -> 0 | K35: =IF(I35<>"",1+MAX($K$14:K34),"") -> 
H36: =SUM(H29:H35)+B36 -> 0
G38: Heures en trop ou en moins | H38: =IF(OR(H36=-(B28),B28=0),"0",(H36-B28)) -> 0
A40: Heure travaillées | B40: Heures prévues | C40: ENTREZ le nombre d'heures à payer | D40: Heures supplémentaires ou en moins | E40: Heures à transposer dans la Banque | F40: Total de la Banque d'heures
A41: =$H$23+$H$36 -> 1.416666667 | B41: ='Congés de l''employé'!BU8*2 -> 2.916666667 | C41: =A41 -> 1.416666667 | D41: =IF($H$26>0,$H$26)+IF($H$38>0,$H$38,0)+IF($H$26<0,$H$26)+IF($H$38<0,$H$38,0) -> 0 | E41: =$A$41-$C$41 -> 0 | F41: =SUM('Fin Jan.-Février - 2prem. sem.'!F41:G42)+E41 -> 0

Sheet Fin Fév.-Mars - 2prem. sem.
A1: =MID(CELL("filename",A1),FIND("]",CELL("filename",A1))+1,32) -> Fin Fév.-Mars - 2prem. sem.
B2: Feuille de temps
AD8: Congés fériés, lundi suivant la date
A9: Employé: | B9: ='Congés de l''employé'!B8 -> 0 | AD9: Mois | AE9: Type de congé férié | AF9: Année en cours
A10: Période débutant le | B10: =DATE(An_ref,1,-2)-WEEKDAY(DATE(An_ref,1,3))+63 -> 2019-02-25 | AB10: =OR(B11=$AF$12,B11=$AF$13,B11=$AF$14,B11=$AF$16,B11=$AF$17,B11=$AF$19,B11=$AF$21,B11=$AF$23,B11=$AF$25,B11=$AF$26,B11=$AF$27,B11=$AF$28) -> FALSE | AF10: =An_ref -> 2019 | AH10: alloué au férié
AD11: Janvier | AE11: Jour de l'an | AF11: =DATE(Année,1,1) -> 2019-01-01 | AG11: Date fixe 1er janvier
AE12: FÉRIÉ-JOUR OUVRABLE SUIVANT LE JOUR DE L'AN | AF12: =AF11+2-WEEKDAY(AF11)+(WEEKDAY(AF11)>2) -> 2019-01-01 | AH12: =Edit!M27 -> 7.47359181e-190
A13: Jour | B13: Heure Début | C13: Départ Diner | D13: Retour Diner | E13: Heure Fin | F13: Télétravail Départ | G13: Télétravail Fin | H13: TOTAL Journalier | I13: Absence | K13: Index de la ligne | AE13: Bureau fermé congé donné-un jour après le jour de l'an | AF13: =AF11+2-WEEKDAY(AF11)+(WEEKDAY(AF11)>2)+1 -> 2019-01-02
L14: =MAX('Février - 2e-3e semaine'!K16:K35) -> 1904-01-02 | AD14: Mars | AE14: Bureau fermé congé donné-un jour ouvré avant Pâques | AF14: =AF15-2 -> 2019-04-19 | AG14: 3e lundi de mai | AH14: =Edit!M28 -> 0.3289473684
A15: Horaire Semaine 1 | K15: =IF(COUNTIF(I16,"X"),MAX($K$13:K13)+1,"") ->  | AE15: Pâques | AF15: =DATE(Année,3,29.56+0.979*MOD(204-11*MOD(Année,19),30)- WEEKDAY(DATE(Année,3,28.56+0.979*MOD(204-11*MOD(Année,19),30)))) -> 2019-04-21 | AG15: Date fixe 24 juin
A16: =$B$10 -> 2019-02-25 | H16: =IF(ISNA(VLOOKUP($A16,$AF$12:$AH$29,3,FALSE)),IF($I16="CONGÉ",'Congés de l''employé'!$E$16,IF($I16="Demi congé",'Congés de l''employé'!$BU$16,IF($I16="MALADIE",'Congés de l''employé'!$E$18,IF($I16="Demi maladie",'Congés de l''employé'!$BU$18,MOD($E16-($B16-($C16-$D16))+($G16-$F16),1))))),VLOOKUP($A16,$AF$12:$AH$29,3,FALSE)) -> 0 | K16: =IF(I16<>"",1+MAX($L$14:L14),"") ->  | AD16: Avril | AE16: Lundi de pâques | AF16: =AF15+1 -> 2019-04-22 | AG16: Date fixe 1er juillet
A17: =$B$10+1 -> 2019-02-26 | H17: =IF(ISNA(VLOOKUP($A17,$AF$12:$AH$29,3,FALSE)),IF($I17="CONGÉ",'Congés de l''employé'!$E$16,IF($I17="Demi congé",'Congés de l''employé'!$BU$16,IF($I17="MALADIE",'Congés de l''employé'!$E$18,IF($I17="Demi maladie",'Congés de l''employé'!$BU$18,MOD($E17-($B17-($C17-$D17))+($G17-$F17),1))))),VLOOKUP($A17,$AF$12:$AH$29,3,FALSE)) -> 0 | K17: =IF(I17<>"",1+MAX($K$14:K15),"") ->  | AD17: Mai | AE17: Journée nationale des patriotes | AF17: =DATE(Année,5,23)-WEEKDAY(DATE(Année,5,1),2) -> 2019-05-20 | AH17: =Edit!M30 -> 0
A18: =$B$10+2 -> 2019-02-27 | H18: =IF(ISNA(VLOOKUP($A18,$AF$12:$AH$29,3,FALSE)),IF($I18="CONGÉ",'Congés de l''employé'!$E$16,IF($I18="Demi congé",'Congés de l''employé'!$BU$16,IF($I18="MALADIE",'Congés de l''employé'!$E$18,IF($I18="Demi maladie",'Congés de l''employé'!$BU$18,MOD($E18-($B18-($C18-$D18))+($G18-$F18),1))))),VLOOKUP($A18,$AF$12:$AH$29,3,FALSE)) -> 0 | K18: =IF(I18<>"",1+MAX($K$14:K16),"") ->  | AD18: Juin | AE18: Fête nationale du Québec | AF18: =DATE(Année,6,24) -> 2019-06-24 | AH18: =Edit!M31 -> 0
A19: =$B$10+3 -> 2019-02-28 | H19: =IF(ISNA(VLOOKUP($A19,$AF$12:$AH$29,3,FALSE)),IF($I19="CONGÉ",'Congés de l''employé'!$E$16,IF($I19="Demi congé",'Congés de l''employé'!$BU$16,IF($I19="MALADIE",'Congés de l''employé'!$E$18,IF($I19="Demi maladie",'Congés de l''employé'!$BU$18,MOD($E19-($B19-($C19-$D19))+($G19-$F19),1))))),VLOOKUP($A19,$AF$12:$AH$29,3,FALSE)) -> 0 | K19: =IF(I19<>"",1+MAX($K$14:K17),"") ->  | AE19: FÉRIÉ-JOUR OUVRABLE SUIVANT LA FÊTE NATIONALE DU QUÉBEC | AF19: =AF18+2-WEEKDAY(AF18)+(WEEKDAY(AF18)>2)*7 -> 2019-06-24 | AG19: Date fixe 25 décembre
A20: =$B$10+4 -> 2019-03-01 | H20: =IF(ISNA(VLOOKUP($A20,$AF$12:$AH$29,3,FALSE)),IF($I20="CONGÉ",'Congés de l''employé'!$E$16,IF($I20="Demi congé",'Congés de l''employé'!$BU$16,IF($I20="MALADIE",'Congés de l''employé'!$E$18,IF($I20="Demi maladie",'Congés de l''employé'!$BU$18,MOD($E20-($B20-($C20-$D20))+($G20-$F20),1))))),VLOOKUP($A20,$AF$12:$AH$29,3,FALSE)) -> 0 | K20: =IF(I20<>"",1+MAX($K$14:K18),"") ->  | AD20: Juillet | AE20: Fête du Canada | AF20: =DATE(Année,7,1) -> 2019-07-01 | AH20: =Edit!M32 -> 1.125374615e-210
A21: =$B$10+5 -> 2019-03-02 | H21: =IF(ISNA(VLOOKUP($A21,$AF$12:$AH$29,3,FALSE)),IF($I21="CONGÉ",'Congés de l''employé'!$E$16,IF($I21="Demi congé",'Congés de l''employé'!$BU$16,IF($I21="MALADIE",'Congés de l''employé'!$E$18,IF($I21="Demi maladie",'Congés de l''employé'!$BU$18,MOD($E21-($B21-($C21-$D21))+($G21-$F21),1))))),VLOOKUP($A21,$AF$12:$AH$29,3,FALSE)) -> 0 | K21: =IF(I21<>"",1+MAX($K$14:K19),"") ->  | AE21: FÉRIÉ-JOUR OUVRABLE SUIVANT LA FÊTE DU CANADA | AF21: =AF20+2-WEEKDAY(AF20)+(WEEKDAY(AF20)>2)*7 -> 2019-07-01
A22: =$B$10+6 -> 2019-03-03 | H22: =IF(ISNA(VLOOKUP($A22,$AF$12:$AH$29,3,FALSE)),IF($I22="CONGÉ",'Congés de l''employé'!$E$16,IF($I22="Demi congé",'Congés de l''employé'!$BU$16,IF($I22="MALADIE",'Congés de l''employé'!$E$18,IF($I22="Demi maladie",'Congés de l''employé'!$BU$18,MOD($E22-($B22-($C22-$D22))+($G22-$F22),1))))),VLOOKUP($A22,$AF$12:$AH$29,3,FALSE)) -> 0 | K22: =IF(I22<>"",1+MAX($K$14:K20),"") ->  | AD22: Septembre | AE22: Fête du travail | AF22: =IF(MOD(DATE(Année,9,1),7)<=2,2-MOD(DATE(Année,9,1),7),9-MOD(DATE(Année,9,1),7))+DATE(Année,9,1) -> 2019-09-01 | AH22: =Edit!M33 -> 0
H23: =SUM(H16:H22)+B23 -> 0 | K23: =IF(I23<>"",1+MAX($K$14:K21),"") ->  | AE23: FÉRIÉ-JOUR OUVRABLE SUIVANT LA FÊTE DU TRAVAIL | AF23: =AF22+2-WEEKDAY(AF22)+(WEEKDAY(AF22)>2)*7 -> 2019-09-02
K24: =IF(I24<>"",1+MAX($K$14:K22),"") ->  | AD24: Octobre | AE24: Action de grâce | AF24: =DATE(AF10,10,1) -> 2019-10-01 | AH24: =Edit!M34 -> 0
K25: =IF(I25<>"",1+MAX($K$14:K23),"") ->  | AE25: FÉRIÉ-JOUR OUVRABLE SUIVANT L'ACTION DE GRÂCE | AF25: =AF24-DAY(AF24)-WEEKDAY(AF24-DAY(AF24),2)+15 -> 2019-10-14
G26: Heures en trop ou en moins | H26: =IF(OR(H23=-(B15),B15=0),"0",(H23-B15)) -> 0 | K26: =IF(I26<>"",1+MAX($K$14:K24),"") ->  | AE26: Bureau fermé congé donné | AF26: =DATE(Année,12,25)-1 -> 2019-12-24 | AH26: ='[1]Congés de l''employé'!$E$14 -> 0
K27: =IF(I27<>"",1+MAX($K$14:K25),"") ->  | AD27: Décembre | AE27: Férié-Noël | AF27: =DATE(Année,12,25) -> 2019-12-25 | AH27: =Edit!M35 -> 0
A28: Horaire Semaine 2 | K28: =IF(I28<>"",1+MAX($K$14:K26),"") ->  | AD28: Décembre | AE28: Bureau fermé congé donné | AF28: =DATE(Année,12,25)+1 -> 2019-12-26
A29: =B10+7 -> 2019-03-04 | H29: =IF(ISNA(VLOOKUP($A29,$AF$12:$AH$29,3,FALSE)),IF($I29="CONGÉ",'Congés de l''employé'!$E$16,IF($I29="Demi congé",'Congés de l''employé'!$BU$16,IF($I29="MALADIE",'Congés de l''employé'!$E$18,IF($I29="Demi maladie",'Congés de l''employé'!$BU$18,MOD($E29-($B29-($C29-$D29))+($G29-$F29),1))))),VLOOKUP($A29,$AF$12:$AH$29,3,FALSE)) -> 0 | K29: =IF(I29<>"",1+MAX($K$14:K28),"") ->  | AD29: Décembre | AE29: Bureau fermé congé donné | AF29: =AF11+2-WEEKDAY(AF11)+(WEEKDAY(AF11)>2)-1 -> 2018-12-31
A30: =B10+8 -> 2019-03-05 | H30: =IF(ISNA(VLOOKUP($A30,$AF$12:$AH$29,3,FALSE)),IF($I30="CONGÉ",'Congés de l''employé'!$E$16,IF($I30="Demi congé",'Congés de l''employé'!$BU$16,IF($I30="MALADIE",'Congés de l''employé'!$E$18,IF($I30="Demi maladie",'Congés de l''employé'!$BU$18,MOD($E30-($B30-($C30-$D30))+($G30-$F30),1))))),VLOOKUP($A30,$AF$12:$AH$29,3,FALSE)) -> 0 | K30: =IF(I30<>"",1+MAX($K$14:K29),"") -> 
A31: =B10+9 -> 2019-03-06 | H31: =IF(ISNA(VLOOKUP($A31,$AF$12:$AH$29,3,FALSE)),IF($I31="CONGÉ",'Congés de l''employé'!$E$16,IF($I31="Demi congé",'Congés de l''employé'!$BU$16,IF($I31="MALADIE",'Congés de l''employé'!$E$18,IF($I31="Demi maladie",'Congés de l''employé'!$BU$18,MOD($E31-($B31-($C31-$D31))+($G31-$F31),1))))),VLOOKUP($A31,$AF$12:$AH$29,3,FALSE)) -> 0 | K31: =IF(I31<>"",1+MAX($K$14:K30),"") -> 
A32: =B10+10 -> 2019-03-07 | H32: =IF(ISNA(VLOOKUP($A32,$AF$12:$AH$29,3,FALSE)),IF($I32="CONGÉ",'Congés de l''employé'!$E$16,IF($I32="Demi congé",'Congés de l''employé'!$BU$16,IF($I32="MALADIE",'Congés de l''employé'!$E$18,IF($I32="Demi maladie",'Congés de l''employé'!$BU$18,MOD($E32-($B32-($C32-$D32))+($G32-$F32),1))))),VLOOKUP($A32,$AF$12:$AH$29,3,FALSE)) -> 0 | K32: =IF(I32<>"",1+MAX($K$14:K31),"") -> 
A33: =B10+11 -> 2019-03-08 | H33: =IF(ISNA(VLOOKUP($A33,$AF$12:$AH$29,3,FALSE)),IF($I33="CONGÉ",'Congés de l''employé'!$E$16,IF($I33="Demi congé",'Congés de l''employé'!$BU$16,IF($I33="MALADIE",'Congés de l''employé'!$E$18,IF($I33="Demi maladie",'Congés de l''employé'!$BU$18,MOD($E33-($B33-($C33-$D33))+($G33-$F33),1))))),VLOOKUP($A33,$AF$12:$AH$29,3,FALSE)) -> 0 | K33: =IF(I33<>"",1+MAX($K$14:K32),"") -> 
A34: =B10+12 -> 2019-03-09 | H34: =IF(ISNA(VLOOKUP($A34,$AF$12:$AH$29,3,FALSE)),IF($I34="CONGÉ",'Congés de l''employé'!$E$16,IF($I34="Demi congé",'Congés de l''employé'!$BU$16,IF($I34="MALADIE",'Congés de l''employé'!$E$18,IF($I34="Demi maladie",'Congés de l''employé'!$BU$18,MOD($E34-($B34-($C34-$D34))+($G34-$F34),1))))),VLOOKUP($A34,$AF$12:$AH$29,3,FALSE)) -> 0 | K34: =IF(I34<>"",1+MAX($K$14:K33),"") -> 
A35: =B10+13 -> 2019-03-10 | H35: =IF(ISNA(VLOOKUP($A35,$AF$12:$AH$29,3,FALSE)),IF($I35="CONGÉ",'Congés de l''employé'!$E$16,IF($I35="Demi congé",'Congés de l''employé'!$BU$16,IF($I35="MALADIE",'Congés de l''employé'!$E$18,IF($I35="Demi maladie",'Congés de l''employé'!$BU$18,MOD($E35-($B35-($C35-$D35))+($G35-$F35),1))))),VLOOKUP($A35,$AF$12:$AH$29,3,FALSE)) -> 0 | K35: =IF(I35<>"",1+MAX($K$14:K34),"") -> 
H36: =SUM(H29:H35)+B36 -> 0
G38: Heures en trop ou en moins | H38: =IF(OR(H36=-(B28),B28=0),"0",(H36-B28)) -> 0
A40: Heure travaillées | B40: Heures prévues | C40: ENTREZ le nombre d'heures à payer | D40: Heures supplémentaires ou en moins | E40: Heures à transposer dans la Banque | F40: Total de la Banque d'heures
A41: =$H$23+$H$36 -> 0 | B41: ='Congés de l''employé'!BU8*2 -> 2.916666667 | C41: =A41 -> 0 | D41: =IF($H$26>0,$H$26)+IF($H$38>0,$H$38,0)+IF($H$26<0,$H$26)+IF($H$38<0,$H$38,0) -> 0 | E41: =$A$41-$C$41 -> 0 | F41: =SUM('Février - 2e-3e semaine'!F41:G42)+E41 -> 0

Sheet Mars - 3e-4e semaine
A1: =MID(CELL("filename",A1),FIND("]",CELL("filename",A1))+1,32) -> Mars - 3e-4e semaine
B2: Feuille de temps
AD8: Congés fériés, lundi suivant la date
A9: Employé: | B9: ='Congés de l''employé'!B8 -> 0 | AD9: Mois | AE9: Type de congé férié | AF9: Année en cours
A10: Période débutant le | B10: =DATE(An_ref,1,-2)-WEEKDAY(DATE(An_ref,1,3))+77 -> 2019-03-11 | AB10: =OR(B11=$AF$12,B11=$AF$13,B11=$AF$14,B11=$AF$16,B11=$AF$17,B11=$AF$19,B11=$AF$21,B11=$AF$23,B11=$AF$25,B11=$AF$26,B11=$AF$27,B11=$AF$28) -> FALSE | AF10: =An_ref -> 2019 | AH10: alloué au férié
AD11: Janvier | AE11: Jour de l'an | AF11: =DATE(Année,1,1) -> 2019-01-01 | AG11: Date fixe 1er janvier
AE12: FÉRIÉ-JOUR OUVRABLE SUIVANT LE JOUR DE L'AN | AF12: =AF11+2-WEEKDAY(AF11)+(WEEKDAY(AF11)>2) -> 2019-01-01 | AH12: =Edit!M27 -> 7.47359181e-190
A13: Jour | B13: Heure Début | C13: Départ Diner | D13: Retour Diner | E13: Heure Fin | F13: Télétravail Départ | G13: Télétravail Fin | H13: TOTAL Journalier | I13: Absence | K13: Index de la ligne | AE13: Bureau fermé congé donné-un jour après le jour de l'an | AF13: =AF11+2-WEEKDAY(AF11)+(WEEKDAY(AF11)>2)+1 -> 2019-01-02
L14: =MAX('Fin Fév.-Mars - 2prem. sem.'!K16:K35) -> 1904-01-01 | AD14: Mars | AE14: Bureau fermé congé donné-un jour ouvré avant Pâques | AF14: =AF15-2 -> 2019-04-19 | AG14: 3e lundi de mai | AH14: =Edit!M28 -> 0.3289473684
A15: Horaire Semaine 1 | K15: =IF(COUNTIF(I16,"X"),MAX($K$13:K13)+1,"") ->  | AE15: Pâques | AF15: =DATE(Année,3,29.56+0.979*MOD(204-11*MOD(Année,19),30)- WEEKDAY(DATE(Année,3,28.56+0.979*MOD(204-11*MOD(Année,19),30)))) -> 2019-04-21 | AG15: Date fixe 24 juin
A16: =$B$10 -> 2019-03-11 | B16: 0.3541666667 | C16: 0.5 | D16: 0.5208333333 | E16: 0.6875 | H16: =IF(ISNA(VLOOKUP($A16,$AF$12:$AH$29,3,FALSE)),IF($I16="CONGÉ",'Congés de l''employé'!$E$16,IF($I16="Demi congé",'Congés de l''employé'!$BU$16,IF($I16="MALADIE",'Congés de l''employé'!$E$18,IF($I16="Demi maladie",'Congés de l''employé'!$BU$18,MOD($E16-($B16-($C16-$D16))+($G16-$F16),1))))),VLOOKUP($A16,$AF$12:$AH$29,3,FALSE)) -> 0.3125 | K16: =IF(I16<>"",1+MAX($L$14:L14),"") ->  | AD16: Avril | AE16: Lundi de pâques | AF16: =AF15+1 -> 2019-04-22 | AG16: Date fixe 1er juillet
A17: =$B$10+1 -> 2019-03-12 | B17: 0.3958333333 | C17: 0.5 | D17: 0.5208333333 | E17: 0.8125 | H17: =IF(ISNA(VLOOKUP($A17,$AF$12:$AH$29,3,FALSE)),IF($I17="CONGÉ",'Congés de l''employé'!$E$16,IF($I17="Demi congé",'Congés de l''employé'!$BU$16,IF($I17="MALADIE",'Congés de l''employé'!$E$18,IF($I17="Demi maladie",'Congés de l''employé'!$BU$18,MOD($E17-($B17-($C17-$D17))+($G17-$F17),1))))),VLOOKUP($A17,$AF$12:$AH$29,3,FALSE)) -> 0.3958333333 | K17: =IF(I17<>"",1+MAX($K$14:K15),"") ->  | AD17: Mai | AE17: Journée nationale des patriotes | AF17: =DATE(Année,5,23)-WEEKDAY(DATE(Année,5,1),2) -> 2019-05-20 | AH17: =Edit!M30 -> 0
A18: =$B$10+2 -> 2019-03-13 | B18: 0.3541666667 | C18: 0.5 | D18: 0.5208333333 | E18: 0.6875 | H18: =IF(ISNA(VLOOKUP($A18,$AF$12:$AH$29,3,FALSE)),IF($I18="CONGÉ",'Congés de l''employé'!$E$16,IF($I18="Demi congé",'Congés de l''employé'!$BU$16,IF($I18="MALADIE",'Congés de l''employé'!$E$18,IF($I18="Demi maladie",'Congés de l''employé'!$BU$18,MOD($E18-($B18-($C18-$D18))+($G18-$F18),1))))),VLOOKUP($A18,$AF$12:$AH$29,3,FALSE)) -> 0.3125 | K18: =IF(I18<>"",1+MAX($K$14:K16),"") ->  | AD18: Juin | AE18: Fête nationale du Québec | AF18: =DATE(Année,6,24) -> 2019-06-24 | AH18: =Edit!M31 -> 0
A19: =$B$10+3 -> 2019-03-14 | B19: 0.375 | E19: 0.5 | H19: =IF(ISNA(VLOOKUP($A19,$AF$12:$AH$29,3,FALSE)),IF($I19="CONGÉ",'Congés de l''employé'!$E$16,IF($I19="Demi congé",'Congés de l''employé'!$BU$16,IF($I19="MALADIE",'Congés de l''employé'!$E$18,IF($I19="Demi maladie",'Congés de l''employé'!$BU$18,MOD($E19-($B19-($C19-$D19))+($G19-$F19),1))))),VLOOKUP($A19,$AF$12:$AH$29,3,FALSE)) -> 0.125 | K19: =IF(I19<>"",1+MAX($K$14:K17),"") ->  | AE19: FÉRIÉ-JOUR OUVRABLE SUIVANT LA FÊTE NATIONALE DU QUÉBEC | AF19: =AF18+2-WEEKDAY(AF18)+(WEEKDAY(AF18)>2)*7 -> 2019-06-24 | AG19: Date fixe 25 décembre
A20: =$B$10+4 -> 2019-03-15 | B20: 0.4791666667 | E20: 0.6875 | F20: 0.7916666667 | G20: 0.875 | H20: =IF(ISNA(VLOOKUP($A20,$AF$12:$AH$29,3,FALSE)),IF($I20="CONGÉ",'Congés de l''employé'!$E$16,IF($I20="Demi congé",'Congés de l''employé'!$BU$16,IF($I20="MALADIE",'Congés de l''employé'!$E$18,IF($I20="Demi maladie",'Congés de l''employé'!$BU$18,MOD($E20-($B20-($C20-$D20))+($G20-$F20),1))))),VLOOKUP($A20,$AF$12:$AH$29,3,FALSE)) -> 0.2916666667 | K20: =IF(I20<>"",1+MAX($K$14:K18),"") ->  | AD20: Juillet | AE20: Fête du Canada | AF20: =DATE(Année,7,1) -> 2019-07-01 | AH20: =Edit!M32 -> 1.125374615e-210
A21: =$B$10+5 -> 2019-03-16 | H21: =IF(ISNA(VLOOKUP($A21,$AF$12:$AH$29,3,FALSE)),IF($I21="CONGÉ",'Congés de l''employé'!$E$16,IF($I21="Demi congé",'Congés de l''employé'!$BU$16,IF($I21="MALADIE",'Congés de l''employé'!$E$18,IF($I21="Demi maladie",'Congés de l''employé'!$BU$18,MOD($E21-($B21-($C21-$D21))+($G21-$F21),1))))),VLOOKUP($A21,$AF$12:$AH$29,3,FALSE)) -> 0 | K21: =IF(I21<>"",1+MAX($K$14:K19),"") ->  | AE21: FÉRIÉ-JOUR OUVRABLE SUIVANT LA FÊTE DU CANADA | AF21: =AF20+2-WEEKDAY(AF20)+(WEEKDAY(AF20)>2)*7 -> 2019-07-01
A22: =$B$10+6 -> 2019-03-17 | F22: 0.4583333333 | G22: 0.5833333333 | H22: =IF(ISNA(VLOOKUP($A22,$AF$12:$AH$29,3,FALSE)),IF($I22="CONGÉ",'Congés de l''employé'!$E$16,IF($I22="Demi congé",'Congés de l''employé'!$BU$16,IF($I22="MALADIE",'Congés de l''employé'!$E$18,IF($I22="Demi maladie",'Congés de l''employé'!$BU$18,MOD($E22-($B22-($C22-$D22))+($G22-$F22),1))))),VLOOKUP($A22,$AF$12:$AH$29,3,FALSE)) -> 0.125 | K22: =IF(I22<>"",1+MAX($K$14:K20),"") ->  | AD22: Septembre | AE22: Fête du travail | AF22: =IF(MOD(DATE(Année,9,1),7)<=2,2-MOD(DATE(Année,9,1),7),9-MOD(DATE(Année,9,1),7))+DATE(Année,9,1) -> 2019-09-01 | AH22: =Edit!M33 -> 0
H23: =SUM(H16:H22)+B23 -> 1.5625 | K23: =IF(I23<>"",1+MAX($K$14:K21),"") ->  | AE23: FÉRIÉ-JOUR OUVRABLE SUIVANT LA FÊTE DU TRAVAIL | AF23: =AF22+2-WEEKDAY(AF22)+(WEEKDAY(AF22)>2)*7 -> 2019-09-02
K24: =IF(I24<>"",1+MAX($K$14:K22),"") ->  | AD24: Octobre | AE24: Action de grâce | AF24: =DATE(AF10,10,1) -> 2019-10-01 | AH24: =Edit!M34 -> 0
K25: =IF(I25<>"",1+MAX($K$14:K23),"") ->  | AE25: FÉRIÉ-JOUR OUVRABLE SUIVANT L'ACTION DE GRÂCE | AF25: =AF24-DAY(AF24)-WEEKDAY(AF24-DAY(AF24),2)+15 -> 2019-10-14
G26: Heures en trop ou en moins | H26: =IF(OR(H23=-(B15),B15=0),"0",(H23-B15)) -> 0 | K26: =IF(I26<>"",1+MAX($K$14:K24),"") ->  | AE26: Bureau fermé congé donné | AF26: =DATE(Année,12,25)-1 -> 2019-12-24 | AH26: ='[1]Congés de l''employé'!$E$14 -> 0
K27: =IF(I27<>"",1+MAX($K$14:K25),"") ->  | AD27: Décembre | AE27: Férié-Noël | AF27: =DATE(Année,12,25) -> 2019-12-25 | AH27: =Edit!M35 -> 0
A28: Horaire Semaine 2 | K28: =IF(I28<>"",1+MAX($K$14:K26),"") ->  | AD28: Décembre | AE28: Bureau fermé congé donné | AF28: =DATE(Année,12,25)+1 -> 2019-12-26
A29: =B10+7 -> 2019-03-18 | B29: 0.3541666667 | C29: 0.5 | D29: 0.5208333333 | E29: 0.6875 | H29: =IF(ISNA(VLOOKUP($A29,$AF$12:$AH$29,3,FALSE)),IF($I29="CONGÉ",'Congés de l''employé'!$E$16,IF($I29="Demi congé",'Congés de l''employé'!$BU$16,IF($I29="MALADIE",'Congés de l''employé'!$E$18,IF($I29="Demi maladie",'Congés de l''employé'!$BU$18,MOD($E29-($B29-($C29-$D29))+($G29-$F29),1))))),VLOOKUP($A29,$AF$12:$AH$29,3,FALSE)) -> 0.3125 | K29: =IF(I29<>"",1+MAX($K$14:K28),"") ->  | AD29: Décembre | AE29: Bureau fermé congé donné | AF29: =AF11+2-WEEKDAY(AF11)+(WEEKDAY(AF11)>2)-1 -> 2018-12-31
A30: =B10+8 -> 2019-03-19 | B30: 0.3958333333 | C30: 0.5 | D30: 0.5208333333 | E30: 0.8125 | H30: =IF(ISNA(VLOOKUP($A30,$AF$12:$AH$29,3,FALSE)),IF($I30="CONGÉ",'Congés de l''employé'!$E$16,IF($I30="Demi congé",'Congés de l''employé'!$BU$16,IF($I30="MALADIE",'Congés de l''employé'!$E$18,IF($I30="Demi maladie",'Congés de l''employé'!$BU$18,MOD($E30-($B30-($C30-$D30))+($G30-$F30),1))))),VLOOKUP($A30,$AF$12:$AH$29,3,FALSE)) -> 0.3958333333 | K30: =IF(I30<>"",1+MAX($K$14:K29),"") -> 
A31: =B10+9 -> 2019-03-20 | B31: 0.3541666667 | C31: 0.5 | D31: 0.5208333333 | E31: 0.6875 | H31: =IF(ISNA(VLOOKUP($A31,$AF$12:$AH$29,3,FALSE)),IF($I31="CONGÉ",'Congés de l''employé'!$E$16,IF($I31="Demi congé",'Congés de l''employé'!$BU$16,IF($I31="MALADIE",'Congés de l''employé'!$E$18,IF($I31="Demi maladie",'Congés de l''employé'!$BU$18,MOD($E31-($B31-($C31-$D31))+($G31-$F31),1))))),VLOOKUP($A31,$AF$12:$AH$29,3,FALSE)) -> 0.3125 | K31: =IF(I31<>"",1+MAX($K$14:K30),"") -> 
A32: =B10+10 -> 2019-03-21 | B32: 0.375 | E32: 0.5 | H32: =IF(ISNA(VLOOKUP($A32,$AF$12:$AH$29,3,FALSE)),IF($I32="CONGÉ",'Congés de l''employé'!$E$16,IF($I32="Demi congé",'Congés de l''employé'!$BU$16,IF($I32="MALADIE",'Congés de l''employé'!$E$18,IF($I32="Demi maladie",'Congés de l''employé'!$BU$18,MOD($E32-($B32-($C32-$D32))+($G32-$F32),1))))),VLOOKUP($A32,$AF$12:$AH$29,3,FALSE)) -> 0.125 | K32: =IF(I32<>"",1+MAX($K$14:K31),"") -> 
A33: =B10+11 -> 2019-03-22 | B33: 0.4791666667 | E33: 0.6875 | F33: 0.7916666667 | G33: 0.875 | H33: =IF(ISNA(VLOOKUP($A33,$AF$12:$AH$29,3,FALSE)),IF($I33="CONGÉ",'Congés de l''employé'!$E$16,IF($I33="Demi congé",'Congés de l''employé'!$BU$16,IF($I33="MALADIE",'Congés de l''employé'!$E$18,IF($I33="Demi maladie",'Congés de l''employé'!$BU$18,MOD($E33-($B33-($C33-$D33))+($G33-$F33),1))))),VLOOKUP($A33,$AF$12:$AH$29,3,FALSE)) -> 0.2916666667 | K33: =IF(I33<>"",1+MAX($K$14:K32),"") -> 
A34: =B10+12 -> 2019-03-23 | H34: =IF(ISNA(VLOOKUP($A34,$AF$12:$AH$29,3,FALSE)),IF($I34="CONGÉ",'Congés de l''employé'!$E$16,IF($I34="Demi congé",'Congés de l''employé'!$BU$16,IF($I34="MALADIE",'Congés de l''employé'!$E$18,IF($I34="Demi maladie",'Congés de l''employé'!$BU$18,MOD($E34-($B34-($C34-$D34))+($G34-$F34),1))))),VLOOKUP($A34,$AF$12:$AH$29,3,FALSE)) -> 0 | K34: =IF(I34<>"",1+MAX($K$14:K33),"") -> 
A35: =B10+13 -> 2019-03-24 | F35: 0.4583333333 | G35: 0.5833333333 | H35: =IF(ISNA(VLOOKUP($A35,$AF$12:$AH$29,3,FALSE)),IF($I35="CONGÉ",'Congés de l''employé'!$E$16,IF($I35="Demi congé",'Congés de l''employé'!$BU$16,IF($I35="MALADIE",'Congés de l''employé'!$E$18,IF($I35="Demi maladie",'Congés de l''employé'!$BU$18,MOD($E35-($B35-($C35-$D35))+($G35-$F35),1))))),VLOOKUP($A35,$AF$12:$AH$29,3,FALSE)) -> 0.125 | K35: =IF(I35<>"",1+MAX($K$14:K34),"") -> 
H36: =SUM(H29:H35)+B36 -> 1.5625
G38: Heures en trop ou en moins | H38: =IF(OR(H36=-(B28),B28=0),"0",(H36-B28)) -> 0
A40: Heure travaillées | B40: Heures prévues | C40: ENTREZ le nombre d'heures à payer | D40: Heures supplémentaires ou en moins | E40: Heures à transposer dans la Banque | F40: Total de la Banque d'heures
A41: =$H$23+$H$36 -> 3.125 | B41: ='Congés de l''employé'!BU8*2 -> 2.916666667 | C41: =A41 -> 3.125 | D41: =IF($H$26>0,$H$26)+IF($H$38>0,$H$38,0)+IF($H$26<0,$H$26)+IF($H$38<0,$H$38,0) -> 0 | E41: =$A$41-$C$41 -> 0 | F41: =SUM('Fin Fév.-Mars - 2prem. sem.'!F41:G42)+E41 -> 0

Sheet Fin Mars-Avril - prem. semaine
A1: =MID(CELL("filename",A1),FIND("]",CELL("filename",A1))+1,32) -> Fin Mars-Avril - prem. semaine
B2: Feuille de temps
AD8: Congés fériés, lundi suivant la date
A9: Employé: | B9: ='Congés de l''employé'!B8 -> 0 | AD9: Mois | AE9: Type de congé férié | AF9: Année en cours
A10: Période débutant le | B10: =DATE(An_ref,1,-2)-WEEKDAY(DATE(An_ref,1,3))+91 -> 2019-03-25 | AB10: =OR(B11=$AF$12,B11=$AF$13,B11=$AF$14,B11=$AF$16,B11=$AF$17,B11=$AF$19,B11=$AF$21,B11=$AF$23,B11=$AF$25,B11=$AF$26,B11=$AF$27,B11=$AF$28) -> FALSE | AF10: =An_ref -> 2019 | AH10: alloué au férié
AD11: Janvier | AE11: Jour de l'an | AF11: =DATE(Année,1,1) -> 2019-01-01 | AG11: Date fixe 1er janvier
AE12: FÉRIÉ-JOUR OUVRABLE SUIVANT LE JOUR DE L'AN | AF12: =AF11+2-WEEKDAY(AF11)+(WEEKDAY(AF11)>2) -> 2019-01-01 | AH12: =Edit!M27 -> 7.47359181e-190
A13: Jour | B13: Heure Début | C13: Départ Diner | D13: Retour Diner | E13: Heure Fin | F13: Télétravail Départ | G13: Télétravail Fin | H13: TOTAL Journalier | I13: Absence | K13: Index de la ligne | AE13: Bureau fermé congé donné-un jour après le jour de l'an | AF13: =AF11+2-WEEKDAY(AF11)+(WEEKDAY(AF11)>2)+1 -> 2019-01-02
L14: =MAX('Mars - 3e-4e semaine'!K16:K35) -> 1904-01-01 | AD14: Mars | AE14: Bureau fermé congé donné-un jour ouvré avant Pâques | AF14: =AF15-2 -> 2019-04-19 | AG14: 3e lundi de mai | AH14: =Edit!M28 -> 0.3289473684
A15: Horaire Semaine 1 | K15: =IF(COUNTIF(I16,"X"),MAX($K$13:K13)+1,"") ->  | AE15: Pâques | AF15: =DATE(Année,3,29.56+0.979*MOD(204-11*MOD(Année,19),30)- WEEKDAY(DATE(Année,3,28.56+0.979*MOD(204-11*MOD(Année,19),30)))) -> 2019-04-21 | AG15: Date fixe 24 juin
A16: =$B$10 -> 2019-03-25 | B16: 0.3541666667 | C16: 0.5 | D16: 0.5208333333 | E16: 0.6875 | H16: =IF(ISNA(VLOOKUP($A16,$AF$12:$AH$29,3,FALSE)),IF($I16="CONGÉ",'Congés de l''employé'!$E$16,IF($I16="Demi congé",'Congés de l''employé'!$BU$16,IF($I16="MALADIE",'Congés de l''employé'!$E$18,IF($I16="Demi maladie",'Congés de l''employé'!$BU$18,MOD($E16-($B16-($C16-$D16))+($G16-$F16),1))))),VLOOKUP($A16,$AF$12:$AH$29,3,FALSE)) -> 0.3125 | K16: =IF(I16<>"",1+MAX($L$14:L14),"") ->  | AD16: Avril | AE16: Lundi de pâques | AF16: =AF15+1 -> 2019-04-22 | AG16: Date fixe 1er juillet
A17: =$B$10+1 -> 2019-03-26 | B17: 0.3958333333 | C17: 0.5 | D17: 0.5208333333 | E17: 0.8125 | H17: =IF(ISNA(VLOOKUP($A17,$AF$12:$AH$29,3,FALSE)),IF($I17="CONGÉ",'Congés de l''employé'!$E$16,IF($I17="Demi congé",'Congés de l''employé'!$BU$16,IF($I17="MALADIE",'Congés de l''employé'!$E$18,IF($I17="Demi maladie",'Congés de l''employé'!$BU$18,MOD($E17-($B17-($C17-$D17))+($G17-$F17),1))))),VLOOKUP($A17,$AF$12:$AH$29,3,FALSE)) -> 0.3958333333 | K17: =IF(I17<>"",1+MAX($K$14:K15),"") ->  | AD17: Mai | AE17: Journée nationale des patriotes | AF17: =DATE(Année,5,23)-WEEKDAY(DATE(Année,5,1),2) -> 2019-05-20 | AH17: =Edit!M30 -> 0
A18: =$B$10+2 -> 2019-03-27 | B18: 0.3541666667 | C18: 0.5 | D18: 0.5208333333 | E18: 0.6875 | H18: =IF(ISNA(VLOOKUP($A18,$AF$12:$AH$29,3,FALSE)),IF($I18="CONGÉ",'Congés de l''employé'!$E$16,IF($I18="Demi congé",'Congés de l''employé'!$BU$16,IF($I18="MALADIE",'Congés de l''employé'!$E$18,IF($I18="Demi maladie",'Congés de l''employé'!$BU$18,MOD($E18-($B18-($C18-$D18))+($G18-$F18),1))))),VLOOKUP($A18,$AF$12:$AH$29,3,FALSE)) -> 0.3125 | K18: =IF(I18<>"",1+MAX($K$14:K16),"") ->  | AD18: Juin | AE18: Fête nationale du Québec | AF18: =DATE(Année,6,24) -> 2019-06-24 | AH18: =Edit!M31 -> 0
A19: =$B$10+3 -> 2019-03-28 | B19: 0.375 | E19: 0.5 | H19: =IF(ISNA(VLOOKUP($A19,$AF$12:$AH$29,3,FALSE)),IF($I19="CONGÉ",'Congés de l''employé'!$E$16,IF($I19="Demi congé",'Congés de l''employé'!$BU$16,IF($I19="MALADIE",'Congés de l''employé'!$E$18,IF($I19="Demi maladie",'Congés de l''employé'!$BU$18,MOD($E19-($B19-($C19-$D19))+($G19-$F19),1))))),VLOOKUP($A19,$AF$12:$AH$29,3,FALSE)) -> 0.125 | K19: =IF(I19<>"",1+MAX($K$14:K17),"") ->  | AE19: FÉRIÉ-JOUR OUVRABLE SUIVANT LA FÊTE NATIONALE DU QUÉBEC | AF19: =AF18+2-WEEKDAY(AF18)+(WEEKDAY(AF18)>2)*7 -> 2019-06-24 | AG19: Date fixe 25 décembre
A20: =$B$10+4 -> 2019-03-29 | B20: 0.4791666667 | E20: 0.6875 | F20: 0.7916666667 | G20: 0.875 | H20: =IF(ISNA(VLOOKUP($A20,$AF$12:$AH$29,3,FALSE)),IF($I20="CONGÉ",'Congés de l''employé'!$E$16,IF($I20="Demi congé",'Congés de l''employé'!$BU$16,IF($I20="MALADIE",'Congés de l''employé'!$E$18,IF($I20="Demi maladie",'Congés de l''employé'!$BU$18,MOD($E20-($B20-($C20-$D20))+($G20-$F20),1))))),VLOOKUP($A20,$AF$12:$AH$29,3,FALSE)) -> 0.2916666667 | K20: =IF(I20<>"",1+MAX($K$14:K18),"") ->  | AD20: Juillet | AE20: Fête du Canada | AF20: =DATE(Année,7,1) -> 2019-07-01 | AH20: =Edit!M32 -> 1.125374615e-210
A21: =$B$10+5 -> 2019-03-30 | H21: =IF(ISNA(VLOOKUP($A21,$AF$12:$AH$29,3,FALSE)),IF($I21="CONGÉ",'Congés de l''employé'!$E$16,IF($I21="Demi congé",'Congés de l''employé'!$BU$16,IF($I21="MALADIE",'Congés de l''employé'!$E$18,IF($I21="Demi maladie",'Congés de l''employé'!$BU$18,MOD($E21-($B21-($C21-$D21))+($G21-$F21),1))))),VLOOKUP($A21,$AF$12:$AH$29,3,FALSE)) -> 0 | K21: =IF(I21<>"",1+MAX($K$14:K19),"") ->  | AE21: FÉRIÉ-JOUR OUVRABLE SUIVANT LA FÊTE DU CANADA | AF21: =AF20+2-WEEKDAY(AF20)+(WEEKDAY(AF20)>2)*7 -> 2019-07-01
A22: =$B$10+6 -> 2019-03-31 | F22: 0.4583333333 | G22: 0.5833333333 | H22: =IF(ISNA(VLOOKUP($A22,$AF$12:$AH$29,3,FALSE)),IF($I22="CONGÉ",'Congés de l''employé'!$E$16,IF($I22="Demi congé",'Congés de l''employé'!$BU$16,IF($I22="MALADIE",'Congés de l''employé'!$E$18,IF($I22="Demi maladie",'Congés de l''employé'!$BU$18,MOD($E22-($B22-($C22-$D22))+($G22-$F22),1))))),VLOOKUP($A22,$AF$12:$AH$29,3,FALSE)) -> 0.125 | K22: =IF(I22<>"",1+MAX($K$14:K20),"") ->  | AD22: Septembre | AE22: Fête du travail | AF22: =IF(MOD(DATE(Année,9,1),7)<=2,2-MOD(DATE(Année,9,1),7),9-MOD(DATE(Année,9,1),7))+DATE(Année,9,1) -> 2019-09-01 | AH22: =Edit!M33 -> 0
H23: =SUM(H16:H22)+B23 -> 1.5625 | K23: =IF(I23<>"",1+MAX($K$14:K21),"") ->  | AE23: FÉRIÉ-JOUR OUVRABLE SUIVANT LA FÊTE DU TRAVAIL | AF23: =AF22+2-WEEKDAY(AF22)+(WEEKDAY(AF22)>2)*7 -> 2019-09-02
K24: =IF(I24<>"",1+MAX($K$14:K22),"") ->  | AD24: Octobre | AE24: Action de grâce | AF24: =DATE(AF10,10,1) -> 2019-10-01 | AH24: =Edit!M34 -> 0
K25: =IF(I25<>"",1+MAX($K$14:K23),"") ->  | AE25: FÉRIÉ-JOUR OUVRABLE SUIVANT L'ACTION DE GRÂCE | AF25: =AF24-DAY(AF24)-WEEKDAY(AF24-DAY(AF24),2)+15 -> 2019-10-14
G26: Heures en trop ou en moins | H26: =IF(OR(H23=-(B15),B15=0),"0",(H23-B15)) -> 0 | K26: =IF(I26<>"",1+MAX($K$14:K24),"") ->  | AE26: Bureau fermé congé donné | AF26: =DATE(Année,12,25)-1 -> 2019-12-24 | AH26: ='[1]Congés de l''employé'!$E$14 -> 0
K27: =IF(I27<>"",1+MAX($K$14:K25),"") ->  | AD27: Décembre | AE27: Férié-Noël | AF27: =DATE(Année,12,25) -> 2019-12-25 | AH27: =Edit!M35 -> 0
A28: Horaire Semaine 2 | K28: =IF(I28<>"",1+MAX($K$14:K26),"") ->  | AD28: Décembre | AE28: Bureau fermé congé donné | AF28: =DATE(Année,12,25)+1 -> 2019-12-26
A29: =B10+7 -> 2019-04-01 | B29: 0.3541666667 | C29: 0.5 | D29: 0.5208333333 | E29: 0.6875 | H29: =IF(ISNA(VLOOKUP($A29,$AF$12:$AH$29,3,FALSE)),IF($I29="CONGÉ",'Congés de l''employé'!$E$16,IF($I29="Demi congé",'Congés de l''employé'!$BU$16,IF($I29="MALADIE",'Congés de l''employé'!$E$18,IF($I29="Demi maladie",'Congés de l''employé'!$BU$18,MOD($E29-($B29-($C29-$D29))+($G29-$F29),1))))),VLOOKUP($A29,$AF$12:$AH$29,3,FALSE)) -> 0.3125 | K29: =IF(I29<>"",1+MAX($K$14:K28),"") ->  | AD29: Décembre | AE29: Bureau fermé congé donné | AF29: =AF11+2-WEEKDAY(AF11)+(WEEKDAY(AF11)>2)-1 -> 2018-12-31
A30: =B10+8 -> 2019-04-02 | B30: 0.3958333333 | C30: 0.5 | D30: 0.5208333333 | E30: 0.8125 | H30: =IF(ISNA(VLOOKUP($A30,$AF$12:$AH$29,3,FALSE)),IF($I30="CONGÉ",'Congés de l''employé'!$E$16,IF($I30="Demi congé",'Congés de l''employé'!$BU$16,IF($I30="MALADIE",'Congés de l''employé'!$E$18,IF($I30="Demi maladie",'Congés de l''employé'!$BU$18,MOD($E30-($B30-($C30-$D30))+($G30-$F30),1))))),VLOOKUP($A30,$AF$12:$AH$29,3,FALSE)) -> 0.3958333333 | K30: =IF(I30<>"",1+MAX($K$14:K29),"") -> 
A31: =B10+9 -> 2019-04-03 | B31: 0.3541666667 | C31: 0.5 | D31: 0.5208333333 | E31: 0.6875 | H31: =IF(ISNA(VLOOKUP($A31,$AF$12:$AH$29,3,FALSE)),IF($I31="CONGÉ",'Congés de l''employé'!$E$16,IF($I31="Demi congé",'Congés de l''employé'!$BU$16,IF($I31="MALADIE",'Congés de l''employé'!$E$18,IF($I31="Demi maladie",'Congés de l''employé'!$BU$18,MOD($E31-($B31-($C31-$D31))+($G31-$F31),1))))),VLOOKUP($A31,$AF$12:$AH$29,3,FALSE)) -> 0.3125 | K31: =IF(I31<>"",1+MAX($K$14:K30),"") -> 
A32: =B10+10 -> 2019-04-04 | B32: 0.375 | E32: 0.5 | H32: =IF(ISNA(VLOOKUP($A32,$AF$12:$AH$29,3,FALSE)),IF($I32="CONGÉ",'Congés de l''employé'!$E$16,IF($I32="Demi congé",'Congés de l''employé'!$BU$16,IF($I32="MALADIE",'Congés de l''employé'!$E$18,IF($I32="Demi maladie",'Congés de l''employé'!$BU$18,MOD($E32-($B32-($C32-$D32))+($G32-$F32),1))))),VLOOKUP($A32,$AF$12:$AH$29,3,FALSE)) -> 0.125 | K32: =IF(I32<>"",1+MAX($K$14:K31),"") -> 
A33: =B10+11 -> 2019-04-05 | B33: 0.4791666667 | E33: 0.6875 | F33: 0.7916666667 | G33: 0.875 | H33: =IF(ISNA(VLOOKUP($A33,$AF$12:$AH$29,3,FALSE)),IF($I33="CONGÉ",'Congés de l''employé'!$E$16,IF($I33="Demi congé",'Congés de l''employé'!$BU$16,IF($I33="MALADIE",'Congés de l''employé'!$E$18,IF($I33="Demi maladie",'Congés de l''employé'!$BU$18,MOD($E33-($B33-($C33-$D33))+($G33-$F33),1))))),VLOOKUP($A33,$AF$12:$AH$29,3,FALSE)) -> 0.2916666667 | K33: =IF(I33<>"",1+MAX($K$14:K32),"") -> 
A34: =B10+12 -> 2019-04-06 | H34: =IF(ISNA(VLOOKUP($A34,$AF$12:$AH$29,3,FALSE)),IF($I34="CONGÉ",'Congés de l''employé'!$E$16,IF($I34="Demi congé",'Congés de l''employé'!$BU$16,IF($I34="MALADIE",'Congés de l''employé'!$E$18,IF($I34="Demi maladie",'Congés de l''employé'!$BU$18,MOD($E34-($B34-($C34-$D34))+($G34-$F34),1))))),VLOOKUP($A34,$AF$12:$AH$29,3,FALSE)) -> 0 | K34: =IF(I34<>"",1+MAX($K$14:K33),"") -> 
A35: =B10+13 -> 2019-04-07 | F35: 0.4583333333 | G35: 0.5833333333 | H35: =IF(ISNA(VLOOKUP($A35,$AF$12:$AH$29,3,FALSE)),IF($I35="CONGÉ",'Congés de l''employé'!$E$16,IF($I35="Demi congé",'Congés de l''employé'!$BU$16,IF($I35="MALADIE",'Congés de l''employé'!$E$18,IF($I35="Demi maladie",'Congés de l''employé'!$BU$18,MOD($E35-($B35-($C35-$D35))+($G35-$F35),1))))),VLOOKUP($A35,$AF$12:$AH$29,3,FALSE)) -> 0.125 | K35: =IF(I35<>"",1+MAX($K$14:K34),"") -> 
H36: =SUM(H29:H35)+B36 -> 1.5625
G38: Heures en trop ou en moins | H38: =IF(OR(H36=-(B28),B28=0),"0",(H36-B28)) -> 0
A40: Heure travaillées | B40: Heures prévues | C40: ENTREZ le nombre d'heures à payer | D40: Heures supplémentaires ou en moins | E40: Heures à transposer dans la Banque | F40: Total de la Banque d'heures
A41: =$H$23+$H$36 -> 3.125 | B41: ='Congés de l''employé'!BU8*2 -> 2.916666667 | C41: =A41 -> 3.125 | D41: =IF($H$26>0,$H$26)+IF($H$38>0,$H$38,0)+IF($H$26<0,$H$26)+IF($H$38<0,$H$38,0) -> 0 | E41: =$A$41-$C$41 -> 0 | F41: =SUM('Mars - 3e-4e semaine'!F41:G42)+E41 -> 0

Sheet Avril - 2e-3e semaine
A1: =MID(CELL("filename",A1),FIND("]",CELL("filename",A1))+1,32) -> Avril - 2e-3e semaine
B2: Feuille de temps
AD8: Congés fériés, lundi suivant la date
A9: Employé: | B9: ='Congés de l''employé'!B8 -> 0 | AD9: Mois | AE9: Type de congé férié | AF9: Année en cours
A10: Période débutant le | B10: =DATE(An_ref,1,-2)-WEEKDAY(DATE(An_ref,1,3))+105 -> 2019-04-08 | AB10: =OR(B11=$AF$12,B11=$AF$13,B11=$AF$14,B11=$AF$16,B11=$AF$17,B11=$AF$19,B11=$AF$21,B11=$AF$23,B11=$AF$25,B11=$AF$26,B11=$AF$27,B11=$AF$28) -> FALSE | AF10: =An_ref -> 2019 | AH10: alloué au férié
AD11: Janvier | AE11: Jour de l'an | AF11: =DATE(Année,1,1) -> 2019-01-01 | AG11: Date fixe 1er janvier
AE12: FÉRIÉ-JOUR OUVRABLE SUIVANT LE JOUR DE L'AN | AF12: =AF11+2-WEEKDAY(AF11)+(WEEKDAY(AF11)>2) -> 2019-01-01 | AH12: =Edit!M27 -> 1.494718362e-188
A13: Jour | B13: Heure Début | C13: Départ Diner | D13: Retour Diner | E13: Heure Fin | F13: Télétravail Départ | G13: Télétravail Fin | H13: TOTAL Journalier | I13: Absence | K13: Index de la ligne | AE13: Bureau fermé congé donné-un jour après le jour de l'an | AF13: =AF11+2-WEEKDAY(AF11)+(WEEKDAY(AF11)>2)+1 -> 2019-01-02
L14: =MAX('Fin Mars-Avril - prem. semaine'!K16:K35) -> 1904-01-01 | AD14: Mars | AE14: Bureau fermé congé donné-un jour ouvré avant Pâques | AF14: =AF15-2 -> 2019-04-19 | AG14: 3e lundi de mai | AH14: =Edit!M28 -> 0.3289473684
A15: Horaire Semaine 1 | K15: =IF(COUNTIF(I16,"X"),MAX($K$13:K13)+1,"") ->  | AE15: Pâques | AF15: =DATE(Année,3,29.56+0.979*MOD(204-11*MOD(Année,19),30)- WEEKDAY(DATE(Année,3,28.56+0.979*MOD(204-11*MOD(Année,19),30)))) -> 2019-04-21 | AG15: Date fixe 24 juin
A16: =$B$10 -> 2019-04-08 | B16: 0.3541666667 | C16: 0.5 | D16: 0.5208333333 | E16: 0.6875 | H16: =IF(ISNA(VLOOKUP($A16,$AF$12:$AH$29,3,FALSE)),IF($I16="CONGÉ",'Congés de l''employé'!$E$16,IF($I16="Demi congé",'Congés de l''employé'!$BU$16,IF($I16="MALADIE",'Congés de l''employé'!$E$18,IF($I16="Demi maladie",'Congés de l''employé'!$BU$18,MOD($E16-($B16-($C16-$D16))+($G16-$F16),1))))),VLOOKUP($A16,$AF$12:$AH$29,3,FALSE)) -> 0.3125 | K16: =IF(I16<>"",1+MAX($L$14:L14),"") ->  | AD16: Avril | AE16: Lundi de pâques | AF16: =AF15+1 -> 2019-04-22 | AG16: Date fixe 1er juillet
A17: =$B$10+1 -> 2019-04-09 | B17: 0.3958333333 | C17: 0.5 | D17: 0.5208333333 | E17: 0.8125 | H17: =IF(ISNA(VLOOKUP($A17,$AF$12:$AH$29,3,FALSE)),IF($I17="CONGÉ",'Congés de l''employé'!$E$16,IF($I17="Demi congé",'Congés de l''employé'!$BU$16,IF($I17="MALADIE",'Congés de l''employé'!$E$18,IF($I17="Demi maladie",'Congés de l''employé'!$BU$18,MOD($E17-($B17-($C17-$D17))+($G17-$F17),1))))),VLOOKUP($A17,$AF$12:$AH$29,3,FALSE)) -> 0.3958333333 | K17: =IF(I17<>"",1+MAX($K$14:K15),"") ->  | AD17: Mai | AE17: Journée nationale des patriotes | AF17: =DATE(Année,5,23)-WEEKDAY(DATE(Année,5,1),2) -> 2019-05-20 | AH17: =Edit!M30 -> 0
A18: =$B$10+2 -> 2019-04-10 | B18: 0.3541666667 | C18: 0.5 | D18: 0.5208333333 | E18: 0.6875 | H18: =IF(ISNA(VLOOKUP($A18,$AF$12:$AH$29,3,FALSE)),IF($I18="CONGÉ",'Congés de l''employé'!$E$16,IF($I18="Demi congé",'Congés de l''employé'!$BU$16,IF($I18="MALADIE",'Congés de l''employé'!$E$18,IF($I18="Demi maladie",'Congés de l''employé'!$BU$18,MOD($E18-($B18-($C18-$D18))+($G18-$F18),1))))),VLOOKUP($A18,$AF$12:$AH$29,3,FALSE)) -> 0.3125 | K18: =IF(I18<>"",1+MAX($K$14:K16),"") ->  | AD18: Juin | AE18: Fête nationale du Québec | AF18: =DATE(Année,6,24) -> 2019-06-24 | AH18: =Edit!M31 -> 0
A19: =$B$10+3 -> 2019-04-11 | B19: 0.375 | E19: 0.5 | H19: =IF(ISNA(VLOOKUP($A19,$AF$12:$AH$29,3,FALSE)),IF($I19="CONGÉ",'Congés de l''employé'!$E$16,IF($I19="Demi congé",'Congés de l''employé'!$BU$16,IF($I19="MALADIE",'Congés de l''employé'!$E$18,IF($I19="Demi maladie",'Congés de l''employé'!$BU$18,MOD($E19-($B19-($C19-$D19))+($G19-$F19),1))))),VLOOKUP($A19,$AF$12:$AH$29,3,FALSE)) -> 0.125 | K19: =IF(I19<>"",1+MAX($K$14:K17),"") ->  | AE19: FÉRIÉ-JOUR OUVRABLE SUIVANT LA FÊTE NATIONALE DU QUÉBEC | AF19: =AF18+2-WEEKDAY(AF18)+(WEEKDAY(AF18)>2)*7 -> 2019-06-24 | AG19: Date fixe 25 décembre
A20: =$B$10+4 -> 2019-04-12 | B20: 0.4791666667 | E20: 0.6875 | F20: 0.7916666667 | G20: 0.875 | H20: =IF(ISNA(VLOOKUP($A20,$AF$12:$AH$29,3,FALSE)),IF($I20="CONGÉ",'Congés de l''employé'!$E$16,IF($I20="Demi congé",'Congés de l''employé'!$BU$16,IF($I20="MALADIE",'Congés de l''employé'!$E$18,IF($I20="Demi maladie",'Congés de l''employé'!$BU$18,MOD($E20-($B20-($C20-$D20))+($G20-$F20),1))))),VLOOKUP($A20,$AF$12:$AH$29,3,FALSE)) -> 0.2916666667 | K20: =IF(I20<>"",1+MAX($K$14:K18),"") ->  | AD20: Juillet | AE20: Fête du Canada | AF20: =DATE(Année,7,1) -> 2019-07-01 | AH20: =Edit!M32 -> 1.125374615e-210
A21: =$B$10+5 -> 2019-04-13 | H21: =IF(ISNA(VLOOKUP($A21,$AF$12:$AH$29,3,FALSE)),IF($I21="CONGÉ",'Congés de l''employé'!$E$16,IF($I21="Demi congé",'Congés de l''employé'!$BU$16,IF($I21="MALADIE",'Congés de l''employé'!$E$18,IF($I21="Demi maladie",'Congés de l''employé'!$BU$18,MOD($E21-($B21-($C21-$D21))+($G21-$F21),1))))),VLOOKUP($A21,$AF$12:$AH$29,3,FALSE)) -> 0 | K21: =IF(I21<>"",1+MAX($K$14:K19),"") ->  | AE21: FÉRIÉ-JOUR OUVRABLE SUIVANT LA FÊTE DU CANADA | AF21: =AF20+2-WEEKDAY(AF20)+(WEEKDAY(AF20)>2)*7 -> 2019-07-01
A22: =$B$10+6 -> 2019-04-14 | F22: 0.4583333333 | G22: 0.5833333333 | H22: =IF(ISNA(VLOOKUP($A22,$AF$12:$AH$29,3,FALSE)),IF($I22="CONGÉ",'Congés de l''employé'!$E$16,IF($I22="Demi congé",'Congés de l''employé'!$BU$16,IF($I22="MALADIE",'Congés de l''employé'!$E$18,IF($I22="Demi maladie",'Congés de l''employé'!$BU$18,MOD($E22-($B22-($C22-$D22))+($G22-$F22),1))))),VLOOKUP($A22,$AF$12:$AH$29,3,FALSE)) -> 0.125 | K22: =IF(I22<>"",1+MAX($K$14:K20),"") ->  | AD22: Septembre | AE22: Fête du travail | AF22: =IF(MOD(DATE(Année,9,1),7)<=2,2-MOD(DATE(Année,9,1),7),9-MOD(DATE(Année,9,1),7))+DATE(Année,9,1) -> 2019-09-01 | AH22: =Edit!M33 -> 0
H23: =SUM(H16:H22)+B23 -> 1.5625 | K23: =IF(I23<>"",1+MAX($K$14:K21),"") ->  | AE23: FÉRIÉ-JOUR OUVRABLE SUIVANT LA FÊTE DU TRAVAIL | AF23: =AF22+2-WEEKDAY(AF22)+(WEEKDAY(AF22)>2)*7 -> 2019-09-02
K24: =IF(I24<>"",1+MAX($K$14:K22),"") ->  | AD24: Octobre | AE24: Action de grâce | AF24: =DATE(AF10,10,1) -> 2019-10-01 | AH24: =Edit!M34 -> 0
K25: =IF(I25<>"",1+MAX($K$14:K23),"") ->  | AE25: FÉRIÉ-JOUR OUVRABLE SUIVANT L'ACTION DE GRÂCE | AF25: =AF24-DAY(AF24)-WEEKDAY(AF24-DAY(AF24),2)+15 -> 2019-10-14
G26: Heures en trop ou en moins | H26: =IF(OR(H23=-(B15),B15=0),"0",(H23-B15)) -> 0 | K26: =IF(I26<>"",1+MAX($K$14:K24),"") ->  | AE26: Bureau fermé congé donné | AF26: =DATE(Année,12,25)-1 -> 2019-12-24 | AH26: ='[1]Congés de l''employé'!$E$14 -> 0
K27: =IF(I27<>"",1+MAX($K$14:K25),"") ->  | AD27: Décembre | AE27: Férié-Noël | AF27: =DATE(Année,12,25) -> 2019-12-25 | AH27: =Edit!M35 -> 0
A28: Horaire Semaine 2 | K28: =IF(I28<>"",1+MAX($K$14:K26),"") ->  | AD28: Décembre | AE28: Bureau fermé congé donné | AF28: =DATE(Année,12,25)+1 -> 2019-12-26
A29: =B10+7 -> 2019-04-15 | B29: 0.3541666667 | C29: 0.5 | D29: 0.5208333333 | E29: 0.6875 | H29: =IF(ISNA(VLOOKUP($A29,$AF$12:$AH$29,3,FALSE)),IF($I29="CONGÉ",'Congés de l''employé'!$E$16,IF($I29="Demi congé",'Congés de l''employé'!$BU$16,IF($I29="MALADIE",'Congés de l''employé'!$E$18,IF($I29="Demi maladie",'Congés de l''employé'!$BU$18,MOD($E29-($B29-($C29-$D29))+($G29-$F29),1))))),VLOOKUP($A29,$AF$12:$AH$29,3,FALSE)) -> 0.3125 | K29: =IF(I29<>"",1+MAX($K$14:K28),"") ->  | AD29: Décembre | AE29: Bureau fermé congé donné | AF29: =AF11+2-WEEKDAY(AF11)+(WEEKDAY(AF11)>2)-1 -> 2018-12-31
A30: =B10+8 -> 2019-04-16 | B30: 0.3958333333 | C30: 0.5 | D30: 0.5208333333 | E30: 0.8125 | H30: =IF(ISNA(VLOOKUP($A30,$AF$12:$AH$29,3,FALSE)),IF($I30="CONGÉ",'Congés de l''employé'!$E$16,IF($I30="Demi congé",'Congés de l''employé'!$BU$16,IF($I30="MALADIE",'Congés de l''employé'!$E$18,IF($I30="Demi maladie",'Congés de l''employé'!$BU$18,MOD($E30-($B30-($C30-$D30))+($G30-$F30),1))))),VLOOKUP($A30,$AF$12:$AH$29,3,FALSE)) -> 0.3958333333 | K30: =IF(I30<>"",1+MAX($K$14:K29),"") -> 
A31: =B10+9 -> 2019-04-17 | B31: 0.3541666667 | C31: 0.5 | D31: 0.5208333333 | E31: 0.6875 | H31: =IF(ISNA(VLOOKUP($A31,$AF$12:$AH$29,3,FALSE)),IF($I31="CONGÉ",'Congés de l''employé'!$E$16,IF($I31="Demi congé",'Congés de l''employé'!$BU$16,IF($I31="MALADIE",'Congés de l''employé'!$E$18,IF($I31="Demi maladie",'Congés de l''employé'!$BU$18,MOD($E31-($B31-($C31-$D31))+($G31-$F31),1))))),VLOOKUP($A31,$AF$12:$AH$29,3,FALSE)) -> 0.3125 | K31: =IF(I31<>"",1+MAX($K$14:K30),"") -> 
A32: =B10+10 -> 2019-04-18 | B32: 0.375 | E32: 0.5 | H32: =IF(ISNA(VLOOKUP($A32,$AF$12:$AH$29,3,FALSE)),IF($I32="CONGÉ",'Congés de l''employé'!$E$16,IF($I32="Demi congé",'Congés de l''employé'!$BU$16,IF($I32="MALADIE",'Congés de l''employé'!$E$18,IF($I32="Demi maladie",'Congés de l''employé'!$BU$18,MOD($E32-($B32-($C32-$D32))+($G32-$F32),1))))),VLOOKUP($A32,$AF$12:$AH$29,3,FALSE)) -> 0.125 | K32: =IF(I32<>"",1+MAX($K$14:K31),"") -> 
A33: =B10+11 -> 2019-04-19 | B33: 0.4791666667 | E33: 0.6875 | F33: 0.7916666667 | G33: 0.875 | H33: =IF(ISNA(VLOOKUP($A33,$AF$12:$AH$29,3,FALSE)),IF($I33="CONGÉ",'Congés de l''employé'!$E$16,IF($I33="Demi congé",'Congés de l''employé'!$BU$16,IF($I33="MALADIE",'Congés de l''employé'!$E$18,IF($I33="Demi maladie",'Congés de l''employé'!$BU$18,MOD($E33-($B33-($C33-$D33))+($G33-$F33),1))))),VLOOKUP($A33,$AF$12:$AH$29,3,FALSE)) -> 0.3289473684 | K33: =IF(I33<>"",1+MAX($K$14:K32),"") -> 
A34: =B10+12 -> 2019-04-20 | H34: =IF(ISNA(VLOOKUP($A34,$AF$12:$AH$29,3,FALSE)),IF($I34="CONGÉ",'Congés de l''employé'!$E$16,IF($I34="Demi congé",'Congés de l''employé'!$BU$16,IF($I34="MALADIE",'Congés de l''employé'!$E$18,IF($I34="Demi maladie",'Congés de l''employé'!$BU$18,MOD($E34-($B34-($C34-$D34))+($G34-$F34),1))))),VLOOKUP($A34,$AF$12:$AH$29,3,FALSE)) -> 0 | K34: =IF(I34<>"",1+MAX($K$14:K33),"") -> 
A35: =B10+13 -> 2019-04-21 | F35: 0.4583333333 | G35: 0.5833333333 | H35: =IF(ISNA(VLOOKUP($A35,$AF$12:$AH$29,3,FALSE)),IF($I35="CONGÉ",'Congés de l''employé'!$E$16,IF($I35="Demi congé",'Congés de l''employé'!$BU$16,IF($I35="MALADIE",'Congés de l''employé'!$E$18,IF($I35="Demi maladie",'Congés de l''employé'!$BU$18,MOD($E35-($B35-($C35-$D35))+($G35-$F35),1))))),VLOOKUP($A35,$AF$12:$AH$29,3,FALSE)) -> 0 | K35: =IF(I35<>"",1+MAX($K$14:K34),"") -> 
H36: =SUM(H29:H35)+B36 -> 1.474780702
G38: Heures en trop ou en moins | H38: =IF(OR(H36=-(B28),B28=0),"0",(H36-B28)) -> 0
A40: Heure travaillées | B40: Heures prévues | C40: ENTREZ le nombre d'heures à payer | D40: Heures supplémentaires ou en moins | E40: Heures à transposer dans la Banque | F40: Total de la Banque d'heures
A41: =$H$23+$H$36 -> 3.037280702 | B41: ='Congés de l''employé'!BU8*2 -> 2.916666667 | C41: =A41 -> 3.037280702 | D41: =IF($H$26>0,$H$26)+IF($H$38>0,$H$38,0)+IF($H$26<0,$H$26)+IF($H$38<0,$H$38,0) -> 0 | E41: =$A$41-$C$41 -> 0 | F41: =SUM('Fin Mars-Avril - prem. semaine'!F41:G42)+E41 -> 0

Sheet Fin Avril-Mai - prem. semaine
A1: =MID(CELL("filename",A1),FIND("]",CELL("filename",A1))+1,32) -> Fin Avril-Mai - prem. semaine
B2: Feuille de temps
AD8: Congés fériés, lundi suivant la date
A9: Employé: | B9: ='Congés de l''employé'!B8 -> 0 | AD9: Mois | AE9: Type de congé férié | AF9: Année en cours
A10: Période débutant le | B10: =DATE(An_ref,1,-2)-WEEKDAY(DATE(An_ref,1,3))+119 -> 2019-04-22 | AB10: =OR(B11=$AF$12,B11=$AF$13,B11=$AF$14,B11=$AF$16,B11=$AF$17,B11=$AF$19,B11=$AF$21,B11=$AF$23,B11=$AF$25,B11=$AF$26,B11=$AF$27,B11=$AF$28) -> FALSE | AF10: =An_ref -> 2019 | AH10: alloué au férié
AD11: Janvier | AE11: Jour de l'an | AF11: =DATE(Année,1,1) -> 2019-01-01 | AG11: Date fixe 1er janvier
AE12: FÉRIÉ-JOUR OUVRABLE SUIVANT LE JOUR DE L'AN | AF12: =AF11+2-WEEKDAY(AF11)+(WEEKDAY(AF11)>2) -> 2019-01-01 | AH12: =Edit!M27 -> 7.47359181e-190
A13: Jour | B13: Heure Début | C13: Départ Diner | D13: Retour Diner | E13: Heure Fin | F13: Télétravail Départ | G13: Télétravail Fin | H13: TOTAL Journalier | I13: Absence | K13: Index de la ligne | AE13: Bureau fermé congé donné-un jour après le jour de l'an | AF13: =AF11+2-WEEKDAY(AF11)+(WEEKDAY(AF11)>2)+1 -> 2019-01-02
L14: =MAX('Avril - 2e-3e semaine'!K16:K35) -> 1904-01-01 | AD14: Mars | AE14: Bureau fermé congé donné-un jour ouvré avant Pâques | AF14: =AF15-2 -> 2019-04-19 | AG14: 3e lundi de mai | AH14: =Edit!M28 -> 0.3289473684
A15: Horaire Semaine 1 | K15: =IF(COUNTIF(I16,"X"),MAX($K$13:K13)+1,"") ->  | AE15: Pâques | AF15: =DATE(Année,3,29.56+0.979*MOD(204-11*MOD(Année,19),30)- WEEKDAY(DATE(Année,3,28.56+0.979*MOD(204-11*MOD(Année,19),30)))) -> 2019-04-21 | AG15: Date fixe 24 juin
A16: =$B$10 -> 2019-04-22 | H16: =IF(ISNA(VLOOKUP($A16,$AF$12:$AH$29,3,FALSE)),IF($I16="CONGÉ",'Congés de l''employé'!$E$16,IF($I16="Demi congé",'Congés de l''employé'!$BU$16,IF($I16="MALADIE",'Congés de l''employé'!$E$18,IF($I16="Demi maladie",'Congés de l''employé'!$BU$18,MOD($E16-($B16-($C16-$D16))+($G16-$F16),1))))),VLOOKUP($A16,$AF$12:$AH$29,3,FALSE)) -> 0 | K16: =IF(I16<>"",1+MAX($L$14:L14),"") ->  | AD16: Avril | AE16: Lundi de pâques | AF16: =AF15+1 -> 2019-04-22 | AG16: Date fixe 1er juillet
A17: =$B$10+1 -> 2019-04-23 | H17: =IF(ISNA(VLOOKUP($A17,$AF$12:$AH$29,3,FALSE)),IF($I17="CONGÉ",'Congés de l''employé'!$E$16,IF($I17="Demi congé",'Congés de l''employé'!$BU$16,IF($I17="MALADIE",'Congés de l''employé'!$E$18,IF($I17="Demi maladie",'Congés de l''employé'!$BU$18,MOD($E17-($B17-($C17-$D17))+($G17-$F17),1))))),VLOOKUP($A17,$AF$12:$AH$29,3,FALSE)) -> 0 | K17: =IF(I17<>"",1+MAX($K$14:K15),"") ->  | AD17: Mai | AE17: Journée nationale des patriotes | AF17: =DATE(Année,5,23)-WEEKDAY(DATE(Année,5,1),2) -> 2019-05-20 | AH17: =Edit!M30 -> 0
A18: =$B$10+2 -> 2019-04-24 | H18: =IF(ISNA(VLOOKUP($A18,$AF$12:$AH$29,3,FALSE)),IF($I18="CONGÉ",'Congés de l''employé'!$E$16,IF($I18="Demi congé",'Congés de l''employé'!$BU$16,IF($I18="MALADIE",'Congés de l''employé'!$E$18,IF($I18="Demi maladie",'Congés de l''employé'!$BU$18,MOD($E18-($B18-($C18-$D18))+($G18-$F18),1))))),VLOOKUP($A18,$AF$12:$AH$29,3,FALSE)) -> 0 | K18: =IF(I18<>"",1+MAX($K$14:K16),"") ->  | AD18: Juin | AE18: Fête nationale du Québec | AF18: =DATE(Année,6,24) -> 2019-06-24 | AH18: =Edit!M31 -> 0
A19: =$B$10+3 -> 2019-04-25 | H19: =IF(ISNA(VLOOKUP($A19,$AF$12:$AH$29,3,FALSE)),IF($I19="CONGÉ",'Congés de l''employé'!$E$16,IF($I19="Demi congé",'Congés de l''employé'!$BU$16,IF($I19="MALADIE",'Congés de l''employé'!$E$18,IF($I19="Demi maladie",'Congés de l''employé'!$BU$18,MOD($E19-($B19-($C19-$D19))+($G19-$F19),1))))),VLOOKUP($A19,$AF$12:$AH$29,3,FALSE)) -> 0 | K19: =IF(I19<>"",1+MAX($K$14:K17),"") ->  | AE19: FÉRIÉ-JOUR OUVRABLE SUIVANT LA FÊTE NATIONALE DU QUÉBEC | AF19: =AF18+2-WEEKDAY(AF18)+(WEEKDAY(AF18)>2)*7 -> 2019-06-24 | AG19: Date fixe 25 décembre
A20: =$B$10+4 -> 2019-04-26 | H20: =IF(ISNA(VLOOKUP($A20,$AF$12:$AH$29,3,FALSE)),IF($I20="CONGÉ",'Congés de l''employé'!$E$16,IF($I20="Demi congé",'Congés de l''employé'!$BU$16,IF($I20="MALADIE",'Congés de l''employé'!$E$18,IF($I20="Demi maladie",'Congés de l''employé'!$BU$18,MOD($E20-($B20-($C20-$D20))+($G20-$F20),1))))),VLOOKUP($A20,$AF$12:$AH$29,3,FALSE)) -> 0 | K20: =IF(I20<>"",1+MAX($K$14:K18),"") ->  | AD20: Juillet | AE20: Fête du Canada | AF20: =DATE(Année,7,1) -> 2019-07-01 | AH20: =Edit!M32 -> 1.125374615e-210
A21: =$B$10+5 -> 2019-04-27 | H21: =IF(ISNA(VLOOKUP($A21,$AF$12:$AH$29,3,FALSE)),IF($I21="CONGÉ",'Congés de l''employé'!$E$16,IF($I21="Demi congé",'Congés de l''employé'!$BU$16,IF($I21="MALADIE",'Congés de l''employé'!$E$18,IF($I21="Demi maladie",'Congés de l''employé'!$BU$18,MOD($E21-($B21-($C21-$D21))+($G21-$F21),1))))),VLOOKUP($A21,$AF$12:$AH$29,3,FALSE)) -> 0 | K21: =IF(I21<>"",1+MAX($K$14:K19),"") ->  | AE21: FÉRIÉ-JOUR OUVRABLE SUIVANT LA FÊTE DU CANADA | AF21: =AF20+2-WEEKDAY(AF20)+(WEEKDAY(AF20)>2)*7 -> 2019-07-01
A22: =$B$10+6 -> 2019-04-28 | H22: =IF(ISNA(VLOOKUP($A22,$AF$12:$AH$29,3,FALSE)),IF($I22="CONGÉ",'Congés de l''employé'!$E$16,IF($I22="Demi congé",'Congés de l''employé'!$BU$16,IF($I22="MALADIE",'Congés de l''employé'!$E$18,IF($I22="Demi maladie",'Congés de l''employé'!$BU$18,MOD($E22-($B22-($C22-$D22))+($G22-$F22),1))))),VLOOKUP($A22,$AF$12:$AH$29,3,FALSE)) -> 0 | K22: =IF(I22<>"",1+MAX($K$14:K20),"") ->  | AD22: Septembre | AE22: Fête du travail | AF22: =IF(MOD(DATE(Année,9,1),7)<=2,2-MOD(DATE(Année,9,1),7),9-MOD(DATE(Année,9,1),7))+DATE(Année,9,1) -> 2019-09-01 | AH22: =Edit!M33 -> 0
H23: =SUM(H16:H22)+B23 -> 0 | K23: =IF(I23<>"",1+MAX($K$14:K21),"") ->  | AE23: FÉRIÉ-JOUR OUVRABLE SUIVANT LA FÊTE DU TRAVAIL | AF23: =AF22+2-WEEKDAY(AF22)+(WEEKDAY(AF22)>2)*7 -> 2019-09-02
K24: =IF(I24<>"",1+MAX($K$14:K22),"") ->  | AD24: Octobre | AE24: Action de grâce | AF24: =DATE(AF10,10,1) -> 2019-10-01 | AH24: =Edit!M34 -> 0
K25: =IF(I25<>"",1+MAX($K$14:K23),"") ->  | AE25: FÉRIÉ-JOUR OUVRABLE SUIVANT L'ACTION DE GRÂCE | AF25: =AF24-DAY(AF24)-WEEKDAY(AF24-DAY(AF24),2)+15 -> 2019-10-14
G26: Heures en trop ou en moins | H26: =IF(OR(H23=-(B15),B15=0),"0",(H23-B15)) -> 0 | K26: =IF(I26<>"",1+MAX($K$14:K24),"") ->  | AE26: Bureau fermé congé donné | AF26: =DATE(Année,12,25)-1 -> 2019-12-24 | AH26: ='[1]Congés de l''employé'!$E$14 -> 0
K27: =IF(I27<>"",1+MAX($K$14:K25),"") ->  | AD27: Décembre | AE27: Férié-Noël | AF27: =DATE(Année,12,25) -> 2019-12-25 | AH27: =Edit!M35 -> 0
A28: Horaire Semaine 2 | K28: =IF(I28<>"",1+MAX($K$14:K26),"") ->  | AD28: Décembre | AE28: Bureau fermé congé donné | AF28: =DATE(Année,12,25)+1 -> 2019-12-26
A29: =B10+7 -> 2019-04-29 | H29: =IF(ISNA(VLOOKUP($A29,$AF$12:$AH$29,3,FALSE)),IF($I29="CONGÉ",'Congés de l''employé'!$E$16,IF($I29="Demi congé",'Congés de l''employé'!$BU$16,IF($I29="MALADIE",'Congés de l''employé'!$E$18,IF($I29="Demi maladie",'Congés de l''employé'!$BU$18,MOD($E29-($B29-($C29-$D29))+($G29-$F29),1))))),VLOOKUP($A29,$AF$12:$AH$29,3,FALSE)) -> 0 | K29: =IF(I29<>"",1+MAX($K$14:K28),"") ->  | AD29: Décembre | AE29: Bureau fermé congé donné | AF29: =AF11+2-WEEKDAY(AF11)+(WEEKDAY(AF11)>2)-1 -> 2018-12-31
A30: =B10+8 -> 2019-04-30 | H30: =IF(ISNA(VLOOKUP($A30,$AF$12:$AH$29,3,FALSE)),IF($I30="CONGÉ",'Congés de l''employé'!$E$16,IF($I30="Demi congé",'Congés de l''employé'!$BU$16,IF($I30="MALADIE",'Congés de l''employé'!$E$18,IF($I30="Demi maladie",'Congés de l''employé'!$BU$18,MOD($E30-($B30-($C30-$D30))+($G30-$F30),1))))),VLOOKUP($A30,$AF$12:$AH$29,3,FALSE)) -> 0 | K30: =IF(I30<>"",1+MAX($K$14:K29),"") -> 
A31: =B10+9 -> 2019-05-01 | H31: =IF(ISNA(VLOOKUP($A31,$AF$12:$AH$29,3,FALSE)),IF($I31="CONGÉ",'Congés de l''employé'!$E$16,IF($I31="Demi congé",'Congés de l''employé'!$BU$16,IF($I31="MALADIE",'Congés de l''employé'!$E$18,IF($I31="Demi maladie",'Congés de l''employé'!$BU$18,MOD($E31-($B31-($C31-$D31))+($G31-$F31),1))))),VLOOKUP($A31,$AF$12:$AH$29,3,FALSE)) -> 0 | K31: =IF(I31<>"",1+MAX($K$14:K30),"") -> 
A32: =B10+10 -> 2019-05-02 | H32: =IF(ISNA(VLOOKUP($A32,$AF$12:$AH$29,3,FALSE)),IF($I32="CONGÉ",'Congés de l''employé'!$E$16,IF($I32="Demi congé",'Congés de l''employé'!$BU$16,IF($I32="MALADIE",'Congés de l''employé'!$E$18,IF($I32="Demi maladie",'Congés de l''employé'!$BU$18,MOD($E32-($B32-($C32-$D32))+($G32-$F32),1))))),VLOOKUP($A32,$AF$12:$AH$29,3,FALSE)) -> 0 | K32: =IF(I32<>"",1+MAX($K$14:K31),"") -> 
A33: =B10+11 -> 2019-05-03 | H33: =IF(ISNA(VLOOKUP($A33,$AF$12:$AH$29,3,FALSE)),IF($I33="CONGÉ",'Congés de l''employé'!$E$16,IF($I33="Demi congé",'Congés de l''employé'!$BU$16,IF($I33="MALADIE",'Congés de l''employé'!$E$18,IF($I33="Demi maladie",'Congés de l''employé'!$BU$18,MOD($E33-($B33-($C33-$D33))+($G33-$F33),1))))),VLOOKUP($A33,$AF$12:$AH$29,3,FALSE)) -> 0 | K33: =IF(I33<>"",1+MAX($K$14:K32),"") -> 
A34: =B10+12 -> 2019-05-04 | H34: =IF(ISNA(VLOOKUP($A34,$AF$12:$AH$29,3,FALSE)),IF($I34="CONGÉ",'Congés de l''employé'!$E$16,IF($I34="Demi congé",'Congés de l''employé'!$BU$16,IF($I34="MALADIE",'Congés de l''employé'!$E$18,IF($I34="Demi maladie",'Congés de l''employé'!$BU$18,MOD($E34-($B34-($C34-$D34))+($G34-$F34),1))))),VLOOKUP($A34,$AF$12:$AH$29,3,FALSE)) -> 0 | K34: =IF(I34<>"",1+MAX($K$14:K33),"") -> 
A35: =B10+13 -> 2019-05-05 | H35: =IF(ISNA(VLOOKUP($A35,$AF$12:$AH$29,3,FALSE)),IF($I35="CONGÉ",'Congés de l''employé'!$E$16,IF($I35="Demi congé",'Congés de l''employé'!$BU$16,IF($I35="MALADIE",'Congés de l''employé'!$E$18,IF($I35="Demi maladie",'Congés de l''employé'!$BU$18,MOD($E35-($B35-($C35-$D35))+($G35-$F35),1))))),VLOOKUP($A35,$AF$12:$AH$29,3,FALSE)) -> 0 | K35: =IF(I35<>"",1+MAX($K$14:K34),"") -> 
H36: =SUM(H29:H35)+B36 -> 0
G38: Heures en trop ou en moins | H38: =IF(OR(H36=-(B28),B28=0),"0",(H36-B28)) -> 0
A40: Heure travaillées | B40: Heures prévues | C40: ENTREZ le nombre d'heures à payer | D40: Heures supplémentaires ou en moins | E40: Heures à transposer dans la Banque | F40: Total de la Banque d'heures
A41: =$H$23+$H$36 -> 0 | B41: ='Congés de l''employé'!BU8*2 -> 2.916666667 | C41: =A41 -> 0 | D41: =IF($H$26>0,$H$26)+IF($H$38>0,$H$38,0)+IF($H$26<0,$H$26)+IF($H$38<0,$H$38,0) -> 0 | E41: =$A$41-$C$41 -> 0 | F41: =SUM('Avril - 2e-3e semaine'!F41:G42)+E41 -> 0

Sheet Mai - 2e-3e semaine
A1: =MID(CELL("filename",A1),FIND("]",CELL("filename",A1))+1,32) -> Mai - 2e-3e semaine
B2: Feuille de temps
AD8: Congés fériés, lundi suivant la date
A9: Employé: | B9: ='Congés de l''employé'!B8 -> 0 | AD9: Mois | AE9: Type de congé férié | AF9: Année en cours
A10: Période débutant le | B10: =DATE(An_ref,1,-2)-WEEKDAY(DATE(An_ref,1,3))+133 -> 2019-05-06 | AB10: =OR(B11=$AF$12,B11=$AF$13,B11=$AF$14,B11=$AF$16,B11=$AF$17,B11=$AF$19,B11=$AF$21,B11=$AF$23,B11=$AF$25,B11=$AF$26,B11=$AF$27,B11=$AF$28) -> FALSE | AF10: =An_ref -> 2019 | AH10: alloué au férié
AD11: Janvier | AE11: Jour de l'an | AF11: =DATE(Année,1,1) -> 2019-01-01 | AG11: Date fixe 1er janvier
AE12: FÉRIÉ-JOUR OUVRABLE SUIVANT LE JOUR DE L'AN | AF12: =AF11+2-WEEKDAY(AF11)+(WEEKDAY(AF11)>2) -> 2019-01-01 | AH12: =Edit!M27 -> 7.47359181e-190
A13: Jour | B13: Heure Début | C13: Départ Diner | D13: Retour Diner | E13: Heure Fin | F13: Télétravail Départ | G13: Télétravail Fin | H13: TOTAL Journalier | I13: Absence | K13: Index de la ligne | AE13: Bureau fermé congé donné-un jour après le jour de l'an | AF13: =AF11+2-WEEKDAY(AF11)+(WEEKDAY(AF11)>2)+1 -> 2019-01-02
L14: =MAX('Fin Avril-Mai - prem. semaine'!K16:K35) -> 1904-01-01 | AD14: Mars | AE14: Bureau fermé congé donné-un jour ouvré avant Pâques | AF14: =AF15-2 -> 2019-04-19 | AG14: 3e lundi de mai | AH14: =Edit!M28 -> 0.3289473684
A15: Horaire Semaine 1 | K15: =IF(COUNTIF(I16,"X"),MAX($K$13:K13)+1,"") ->  | AE15: Pâques | AF15: =DATE(Année,3,29.56+0.979*MOD(204-11*MOD(Année,19),30)- WEEKDAY(DATE(Année,3,28.56+0.979*MOD(204-11*MOD(Année,19),30)))) -> 2019-04-21 | AG15: Date fixe 24 juin
A16: =$B$10 -> 2019-05-06 | H16: =IF(ISNA(VLOOKUP($A16,$AF$12:$AH$29,3,FALSE)),IF($I16="CONGÉ",'Congés de l''employé'!$E$16,IF($I16="Demi congé",'Congés de l''employé'!$BU$16,IF($I16="MALADIE",'Congés de l''employé'!$E$18,IF($I16="Demi maladie",'Congés de l''employé'!$BU$18,MOD($E16-($B16-($C16-$D16))+($G16-$F16),1))))),VLOOKUP($A16,$AF$12:$AH$29,3,FALSE)) -> 0 | K16: =IF(I16<>"",1+MAX($L$14:L14),"") ->  | AD16: Avril | AE16: Lundi de pâques | AF16: =AF15+1 -> 2019-04-22 | AG16: Date fixe 1er juillet
A17: =$B$10+1 -> 2019-05-07 | H17: =IF(ISNA(VLOOKUP($A17,$AF$12:$AH$29,3,FALSE)),IF($I17="CONGÉ",'Congés de l''employé'!$E$16,IF($I17="Demi congé",'Congés de l''employé'!$BU$16,IF($I17="MALADIE",'Congés de l''employé'!$E$18,IF($I17="Demi maladie",'Congés de l''employé'!$BU$18,MOD($E17-($B17-($C17-$D17))+($G17-$F17),1))))),VLOOKUP($A17,$AF$12:$AH$29,3,FALSE)) -> 0 | K17: =IF(I17<>"",1+MAX($K$14:K15),"") ->  | AD17: Mai | AE17: Journée nationale des patriotes | AF17: =DATE(Année,5,23)-WEEKDAY(DATE(Année,5,1),2) -> 2019-05-20 | AH17: =Edit!M30 -> 0
A18: =$B$10+2 -> 2019-05-08 | H18: =IF(ISNA(VLOOKUP($A18,$AF$12:$AH$29,3,FALSE)),IF($I18="CONGÉ",'Congés de l''employé'!$E$16,IF($I18="Demi congé",'Congés de l''employé'!$BU$16,IF($I18="MALADIE",'Congés de l''employé'!$E$18,IF($I18="Demi maladie",'Congés de l''employé'!$BU$18,MOD($E18-($B18-($C18-$D18))+($G18-$F18),1))))),VLOOKUP($A18,$AF$12:$AH$29,3,FALSE)) -> 0 | K18: =IF(I18<>"",1+MAX($K$14:K16),"") ->  | AD18: Juin | AE18: Fête nationale du Québec | AF18: =DATE(Année,6,24) -> 2019-06-24 | AH18: =Edit!M31 -> 0
A19: =$B$10+3 -> 2019-05-09 | H19: =IF(ISNA(VLOOKUP($A19,$AF$12:$AH$29,3,FALSE)),IF($I19="CONGÉ",'Congés de l''employé'!$E$16,IF($I19="Demi congé",'Congés de l''employé'!$BU$16,IF($I19="MALADIE",'Congés de l''employé'!$E$18,IF($I19="Demi maladie",'Congés de l''employé'!$BU$18,MOD($E19-($B19-($C19-$D19))+($G19-$F19),1))))),VLOOKUP($A19,$AF$12:$AH$29,3,FALSE)) -> 0 | K19: =IF(I19<>"",1+MAX($K$14:K17),"") ->  | AE19: FÉRIÉ-JOUR OUVRABLE SUIVANT LA FÊTE NATIONALE DU QUÉBEC | AF19: =AF18+2-WEEKDAY(AF18)+(WEEKDAY(AF18)>2)*7 -> 2019-06-24 | AG19: Date fixe 25 décembre
A20: =$B$10+4 -> 2019-05-10 | H20: =IF(ISNA(VLOOKUP($A20,$AF$12:$AH$29,3,FALSE)),IF($I20="CONGÉ",'Congés de l''employé'!$E$16,IF($I20="Demi congé",'Congés de l''employé'!$BU$16,IF($I20="MALADIE",'Congés de l''employé'!$E$18,IF($I20="Demi maladie",'Congés de l''employé'!$BU$18,MOD($E20-($B20-($C20-$D20))+($G20-$F20),1))))),VLOOKUP($A20,$AF$12:$AH$29,3,FALSE)) -> 0 | K20: =IF(I20<>"",1+MAX($K$14:K18),"") ->  | AD20: Juillet | AE20: Fête du Canada | AF20: =DATE(Année,7,1) -> 2019-07-01 | AH20: =Edit!M32 -> 1.125374615e-210
A21: =$B$10+5 -> 2019-05-11 | H21: =IF(ISNA(VLOOKUP($A21,$AF$12:$AH$29,3,FALSE)),IF($I21="CONGÉ",'Congés de l''employé'!$E$16,IF($I21="Demi congé",'Congés de l''employé'!$BU$16,IF($I21="MALADIE",'Congés de l''employé'!$E$18,IF($I21="Demi maladie",'Congés de l''employé'!$BU$18,MOD($E21-($B21-($C21-$D21))+($G21-$F21),1))))),VLOOKUP($A21,$AF$12:$AH$29,3,FALSE)) -> 0 | K21: =IF(I21<>"",1+MAX($K$14:K19),"") ->  | AE21: FÉRIÉ-JOUR OUVRABLE SUIVANT LA FÊTE DU CANADA | AF21: =AF20+2-WEEKDAY(AF20)+(WEEKDAY(AF20)>2)*7 -> 2019-07-01
A22: =$B$10+6 -> 2019-05-12 | H22: =IF(ISNA(VLOOKUP($A22,$AF$12:$AH$29,3,FALSE)),IF($I22="CONGÉ",'Congés de l''employé'!$E$16,IF($I22="Demi congé",'Congés de l''employé'!$BU$16,IF($I22="MALADIE",'Congés de l''employé'!$E$18,IF($I22="Demi maladie",'Congés de l''employé'!$BU$18,MOD($E22-($B22-($C22-$D22))+($G22-$F22),1))))),VLOOKUP($A22,$AF$12:$AH$29,3,FALSE)) -> 0 | K22: =IF(I22<>"",1+MAX($K$14:K20),"") ->  | AD22: Septembre | AE22: Fête du travail | AF22: =IF(MOD(DATE(Année,9,1),7)<=2,2-MOD(DATE(Année,9,1),7),9-MOD(DATE(Année,9,1),7))+DATE(Année,9,1) -> 2019-09-01 | AH22: =Edit!M33 -> 0
H23: =SUM(H16:H22)+B23 -> 0 | K23: =IF(I23<>"",1+MAX($K$14:K21),"") ->  | AE23: FÉRIÉ-JOUR OUVRABLE SUIVANT LA FÊTE DU TRAVAIL | AF23: =AF22+2-WEEKDAY(AF22)+(WEEKDAY(AF22)>2)*7 -> 2019-09-02
K24: =IF(I24<>"",1+MAX($K$14:K22),"") ->  | AD24: Octobre | AE24: Action de grâce | AF24: =DATE(AF10,10,1) -> 2019-10-01 | AH24: =Edit!M34 -> 0
K25: =IF(I25<>"",1+MAX($K$14:K23),"") ->  | AE25: FÉRIÉ-JOUR OUVRABLE SUIVANT L'ACTION DE GRÂCE | AF25: =AF24-DAY(AF24)-WEEKDAY(AF24-DAY(AF24),2)+15 -> 2019-10-14
G26: Heures en trop ou en moins | H26: =IF(OR(H23=-(B15),B15=0),"0",(H23-B15)) -> 0 | K26: =IF(I26<>"",1+MAX($K$14:K24),"") ->  | AE26: Bureau fermé congé donné | AF26: =DATE(Année,12,25)-1 -> 2019-12-24 | AH26: ='[1]Congés de l''employé'!$E$14 -> 0
K27: =IF(I27<>"",1+MAX($K$14:K25),"") ->  | AD27: Décembre | AE27: Férié-Noël | AF27: =DATE(Année,12,25) -> 2019-12-25 | AH27: =Edit!M35 -> 0
A28: Horaire Semaine 2 | K28: =IF(I28<>"",1+MAX($K$14:K26),"") ->  | AD28: Décembre | AE28: Bureau fermé congé donné | AF28: =DATE(Année,12,25)+1 -> 2019-12-26
A29: =B10+7 -> 2019-05-13 | H29: =IF(ISNA(VLOOKUP($A29,$AF$12:$AH$29,3,FALSE)),IF($I29="CONGÉ",'Congés de l''employé'!$E$16,IF($I29="Demi congé",'Congés de l''employé'!$BU$16,IF($I29="MALADIE",'Congés de l''employé'!$E$18,IF($I29="Demi maladie",'Congés de l''employé'!$BU$18,MOD($E29-($B29-($C29-$D29))+($G29-$F29),1))))),VLOOKUP($A29,$AF$12:$AH$29,3,FALSE)) -> 0 | K29: =IF(I29<>"",1+MAX($K$14:K28),"") ->  | AD29: Décembre | AE29: Bureau fermé congé donné | AF29: =AF11+2-WEEKDAY(AF11)+(WEEKDAY(AF11)>2)-1 -> 2018-12-31
A30: =B10+8 -> 2019-05-14 | H30: =IF(ISNA(VLOOKUP($A30,$AF$12:$AH$29,3,FALSE)),IF($I30="CONGÉ",'Congés de l''employé'!$E$16,IF($I30="Demi congé",'Congés de l''employé'!$BU$16,IF($I30="MALADIE",'Congés de l''employé'!$E$18,IF($I30="Demi maladie",'Congés de l''employé'!$BU$18,MOD($E30-($B30-($C30-$D30))+($G30-$F30),1))))),VLOOKUP($A30,$AF$12:$AH$29,3,FALSE)) -> 0 | K30: =IF(I30<>"",1+MAX($K$14:K29),"") -> 
A31: =B10+9 -> 2019-05-15 | H31: =IF(ISNA(VLOOKUP($A31,$AF$12:$AH$29,3,FALSE)),IF($I31="CONGÉ",'Congés de l''employé'!$E$16,IF($I31="Demi congé",'Congés de l''employé'!$BU$16,IF($I31="MALADIE",'Congés de l''employé'!$E$18,IF($I31="Demi maladie",'Congés de l''employé'!$BU$18,MOD($E31-($B31-($C31-$D31))+($G31-$F31),1))))),VLOOKUP($A31,$AF$12:$AH$29,3,FALSE)) -> 0 | K31: =IF(I31<>"",1+MAX($K$14:K30),"") -> 
A32: =B10+10 -> 2019-05-16 | H32: =IF(ISNA(VLOOKUP($A32,$AF$12:$AH$29,3,FALSE)),IF($I32="CONGÉ",'Congés de l''employé'!$E$16,IF($I32="Demi congé",'Congés de l''employé'!$BU$16,IF($I32="MALADIE",'Congés de l''employé'!$E$18,IF($I32="Demi maladie",'Congés de l''employé'!$BU$18,MOD($E32-($B32-($C32-$D32))+($G32-$F32),1))))),VLOOKUP($A32,$AF$12:$AH$29,3,FALSE)) -> 0 | K32: =IF(I32<>"",1+MAX($K$14:K31),"") -> 
A33: =B10+11 -> 2019-05-17 | H33: =IF(ISNA(VLOOKUP($A33,$AF$12:$AH$29,3,FALSE)),IF($I33="CONGÉ",'Congés de l''employé'!$E$16,IF($I33="Demi congé",'Congés de l''employé'!$BU$16,IF($I33="MALADIE",'Congés de l''employé'!$E$18,IF($I33="Demi maladie",'Congés de l''employé'!$BU$18,MOD($E33-($B33-($C33-$D33))+($G33-$F33),1))))),VLOOKUP($A33,$AF$12:$AH$29,3,FALSE)) -> 0 | K33: =IF(I33<>"",1+MAX($K$14:K32),"") -> 
A34: =B10+12 -> 2019-05-18 | H34: =IF(ISNA(VLOOKUP($A34,$AF$12:$AH$29,3,FALSE)),IF($I34="CONGÉ",'Congés de l''employé'!$E$16,IF($I34="Demi congé",'Congés de l''employé'!$BU$16,IF($I34="MALADIE",'Congés de l''employé'!$E$18,IF($I34="Demi maladie",'Congés de l''employé'!$BU$18,MOD($E34-($B34-($C34-$D34))+($G34-$F34),1))))),VLOOKUP($A34,$AF$12:$AH$29,3,FALSE)) -> 0 | K34: =IF(I34<>"",1+MAX($K$14:K33),"") -> 
A35: =B10+13 -> 2019-05-19 | H35: =IF(ISNA(VLOOKUP($A35,$AF$12:$AH$29,3,FALSE)),IF($I35="CONGÉ",'Congés de l''employé'!$E$16,IF($I35="Demi congé",'Congés de l''employé'!$BU$16,IF($I35="MALADIE",'Congés de l''employé'!$E$18,IF($I35="Demi maladie",'Congés de l''employé'!$BU$18,MOD($E35-($B35-($C35-$D35))+($G35-$F35),1))))),VLOOKUP($A35,$AF$12:$AH$29,3,FALSE)) -> 0 | K35: =IF(I35<>"",1+MAX($K$14:K34),"") -> 
H36: =SUM(H29:H35)+B36 -> 0
G38: Heures en trop ou en moins | H38: =IF(OR(H36=-(B28),B28=0),"0",(H36-B28)) -> 0
A40: Heure travaillées | B40: Heures prévues | C40: ENTREZ le nombre d'heures à payer | D40: Heures supplémentaires ou en moins | E40: Heures à transposer dans la Banque | F40: Total de la Banque d'heures
A41: =$H$23+$H$36 -> 0 | B41: ='Congés de l''employé'!BU8*2 -> 2.916666667 | C41: =A41 -> 0 | D41: =IF($H$26>0,$H$26)+IF($H$38>0,$H$38,0)+IF($H$26<0,$H$26)+IF($H$38<0,$H$38,0) -> 0 | E41: =$A$41-$C$41 -> 0 | F41: =SUM('Fin Avril-Mai - prem. semaine'!F41:G42)+E41 -> 0

Sheet Fin Mai-Début juin semaine 1
A1: =MID(CELL("filename",A1),FIND("]",CELL("filename",A1))+1,32) -> Fin Mai-Début juin semaine 1
B2: Feuille de temps
AD8: Congés fériés, lundi suivant la date
A9: Employé: | B9: ='Congés de l''employé'!B8 -> 0 | AD9: Mois | AE9: Type de congé férié | AF9: Année en cours
A10: Période débutant le | B10: =DATE(An_ref,1,-2)-WEEKDAY(DATE(An_ref,1,3))+147 -> 2019-05-20 | AB10: =OR(B11=$AF$12,B11=$AF$13,B11=$AF$14,B11=$AF$16,B11=$AF$17,B11=$AF$19,B11=$AF$21,B11=$AF$23,B11=$AF$25,B11=$AF$26,B11=$AF$27,B11=$AF$28) -> FALSE | AF10: =An_ref -> 2019 | AH10: alloué au férié
AD11: Janvier | AE11: Jour de l'an | AF11: =DATE(Année,1,1) -> 2019-01-01 | AG11: Date fixe 1er janvier
AE12: FÉRIÉ-JOUR OUVRABLE SUIVANT LE JOUR DE L'AN | AF12: =AF11+2-WEEKDAY(AF11)+(WEEKDAY(AF11)>2) -> 2019-01-01 | AH12: =Edit!M27 -> 7.47359181e-190
A13: Jour | B13: Heure Début | C13: Départ Diner | D13: Retour Diner | E13: Heure Fin | F13: Télétravail Départ | G13: Télétravail Fin | H13: TOTAL Journalier | I13: Absence | K13: Index de la ligne | AE13: Bureau fermé congé donné-un jour après le jour de l'an | AF13: =AF11+2-WEEKDAY(AF11)+(WEEKDAY(AF11)>2)+1 -> 2019-01-02
L14: =MAX('Mai - 2e-3e semaine'!K16:K35) -> 1904-01-01 | AD14: Mars | AE14: Bureau fermé congé donné-un jour ouvré avant Pâques | AF14: =AF15-2 -> 2019-04-19 | AG14: 3e lundi de mai | AH14: =Edit!M28 -> 0.3289473684
A15: Horaire Semaine 1 | K15: =IF(COUNTIF(I16,"X"),MAX($K$13:K13)+1,"") ->  | AE15: Pâques | AF15: =DATE(Année,3,29.56+0.979*MOD(204-11*MOD(Année,19),30)- WEEKDAY(DATE(Année,3,28.56+0.979*MOD(204-11*MOD(Année,19),30)))) -> 2019-04-21 | AG15: Date fixe 24 juin
A16: =$B$10 -> 2019-05-20 | H16: =IF(ISNA(VLOOKUP($A16,$AF$12:$AH$29,3,FALSE)),IF($I16="CONGÉ",'Congés de l''employé'!$E$16,IF($I16="Demi congé",'Congés de l''employé'!$BU$16,IF($I16="MALADIE",'Congés de l''employé'!$E$18,IF($I16="Demi maladie",'Congés de l''employé'!$BU$18,MOD($E16-($B16-($C16-$D16))+($G16-$F16),1))))),VLOOKUP($A16,$AF$12:$AH$29,3,FALSE)) -> 0 | K16: =IF(I16<>"",1+MAX($L$14:L14),"") ->  | AD16: Avril | AE16: Lundi de pâques | AF16: =AF15+1 -> 2019-04-22 | AG16: Date fixe 1er juillet
A17: =$B$10+1 -> 2019-05-21 | H17: =IF(ISNA(VLOOKUP($A17,$AF$12:$AH$29,3,FALSE)),IF($I17="CONGÉ",'Congés de l''employé'!$E$16,IF($I17="Demi congé",'Congés de l''employé'!$BU$16,IF($I17="MALADIE",'Congés de l''employé'!$E$18,IF($I17="Demi maladie",'Congés de l''employé'!$BU$18,MOD($E17-($B17-($C17-$D17))+($G17-$F17),1))))),VLOOKUP($A17,$AF$12:$AH$29,3,FALSE)) -> 0 | K17: =IF(I17<>"",1+MAX($K$14:K15),"") ->  | AD17: Mai | AE17: Journée nationale des patriotes | AF17: =DATE(Année,5,23)-WEEKDAY(DATE(Année,5,1),2) -> 2019-05-20 | AH17: =Edit!M30 -> 0
A18: =$B$10+2 -> 2019-05-22 | H18: =IF(ISNA(VLOOKUP($A18,$AF$12:$AH$29,3,FALSE)),IF($I18="CONGÉ",'Congés de l''employé'!$E$16,IF($I18="Demi congé",'Congés de l''employé'!$BU$16,IF($I18="MALADIE",'Congés de l''employé'!$E$18,IF($I18="Demi maladie",'Congés de l''employé'!$BU$18,MOD($E18-($B18-($C18-$D18))+($G18-$F18),1))))),VLOOKUP($A18,$AF$12:$AH$29,3,FALSE)) -> 0 | K18: =IF(I18<>"",1+MAX($K$14:K16),"") ->  | AD18: Juin | AE18: Fête nationale du Québec | AF18: =DATE(Année,6,24) -> 2019-06-24 | AH18: =Edit!M31 -> 0
A19: =$B$10+3 -> 2019-05-23 | H19: =IF(ISNA(VLOOKUP($A19,$AF$12:$AH$29,3,FALSE)),IF($I19="CONGÉ",'Congés de l''employé'!$E$16,IF($I19="Demi congé",'Congés de l''employé'!$BU$16,IF($I19="MALADIE",'Congés de l''employé'!$E$18,IF($I19="Demi maladie",'Congés de l''employé'!$BU$18,MOD($E19-($B19-($C19-$D19))+($G19-$F19),1))))),VLOOKUP($A19,$AF$12:$AH$29,3,FALSE)) -> 0 | K19: =IF(I19<>"",1+MAX($K$14:K17),"") ->  | AE19: FÉRIÉ-JOUR OUVRABLE SUIVANT LA FÊTE NATIONALE DU QUÉBEC | AF19: =AF18+2-WEEKDAY(AF18)+(WEEKDAY(AF18)>2)*7 -> 2019-06-24 | AG19: Date fixe 25 décembre
A20: =$B$10+4 -> 2019-05-24 | H20: =IF(ISNA(VLOOKUP($A20,$AF$12:$AH$29,3,FALSE)),IF($I20="CONGÉ",'Congés de l''employé'!$E$16,IF($I20="Demi congé",'Congés de l''employé'!$BU$16,IF($I20="MALADIE",'Congés de l''employé'!$E$18,IF($I20="Demi maladie",'Congés de l''employé'!$BU$18,MOD($E20-($B20-($C20-$D20))+($G20-$F20),1))))),VLOOKUP($A20,$AF$12:$AH$29,3,FALSE)) -> 0 | K20: =IF(I20<>"",1+MAX($K$14:K18),"") ->  | AD20: Juillet | AE20: Fête du Canada | AF20: =DATE(Année,7,1) -> 2019-07-01 | AH20: =Edit!M32 -> 1.125374615e-210
A21: =$B$10+5 -> 2019-05-25 | H21: =IF(ISNA(VLOOKUP($A21,$AF$12:$AH$29,3,FALSE)),IF($I21="CONGÉ",'Congés de l''employé'!$E$16,IF($I21="Demi congé",'Congés de l''employé'!$BU$16,IF($I21="MALADIE",'Congés de l''employé'!$E$18,IF($I21="Demi maladie",'Congés de l''employé'!$BU$18,MOD($E21-($B21-($C21-$D21))+($G21-$F21),1))))),VLOOKUP($A21,$AF$12:$AH$29,3,FALSE)) -> 0 | K21: =IF(I21<>"",1+MAX($K$14:K19),"") ->  | AE21: FÉRIÉ-JOUR OUVRABLE SUIVANT LA FÊTE DU CANADA | AF21: =AF20+2-WEEKDAY(AF20)+(WEEKDAY(AF20)>2)*7 -> 2019-07-01
A22: =$B$10+6 -> 2019-05-26 | H22: =IF(ISNA(VLOOKUP($A22,$AF$12:$AH$29,3,FALSE)),IF($I22="CONGÉ",'Congés de l''employé'!$E$16,IF($I22="Demi congé",'Congés de l''employé'!$BU$16,IF($I22="MALADIE",'Congés de l''employé'!$E$18,IF($I22="Demi maladie",'Congés de l''employé'!$BU$18,MOD($E22-($B22-($C22-$D22))+($G22-$F22),1))))),VLOOKUP($A22,$AF$12:$AH$29,3,FALSE)) -> 0 | K22: =IF(I22<>"",1+MAX($K$14:K20),"") ->  | AD22: Septembre | AE22: Fête du travail | AF22: =IF(MOD(DATE(Année,9,1),7)<=2,2-MOD(DATE(Année,9,1),7),9-MOD(DATE(Année,9,1),7))+DATE(Année,9,1) -> 2019-09-01 | AH22: =Edit!M33 -> 0
H23: =SUM(H16:H22)+B23 -> 0 | K23: =IF(I23<>"",1+MAX($K$14:K21),"") ->  | AE23: FÉRIÉ-JOUR OUVRABLE SUIVANT LA FÊTE DU TRAVAIL | AF23: =AF22+2-WEEKDAY(AF22)+(WEEKDAY(AF22)>2)*7 -> 2019-09-02
K24: =IF(I24<>"",1+MAX($K$14:K22),"") ->  | AD24: Octobre | AE24: Action de grâce | AF24: =DATE(AF10,10,1) -> 2019-10-01 | AH24: =Edit!M34 -> 0
K25: =IF(I25<>"",1+MAX($K$14:K23),"") ->  | AE25: FÉRIÉ-JOUR OUVRABLE SUIVANT L'ACTION DE GRÂCE | AF25: =AF24-DAY(AF24)-WEEKDAY(AF24-DAY(AF24),2)+15 -> 2019-10-14
G26: Heures en trop ou en moins | H26: =IF(OR(H23=-(B15),B15=0),"0",(H23-B15)) -> 0 | K26: =IF(I26<>"",1+MAX($K$14:K24),"") ->  | AE26: Bureau fermé congé donné | AF26: =DATE(Année,12,25)-1 -> 2019-12-24 | AH26: ='[1]Congés de l''employé'!$E$14 -> 0
K27: =IF(I27<>"",1+MAX($K$14:K25),"") ->  | AD27: Décembre | AE27: Férié-Noël | AF27: =DATE(Année,12,25) -> 2019-12-25 | AH27: =Edit!M35 -> 0
A28: Horaire Semaine 2 | K28: =IF(I28<>"",1+MAX($K$14:K26),"") ->  | AD28: Décembre | AE28: Bureau fermé congé donné | AF28: =DATE(Année,12,25)+1 -> 2019-12-26
A29: =B10+7 -> 2019-05-27 | H29: =IF(ISNA(VLOOKUP($A29,$AF$12:$AH$29,3,FALSE)),IF($I29="CONGÉ",'Congés de l''employé'!$E$16,IF($I29="Demi congé",'Congés de l''employé'!$BU$16,IF($I29="MALADIE",'Congés de l''employé'!$E$18,IF($I29="Demi maladie",'Congés de l''employé'!$BU$18,MOD($E29-($B29-($C29-$D29))+($G29-$F29),1))))),VLOOKUP($A29,$AF$12:$AH$29,3,FALSE)) -> 0 | K29: =IF(I29<>"",1+MAX($K$14:K28),"") ->  | AD29: Décembre | AE29: Bureau fermé congé donné | AF29: =AF11+2-WEEKDAY(AF11)+(WEEKDAY(AF11)>2)-1 -> 2018-12-31
A30: =B10+8 -> 2019-05-28 | H30: =IF(ISNA(VLOOKUP($A30,$AF$12:$AH$29,3,FALSE)),IF($I30="CONGÉ",'Congés de l''employé'!$E$16,IF($I30="Demi congé",'Congés de l''employé'!$BU$16,IF($I30="MALADIE",'Congés de l''employé'!$E$18,IF($I30="Demi maladie",'Congés de l''employé'!$BU$18,MOD($E30-($B30-($C30-$D30))+($G30-$F30),1))))),VLOOKUP($A30,$AF$12:$AH$29,3,FALSE)) -> 0 | K30: =IF(I30<>"",1+MAX($K$14:K29),"") -> 
A31: =B10+9 -> 2019-05-29 | H31: =IF(ISNA(VLOOKUP($A31,$AF$12:$AH$29,3,FALSE)),IF($I31="CONGÉ",'Congés de l''employé'!$E$16,IF($I31="Demi congé",'Congés de l''employé'!$BU$16,IF($I31="MALADIE",'Congés de l''employé'!$E$18,IF($I31="Demi maladie",'Congés de l''employé'!$BU$18,MOD($E31-($B31-($C31-$D31))+($G31-$F31),1))))),VLOOKUP($A31,$AF$12:$AH$29,3,FALSE)) -> 0 | K31: =IF(I31<>"",1+MAX($K$14:K30),"") -> 
A32: =B10+10 -> 2019-05-30 | H32: =IF(ISNA(VLOOKUP($A32,$AF$12:$AH$29,3,FALSE)),IF($I32="CONGÉ",'Congés de l''employé'!$E$16,IF($I32="Demi congé",'Congés de l''employé'!$BU$16,IF($I32="MALADIE",'Congés de l''employé'!$E$18,IF($I32="Demi maladie",'Congés de l''employé'!$BU$18,MOD($E32-($B32-($C32-$D32))+($G32-$F32),1))))),VLOOKUP($A32,$AF$12:$AH$29,3,FALSE)) -> 0 | K32: =IF(I32<>"",1+MAX($K$14:K31),"") -> 
A33: =B10+11 -> 2019-05-31 | H33: =IF(ISNA(VLOOKUP($A33,$AF$12:$AH$29,3,FALSE)),IF($I33="CONGÉ",'Congés de l''employé'!$E$16,IF($I33="Demi congé",'Congés de l''employé'!$BU$16,IF($I33="MALADIE",'Congés de l''employé'!$E$18,IF($I33="Demi maladie",'Congés de l''employé'!$BU$18,MOD($E33-($B33-($C33-$D33))+($G33-$F33),1))))),VLOOKUP($A33,$AF$12:$AH$29,3,FALSE)) -> 0 | K33: =IF(I33<>"",1+MAX($K$14:K32),"") -> 
A34: =B10+12 -> 2019-06-01 | H34: =IF(ISNA(VLOOKUP($A34,$AF$12:$AH$29,3,FALSE)),IF($I34="CONGÉ",'Congés de l''employé'!$E$16,IF($I34="Demi congé",'Congés de l''employé'!$BU$16,IF($I34="MALADIE",'Congés de l''employé'!$E$18,IF($I34="Demi maladie",'Congés de l''employé'!$BU$18,MOD($E34-($B34-($C34-$D34))+($G34-$F34),1))))),VLOOKUP($A34,$AF$12:$AH$29,3,FALSE)) -> 0 | K34: =IF(I34<>"",1+MAX($K$14:K33),"") -> 
A35: =B10+13 -> 2019-06-02 | H35: =IF(ISNA(VLOOKUP($A35,$AF$12:$AH$29,3,FALSE)),IF($I35="CONGÉ",'Congés de l''employé'!$E$16,IF($I35="Demi congé",'Congés de l''employé'!$BU$16,IF($I35="MALADIE",'Congés de l''employé'!$E$18,IF($I35="Demi maladie",'Congés de l''employé'!$BU$18,MOD($E35-($B35-($C35-$D35))+($G35-$F35),1))))),VLOOKUP($A35,$AF$12:$AH$29,3,FALSE)) -> 0 | K35: =IF(I35<>"",1+MAX($K$14:K34),"") -> 
H36: =SUM(H29:H35)+B36 -> 0
G38: Heures en trop ou en moins | H38: =IF(OR(H36=-(B28),B28=0),"0",(H36-B28)) -> 0
A40: Heure travaillées | B40: Heures prévues | C40: ENTREZ le nombre d'heures à payer | D40: Heures supplémentaires ou en moins | E40: Heures à transposer dans la Banque | F40: Total de la Banque d'heures
A41: =$H$23+$H$36 -> 0 | B41: ='Congés de l''employé'!BU8*2 -> 2.916666667 | C41: =A41 -> 0 | D41: =IF($H$26>0,$H$26)+IF($H$38>0,$H$38,0)+IF($H$26<0,$H$26)+IF($H$38<0,$H$38,0) -> 0 | E41: =$A$41-$C$41 -> 0 | F41: =SUM('Mai - 2e-3e semaine'!F41:G42)+E41 -> 0

Sheet Juin 2e-3e semaine
A1: =MID(CELL("filename",A1),FIND("]",CELL("filename",A1))+1,32) -> Juin 2e-3e semaine
B2: Feuille de temps
AD8: Congés fériés, lundi suivant la date
A9: Employé: | B9: ='Congés de l''employé'!B8 -> 0 | AD9: Mois | AE9: Type de congé férié | AF9: Année en cours
A10: Période débutant le | B10: =DATE(An_ref,1,-2)-WEEKDAY(DATE(An_ref,1,3))+161 -> 2019-06-03 | AB10: =OR(B11=$AF$12,B11=$AF$13,B11=$AF$14,B11=$AF$16,B11=$AF$17,B11=$AF$19,B11=$AF$21,B11=$AF$23,B11=$AF$25,B11=$AF$26,B11=$AF$27,B11=$AF$28) -> FALSE | AF10: =An_ref -> 2019 | AH10: alloué au férié
AD11: Janvier | AE11: Jour de l'an | AF11: =DATE(Année,1,1) -> 2019-01-01 | AG11: Date fixe 1er janvier
AE12: FÉRIÉ-JOUR OUVRABLE SUIVANT LE JOUR DE L'AN | AF12: =AF11+2-WEEKDAY(AF11)+(WEEKDAY(AF11)>2) -> 2019-01-01 | AH12: =Edit!M27 -> 7.47359181e-190
A13: Jour | B13: Heure Début | C13: Départ Diner | D13: Retour Diner | E13: Heure Fin | F13: Télétravail Départ | G13: Télétravail Fin | H13: TOTAL Journalier | I13: Absence | K13: Index de la ligne | AE13: Bureau fermé congé donné-un jour après le jour de l'an | AF13: =AF11+2-WEEKDAY(AF11)+(WEEKDAY(AF11)>2)+1 -> 2019-01-02
L14: =MAX('Fin Mai-Début juin semaine 1'!K16:K35) -> 1904-01-01 | AD14: Mars | AE14: Bureau fermé congé donné-un jour ouvré avant Pâques | AF14: =AF15-2 -> 2019-04-19 | AG14: 3e lundi de mai | AH14: =Edit!M28 -> 0.3289473684
A15: Horaire Semaine 1 | K15: =IF(COUNTIF(I16,"X"),MAX($K$13:K13)+1,"") ->  | AE15: Pâques | AF15: =DATE(Année,3,29.56+0.979*MOD(204-11*MOD(Année,19),30)- WEEKDAY(DATE(Année,3,28.56+0.979*MOD(204-11*MOD(Année,19),30)))) -> 2019-04-21 | AG15: Date fixe 24 juin
A16: =$B$10 -> 2019-06-03 | H16: =IF(ISNA(VLOOKUP($A16,$AF$12:$AH$29,3,FALSE)),IF($I16="CONGÉ",'Congés de l''employé'!$E$16,IF($I16="Demi congé",'Congés de l''employé'!$BU$16,IF($I16="MALADIE",'Congés de l''employé'!$E$18,IF($I16="Demi maladie",'Congés de l''employé'!$BU$18,MOD($E16-($B16-($C16-$D16))+($G16-$F16),1))))),VLOOKUP($A16,$AF$12:$AH$29,3,FALSE)) -> 0 | K16: =IF(I16<>"",1+MAX($L$14:L14),"") ->  | AD16: Avril | AE16: Lundi de pâques | AF16: =AF15+1 -> 2019-04-22 | AG16: Date fixe 1er juillet
A17: =$B$10+1 -> 2019-06-04 | H17: =IF(ISNA(VLOOKUP($A17,$AF$12:$AH$29,3,FALSE)),IF($I17="CONGÉ",'Congés de l''employé'!$E$16,IF($I17="Demi congé",'Congés de l''employé'!$BU$16,IF($I17="MALADIE",'Congés de l''employé'!$E$18,IF($I17="Demi maladie",'Congés de l''employé'!$BU$18,MOD($E17-($B17-($C17-$D17))+($G17-$F17),1))))),VLOOKUP($A17,$AF$12:$AH$29,3,FALSE)) -> 0 | K17: =IF(I17<>"",1+MAX($K$14:K15),"") ->  | AD17: Mai | AE17: Journée nationale des patriotes | AF17: =DATE(Année,5,23)-WEEKDAY(DATE(Année,5,1),2) -> 2019-05-20 | AH17: =Edit!M30 -> 0
A18: =$B$10+2 -> 2019-06-05 | H18: =IF(ISNA(VLOOKUP($A18,$AF$12:$AH$29,3,FALSE)),IF($I18="CONGÉ",'Congés de l''employé'!$E$16,IF($I18="Demi congé",'Congés de l''employé'!$BU$16,IF($I18="MALADIE",'Congés de l''employé'!$E$18,IF($I18="Demi maladie",'Congés de l''employé'!$BU$18,MOD($E18-($B18-($C18-$D18))+($G18-$F18),1))))),VLOOKUP($A18,$AF$12:$AH$29,3,FALSE)) -> 0 | K18: =IF(I18<>"",1+MAX($K$14:K16),"") ->  | AD18: Juin | AE18: Fête nationale du Québec | AF18: =DATE(Année,6,24) -> 2019-06-24 | AH18: =Edit!M31 -> 0
A19: =$B$10+3 -> 2019-06-06 | H19: =IF(ISNA(VLOOKUP($A19,$AF$12:$AH$29,3,FALSE)),IF($I19="CONGÉ",'Congés de l''employé'!$E$16,IF($I19="Demi congé",'Congés de l''employé'!$BU$16,IF($I19="MALADIE",'Congés de l''employé'!$E$18,IF($I19="Demi maladie",'Congés de l''employé'!$BU$18,MOD($E19-($B19-($C19-$D19))+($G19-$F19),1))))),VLOOKUP($A19,$AF$12:$AH$29,3,FALSE)) -> 0 | K19: =IF(I19<>"",1+MAX($K$14:K17),"") ->  | AE19: FÉRIÉ-JOUR OUVRABLE SUIVANT LA FÊTE NATIONALE DU QUÉBEC | AF19: =AF18+2-WEEKDAY(AF18)+(WEEKDAY(AF18)>2)*7 -> 2019-06-24 | AG19: Date fixe 25 décembre
A20: =$B$10+4 -> 2019-06-07 | H20: =IF(ISNA(VLOOKUP($A20,$AF$12:$AH$29,3,FALSE)),IF($I20="CONGÉ",'Congés de l''employé'!$E$16,IF($I20="Demi congé",'Congés de l''employé'!$BU$16,IF($I20="MALADIE",'Congés de l''employé'!$E$18,IF($I20="Demi maladie",'Congés de l''employé'!$BU$18,MOD($E20-($B20-($C20-$D20))+($G20-$F20),1))))),VLOOKUP($A20,$AF$12:$AH$29,3,FALSE)) -> 0 | K20: =IF(I20<>"",1+MAX($K$14:K18),"") ->  | AD20: Juillet | AE20: Fête du Canada | AF20: =DATE(Année,7,1) -> 2019-07-01 | AH20: =Edit!M32 -> 1.125374615e-210
A21: =$B$10+5 -> 2019-06-08 | H21: =IF(ISNA(VLOOKUP($A21,$AF$12:$AH$29,3,FALSE)),IF($I21="CONGÉ",'Congés de l''employé'!$E$16,IF($I21="Demi congé",'Congés de l''employé'!$BU$16,IF($I21="MALADIE",'Congés de l''employé'!$E$18,IF($I21="Demi maladie",'Congés de l''employé'!$BU$18,MOD($E21-($B21-($C21-$D21))+($G21-$F21),1))))),VLOOKUP($A21,$AF$12:$AH$29,3,FALSE)) -> 0 | K21: =IF(I21<>"",1+MAX($K$14:K19),"") ->  | AE21: FÉRIÉ-JOUR OUVRABLE SUIVANT LA FÊTE DU CANADA | AF21: =AF20+2-WEEKDAY(AF20)+(WEEKDAY(AF20)>2)*7 -> 2019-07-01
A22: =$B$10+6 -> 2019-06-09 | H22: =IF(ISNA(VLOOKUP($A22,$AF$12:$AH$29,3,FALSE)),IF($I22="CONGÉ",'Congés de l''employé'!$E$16,IF($I22="Demi congé",'Congés de l''employé'!$BU$16,IF($I22="MALADIE",'Congés de l''employé'!$E$18,IF($I22="Demi maladie",'Congés de l''employé'!$BU$18,MOD($E22-($B22-($C22-$D22))+($G22-$F22),1))))),VLOOKUP($A22,$AF$12:$AH$29,3,FALSE)) -> 0 | K22: =IF(I22<>"",1+MAX($K$14:K20),"") ->  | AD22: Septembre | AE22: Fête du travail | AF22: =IF(MOD(DATE(Année,9,1),7)<=2,2-MOD(DATE(Année,9,1),7),9-MOD(DATE(Année,9,1),7))+DATE(Année,9,1) -> 2019-09-01 | AH22: =Edit!M33 -> 0
H23: =SUM(H16:H22)+Tableau145678936405286[[#This Row],[Heure Début]] -> 0 | K23: =IF(I23<>"",1+MAX($K$14:K21),"") ->  | AE23: FÉRIÉ-JOUR OUVRABLE SUIVANT LA FÊTE DU TRAVAIL | AF23: =AF22+2-WEEKDAY(AF22)+(WEEKDAY(AF22)>2)*7 -> 2019-09-02
K24: =IF(I24<>"",1+MAX($K$14:K22),"") ->  | AD24: Octobre | AE24: Action de grâce | AF24: =DATE(AF10,10,1) -> 2019-10-01 | AH24: =Edit!M34 -> 0
K25: =IF(I25<>"",1+MAX($K$14:K23),"") ->  | AE25: FÉRIÉ-JOUR OUVRABLE SUIVANT L'ACTION DE GRÂCE | AF25: =AF24-DAY(AF24)-WEEKDAY(AF24-DAY(AF24),2)+15 -> 2019-10-14
G26: Heures en trop ou en moins | H26: =IF(OR(H23=-(B15),B15=0),"0",(H23-B15)) -> 0 | K26: =IF(I26<>"",1+MAX($K$14:K24),"") ->  | AE26: Bureau fermé congé donné | AF26: =DATE(Année,12,25)-1 -> 2019-12-24 | AH26: ='[1]Congés de l''employé'!$E$14 -> 0
K27: =IF(I27<>"",1+MAX($K$14:K25),"") ->  | AD27: Décembre | AE27: Férié-Noël | AF27: =DATE(Année,12,25) -> 2019-12-25 | AH27: =Edit!M35 -> 0
A28: Horaire Semaine 2 | K28: =IF(I28<>"",1+MAX($K$14:K26),"") ->  | AD28: Décembre | AE28: Bureau fermé congé donné | AF28: =DATE(Année,12,25)+1 -> 2019-12-26
A29: =B10+7 -> 2019-06-10 | H29: =IF(ISNA(VLOOKUP($A29,$AF$12:$AH$29,3,FALSE)),IF($I29="CONGÉ",'Congés de l''employé'!$E$16,IF($I29="Demi congé",'Congés de l''employé'!$BU$16,IF($I29="MALADIE",'Congés de l''employé'!$E$18,IF($I29="Demi maladie",'Congés de l''employé'!$BU$18,MOD($E29-($B29-($C29-$D29))+($G29-$F29),1))))),VLOOKUP($A29,$AF$12:$AH$29,3,FALSE)) -> 0 | K29: =IF(I29<>"",1+MAX($K$14:K28),"") ->  | AD29: Décembre | AE29: Bureau fermé congé donné | AF29: =AF11+2-WEEKDAY(AF11)+(WEEKDAY(AF11)>2)-1 -> 2018-12-31
A30: =B10+8 -> 2019-06-11 | H30: =IF(ISNA(VLOOKUP($A30,$AF$12:$AH$29,3,FALSE)),IF($I30="CONGÉ",'Congés de l''employé'!$E$16,IF($I30="Demi congé",'Congés de l''employé'!$BU$16,IF($I30="MALADIE",'Congés de l''employé'!$E$18,IF($I30="Demi maladie",'Congés de l''employé'!$BU$18,MOD($E30-($B30-($C30-$D30))+($G30-$F30),1))))),VLOOKUP($A30,$AF$12:$AH$29,3,FALSE)) -> 0 | K30: =IF(I30<>"",1+MAX($K$14:K29),"") -> 
A31: =B10+9 -> 2019-06-12 | H31: =IF(ISNA(VLOOKUP($A31,$AF$12:$AH$29,3,FALSE)),IF($I31="CONGÉ",'Congés de l''employé'!$E$16,IF($I31="Demi congé",'Congés de l''employé'!$BU$16,IF($I31="MALADIE",'Congés de l''employé'!$E$18,IF($I31="Demi maladie",'Congés de l''employé'!$BU$18,MOD($E31-($B31-($C31-$D31))+($G31-$F31),1))))),VLOOKUP($A31,$AF$12:$AH$29,3,FALSE)) -> 0 | K31: =IF(I31<>"",1+MAX($K$14:K30),"") -> 
A32: =B10+10 -> 2019-06-13 | H32: =IF(ISNA(VLOOKUP($A32,$AF$12:$AH$29,3,FALSE)),IF($I32="CONGÉ",'Congés de l''employé'!$E$16,IF($I32="Demi congé",'Congés de l''employé'!$BU$16,IF($I32="MALADIE",'Congés de l''employé'!$E$18,IF($I32="Demi maladie",'Congés de l''employé'!$BU$18,MOD($E32-($B32-($C32-$D32))+($G32-$F32),1))))),VLOOKUP($A32,$AF$12:$AH$29,3,FALSE)) -> 0 | K32: =IF(I32<>"",1+MAX($K$14:K31),"") -> 
A33: =B10+11 -> 2019-06-14 | H33: =IF(ISNA(VLOOKUP($A33,$AF$12:$AH$29,3,FALSE)),IF($I33="CONGÉ",'Congés de l''employé'!$E$16,IF($I33="Demi congé",'Congés de l''employé'!$BU$16,IF($I33="MALADIE",'Congés de l''employé'!$E$18,IF($I33="Demi maladie",'Congés de l''employé'!$BU$18,MOD($E33-($B33-($C33-$D33))+($G33-$F33),1))))),VLOOKUP($A33,$AF$12:$AH$29,3,FALSE)) -> 0 | K33: =IF(I33<>"",1+MAX($K$14:K32),"") -> 
A34: =B10+12 -> 2019-06-15 | H34: =IF(ISNA(VLOOKUP($A34,$AF$12:$AH$29,3,FALSE)),IF($I34="CONGÉ",'Congés de l''employé'!$E$16,IF($I34="Demi congé",'Congés de l''employé'!$BU$16,IF($I34="MALADIE",'Congés de l''employé'!$E$18,IF($I34="Demi maladie",'Congés de l''employé'!$BU$18,MOD($E34-($B34-($C34-$D34))+($G34-$F34),1))))),VLOOKUP($A34,$AF$12:$AH$29,3,FALSE)) -> 0 | K34: =IF(I34<>"",1+MAX($K$14:K33),"") -> 
A35: =B10+13 -> 2019-06-16 | H35: =IF(ISNA(VLOOKUP($A35,$AF$12:$AH$29,3,FALSE)),IF($I35="CONGÉ",'Congés de l''employé'!$E$16,IF($I35="Demi congé",'Congés de l''employé'!$BU$16,IF($I35="MALADIE",'Congés de l''employé'!$E$18,IF($I35="Demi maladie",'Congés de l''employé'!$BU$18,MOD($E35-($B35-($C35-$D35))+($G35-$F35),1))))),VLOOKUP($A35,$AF$12:$AH$29,3,FALSE)) -> 0 | K35: =IF(I35<>"",1+MAX($K$14:K34),"") -> 
H36: =SUM(H29:H35)+B36 -> 0
G38: Heures en trop ou en moins | H38: =IF(OR(H36=-(B28),B28=0),"0",(H36-B28)) -> 0
A40: Heure travaillées | B40: Heures prévues | C40: ENTREZ le nombre d'heures à payer | D40: Heures supplémentaires ou en moins | E40: Heures à transposer dans la Banque | F40: Total de la Banque d'heures
A41: =$H$23+$H$36 -> 0 | B41: ='Congés de l''employé'!BU8*2 -> 2.916666667 | C41: =A41 -> 0 | D41: =IF($H$26>0,$H$26)+IF($H$38>0,$H$38,0)+IF($H$26<0,$H$26)+IF($H$38<0,$H$38,0) -> 0 | E41: =$A$41-$C$41 -> 0 | F41: =SUM('Fin Mai-Début juin semaine 1'!F41:G42)+E41 -> 0

Sheet Juin 4e-5e semaine-Juillet déb.
A1: =MID(CELL("filename",A1),FIND("]",CELL("filename",A1))+1,32) -> Juin 4e-5e semaine-Juillet déb.
B2: Feuille de temps
AD8: Congés fériés, lundi suivant la date
A9: Employé: | B9: ='Congés de l''employé'!B8 -> 0 | AD9: Mois | AE9: Type de congé férié | AF9: Année en cours
A10: Période débutant le | B10: =DATE(An_ref,1,-2)-WEEKDAY(DATE(An_ref,1,3))+175 -> 2019-06-17 | AB10: =OR(B11=$AF$12,B11=$AF$13,B11=$AF$14,B11=$AF$16,B11=$AF$17,B11=$AF$19,B11=$AF$21,B11=$AF$23,B11=$AF$25,B11=$AF$26,B11=$AF$27,B11=$AF$28) -> FALSE | AF10: =An_ref -> 2019 | AH10: alloué au férié
AD11: Janvier | AE11: Jour de l'an | AF11: =DATE(Année,1,1) -> 2019-01-01 | AG11: Date fixe 1er janvier
AE12: FÉRIÉ-JOUR OUVRABLE SUIVANT LE JOUR DE L'AN | AF12: =AF11+2-WEEKDAY(AF11)+(WEEKDAY(AF11)>2) -> 2019-01-01 | AH12: =Edit!M27 -> 7.47359181e-190
A13: Jour | B13: Heure Début | C13: Départ Diner | D13: Retour Diner | E13: Heure Fin | F13: Télétravail Départ | G13: Télétravail Fin | H13: TOTAL Journalier | I13: Absence | K13: Index de la ligne | AE13: Bureau fermé congé donné-un jour après le jour de l'an | AF13: =AF11+2-WEEKDAY(AF11)+(WEEKDAY(AF11)>2)+1 -> 2019-01-02
L14: =MAX('Juin 2e-3e semaine'!K16:K35) -> 1904-01-01 | AD14: Mars | AE14: Bureau fermé congé donné-un jour ouvré avant Pâques | AF14: =AF15-2 -> 2019-04-19 | AG14: 3e lundi de mai | AH14: =Edit!M28 -> 0.3289473684
A15: Horaire Semaine 1 | K15: =IF(COUNTIF(I16,"X"),MAX($K$13:K13)+1,"") ->  | AE15: Pâques | AF15: =DATE(Année,3,29.56+0.979*MOD(204-11*MOD(Année,19),30)- WEEKDAY(DATE(Année,3,28.56+0.979*MOD(204-11*MOD(Année,19),30)))) -> 2019-04-21 | AG15: Date fixe 24 juin
A16: =$B$10 -> 2019-06-17 | H16: =IF(ISNA(VLOOKUP($A16,$AF$12:$AH$29,3,FALSE)),IF($I16="CONGÉ",'Congés de l''employé'!$E$16,IF($I16="Demi congé",'Congés de l''employé'!$BU$16,IF($I16="MALADIE",'Congés de l''employé'!$E$18,IF($I16="Demi maladie",'Congés de l''employé'!$BU$18,MOD($E16-($B16-($C16-$D16))+($G16-$F16),1))))),VLOOKUP($A16,$AF$12:$AH$29,3,FALSE)) -> 0 | K16: =IF(I16<>"",1+MAX($L$14:L14),"") ->  | AD16: Avril | AE16: Lundi de pâques | AF16: =AF15+1 -> 2019-04-22 | AG16: Date fixe 1er juillet
A17: =$B$10+1 -> 2019-06-18 | H17: =IF(ISNA(VLOOKUP($A17,$AF$12:$AH$29,3,FALSE)),IF($I17="CONGÉ",'Congés de l''employé'!$E$16,IF($I17="Demi congé",'Congés de l''employé'!$BU$16,IF($I17="MALADIE",'Congés de l''employé'!$E$18,IF($I17="Demi maladie",'Congés de l''employé'!$BU$18,MOD($E17-($B17-($C17-$D17))+($G17-$F17),1))))),VLOOKUP($A17,$AF$12:$AH$29,3,FALSE)) -> 0 | K17: =IF(I17<>"",1+MAX($K$14:K15),"") ->  | AD17: Mai | AE17: Journée nationale des patriotes | AF17: =DATE(Année,5,23)-WEEKDAY(DATE(Année,5,1),2) -> 2019-05-20 | AH17: =Edit!M30 -> 0
A18: =$B$10+2 -> 2019-06-19 | H18: =IF(ISNA(VLOOKUP($A18,$AF$12:$AH$29,3,FALSE)),IF($I18="CONGÉ",'Congés de l''employé'!$E$16,IF($I18="Demi congé",'Congés de l''employé'!$BU$16,IF($I18="MALADIE",'Congés de l''employé'!$E$18,IF($I18="Demi maladie",'Congés de l''employé'!$BU$18,MOD($E18-($B18-($C18-$D18))+($G18-$F18),1))))),VLOOKUP($A18,$AF$12:$AH$29,3,FALSE)) -> 0 | K18: =IF(I18<>"",1+MAX($K$14:K16),"") ->  | AD18: Juin | AE18: Fête nationale du Québec | AF18: =DATE(Année,6,24) -> 2019-06-24 | AH18: =Edit!M31 -> 0
A19: =$B$10+3 -> 2019-06-20 | H19: =IF(ISNA(VLOOKUP($A19,$AF$12:$AH$29,3,FALSE)),IF($I19="CONGÉ",'Congés de l''employé'!$E$16,IF($I19="Demi congé",'Congés de l''employé'!$BU$16,IF($I19="MALADIE",'Congés de l''employé'!$E$18,IF($I19="Demi maladie",'Congés de l''employé'!$BU$18,MOD($E19-($B19-($C19-$D19))+($G19-$F19),1))))),VLOOKUP($A19,$AF$12:$AH$29,3,FALSE)) -> 0 | K19: =IF(I19<>"",1+MAX($K$14:K17),"") ->  | AE19: FÉRIÉ-JOUR OUVRABLE SUIVANT LA FÊTE NATIONALE DU QUÉBEC | AF19: =AF18+2-WEEKDAY(AF18)+(WEEKDAY(AF18)>2)*7 -> 2019-06-24 | AG19: Date fixe 25 décembre
A20: =$B$10+4 -> 2019-06-21 | H20: =IF(ISNA(VLOOKUP($A20,$AF$12:$AH$29,3,FALSE)),IF($I20="CONGÉ",'Congés de l''employé'!$E$16,IF($I20="Demi congé",'Congés de l''employé'!$BU$16,IF($I20="MALADIE",'Congés de l''employé'!$E$18,IF($I20="Demi maladie",'Congés de l''employé'!$BU$18,MOD($E20-($B20-($C20-$D20))+($G20-$F20),1))))),VLOOKUP($A20,$AF$12:$AH$29,3,FALSE)) -> 0 | K20: =IF(I20<>"",1+MAX($K$14:K18),"") ->  | AD20: Juillet | AE20: Fête du Canada | AF20: =DATE(Année,7,1) -> 2019-07-01 | AH20: =Edit!M32 -> 1.125374615e-210
A21: =$B$10+5 -> 2019-06-22 | H21: =IF(ISNA(VLOOKUP($A21,$AF$12:$AH$29,3,FALSE)),IF($I21="CONGÉ",'Congés de l''employé'!$E$16,IF($I21="Demi congé",'Congés de l''employé'!$BU$16,IF($I21="MALADIE",'Congés de l''employé'!$E$18,IF($I21="Demi maladie",'Congés de l''employé'!$BU$18,MOD($E21-($B21-($C21-$D21))+($G21-$F21),1))))),VLOOKUP($A21,$AF$12:$AH$29,3,FALSE)) -> 0 | K21: =IF(I21<>"",1+MAX($K$14:K19),"") ->  | AE21: FÉRIÉ-JOUR OUVRABLE SUIVANT LA FÊTE DU CANADA | AF21: =AF20+2-WEEKDAY(AF20)+(WEEKDAY(AF20)>2)*7 -> 2019-07-01
A22: =$B$10+6 -> 2019-06-23 | H22: =IF(ISNA(VLOOKUP($A22,$AF$12:$AH$29,3,FALSE)),IF($I22="CONGÉ",'Congés de l''employé'!$E$16,IF($I22="Demi congé",'Congés de l''employé'!$BU$16,IF($I22="MALADIE",'Congés de l''employé'!$E$18,IF($I22="Demi maladie",'Congés de l''employé'!$BU$18,MOD($E22-($B22-($C22-$D22))+($G22-$F22),1))))),VLOOKUP($A22,$AF$12:$AH$29,3,FALSE)) -> 0 | K22: =IF(I22<>"",1+MAX($K$14:K20),"") ->  | AD22: Septembre | AE22: Fête du travail | AF22: =IF(MOD(DATE(Année,9,1),7)<=2,2-MOD(DATE(Année,9,1),7),9-MOD(DATE(Année,9,1),7))+DATE(Année,9,1) -> 2019-09-01 | AH22: =Edit!M33 -> 0
H23: =SUM(H16:H22)+B23 -> 0 | K23: =IF(I23<>"",1+MAX($K$14:K21),"") ->  | AE23: FÉRIÉ-JOUR OUVRABLE SUIVANT LA FÊTE DU TRAVAIL | AF23: =AF22+2-WEEKDAY(AF22)+(WEEKDAY(AF22)>2)*7 -> 2019-09-02
K24: =IF(I24<>"",1+MAX($K$14:K22),"") ->  | AD24: Octobre | AE24: Action de grâce | AF24: =DATE(AF10,10,1) -> 2019-10-01 | AH24: =Edit!M34 -> 0
K25: =IF(I25<>"",1+MAX($K$14:K23),"") ->  | AE25: FÉRIÉ-JOUR OUVRABLE SUIVANT L'ACTION DE GRÂCE | AF25: =AF24-DAY(AF24)-WEEKDAY(AF24-DAY(AF24),2)+15 -> 2019-10-14
G26: Heures en trop ou en moins | H26: =IF(OR(H23=-(B15),B15=0),"0",(H23-B15)) -> 0 | K26: =IF(I26<>"",1+MAX($K$14:K24),"") ->  | AE26: Bureau fermé congé donné | AF26: =DATE(Année,12,25)-1 -> 2019-12-24 | AH26: ='[1]Congés de l''employé'!$E$14 -> 0
K27: =IF(I27<>"",1+MAX($K$14:K25),"") ->  | AD27: Décembre | AE27: Férié-Noël | AF27: =DATE(Année,12,25) -> 2019-12-25 | AH27: =Edit!M35 -> 0
A28: Horaire Semaine 2 | K28: =IF(I28<>"",1+MAX($K$14:K26),"") ->  | AD28: Décembre | AE28: Bureau fermé congé donné | AF28: =DATE(Année,12,25)+1 -> 2019-12-26
A29: =B10+7 -> 2019-06-24 | H29: =IF(ISNA(VLOOKUP($A29,$AF$12:$AH$29,3,FALSE)),IF($I29="CONGÉ",'Congés de l''employé'!$E$16,IF($I29="Demi congé",'Congés de l''employé'!$BU$16,IF($I29="MALADIE",'Congés de l''employé'!$E$18,IF($I29="Demi maladie",'Congés de l''employé'!$BU$18,MOD($E29-($B29-($C29-$D29))+($G29-$F29),1))))),VLOOKUP($A29,$AF$12:$AH$29,3,FALSE)) -> 0 | K29: =IF(I29<>"",1+MAX($K$14:K28),"") ->  | AD29: Décembre | AE29: Bureau fermé congé donné | AF29: =AF11+2-WEEKDAY(AF11)+(WEEKDAY(AF11)>2)-1 -> 2018-12-31
A30: =B10+8 -> 2019-06-25 | H30: =IF(ISNA(VLOOKUP($A30,$AF$12:$AH$29,3,FALSE)),IF($I30="CONGÉ",'Congés de l''employé'!$E$16,IF($I30="Demi congé",'Congés de l''employé'!$BU$16,IF($I30="MALADIE",'Congés de l''employé'!$E$18,IF($I30="Demi maladie",'Congés de l''employé'!$BU$18,MOD($E30-($B30-($C30-$D30))+($G30-$F30),1))))),VLOOKUP($A30,$AF$12:$AH$29,3,FALSE)) -> 0 | K30: =IF(I30<>"",1+MAX($K$14:K29),"") -> 
A31: =B10+9 -> 2019-06-26 | H31: =IF(ISNA(VLOOKUP($A31,$AF$12:$AH$29,3,FALSE)),IF($I31="CONGÉ",'Congés de l''employé'!$E$16,IF($I31="Demi congé",'Congés de l''employé'!$BU$16,IF($I31="MALADIE",'Congés de l''employé'!$E$18,IF($I31="Demi maladie",'Congés de l''employé'!$BU$18,MOD($E31-($B31-($C31-$D31))+($G31-$F31),1))))),VLOOKUP($A31,$AF$12:$AH$29,3,FALSE)) -> 0 | K31: =IF(I31<>"",1+MAX($K$14:K30),"") -> 
A32: =B10+10 -> 2019-06-27 | H32: =IF(ISNA(VLOOKUP($A32,$AF$12:$AH$29,3,FALSE)),IF($I32="CONGÉ",'Congés de l''employé'!$E$16,IF($I32="Demi congé",'Congés de l''employé'!$BU$16,IF($I32="MALADIE",'Congés de l''employé'!$E$18,IF($I32="Demi maladie",'Congés de l''employé'!$BU$18,MOD($E32-($B32-($C32-$D32))+($G32-$F32),1))))),VLOOKUP($A32,$AF$12:$AH$29,3,FALSE)) -> 0 | K32: =IF(I32<>"",1+MAX($K$14:K31),"") -> 
A33: =B10+11 -> 2019-06-28 | H33: =IF(ISNA(VLOOKUP($A33,$AF$12:$AH$29,3,FALSE)),IF($I33="CONGÉ",'Congés de l''employé'!$E$16,IF($I33="Demi congé",'Congés de l''employé'!$BU$16,IF($I33="MALADIE",'Congés de l''employé'!$E$18,IF($I33="Demi maladie",'Congés de l''employé'!$BU$18,MOD($E33-($B33-($C33-$D33))+($G33-$F33),1))))),VLOOKUP($A33,$AF$12:$AH$29,3,FALSE)) -> 0 | K33: =IF(I33<>"",1+MAX($K$14:K32),"") -> 
A34: =B10+12 -> 2019-06-29 | H34: =IF(ISNA(VLOOKUP($A34,$AF$12:$AH$29,3,FALSE)),IF($I34="CONGÉ",'Congés de l''employé'!$E$16,IF($I34="Demi congé",'Congés de l''employé'!$BU$16,IF($I34="MALADIE",'Congés de l''employé'!$E$18,IF($I34="Demi maladie",'Congés de l''employé'!$BU$18,MOD($E34-($B34-($C34-$D34))+($G34-$F34),1))))),VLOOKUP($A34,$AF$12:$AH$29,3,FALSE)) -> 0 | K34: =IF(I34<>"",1+MAX($K$14:K33),"") -> 
A35: =B10+13 -> 2019-06-30 | H35: =IF(ISNA(VLOOKUP($A35,$AF$12:$AH$29,3,FALSE)),IF($I35="CONGÉ",'Congés de l''employé'!$E$16,IF($I35="Demi congé",'Congés de l''employé'!$BU$16,IF($I35="MALADIE",'Congés de l''employé'!$E$18,IF($I35="Demi maladie",'Congés de l''employé'!$BU$18,MOD($E35-($B35-($C35-$D35))+($G35-$F35),1))))),VLOOKUP($A35,$AF$12:$AH$29,3,FALSE)) -> 0 | K35: =IF(I35<>"",1+MAX($K$14:K34),"") -> 
H36: =SUM(H29:H35)+B36 -> 0
G38: Heures en trop ou en moins | H38: =IF(OR(H36=-(B28),B28=0),"0",(H36-B28)) -> 0
A40: Heure travaillées | B40: Heures prévues | C40: ENTREZ le nombre d'heures à payer | D40: Heures supplémentaires ou en moins | E40: Heures à transposer dans la Banque | F40: Total de la Banque d'heures
A41: =$H$23+$H$36 -> 0 | B41: ='Congés de l''employé'!BU8*2 -> 2.916666667 | C41: =A41 -> 0 | D41: =IF($H$26>0,$H$26)+IF($H$38>0,$H$38,0)+IF($H$26<0,$H$26)+IF($H$38<0,$H$38,0) -> 0 | E41: =$A$41-$C$41 -> 0 | F41: =SUM('Juin 2e-3e semaine'!F41:G42)+E41 -> 0

Sheet Juillet-2prem. semaines
A1: =MID(CELL("filename",A1),FIND("]",CELL("filename",A1))+1,32) -> Juillet-2prem. semaines
B2: Feuille de temps
AD8: Congés fériés, lundi suivant la date
A9: Employé: | B9: ='Congés de l''employé'!B8 -> 0 | AD9: Mois | AE9: Type de congé férié | AF9: Année en cours
A10: Période débutant le | B10: =DATE(An_ref,1,-2)-WEEKDAY(DATE(An_ref,1,3))+189 -> 2019-07-01 | AB10: =OR(B11=$AF$12,B11=$AF$13,B11=$AF$14,B11=$AF$16,B11=$AF$17,B11=$AF$19,B11=$AF$21,B11=$AF$23,B11=$AF$25,B11=$AF$26,B11=$AF$27,B11=$AF$28) -> FALSE | AF10: =An_ref -> 2019 | AH10: alloué au férié
AD11: Janvier | AE11: Jour de l'an | AF11: =DATE(Année,1,1) -> 2019-01-01 | AG11: Date fixe 1er janvier
AE12: FÉRIÉ-JOUR OUVRABLE SUIVANT LE JOUR DE L'AN | AF12: =AF11+2-WEEKDAY(AF11)+(WEEKDAY(AF11)>2) -> 2019-01-01 | AH12: =Edit!M27 -> 7.47359181e-190
A13: Jour | B13: Heure Début | C13: Départ Diner | D13: Retour Diner | E13: Heure Fin | F13: Télétravail Départ | G13: Télétravail Fin | H13: TOTAL Journalier | I13: Absence | K13: Index de la ligne | AE13: Bureau fermé congé donné-un jour après le jour de l'an | AF13: =AF11+2-WEEKDAY(AF11)+(WEEKDAY(AF11)>2)+1 -> 2019-01-02
L14: =MAX('Juin 4e-5e semaine-Juillet déb.'!K16:K35) -> 1904-01-01 | AD14: Mars | AE14: Bureau fermé congé donné-un jour ouvré avant Pâques | AF14: =AF15-2 -> 2019-04-19 | AG14: 3e lundi de mai | AH14: =Edit!M28 -> 0.3289473684
A15: Horaire Semaine 1 | K15: =IF(COUNTIF(I16,"X"),MAX($K$13:K13)+1,"") ->  | AE15: Pâques | AF15: =DATE(Année,3,29.56+0.979*MOD(204-11*MOD(Année,19),30)- WEEKDAY(DATE(Année,3,28.56+0.979*MOD(204-11*MOD(Année,19),30)))) -> 2019-04-21 | AG15: Date fixe 24 juin
A16: =$B$10 -> 2019-07-01 | H16: =IF(ISNA(VLOOKUP($A16,$AF$12:$AH$29,3,FALSE)),IF($I16="CONGÉ",'Congés de l''employé'!$E$16,IF($I16="Demi congé",'Congés de l''employé'!$BU$16,IF($I16="MALADIE",'Congés de l''employé'!$E$18,IF($I16="Demi maladie",'Congés de l''employé'!$BU$18,MOD($E16-($B16-($C16-$D16))+($G16-$F16),1))))),VLOOKUP($A16,$AF$12:$AH$29,3,FALSE)) -> 1.125374615e-210 | K16: =IF(I16<>"",1+MAX($L$14:L14),"") ->  | AD16: Avril | AE16: Lundi de pâques | AF16: =AF15+1 -> 2019-04-22 | AG16: Date fixe 1er juillet
A17: =$B$10+1 -> 2019-07-02 | H17: =IF(ISNA(VLOOKUP($A17,$AF$12:$AH$29,3,FALSE)),IF($I17="CONGÉ",'Congés de l''employé'!$E$16,IF($I17="Demi congé",'Congés de l''employé'!$BU$16,IF($I17="MALADIE",'Congés de l''employé'!$E$18,IF($I17="Demi maladie",'Congés de l''employé'!$BU$18,MOD($E17-($B17-($C17-$D17))+($G17-$F17),1))))),VLOOKUP($A17,$AF$12:$AH$29,3,FALSE)) -> 0 | K17: =IF(I17<>"",1+MAX($K$14:K15),"") ->  | AD17: Mai | AE17: Journée nationale des patriotes | AF17: =DATE(Année,5,23)-WEEKDAY(DATE(Année,5,1),2) -> 2019-05-20 | AH17: =Edit!M30 -> 0
A18: =$B$10+2 -> 2019-07-03 | H18: =IF(ISNA(VLOOKUP($A18,$AF$12:$AH$29,3,FALSE)),IF($I18="CONGÉ",'Congés de l''employé'!$E$16,IF($I18="Demi congé",'Congés de l''employé'!$BU$16,IF($I18="MALADIE",'Congés de l''employé'!$E$18,IF($I18="Demi maladie",'Congés de l''employé'!$BU$18,MOD($E18-($B18-($C18-$D18))+($G18-$F18),1))))),VLOOKUP($A18,$AF$12:$AH$29,3,FALSE)) -> 0 | K18: =IF(I18<>"",1+MAX($K$14:K16),"") ->  | AD18: Juin | AE18: Fête nationale du Québec | AF18: =DATE(Année,6,24) -> 2019-06-24 | AH18: =Edit!M31 -> 0
A19: =$B$10+3 -> 2019-07-04 | H19: =IF(ISNA(VLOOKUP($A19,$AF$12:$AH$29,3,FALSE)),IF($I19="CONGÉ",'Congés de l''employé'!$E$16,IF($I19="Demi congé",'Congés de l''employé'!$BU$16,IF($I19="MALADIE",'Congés de l''employé'!$E$18,IF($I19="Demi maladie",'Congés de l''employé'!$BU$18,MOD($E19-($B19-($C19-$D19))+($G19-$F19),1))))),VLOOKUP($A19,$AF$12:$AH$29,3,FALSE)) -> 0 | K19: =IF(I19<>"",1+MAX($K$14:K17),"") ->  | AE19: FÉRIÉ-JOUR OUVRABLE SUIVANT LA FÊTE NATIONALE DU QUÉBEC | AF19: =AF18+2-WEEKDAY(AF18)+(WEEKDAY(AF18)>2)*7 -> 2019-06-24 | AG19: Date fixe 25 décembre
A20: =$B$10+4 -> 2019-07-05 | H20: =IF(ISNA(VLOOKUP($A20,$AF$12:$AH$29,3,FALSE)),IF($I20="CONGÉ",'Congés de l''employé'!$E$16,IF($I20="Demi congé",'Congés de l''employé'!$BU$16,IF($I20="MALADIE",'Congés de l''employé'!$E$18,IF($I20="Demi maladie",'Congés de l''employé'!$BU$18,MOD($E20-($B20-($C20-$D20))+($G20-$F20),1))))),VLOOKUP($A20,$AF$12:$AH$29,3,FALSE)) -> 0 | K20: =IF(I20<>"",1+MAX($K$14:K18),"") ->  | AD20: Juillet | AE20: Fête du Canada | AF20: =DATE(Année,7,1) -> 2019-07-01 | AH20: =Edit!M32 -> 1.125374615e-210
A21: =$B$10+5 -> 2019-07-06 | H21: =IF(ISNA(VLOOKUP($A21,$AF$12:$AH$29,3,FALSE)),IF($I21="CONGÉ",'Congés de l''employé'!$E$16,IF($I21="Demi congé",'Congés de l''employé'!$BU$16,IF($I21="MALADIE",'Congés de l''employé'!$E$18,IF($I21="Demi maladie",'Congés de l''employé'!$BU$18,MOD($E21-($B21-($C21-$D21))+($G21-$F21),1))))),VLOOKUP($A21,$AF$12:$AH$29,3,FALSE)) -> 0 | K21: =IF(I21<>"",1+MAX($K$14:K19),"") ->  | AE21: FÉRIÉ-JOUR OUVRABLE SUIVANT LA FÊTE DU CANADA | AF21: =AF20+2-WEEKDAY(AF20)+(WEEKDAY(AF20)>2)*7 -> 2019-07-01
A22: =$B$10+6 -> 2019-07-07 | H22: =IF(ISNA(VLOOKUP($A22,$AF$12:$AH$29,3,FALSE)),IF($I22="CONGÉ",'Congés de l''employé'!$E$16,IF($I22="Demi congé",'Congés de l''employé'!$BU$16,IF($I22="MALADIE",'Congés de l''employé'!$E$18,IF($I22="Demi maladie",'Congés de l''employé'!$BU$18,MOD($E22-($B22-($C22-$D22))+($G22-$F22),1))))),VLOOKUP($A22,$AF$12:$AH$29,3,FALSE)) -> 0 | K22: =IF(I22<>"",1+MAX($K$14:K20),"") ->  | AD22: Septembre | AE22: Fête du travail | AF22: =IF(MOD(DATE(Année,9,1),7)<=2,2-MOD(DATE(Année,9,1),7),9-MOD(DATE(Année,9,1),7))+DATE(Année,9,1) -> 2019-09-01 | AH22: =Edit!M33 -> 0
H23: =SUM(H16:H22)+B23 -> 1.125374615e-210 | K23: =IF(I23<>"",1+MAX($K$14:K21),"") ->  | AE23: FÉRIÉ-JOUR OUVRABLE SUIVANT LA FÊTE DU TRAVAIL | AF23: =AF22+2-WEEKDAY(AF22)+(WEEKDAY(AF22)>2)*7 -> 2019-09-02
K24: =IF(I24<>"",1+MAX($K$14:K22),"") ->  | AD24: Octobre | AE24: Action de grâce | AF24: =DATE(AF10,10,1) -> 2019-10-01 | AH24: =Edit!M34 -> 0
K25: =IF(I25<>"",1+MAX($K$14:K23),"") ->  | AE25: FÉRIÉ-JOUR OUVRABLE SUIVANT L'ACTION DE GRÂCE | AF25: =AF24-DAY(AF24)-WEEKDAY(AF24-DAY(AF24),2)+15 -> 2019-10-14
G26: Heures en trop ou en moins | H26: =IF(OR(H23=-(B15),B15=0),"0",(H23-B15)) -> 0 | K26: =IF(I26<>"",1+MAX($K$14:K24),"") ->  | AE26: Bureau fermé congé donné | AF26: =DATE(Année,12,25)-1 -> 2019-12-24 | AH26: ='[1]Congés de l''employé'!$E$14 -> 0
K27: =IF(I27<>"",1+MAX($K$14:K25),"") ->  | AD27: Décembre | AE27: Férié-Noël | AF27: =DATE(Année,12,25) -> 2019-12-25 | AH27: =Edit!M35 -> 0
A28: Horaire Semaine 2 | K28: =IF(I28<>"",1+MAX($K$14:K26),"") ->  | AD28: Décembre | AE28: Bureau fermé congé donné | AF28: =DATE(Année,12,25)+1 -> 2019-12-26
A29: =B10+7 -> 2019-07-08 | H29: =IF(ISNA(VLOOKUP($A29,$AF$12:$AH$29,3,FALSE)),IF($I29="CONGÉ",'Congés de l''employé'!$E$16,IF($I29="Demi congé",'Congés de l''employé'!$BU$16,IF($I29="MALADIE",'Congés de l''employé'!$E$18,IF($I29="Demi maladie",'Congés de l''employé'!$BU$18,MOD($E29-($B29-($C29-$D29))+($G29-$F29),1))))),VLOOKUP($A29,$AF$12:$AH$29,3,FALSE)) -> 0 | K29: =IF(I29<>"",1+MAX($K$14:K28),"") ->  | AD29: Décembre | AE29: Bureau fermé congé donné | AF29: =AF11+2-WEEKDAY(AF11)+(WEEKDAY(AF11)>2)-1 -> 2018-12-31
A30: =B10+8 -> 2019-07-09 | H30: =IF(ISNA(VLOOKUP($A30,$AF$12:$AH$29,3,FALSE)),IF($I30="CONGÉ",'Congés de l''employé'!$E$16,IF($I30="Demi congé",'Congés de l''employé'!$BU$16,IF($I30="MALADIE",'Congés de l''employé'!$E$18,IF($I30="Demi maladie",'Congés de l''employé'!$BU$18,MOD($E30-($B30-($C30-$D30))+($G30-$F30),1))))),VLOOKUP($A30,$AF$12:$AH$29,3,FALSE)) -> 0 | K30: =IF(I30<>"",1+MAX($K$14:K29),"") -> 
A31: =B10+9 -> 2019-07-10 | H31: =IF(ISNA(VLOOKUP($A31,$AF$12:$AH$29,3,FALSE)),IF($I31="CONGÉ",'Congés de l''employé'!$E$16,IF($I31="Demi congé",'Congés de l''employé'!$BU$16,IF($I31="MALADIE",'Congés de l''employé'!$E$18,IF($I31="Demi maladie",'Congés de l''employé'!$BU$18,MOD($E31-($B31-($C31-$D31))+($G31-$F31),1))))),VLOOKUP($A31,$AF$12:$AH$29,3,FALSE)) -> 0 | K31: =IF(I31<>"",1+MAX($K$14:K30),"") -> 
A32: =B10+10 -> 2019-07-11 | H32: =IF(ISNA(VLOOKUP($A32,$AF$12:$AH$29,3,FALSE)),IF($I32="CONGÉ",'Congés de l''employé'!$E$16,IF($I32="Demi congé",'Congés de l''employé'!$BU$16,IF($I32="MALADIE",'Congés de l''employé'!$E$18,IF($I32="Demi maladie",'Congés de l''employé'!$BU$18,MOD($E32-($B32-($C32-$D32))+($G32-$F32),1))))),VLOOKUP($A32,$AF$12:$AH$29,3,FALSE)) -> 0 | K32: =IF(I32<>"",1+MAX($K$14:K31),"") -> 
A33: =B10+11 -> 2019-07-12 | H33: =IF(ISNA(VLOOKUP($A33,$AF$12:$AH$29,3,FALSE)),IF($I33="CONGÉ",'Congés de l''employé'!$E$16,IF($I33="Demi congé",'Congés de l''employé'!$BU$16,IF($I33="MALADIE",'Congés de l''employé'!$E$18,IF($I33="Demi maladie",'Congés de l''employé'!$BU$18,MOD($E33-($B33-($C33-$D33))+($G33-$F33),1))))),VLOOKUP($A33,$AF$12:$AH$29,3,FALSE)) -> 0 | K33: =IF(I33<>"",1+MAX($K$14:K32),"") -> 
A34: =B10+12 -> 2019-07-13 | H34: =IF(ISNA(VLOOKUP($A34,$AF$12:$AH$29,3,FALSE)),IF($I34="CONGÉ",'Congés de l''employé'!$E$16,IF($I34="Demi congé",'Congés de l''employé'!$BU$16,IF($I34="MALADIE",'Congés de l''employé'!$E$18,IF($I34="Demi maladie",'Congés de l''employé'!$BU$18,MOD($E34-($B34-($C34-$D34))+($G34-$F34),1))))),VLOOKUP($A34,$AF$12:$AH$29,3,FALSE)) -> 0 | K34: =IF(I34<>"",1+MAX($K$14:K33),"") -> 
A35: =B10+13 -> 2019-07-14 | H35: =IF(ISNA(VLOOKUP($A35,$AF$12:$AH$29,3,FALSE)),IF($I35="CONGÉ",'Congés de l''employé'!$E$16,IF($I35="Demi congé",'Congés de l''employé'!$BU$16,IF($I35="MALADIE",'Congés de l''employé'!$E$18,IF($I35="Demi maladie",'Congés de l''employé'!$BU$18,MOD($E35-($B35-($C35-$D35))+($G35-$F35),1))))),VLOOKUP($A35,$AF$12:$AH$29,3,FALSE)) -> 0 | K35: =IF(I35<>"",1+MAX($K$14:K34),"") -> 
H36: =SUM(H29:H35)+B36 -> 0
G38: Heures en trop ou en moins | H38: =IF(OR(H36=-(B28),B28=0),"0",(H36-B28)) -> 0
A40: Heure travaillées | B40: Heures prévues | C40: ENTREZ le nombre d'heures à payer | D40: Heures supplémentaires ou en moins | E40: Heures à transposer dans la Banque | F40: Total de la Banque d'heures
A41: =$H$23+$H$36 -> 1.125374615e-210 | B41: ='Congés de l''employé'!BU8*2 -> 2.916666667 | C41: =A41 -> 1.125374615e-210 | D41: =IF($H$26>0,$H$26)+IF($H$38>0,$H$38,0)+IF($H$26<0,$H$26)+IF($H$38<0,$H$38,0) -> 0 | E41: =$A$41-$C$41 -> 0 | F41: =SUM('Juin 4e-5e semaine-Juillet déb.'!F41:G42)+E41 -> 0

Sheet Juillet 3e-4e semaine
A1: =MID(CELL("filename",A1),FIND("]",CELL("filename",A1))+1,32) -> Juillet 3e-4e semaine
B2: Feuille de temps
AD8: Congés fériés, lundi suivant la date
A9: Employé: | B9: ='Congés de l''employé'!B8 -> 0 | AD9: Mois | AE9: Type de congé férié | AF9: Année en cours
A10: Période débutant le | B10: =DATE(An_ref,1,-2)-WEEKDAY(DATE(An_ref,1,3))+203 -> 2019-07-15 | AB10: =OR(B11=$AF$12,B11=$AF$13,B11=$AF$14,B11=$AF$16,B11=$AF$17,B11=$AF$19,B11=$AF$21,B11=$AF$23,B11=$AF$25,B11=$AF$26,B11=$AF$27,B11=$AF$28) -> FALSE | AF10: =An_ref -> 2019 | AH10: alloué au férié
AD11: Janvier | AE11: Jour de l'an | AF11: =DATE(Année,1,1) -> 2019-01-01 | AG11: Date fixe 1er janvier
AE12: FÉRIÉ-JOUR OUVRABLE SUIVANT LE JOUR DE L'AN | AF12: =AF11+2-WEEKDAY(AF11)+(WEEKDAY(AF11)>2) -> 2019-01-01 | AH12: =Edit!M27 -> 7.47359181e-190
A13: Jour | B13: Heure Début | C13: Départ Diner | D13: Retour Diner | E13: Heure Fin | F13: Télétravail Départ | G13: Télétravail Fin | H13: TOTAL Journalier | I13: Absence | K13: Index de la ligne | AE13: Bureau fermé congé donné-un jour après le jour de l'an | AF13: =AF11+2-WEEKDAY(AF11)+(WEEKDAY(AF11)>2)+1 -> 2019-01-02
L14: =MAX('Juillet-2prem. semaines'!K16:K35) -> 1904-01-01 | AD14: Mars | AE14: Bureau fermé congé donné-un jour ouvré avant Pâques | AF14: =AF15-2 -> 2019-04-19 | AG14: 3e lundi de mai | AH14: =Edit!M28 -> 0.3289473684
A15: Horaire Semaine 1 | K15: =IF(COUNTIF(I16,"X"),MAX($K$13:K13)+1,"") ->  | AE15: Pâques | AF15: =DATE(Année,3,29.56+0.979*MOD(204-11*MOD(Année,19),30)- WEEKDAY(DATE(Année,3,28.56+0.979*MOD(204-11*MOD(Année,19),30)))) -> 2019-04-21 | AG15: Date fixe 24 juin
A16: =$B$10 -> 2019-07-15 | H16: =IF(ISNA(VLOOKUP($A16,$AF$12:$AH$29,3,FALSE)),IF($I16="CONGÉ",'Congés de l''employé'!$E$16,IF($I16="Demi congé",'Congés de l''employé'!$BU$16,IF($I16="MALADIE",'Congés de l''employé'!$E$18,IF($I16="Demi maladie",'Congés de l''employé'!$BU$18,MOD($E16-($B16-($C16-$D16))+($G16-$F16),1))))),VLOOKUP($A16,$AF$12:$AH$29,3,FALSE)) -> 0 | K16: =IF(I16<>"",1+MAX($L$14:L14),"") ->  | AD16: Avril | AE16: Lundi de pâques | AF16: =AF15+1 -> 2019-04-22 | AG16: Date fixe 1er juillet
A17: =$B$10+1 -> 2019-07-16 | H17: =IF(ISNA(VLOOKUP($A17,$AF$12:$AH$29,3,FALSE)),IF($I17="CONGÉ",'Congés de l''employé'!$E$16,IF($I17="Demi congé",'Congés de l''employé'!$BU$16,IF($I17="MALADIE",'Congés de l''employé'!$E$18,IF($I17="Demi maladie",'Congés de l''employé'!$BU$18,MOD($E17-($B17-($C17-$D17))+($G17-$F17),1))))),VLOOKUP($A17,$AF$12:$AH$29,3,FALSE)) -> 0 | K17: =IF(I17<>"",1+MAX($K$14:K15),"") ->  | AD17: Mai | AE17: Journée nationale des patriotes | AF17: =DATE(Année,5,23)-WEEKDAY(DATE(Année,5,1),2) -> 2019-05-20 | AH17: =Edit!M30 -> 0
A18: =$B$10+2 -> 2019-07-17 | H18: =IF(ISNA(VLOOKUP($A18,$AF$12:$AH$29,3,FALSE)),IF($I18="CONGÉ",'Congés de l''employé'!$E$16,IF($I18="Demi congé",'Congés de l''employé'!$BU$16,IF($I18="MALADIE",'Congés de l''employé'!$E$18,IF($I18="Demi maladie",'Congés de l''employé'!$BU$18,MOD($E18-($B18-($C18-$D18))+($G18-$F18),1))))),VLOOKUP($A18,$AF$12:$AH$29,3,FALSE)) -> 0 | K18: =IF(I18<>"",1+MAX($K$14:K16),"") ->  | AD18: Juin | AE18: Fête nationale du Québec | AF18: =DATE(Année,6,24) -> 2019-06-24 | AH18: =Edit!M31 -> 0
A19: =$B$10+3 -> 2019-07-18 | H19: =IF(ISNA(VLOOKUP($A19,$AF$12:$AH$29,3,FALSE)),IF($I19="CONGÉ",'Congés de l''employé'!$E$16,IF($I19="Demi congé",'Congés de l''employé'!$BU$16,IF($I19="MALADIE",'Congés de l''employé'!$E$18,IF($I19="Demi maladie",'Congés de l''employé'!$BU$18,MOD($E19-($B19-($C19-$D19))+($G19-$F19),1))))),VLOOKUP($A19,$AF$12:$AH$29,3,FALSE)) -> 0 | K19: =IF(I19<>"",1+MAX($K$14:K17),"") ->  | AE19: FÉRIÉ-JOUR OUVRABLE SUIVANT LA FÊTE NATIONALE DU QUÉBEC | AF19: =AF18+2-WEEKDAY(AF18)+(WEEKDAY(AF18)>2)*7 -> 2019-06-24 | AG19: Date fixe 25 décembre
A20: =$B$10+4 -> 2019-07-19 | H20: =IF(ISNA(VLOOKUP($A20,$AF$12:$AH$29,3,FALSE)),IF($I20="CONGÉ",'Congés de l''employé'!$E$16,IF($I20="Demi congé",'Congés de l''employé'!$BU$16,IF($I20="MALADIE",'Congés de l''employé'!$E$18,IF($I20="Demi maladie",'Congés de l''employé'!$BU$18,MOD($E20-($B20-($C20-$D20))+($G20-$F20),1))))),VLOOKUP($A20,$AF$12:$AH$29,3,FALSE)) -> 0 | K20: =IF(I20<>"",1+MAX($K$14:K18),"") ->  | AD20: Juillet | AE20: Fête du Canada | AF20: =DATE(Année,7,1) -> 2019-07-01 | AH20: =Edit!M32 -> 1.125374615e-210
A21: =$B$10+5 -> 2019-07-20 | H21: =IF(ISNA(VLOOKUP($A21,$AF$12:$AH$29,3,FALSE)),IF($I21="CONGÉ",'Congés de l''employé'!$E$16,IF($I21="Demi congé",'Congés de l''employé'!$BU$16,IF($I21="MALADIE",'Congés de l''employé'!$E$18,IF($I21="Demi maladie",'Congés de l''employé'!$BU$18,MOD($E21-($B21-($C21-$D21))+($G21-$F21),1))))),VLOOKUP($A21,$AF$12:$AH$29,3,FALSE)) -> 0 | K21: =IF(I21<>"",1+MAX($K$14:K19),"") ->  | AE21: FÉRIÉ-JOUR OUVRABLE SUIVANT LA FÊTE DU CANADA | AF21: =AF20+2-WEEKDAY(AF20)+(WEEKDAY(AF20)>2)*7 -> 2019-07-01
A22: =$B$10+6 -> 2019-07-21 | H22: =IF(ISNA(VLOOKUP($A22,$AF$12:$AH$29,3,FALSE)),IF($I22="CONGÉ",'Congés de l''employé'!$E$16,IF($I22="Demi congé",'Congés de l''employé'!$BU$16,IF($I22="MALADIE",'Congés de l''employé'!$E$18,IF($I22="Demi maladie",'Congés de l''employé'!$BU$18,MOD($E22-($B22-($C22-$D22))+($G22-$F22),1))))),VLOOKUP($A22,$AF$12:$AH$29,3,FALSE)) -> 0 | K22: =IF(I22<>"",1+MAX($K$14:K20),"") ->  | AD22: Septembre | AE22: Fête du travail | AF22: =IF(MOD(DATE(Année,9,1),7)<=2,2-MOD(DATE(Année,9,1),7),9-MOD(DATE(Année,9,1),7))+DATE(Année,9,1) -> 2019-09-01 | AH22: =Edit!M33 -> 0
H23: =SUM(H16:H22)+B23 -> 0 | K23: =IF(I23<>"",1+MAX($K$14:K21),"") ->  | AE23: FÉRIÉ-JOUR OUVRABLE SUIVANT LA FÊTE DU TRAVAIL | AF23: =AF22+2-WEEKDAY(AF22)+(WEEKDAY(AF22)>2)*7 -> 2019-09-02
K24: =IF(I24<>"",1+MAX($K$14:K22),"") ->  | AD24: Octobre | AE24: Action de grâce | AF24: =DATE(AF10,10,1) -> 2019-10-01 | AH24: =Edit!M34 -> 0
K25: =IF(I25<>"",1+MAX($K$14:K23),"") ->  | AE25: FÉRIÉ-JOUR OUVRABLE SUIVANT L'ACTION DE GRÂCE | AF25: =AF24-DAY(AF24)-WEEKDAY(AF24-DAY(AF24),2)+15 -> 2019-10-14
G26: Heures en trop ou en moins | H26: =IF(OR(H23=-(B15),B15=0),"0",(H23-B15)) -> 0 | K26: =IF(I26<>"",1+MAX($K$14:K24),"") ->  | AE26: Bureau fermé congé donné | AF26: =DATE(Année,12,25)-1 -> 2019-12-24 | AH26: ='[1]Congés de l''employé'!$E$14 -> 0
K27: =IF(I27<>"",1+MAX($K$14:K25),"") ->  | AD27: Décembre | AE27: Férié-Noël | AF27: =DATE(Année,12,25) -> 2019-12-25 | AH27: =Edit!M35 -> 0
A28: Horaire Semaine 2 | K28: =IF(I28<>"",1+MAX($K$14:K26),"") ->  | AD28: Décembre | AE28: Bureau fermé congé donné | AF28: =DATE(Année,12,25)+1 -> 2019-12-26
A29: =B10+7 -> 2019-07-22 | H29: =IF(ISNA(VLOOKUP($A29,$AF$12:$AH$29,3,FALSE)),IF($I29="CONGÉ",'Congés de l''employé'!$E$16,IF($I29="Demi congé",'Congés de l''employé'!$BU$16,IF($I29="MALADIE",'Congés de l''employé'!$E$18,IF($I29="Demi maladie",'Congés de l''employé'!$BU$18,MOD($E29-($B29-($C29-$D29))+($G29-$F29),1))))),VLOOKUP($A29,$AF$12:$AH$29,3,FALSE)) -> 0 | K29: =IF(I29<>"",1+MAX($K$14:K28),"") ->  | AD29: Décembre | AE29: Bureau fermé congé donné | AF29: =AF11+2-WEEKDAY(AF11)+(WEEKDAY(AF11)>2)-1 -> 2018-12-31
A30: =B10+8 -> 2019-07-23 | H30: =IF(ISNA(VLOOKUP($A30,$AF$12:$AH$29,3,FALSE)),IF($I30="CONGÉ",'Congés de l''employé'!$E$16,IF($I30="Demi congé",'Congés de l''employé'!$BU$16,IF($I30="MALADIE",'Congés de l''employé'!$E$18,IF($I30="Demi maladie",'Congés de l''employé'!$BU$18,MOD($E30-($B30-($C30-$D30))+($G30-$F30),1))))),VLOOKUP($A30,$AF$12:$AH$29,3,FALSE)) -> 0 | K30: =IF(I30<>"",1+MAX($K$14:K29),"") -> 
A31: =B10+9 -> 2019-07-24 | H31: =IF(ISNA(VLOOKUP($A31,$AF$12:$AH$29,3,FALSE)),IF($I31="CONGÉ",'Congés de l''employé'!$E$16,IF($I31="Demi congé",'Congés de l''employé'!$BU$16,IF($I31="MALADIE",'Congés de l''employé'!$E$18,IF($I31="Demi maladie",'Congés de l''employé'!$BU$18,MOD($E31-($B31-($C31-$D31))+($G31-$F31),1))))),VLOOKUP($A31,$AF$12:$AH$29,3,FALSE)) -> 0 | K31: =IF(I31<>"",1+MAX($K$14:K30),"") -> 
A32: =B10+10 -> 2019-07-25 | H32: =IF(ISNA(VLOOKUP($A32,$AF$12:$AH$29,3,FALSE)),IF($I32="CONGÉ",'Congés de l''employé'!$E$16,IF($I32="Demi congé",'Congés de l''employé'!$BU$16,IF($I32="MALADIE",'Congés de l''employé'!$E$18,IF($I32="Demi maladie",'Congés de l''employé'!$BU$18,MOD($E32-($B32-($C32-$D32))+($G32-$F32),1))))),VLOOKUP($A32,$AF$12:$AH$29,3,FALSE)) -> 0 | K32: =IF(I32<>"",1+MAX($K$14:K31),"") -> 
A33: =B10+11 -> 2019-07-26 | H33: =IF(ISNA(VLOOKUP($A33,$AF$12:$AH$29,3,FALSE)),IF($I33="CONGÉ",'Congés de l''employé'!$E$16,IF($I33="Demi congé",'Congés de l''employé'!$BU$16,IF($I33="MALADIE",'Congés de l''employé'!$E$18,IF($I33="Demi maladie",'Congés de l''employé'!$BU$18,MOD($E33-($B33-($C33-$D33))+($G33-$F33),1))))),VLOOKUP($A33,$AF$12:$AH$29,3,FALSE)) -> 0 | K33: =IF(I33<>"",1+MAX($K$14:K32),"") -> 
A34: =B10+12 -> 2019-07-27 | H34: =IF(ISNA(VLOOKUP($A34,$AF$12:$AH$29,3,FALSE)),IF($I34="CONGÉ",'Congés de l''employé'!$E$16,IF($I34="Demi congé",'Congés de l''employé'!$BU$16,IF($I34="MALADIE",'Congés de l''employé'!$E$18,IF($I34="Demi maladie",'Congés de l''employé'!$BU$18,MOD($E34-($B34-($C34-$D34))+($G34-$F34),1))))),VLOOKUP($A34,$AF$12:$AH$29,3,FALSE)) -> 0 | K34: =IF(I34<>"",1+MAX($K$14:K33),"") -> 
A35: =B10+13 -> 2019-07-28 | H35: =IF(ISNA(VLOOKUP($A35,$AF$12:$AH$29,3,FALSE)),IF($I35="CONGÉ",'Congés de l''employé'!$E$16,IF($I35="Demi congé",'Congés de l''employé'!$BU$16,IF($I35="MALADIE",'Congés de l''employé'!$E$18,IF($I35="Demi maladie",'Congés de l''employé'!$BU$18,MOD($E35-($B35-($C35-$D35))+($G35-$F35),1))))),VLOOKUP($A35,$AF$12:$AH$29,3,FALSE)) -> 0 | K35: =IF(I35<>"",1+MAX($K$14:K34),"") -> 
H36: =SUM(H29:H35)+B36 -> 0
G38: Heures en trop ou en moins | H38: =IF(OR(H36=-(B28),B28=0),"0",(H36-B28)) -> 0
A40: Heure travaillées | B40: Heures prévues | C40: ENTREZ le nombre d'heures à payer | D40: Heures supplémentaires ou en moins | E40: Heures à transposer dans la Banque | F40: Total de la Banque d'heures
A41: =$H$23+$H$36 -> 0 | B41: ='Congés de l''employé'!BU8*2 -> 2.916666667 | C41: =A41 -> 0 | D41: =IF($H$26>0,$H$26)+IF($H$38>0,$H$38,0)+IF($H$26<0,$H$26)+IF($H$38<0,$H$38,0) -> 0 | E41: =$A$41-$C$41 -> 0 | F41: =SUM('Juillet-2prem. semaines'!F41:G42)+E41 -> 0

Sheet Fin Juillet-Août 2prem. sem.
A1: =MID(CELL("filename",A1),FIND("]",CELL("filename",A1))+1,32) -> Fin Juillet-Août 2prem. sem.
B2: Feuille de temps
AD8: Congés fériés, lundi suivant la date
A9: Employé: | B9: ='Congés de l''employé'!B8 -> 0 | AD9: Mois | AE9: Type de congé férié | AF9: Année en cours
A10: Période débutant le | B10: =DATE(An_ref,1,-2)-WEEKDAY(DATE(An_ref,1,3))+217 -> 2019-07-29 | AB10: =OR(B11=$AF$12,B11=$AF$13,B11=$AF$14,B11=$AF$16,B11=$AF$17,B11=$AF$19,B11=$AF$21,B11=$AF$23,B11=$AF$25,B11=$AF$26,B11=$AF$27,B11=$AF$28) -> FALSE | AF10: =An_ref -> 2019 | AH10: alloué au férié
AD11: Janvier | AE11: Jour de l'an | AF11: =DATE(Année,1,1) -> 2019-01-01 | AG11: Date fixe 1er janvier
AE12: FÉRIÉ-JOUR OUVRABLE SUIVANT LE JOUR DE L'AN | AF12: =AF11+2-WEEKDAY(AF11)+(WEEKDAY(AF11)>2) -> 2019-01-01 | AH12: =Edit!M27 -> 7.47359181e-190
A13: Jour | B13: Heure Début | C13: Départ Diner | D13: Retour Diner | E13: Heure Fin | F13: Télétravail Départ | G13: Télétravail Fin | H13: TOTAL Journalier | I13: Absence | K13: Index de la ligne | AE13: Bureau fermé congé donné-un jour après le jour de l'an | AF13: =AF11+2-WEEKDAY(AF11)+(WEEKDAY(AF11)>2)+1 -> 2019-01-02
L14: =MAX('Juillet 3e-4e semaine'!K16:K35) -> 1904-01-01 | AD14: Mars | AE14: Bureau fermé congé donné-un jour ouvré avant Pâques | AF14: =AF15-2 -> 2019-04-19 | AG14: 3e lundi de mai | AH14: =Edit!M28 -> 0.3289473684
A15: Horaire Semaine 1 | K15: =IF(COUNTIF(I16,"X"),MAX($K$13:K13)+1,"") ->  | AE15: Pâques | AF15: =DATE(Année,3,29.56+0.979*MOD(204-11*MOD(Année,19),30)- WEEKDAY(DATE(Année,3,28.56+0.979*MOD(204-11*MOD(Année,19),30)))) -> 2019-04-21 | AG15: Date fixe 24 juin
A16: =$B$10 -> 2019-07-29 | H16: =IF(ISNA(VLOOKUP($A16,$AF$12:$AH$29,3,FALSE)),IF($I16="CONGÉ",'Congés de l''employé'!$E$16,IF($I16="Demi congé",'Congés de l''employé'!$BU$16,IF($I16="MALADIE",'Congés de l''employé'!$E$18,IF($I16="Demi maladie",'Congés de l''employé'!$BU$18,MOD($E16-($B16-($C16-$D16))+($G16-$F16),1))))),VLOOKUP($A16,$AF$12:$AH$29,3,FALSE)) -> 0 | K16: =IF(I16<>"",1+MAX($L$14:L14),"") ->  | AD16: Avril | AE16: Lundi de pâques | AF16: =AF15+1 -> 2019-04-22 | AG16: Date fixe 1er juillet
A17: =$B$10+1 -> 2019-07-30 | H17: =IF(ISNA(VLOOKUP($A17,$AF$12:$AH$29,3,FALSE)),IF($I17="CONGÉ",'Congés de l''employé'!$E$16,IF($I17="Demi congé",'Congés de l''employé'!$BU$16,IF($I17="MALADIE",'Congés de l''employé'!$E$18,IF($I17="Demi maladie",'Congés de l''employé'!$BU$18,MOD($E17-($B17-($C17-$D17))+($G17-$F17),1))))),VLOOKUP($A17,$AF$12:$AH$29,3,FALSE)) -> 0 | K17: =IF(I17<>"",1+MAX($K$14:K15),"") ->  | AD17: Mai | AE17: Journée nationale des patriotes | AF17: =DATE(Année,5,23)-WEEKDAY(DATE(Année,5,1),2) -> 2019-05-20 | AH17: =Edit!M30 -> 0
A18: =$B$10+2 -> 2019-07-31 | H18: =IF(ISNA(VLOOKUP($A18,$AF$12:$AH$29,3,FALSE)),IF($I18="CONGÉ",'Congés de l''employé'!$E$16,IF($I18="Demi congé",'Congés de l''employé'!$BU$16,IF($I18="MALADIE",'Congés de l''employé'!$E$18,IF($I18="Demi maladie",'Congés de l''employé'!$BU$18,MOD($E18-($B18-($C18-$D18))+($G18-$F18),1))))),VLOOKUP($A18,$AF$12:$AH$29,3,FALSE)) -> 0 | K18: =IF(I18<>"",1+MAX($K$14:K16),"") ->  | AD18: Juin | AE18: Fête nationale du Québec | AF18: =DATE(Année,6,24) -> 2019-06-24 | AH18: =Edit!M31 -> 0
A19: =$B$10+3 -> 2019-08-01 | H19: =IF(ISNA(VLOOKUP($A19,$AF$12:$AH$29,3,FALSE)),IF($I19="CONGÉ",'Congés de l''employé'!$E$16,IF($I19="Demi congé",'Congés de l''employé'!$BU$16,IF($I19="MALADIE",'Congés de l''employé'!$E$18,IF($I19="Demi maladie",'Congés de l''employé'!$BU$18,MOD($E19-($B19-($C19-$D19))+($G19-$F19),1))))),VLOOKUP($A19,$AF$12:$AH$29,3,FALSE)) -> 0 | K19: =IF(I19<>"",1+MAX($K$14:K17),"") ->  | AE19: FÉRIÉ-JOUR OUVRABLE SUIVANT LA FÊTE NATIONALE DU QUÉBEC | AF19: =AF18+2-WEEKDAY(AF18)+(WEEKDAY(AF18)>2)*7 -> 2019-06-24 | AG19: Date fixe 25 décembre
A20: =$B$10+4 -> 2019-08-02 | H20: =IF(ISNA(VLOOKUP($A20,$AF$12:$AH$29,3,FALSE)),IF($I20="CONGÉ",'Congés de l''employé'!$E$16,IF($I20="Demi congé",'Congés de l''employé'!$BU$16,IF($I20="MALADIE",'Congés de l''employé'!$E$18,IF($I20="Demi maladie",'Congés de l''employé'!$BU$18,MOD($E20-($B20-($C20-$D20))+($G20-$F20),1))))),VLOOKUP($A20,$AF$12:$AH$29,3,FALSE)) -> 0 | K20: =IF(I20<>"",1+MAX($K$14:K18),"") ->  | AD20: Juillet | AE20: Fête du Canada | AF20: =DATE(Année,7,1) -> 2019-07-01 | AH20: =Edit!M32 -> 1.125374615e-210
A21: =$B$10+5 -> 2019-08-03 | H21: =IF(ISNA(VLOOKUP($A21,$AF$12:$AH$29,3,FALSE)),IF($I21="CONGÉ",'Congés de l''employé'!$E$16,IF($I21="Demi congé",'Congés de l''employé'!$BU$16,IF($I21="MALADIE",'Congés de l''employé'!$E$18,IF($I21="Demi maladie",'Congés de l''employé'!$BU$18,MOD($E21-($B21-($C21-$D21))+($G21-$F21),1))))),VLOOKUP($A21,$AF$12:$AH$29,3,FALSE)) -> 0 | K21: =IF(I21<>"",1+MAX($K$14:K19),"") ->  | AE21: FÉRIÉ-JOUR OUVRABLE SUIVANT LA FÊTE DU CANADA | AF21: =AF20+2-WEEKDAY(AF20)+(WEEKDAY(AF20)>2)*7 -> 2019-07-01
